Workbook

Sheet Template
A3: Gold Intention Sheet
A5: Gymnast Name: | C5: Gender: | F5: Gymnast Number: | M5: Club:
A7: ELEMENTS | C7: EXECUTION | D7: DIFFICULTY | I7: GROUP | M7: SPECIAL REQUIREMENTS | N7: BONUS | Q7: Validation 1 | Y7: Validation 2 | AG7: Validation 3 | AO7: Validation 4 | AW7: Validation 5 | BE7: Validation 6 | BM7: Validation 7 | BU7: Validation 8 | CC7: Validation 9 | CK7: Validation 10 | CS7: LHS | CT7: G2 | CU7: MS | CV7: MS G | CW7: AS | CX7: B1 | CY7: B2 | CZ7: Crt met b4 B
D8: A | E8: B | F8: C | G8: D | H8: E | I8: 1 | J8: 2 | K8: 3 | L8: 4 | Q8: found | R8: list | W8: count if | X8: ofset | Y8: found | Z8: list | AE8: count if | AF8: ofset | AG8: found | AH8: list | AM8: count if | AN8: ofset | AO8: found | AP8: list | AU8: count if | AV8: ofset | AW8: found | AX8: list | BC8: count if | BD8: ofset | BE8: found | BF8: list | BK8: count if | BL8: ofset | BM8: found | BN8: list | BS8: count if | BT8: ofset | BU8: found | BV8: list | CA8: count if | CB8: ofset | CC8: found | CD8: list | CI8: count if | CJ8: ofset | CK8: found | CL8: list | CQ8: count if | CR8: ofset | DA8: B | DB8: C | DC8: D | DD8: E
A9: 1 | D9: =IFERROR(IF(VLOOKUP(B9,Moves!$A$1:$D$151,2,FALSE)="A","X"," "),"") ->  | E9: =IFERROR(IF(VLOOKUP(B9,Moves!$A$1:$D$151,2,FALSE)="B","X"," "),"") ->  | F9: =IFERROR(IF(VLOOKUP(B9,Moves!$A$1:$D$151,2,FALSE)="C","X"," "),"") ->  | G9: =IFERROR(IF(VLOOKUP(B9,Moves!$A$1:$D$151,2,FALSE)="D","X"," "),"") ->  | H9: =IFERROR(IF(VLOOKUP(B9,Moves!$A$1:$D$151,2,FALSE)="E","X"," "),"") ->  | I9: =IFERROR(IF(VLOOKUP(B9,Moves!$A$1:$D$151,3,FALSE)=1,"X"," "),"") ->  | J9: =IFERROR(IF(VLOOKUP(B9,Moves!$A$1:$D$151,3,FALSE)=2,"X"," "),"") ->  | K9: =IFERROR(IF(VLOOKUP(B9,Moves!$A$1:$D$151,3,FALSE)=3,"X"," "),"") ->  | L9: =IFERROR(IF(VLOOKUP(B9,Moves!$A$1:$D$151,3,FALSE)=4,"X"," "),"") ->  | Q9: =IF(ISNUMBER(SEARCH($B$9,R9)),MAX($Q$8:Q8)+1,0) -> 1 | R9: Straight jump | U9: =IFERROR(VLOOKUP(ROWS($R$9:R9),$Q$9:$R$163,2,0),"") -> Straight jump | W9: =COUNTIF(U9:U163,"?*") -> 155 | X9: =OFFSET($U$9,,,COUNTIF($U$9:$U$163,"?*")) -> Straight jump | Y9: =IF(ISNUMBER(SEARCH($B$10,Z9)),MAX($Y$8:Y8)+1,0) -> 1 | Z9: Straight jump | AC9: =IFERROR(VLOOKUP(ROWS($Z$9:Z9),$Y$9:$Z$163,2,0),"") -> Straight jump | AE9: =COUNTIF(AC9:AC163,"?*") -> 155 | AF9: =OFFSET($AC$9,,,COUNTIF($AC$9:$AC$163,"?*")) -> Straight jump | AG9: =IF(ISNUMBER(SEARCH($B$11,AH9)),MAX($AG$8:AG8)+1,0) -> 1 | AH9: Straight jump | AK9: =IFERROR(VLOOKUP(ROWS($AH$9:AH9),$AG$9:$AH$163,2,0),"") -> Straight jump | AM9: =COUNTIF(AK9:AK163,"?*") -> 155 | AN9: =OFFSET($AK$9,,,COUNTIF($AK$9:$AK$163,"?*")) -> Straight jump | AO9: =IF(ISNUMBER(SEARCH($B$12,AP9)),MAX($AO$8:AO8)+1,0) -> 1 | AP9: Straight jump | AS9: =IFERROR(VLOOKUP(ROWS($AP$9:AP9),$AO$9:$AP$163,2,0),"") -> Straight jump | AU9: =COUNTIF(AS9:AS163,"?*") -> 155 | AV9: =OFFSET($AS$9,,,COUNTIF($AS$9:$AS$163,"?*")) -> Straight jump | AW9: =IF(ISNUMBER(SEARCH($B$13,AX9)),MAX($AW$8:AW8)+1,0) -> 1 | AX9: Straight jump | BA9: =IFERROR(VLOOKUP(ROWS($AX$9:AX9),$AW$9:$AX$163,2,0),"") -> Straight jump | BC9: =COUNTIF(BA9:BA163,"?*") -> 155 | BD9: =OFFSET($BA$9,,,COUNTIF($BA$9:$BA$163,"?*")) -> Straight jump | BE9: =IF(ISNUMBER(SEARCH($B$14,BF9)),MAX($BE$8:BE8)+1,0) -> 1 | BF9: Straight jump | BI9: =IFERROR(VLOOKUP(ROWS($BF$9:BF9),$BE$9:$BF$163,2,0),"") -> Straight jump | BK9: =COUNTIF(BI9:BI163,"?*") -> 155 | BL9: =OFFSET($BI$9,,,COUNTIF($BI$9:$BI$163,"?*")) -> Straight jump | BM9: =IF(ISNUMBER(SEARCH($B$15,BN9)),MAX($BM$8:BM8)+1,0) -> 1 | BN9: Straight jump | BQ9: =IFERROR(VLOOKUP(ROWS($BN$9:BN9),$BM$9:$BN$163,2,0),"") -> Straight jump | BS9: =COUNTIF(BQ9:BQ163,"?*") -> 155 | BT9: =OFFSET($BQ$9,,,COUNTIF($BQ$9:$BQ$163,"?*")) -> Straight jump | BU9: =IF(ISNUMBER(SEARCH($B$16,BV9)),MAX($BU$8:BU8)+1,0) -> 1 | BV9: Straight jump | BY9: =IFERROR(VLOOKUP(ROWS($BV$9:BV9),$BU$9:$BV$163,2,0),"") -> Straight jump | CA9: =COUNTIF(BY9:BY163,"?*") -> 155 | CB9: =OFFSET($BY$9,,,COUNTIF($BY$9:$BY$163,"?*")) -> Straight jump | CC9: =IF(ISNUMBER(SEARCH($B$17,CD9)),MAX($CC$8:CC8)+1,0) -> 1 | CD9: Straight jump | CG9: =IFERROR(VLOOKUP(ROWS($CD$9:CD9),$CC$9:$CD$163,2,0),"") -> Straight jump | CI9: =COUNTIF(CG9:CG163,"?*") -> 155 | CJ9: =OFFSET($CG$9,,,COUNTIF($CG$9:$CG$163,"?*")) -> Straight jump | CK9: =IF(ISNUMBER(SEARCH($B$18,CL9)),MAX($CK$8:CK8)+1,0) -> 1 | CL9: Straight jump | CO9: =IFERROR(VLOOKUP(ROWS($CL$9:CL9),$CK$9:$CL$163,2,0),"") -> Straight jump | CQ9: =COUNTIF(CO9:CO163,"?*") -> 155 | CR9: =OFFSET($CO$9,,,COUNTIF($CO$9:$CO$163,"?*")) -> Straight jump | CS9: =IF(M9<>$M$37,"",IF(I9="X",IF(F9="X","Yes",IF(G9="X","Yes",IF(H9="X","Yes","No"))))) ->  | CT9: =IF(M9=$M$43,IF(J9="X",IF(E9="X","Yes",IF(F9="X","Yes",IF(G9="X","Yes",IF(H9="X","Yes","No"))))),IF(M9=$M$44,IF(J9="X",IF(E9="X","Yes",IF(F9="X","Yes",IF(G9="X","Yes",IF(H9="X","Yes","No"))))),"")) ->  | CU9: =IF(M9<>"Mix series","",IF(I9="X",IF(E9="X","Yes",IF(F9="X","Yes",IF(G9="X","Yes",IF(D9="X","Yes",IF(H9="X","Yes","No"))))),IF(I9<>"X",IF(F9="X","Yes",IF(G9="X","Yes",IF(H9="X","Yes","No")))))) ->  | CV9: =IF(CU9<>"Yes","",IF(I9="X",1,IF(J9="X",2,IF(K9="X",3,IF(L9="X",4,"No"))))) ->  | CW9: =IF(M9<>$M$39,"",IF(G9="X",IF(VLOOKUP(B9,Moves!A1:D151,4,FALSE)="AFS2","Yes","No"),IF(H9="X",IF(VLOOKUP(B9,Moves!A1:D151,4,FALSE)="AFS2","Yes","No")))) ->  | CX9: =IF(N9<>$N$33,"",IF(H9="X",IF(I9<>"X","Yes","No"),"No")) ->  | CY9: =IF(N9<>$N$32,"",IF(H9<>"X","No",IF(VLOOKUP(B9,Moves!$A$1:$D$151,4,FALSE)="AFS","Yes",IF(VLOOKUP(B9,Moves!$A$1:$D$151,4,FALSE)="AFS2","Yes","No")))) ->  | CZ9: =IF(COUNTIF(Q9:CW9,"Yes")=2,"No","Yes") -> Yes | DA9: =IF(E9="X",IF($N9="Bonus - E AFS","No",IF($N9="Bonus - Egrp 2,3 or 4","No","Yes")),"") ->  | DB9: =IF(F9="X",IF($N9="Bonus - E AFS","No",IF($N9="Bonus - Egrp 2,3 or 4","No","Yes")),"") ->  | DC9: =IF(G9="X",IF($N9="Bonus - E AFS","No",IF($N9="Bonus - Egrp 2,3 or 4","No","Yes")),"") ->  | DD9: =IF(H9="X",IF($N9="Bonus - E AFS","No",IF($N9="Bonus - E Grp 2,3 or 4","No","Yes")),"") ->  | DE9: =IF(M9<>"Mix series","",IF(I9="X","Yes",IF(I9<>"X",IF(COUNTIF(J9:L9,"X")=1,"Yes","No"),"No"))) -> 
A10: 2 | D10: =IFERROR(IF(VLOOKUP(B10,Moves!$A$1:$D$151,2,FALSE)="A","X"," "),"") ->  | E10: =IFERROR(IF(VLOOKUP(B10,Moves!$A$1:$D$151,2,FALSE)="B","X"," "),"") ->  | F10: =IFERROR(IF(VLOOKUP(B10,Moves!$A$1:$D$151,2,FALSE)="C","X"," "),"") ->  | G10: =IFERROR(IF(VLOOKUP(B10,Moves!$A$1:$D$151,2,FALSE)="D","X"," "),"") ->  | H10: =IFERROR(IF(VLOOKUP(B10,Moves!$A$1:$D$151,2,FALSE)="E","X"," "),"") ->  | I10: =IFERROR(IF(VLOOKUP(B10,Moves!$A$1:$D$151,3,FALSE)=1,"X"," "),"") ->  | J10: =IFERROR(IF(VLOOKUP(B10,Moves!$A$1:$D$151,3,FALSE)=2,"X"," "),"") ->  | K10: =IFERROR(IF(VLOOKUP(B10,Moves!$A$1:$D$151,3,FALSE)=3,"X"," "),"") ->  | L10: =IFERROR(IF(VLOOKUP(B10,Moves!$A$1:$D$151,3,FALSE)=4,"X"," "),"") ->  | Q10: =IF(ISNUMBER(SEARCH($B$9,R10)),MAX($Q$8:Q9)+1,0) -> 2 | R10: Jump ½ turn | U10: =IFERROR(VLOOKUP(ROWS($R$9:R10),$Q$9:$R$163,2,0),"") -> Jump ½ turn | Y10: =IF(ISNUMBER(SEARCH($B$10,Z10)),MAX($Y$8:Y9)+1,0) -> 2 | Z10: Jump ½ turn | AC10: =IFERROR(VLOOKUP(ROWS($Z$9:Z10),$Y$9:$Z$163,2,0),"") -> Jump ½ turn | AG10: =IF(ISNUMBER(SEARCH($B$11,AH10)),MAX($AG$8:AG9)+1,0) -> 2 | AH10: Jump ½ turn | AK10: =IFERROR(VLOOKUP(ROWS($AH$9:AH10),$AG$9:$AH$163,2,0),"") -> Jump ½ turn | AO10: =IF(ISNUMBER(SEARCH($B$12,AP10)),MAX($AO$8:AO9)+1,0) -> 2 | AP10: Jump ½ turn | AS10: =IFERROR(VLOOKUP(ROWS($AP$9:AP10),$AO$9:$AP$163,2,0),"") -> Jump ½ turn | AW10: =IF(ISNUMBER(SEARCH($B$13,AX10)),MAX($AW$8:AW9)+1,0) -> 2 | AX10: Jump ½ turn | BA10: =IFERROR(VLOOKUP(ROWS($AX$9:AX10),$AW$9:$AX$163,2,0),"") -> Jump ½ turn | BE10: =IF(ISNUMBER(SEARCH($B$14,BF10)),MAX($BE$8:BE9)+1,0) -> 2 | BF10: Jump ½ turn | BI10: =IFERROR(VLOOKUP(ROWS($BF$9:BF10),$BE$9:$BF$163,2,0),"") -> Jump ½ turn | BM10: =IF(ISNUMBER(SEARCH($B$15,BN10)),MAX($BM$8:BM9)+1,0) -> 2 | BN10: Jump ½ turn | BQ10: =IFERROR(VLOOKUP(ROWS($BN$9:BN10),$BM$9:$BN$163,2,0),"") -> Jump ½ turn | BU10: =IF(ISNUMBER(SEARCH($B$16,BV10)),MAX($BU$8:BU9)+1,0) -> 2 | BV10: Jump ½ turn | BY10: =IFERROR(VLOOKUP(ROWS($BV$9:BV10),$BU$9:$BV$163,2,0),"") -> Jump ½ turn | CC10: =IF(ISNUMBER(SEARCH($B$17,CD10)),MAX($CC$8:CC9)+1,0) -> 2 | CD10: Jump ½ turn | CG10: =IFERROR(VLOOKUP(ROWS($CD$9:CD10),$CC$9:$CD$163,2,0),"") -> Jump ½ turn | CK10: =IF(ISNUMBER(SEARCH($B$18,CL10)),MAX($CK$8:CK9)+1,0) -> 2 | CL10: Jump ½ turn | CO10: =IFERROR(VLOOKUP(ROWS($CL$9:CL10),$CK$9:$CL$163,2,0),"") -> Jump ½ turn | CT10: =IF(M10=$M$43,IF(J10="X",IF(E10="X","Yes",IF(F10="X","Yes",IF(G10="X","Yes",IF(H10="X","Yes","No"))))),IF(M10=$M$44,IF(J10="X",IF(E10="X","Yes",IF(F10="X","Yes",IF(G10="X","Yes",IF(H10="X","Yes","No"))))),"")) ->  | CU10: =IF(M10<>"Mix series","",IF(I10="X",IF(E10="X","Yes",IF(F10="X","Yes",IF(G10="X","Yes",IF(H10="X","Yes","No")))),IF(I10<>"X",IF(F10="X","Yes",IF(G10="X","Yes",IF(H10="X","Yes","No")))))) ->  | CV10: =IF(CU10<>"Yes","",IF(I10="X",1,IF(J10="X",2,IF(K10="X",3,IF(L10="X",4,"No"))))) ->  | CW10: =IF(M10<>$M$39,"",IF(G10="X",IF(VLOOKUP(B10,Moves!A2:D152,4,FALSE)="AFS2","Yes","No"),IF(H10="X",IF(VLOOKUP(B10,Moves!A2:D152,4,FALSE)="AFS2","Yes","No")))) ->  | CX10: =IF(N10<>$N$33,"",IF(H10="X",IF(I10<>"X","Yes","No"),"No")) ->  | CY10: =IF(N10<>$N$32,"",IF(H10<>"X","No",IF(VLOOKUP(B10,Moves!$A$1:$D$151,4,FALSE)="AFS","Yes",IF(VLOOKUP(B10,Moves!$A$1:$D$151,4,FALSE)="AFS2","Yes","No")))) ->  | CZ10: =IF(COUNTIF(Q10:CW10,"Yes")=2,"No","Yes") -> Yes | DA10: =IF(E10="X",IF($N10="Bonus - E AFS","No",IF($N10="Bonus - Egrp 2,3 or 4","No","Yes")),"") ->  | DB10: =IF(F10="X",IF($N10="Bonus - E AFS","No",IF($N10="Bonus - Egrp 2,3 or 4","No","Yes")),"") ->  | DD10: =IF(H10="X",IF($N10="Bonus - E AFS","No",IF($N10="Bonus - E Grp 2,3 or 4","No","Yes")),"") ->  | DE10: =IF(M10<>"Mix series","",IF(I10="X","Yes",IF(I10<>"X",IF(COUNTIF(J10:L10,"X")=1,"Yes","No"),"No"))) -> 
A11: 3 | D11: =IFERROR(IF(VLOOKUP(B11,Moves!$A$1:$D$151,2,FALSE)="A","X"," "),"") ->  | E11: =IFERROR(IF(VLOOKUP(B11,Moves!$A$1:$D$151,2,FALSE)="B","X"," "),"") ->  | F11: =IFERROR(IF(VLOOKUP(B11,Moves!$A$1:$D$151,2,FALSE)="C","X"," "),"") ->  | G11: =IFERROR(IF(VLOOKUP(B11,Moves!$A$1:$D$151,2,FALSE)="D","X"," "),"") ->  | H11: =IFERROR(IF(VLOOKUP(B11,Moves!$A$1:$D$151,2,FALSE)="E","X"," "),"") ->  | I11: =IFERROR(IF(VLOOKUP(B11,Moves!$A$1:$D$151,3,FALSE)=1,"X"," "),"") ->  | J11: =IFERROR(IF(VLOOKUP(B11,Moves!$A$1:$D$151,3,FALSE)=2,"X"," "),"") ->  | K11: =IFERROR(IF(VLOOKUP(B11,Moves!$A$1:$D$151,3,FALSE)=3,"X"," "),"") ->  | L11: =IFERROR(IF(VLOOKUP(B11,Moves!$A$1:$D$151,3,FALSE)=4,"X"," "),"") ->  | Q11: =IF(ISNUMBER(SEARCH($B$9,R11)),MAX($Q$8:Q10)+1,0) -> 3 | R11: Star jump | U11: =IFERROR(VLOOKUP(ROWS($R$9:R11),$Q$9:$R$163,2,0),"") -> Star jump | Y11: =IF(ISNUMBER(SEARCH($B$10,Z11)),MAX($Y$8:Y10)+1,0) -> 3 | Z11: Star jump | AC11: =IFERROR(VLOOKUP(ROWS($Z$9:Z11),$Y$9:$Z$163,2,0),"") -> Star jump | AG11: =IF(ISNUMBER(SEARCH($B$11,AH11)),MAX($AG$8:AG10)+1,0) -> 3 | AH11: Star jump | AK11: =IFERROR(VLOOKUP(ROWS($AH$9:AH11),$AG$9:$AH$163,2,0),"") -> Star jump | AO11: =IF(ISNUMBER(SEARCH($B$12,AP11)),MAX($AO$8:AO10)+1,0) -> 3 | AP11: Star jump | AS11: =IFERROR(VLOOKUP(ROWS($AP$9:AP11),$AO$9:$AP$163,2,0),"") -> Star jump | AW11: =IF(ISNUMBER(SEARCH($B$13,AX11)),MAX($AW$8:AW10)+1,0) -> 3 | AX11: Star jump | BA11: =IFERROR(VLOOKUP(ROWS($AX$9:AX11),$AW$9:$AX$163,2,0),"") -> Star jump | BE11: =IF(ISNUMBER(SEARCH($B$14,BF11)),MAX($BE$8:BE10)+1,0) -> 3 | BF11: Star jump | BI11: =IFERROR(VLOOKUP(ROWS($BF$9:BF11),$BE$9:$BF$163,2,0),"") -> Star jump | BM11: =IF(ISNUMBER(SEARCH($B$15,BN11)),MAX($BM$8:BM10)+1,0) -> 3 | BN11: Star jump | BQ11: =IFERROR(VLOOKUP(ROWS($BN$9:BN11),$BM$9:$BN$163,2,0),"") -> Star jump | BU11: =IF(ISNUMBER(SEARCH($B$16,BV11)),MAX($BU$8:BU10)+1,0) -> 3 | BV11: Star jump | BY11: =IFERROR(VLOOKUP(ROWS($BV$9:BV11),$BU$9:$BV$163,2,0),"") -> Star jump | CC11: =IF(ISNUMBER(SEARCH($B$17,CD11)),MAX($CC$8:CC10)+1,0) -> 3 | CD11: Star jump | CG11: =IFERROR(VLOOKUP(ROWS($CD$9:CD11),$CC$9:$CD$163,2,0),"") -> Star jump | CK11: =IF(ISNUMBER(SEARCH($B$18,CL11)),MAX($CK$8:CK10)+1,0) -> 3 | CL11: Star jump | CO11: =IFERROR(VLOOKUP(ROWS($CL$9:CL11),$CK$9:$CL$163,2,0),"") -> Star jump | CW11: =IF(M11<>$M$39,"",IF(G11="X",IF(VLOOKUP(B11,Moves!A3:D153,4,FALSE)="AFS2","Yes","No"),IF(H11="X",IF(VLOOKUP(B11,Moves!A3:D153,4,FALSE)="AFS2","Yes","No")))) ->  | CY11: =IF(N11<>$N$32,"",IF(H11<>"X","No",IF(VLOOKUP(B11,Moves!$A$1:$D$151,4,FALSE)="AFS","Yes",IF(VLOOKUP(B11,Moves!$A$1:$D$151,4,FALSE)="AFS2","Yes","No")))) ->  | CZ11: Yes
A12: 4 | D12: =IFERROR(IF(VLOOKUP(B12,Moves!$A$1:$D$151,2,FALSE)="A","X"," "),"") ->  | E12: =IFERROR(IF(VLOOKUP(B12,Moves!$A$1:$D$151,2,FALSE)="B","X"," "),"") ->  | F12: =IFERROR(IF(VLOOKUP(B12,Moves!$A$1:$D$151,2,FALSE)="C","X"," "),"") ->  | G12: =IFERROR(IF(VLOOKUP(B12,Moves!$A$1:$D$151,2,FALSE)="D","X"," "),"") ->  | H12: =IFERROR(IF(VLOOKUP(B12,Moves!$A$1:$D$151,2,FALSE)="E","X"," "),"") ->  | I12: =IFERROR(IF(VLOOKUP(B12,Moves!$A$1:$D$151,3,FALSE)=1,"X"," "),"") ->  | J12: =IFERROR(IF(VLOOKUP(B12,Moves!$A$1:$D$151,3,FALSE)=2,"X"," "),"") ->  | K12: =IFERROR(IF(VLOOKUP(B12,Moves!$A$1:$D$151,3,FALSE)=3,"X"," "),"") ->  | L12: =IFERROR(IF(VLOOKUP(B12,Moves!$A$1:$D$151,3,FALSE)=4,"X"," "),"") ->  | Q12: =IF(ISNUMBER(SEARCH($B$9,R12)),MAX($Q$8:Q11)+1,0) -> 4 | R12: Tuck jump | U12: =IFERROR(VLOOKUP(ROWS($R$9:R12),$Q$9:$R$163,2,0),"") -> Tuck jump | Y12: =IF(ISNUMBER(SEARCH($B$10,Z12)),MAX($Y$8:Y11)+1,0) -> 4 | Z12: Tuck jump | AC12: =IFERROR(VLOOKUP(ROWS($Z$9:Z12),$Y$9:$Z$163,2,0),"") -> Tuck jump | AG12: =IF(ISNUMBER(SEARCH($B$11,AH12)),MAX($AG$8:AG11)+1,0) -> 4 | AH12: Tuck jump | AK12: =IFERROR(VLOOKUP(ROWS($AH$9:AH12),$AG$9:$AH$163,2,0),"") -> Tuck jump | AO12: =IF(ISNUMBER(SEARCH($B$12,AP12)),MAX($AO$8:AO11)+1,0) -> 4 | AP12: Tuck jump | AS12: =IFERROR(VLOOKUP(ROWS($AP$9:AP12),$AO$9:$AP$163,2,0),"") -> Tuck jump | AW12: =IF(ISNUMBER(SEARCH($B$13,AX12)),MAX($AW$8:AW11)+1,0) -> 4 | AX12: Tuck jump | BA12: =IFERROR(VLOOKUP(ROWS($AX$9:AX12),$AW$9:$AX$163,2,0),"") -> Tuck jump | BE12: =IF(ISNUMBER(SEARCH($B$14,BF12)),MAX($BE$8:BE11)+1,0) -> 4 | BF12: Tuck jump | BI12: =IFERROR(VLOOKUP(ROWS($BF$9:BF12),$BE$9:$BF$163,2,0),"") -> Tuck jump | BM12: =IF(ISNUMBER(SEARCH($B$15,BN12)),MAX($BM$8:BM11)+1,0) -> 4 | BN12: Tuck jump | BQ12: =IFERROR(VLOOKUP(ROWS($BN$9:BN12),$BM$9:$BN$163,2,0),"") -> Tuck jump | BU12: =IF(ISNUMBER(SEARCH($B$16,BV12)),MAX($BU$8:BU11)+1,0) -> 4 | BV12: Tuck jump | BY12: =IFERROR(VLOOKUP(ROWS($BV$9:BV12),$BU$9:$BV$163,2,0),"") -> Tuck jump | CC12: =IF(ISNUMBER(SEARCH($B$17,CD12)),MAX($CC$8:CC11)+1,0) -> 4 | CD12: Tuck jump | CG12: =IFERROR(VLOOKUP(ROWS($CD$9:CD12),$CC$9:$CD$163,2,0),"") -> Tuck jump | CK12: =IF(ISNUMBER(SEARCH($B$18,CL12)),MAX($CK$8:CK11)+1,0) -> 4 | CL12: Tuck jump | CO12: =IFERROR(VLOOKUP(ROWS($CL$9:CL12),$CK$9:$CL$163,2,0),"") -> Tuck jump | CW12: =IF(M12<>$M$39,"",IF(G12="X",IF(VLOOKUP(B12,Moves!A4:D154,4,FALSE)="AFS2","Yes","No"),IF(H12="X",IF(VLOOKUP(B12,Moves!A4:D154,4,FALSE)="AFS2","Yes","No")))) ->  | CY12: =IF(N12<>$N$32,"",IF(H12<>"X","No",IF(VLOOKUP(B12,Moves!$A$1:$D$151,4,FALSE)="AFS","Yes",IF(VLOOKUP(B12,Moves!$A$1:$D$151,4,FALSE)="AFS2","Yes","No")))) ->  | CZ12: Yes
A13: 5 | D13: =IFERROR(IF(VLOOKUP(B13,Moves!$A$1:$D$151,2,FALSE)="A","X"," "),"") ->  | E13: =IFERROR(IF(VLOOKUP(B13,Moves!$A$1:$D$151,2,FALSE)="B","X"," "),"") ->  | F13: =IFERROR(IF(VLOOKUP(B13,Moves!$A$1:$D$151,2,FALSE)="C","X"," "),"") ->  | G13: =IFERROR(IF(VLOOKUP(B13,Moves!$A$1:$D$151,2,FALSE)="D","X"," "),"") ->  | H13: =IFERROR(IF(VLOOKUP(B13,Moves!$A$1:$D$151,2,FALSE)="E","X"," "),"") ->  | I13: =IFERROR(IF(VLOOKUP(B13,Moves!$A$1:$D$151,3,FALSE)=1,"X"," "),"") ->  | J13: =IFERROR(IF(VLOOKUP(B13,Moves!$A$1:$D$151,3,FALSE)=2,"X"," "),"") ->  | K13: =IFERROR(IF(VLOOKUP(B13,Moves!$A$1:$D$151,3,FALSE)=3,"X"," "),"") ->  | L13: =IFERROR(IF(VLOOKUP(B13,Moves!$A$1:$D$151,3,FALSE)=4,"X"," "),"") ->  | Q13: =IF(ISNUMBER(SEARCH($B$9,R13)),MAX($Q$8:Q12)+1,0) -> 5 | R13: 2 x dynamic 1/2 turns on knees | U13: =IFERROR(VLOOKUP(ROWS($R$9:R13),$Q$9:$R$163,2,0),"") -> 2 x dynamic 1/2 turns on knees | Y13: =IF(ISNUMBER(SEARCH($B$10,Z13)),MAX($Y$8:Y12)+1,0) -> 5 | Z13: 2 x dynamic 1/2 turns on knees | AC13: =IFERROR(VLOOKUP(ROWS($Z$9:Z13),$Y$9:$Z$163,2,0),"") -> 2 x dynamic 1/2 turns on knees | AG13: =IF(ISNUMBER(SEARCH($B$11,AH13)),MAX($AG$8:AG12)+1,0) -> 5 | AH13: 2 x dynamic 1/2 turns on knees | AK13: =IFERROR(VLOOKUP(ROWS($AH$9:AH13),$AG$9:$AH$163,2,0),"") -> 2 x dynamic 1/2 turns on knees | AO13: =IF(ISNUMBER(SEARCH($B$12,AP13)),MAX($AO$8:AO12)+1,0) -> 5 | AP13: 2 x dynamic 1/2 turns on knees | AS13: =IFERROR(VLOOKUP(ROWS($AP$9:AP13),$AO$9:$AP$163,2,0),"") -> 2 x dynamic 1/2 turns on knees | AW13: =IF(ISNUMBER(SEARCH($B$13,AX13)),MAX($AW$8:AW12)+1,0) -> 5 | AX13: 2 x dynamic 1/2 turns on knees | BA13: =IFERROR(VLOOKUP(ROWS($AX$9:AX13),$AW$9:$AX$163,2,0),"") -> 2 x dynamic 1/2 turns on knees | BE13: =IF(ISNUMBER(SEARCH($B$14,BF13)),MAX($BE$8:BE12)+1,0) -> 5 | BF13: 2 x dynamic 1/2 turns on knees | BI13: =IFERROR(VLOOKUP(ROWS($BF$9:BF13),$BE$9:$BF$163,2,0),"") -> 2 x dynamic 1/2 turns on knees | BM13: =IF(ISNUMBER(SEARCH($B$15,BN13)),MAX($BM$8:BM12)+1,0) -> 5 | BN13: 2 x dynamic 1/2 turns on knees | BQ13: =IFERROR(VLOOKUP(ROWS($BN$9:BN13),$BM$9:$BN$163,2,0),"") -> 2 x dynamic 1/2 turns on knees | BU13: =IF(ISNUMBER(SEARCH($B$16,BV13)),MAX($BU$8:BU12)+1,0) -> 5 | BV13: 2 x dynamic 1/2 turns on knees | BY13: =IFERROR(VLOOKUP(ROWS($BV$9:BV13),$BU$9:$BV$163,2,0),"") -> 2 x dynamic 1/2 turns on knees | CC13: =IF(ISNUMBER(SEARCH($B$17,CD13)),MAX($CC$8:CC12)+1,0) -> 5 | CD13: 2 x dynamic 1/2 turns on knees | CG13: =IFERROR(VLOOKUP(ROWS($CD$9:CD13),$CC$9:$CD$163,2,0),"") -> 2 x dynamic 1/2 turns on knees | CK13: =IF(ISNUMBER(SEARCH($B$18,CL13)),MAX($CK$8:CK12)+1,0) -> 5 | CL13: 2 x dynamic 1/2 turns on knees | CO13: =IFERROR(VLOOKUP(ROWS($CL$9:CL13),$CK$9:$CL$163,2,0),"") -> 2 x dynamic 1/2 turns on knees | CW13: =IF(M13<>$M$39,"",IF(G13="X",IF(VLOOKUP(B13,Moves!A5:D155,4,FALSE)="AFS2","Yes","No"),IF(H13="X",IF(VLOOKUP(B13,Moves!A5:D155,4,FALSE)="AFS2","Yes","No")))) ->  | CY13: =IF(N13<>$N$32,"",IF(H13<>"X","No",IF(VLOOKUP(B13,Moves!$A$1:$D$151,4,FALSE)="AFS","Yes",IF(VLOOKUP(B13,Moves!$A$1:$D$151,4,FALSE)="AFS2","Yes","No")))) ->  | CZ13: Yes
A14: 6 | D14: =IFERROR(IF(VLOOKUP(B14,Moves!$A$1:$D$151,2,FALSE)="A","X"," "),"") ->  | E14: =IFERROR(IF(VLOOKUP(B14,Moves!$A$1:$D$151,2,FALSE)="B","X"," "),"") ->  | F14: =IFERROR(IF(VLOOKUP(B14,Moves!$A$1:$D$151,2,FALSE)="C","X"," "),"") ->  | G14: =IFERROR(IF(VLOOKUP(B14,Moves!$A$1:$D$151,2,FALSE)="D","X"," "),"") ->  | H14: =IFERROR(IF(VLOOKUP(B14,Moves!$A$1:$D$151,2,FALSE)="E","X"," "),"") ->  | I14: =IFERROR(IF(VLOOKUP(B14,Moves!$A$1:$D$151,3,FALSE)=1,"X"," "),"") ->  | J14: =IFERROR(IF(VLOOKUP(B14,Moves!$A$1:$D$151,3,FALSE)=2,"X"," "),"") ->  | K14: =IFERROR(IF(VLOOKUP(B14,Moves!$A$1:$D$151,3,FALSE)=3,"X"," "),"") ->  | L14: =IFERROR(IF(VLOOKUP(B14,Moves!$A$1:$D$151,3,FALSE)=4,"X"," "),"") ->  | Q14: =IF(ISNUMBER(SEARCH($B$9,R14)),MAX($Q$8:Q13)+1,0) -> 6 | R14: 1 leg balance | U14: =IFERROR(VLOOKUP(ROWS($R$9:R14),$Q$9:$R$163,2,0),"") -> 1 leg balance | Y14: =IF(ISNUMBER(SEARCH($B$10,Z14)),MAX($Y$8:Y13)+1,0) -> 6 | Z14: 1 leg balance | AC14: =IFERROR(VLOOKUP(ROWS($Z$9:Z14),$Y$9:$Z$163,2,0),"") -> 1 leg balance | AG14: =IF(ISNUMBER(SEARCH($B$11,AH14)),MAX($AG$8:AG13)+1,0) -> 6 | AH14: 1 leg balance | AK14: =IFERROR(VLOOKUP(ROWS($AH$9:AH14),$AG$9:$AH$163,2,0),"") -> 1 leg balance | AO14: =IF(ISNUMBER(SEARCH($B$12,AP14)),MAX($AO$8:AO13)+1,0) -> 6 | AP14: 1 leg balance | AS14: =IFERROR(VLOOKUP(ROWS($AP$9:AP14),$AO$9:$AP$163,2,0),"") -> 1 leg balance | AW14: =IF(ISNUMBER(SEARCH($B$13,AX14)),MAX($AW$8:AW13)+1,0) -> 6 | AX14: 1 leg balance | BA14: =IFERROR(VLOOKUP(ROWS($AX$9:AX14),$AW$9:$AX$163,2,0),"") -> 1 leg balance | BE14: =IF(ISNUMBER(SEARCH($B$14,BF14)),MAX($BE$8:BE13)+1,0) -> 6 | BF14: 1 leg balance | BI14: =IFERROR(VLOOKUP(ROWS($BF$9:BF14),$BE$9:$BF$163,2,0),"") -> 1 leg balance | BM14: =IF(ISNUMBER(SEARCH($B$15,BN14)),MAX($BM$8:BM13)+1,0) -> 6 | BN14: 1 leg balance | BQ14: =IFERROR(VLOOKUP(ROWS($BN$9:BN14),$BM$9:$BN$163,2,0),"") -> 1 leg balance | BU14: =IF(ISNUMBER(SEARCH($B$16,BV14)),MAX($BU$8:BU13)+1,0) -> 6 | BV14: 1 leg balance | BY14: =IFERROR(VLOOKUP(ROWS($BV$9:BV14),$BU$9:$BV$163,2,0),"") -> 1 leg balance | CC14: =IF(ISNUMBER(SEARCH($B$17,CD14)),MAX($CC$8:CC13)+1,0) -> 6 | CD14: 1 leg balance | CG14: =IFERROR(VLOOKUP(ROWS($CD$9:CD14),$CC$9:$CD$163,2,0),"") -> 1 leg balance | CK14: =IF(ISNUMBER(SEARCH($B$18,CL14)),MAX($CK$8:CK13)+1,0) -> 6 | CL14: 1 leg balance | CO14: =IFERROR(VLOOKUP(ROWS($CL$9:CL14),$CK$9:$CL$163,2,0),"") -> 1 leg balance | CV14: =IF(CU14<>"Yes","",IF(I14="X",1,IF(J14="X",2,IF(K14="X",3,IF(L14="X",4,"No"))))) ->  | CW14: =IF(M14<>$M$39,"",IF(G14="X",IF(VLOOKUP(B14,Moves!A6:D156,4,FALSE)="AFS2","Yes","No"),IF(H14="X",IF(VLOOKUP(B14,Moves!A6:D156,4,FALSE)="AFS2","Yes","No")))) ->  | CY14: =IF(N14<>$N$32,"",IF(H14<>"X","No",IF(VLOOKUP(B14,Moves!$A$1:$D$151,4,FALSE)="AFS","Yes",IF(VLOOKUP(B14,Moves!$A$1:$D$151,4,FALSE)="AFS2","Yes","No")))) ->  | CZ14: Yes
A15: 7 | D15: =IFERROR(IF(VLOOKUP(B15,Moves!$A$1:$D$151,2,FALSE)="A","X"," "),"") ->  | E15: =IFERROR(IF(VLOOKUP(B15,Moves!$A$1:$D$151,2,FALSE)="B","X"," "),"") ->  | F15: =IFERROR(IF(VLOOKUP(B15,Moves!$A$1:$D$151,2,FALSE)="C","X"," "),"") ->  | G15: =IFERROR(IF(VLOOKUP(B15,Moves!$A$1:$D$151,2,FALSE)="D","X"," "),"") ->  | H15: =IFERROR(IF(VLOOKUP(B15,Moves!$A$1:$D$151,2,FALSE)="E","X"," "),"") ->  | I15: =IFERROR(IF(VLOOKUP(B15,Moves!$A$1:$D$151,3,FALSE)=1,"X"," "),"") ->  | J15: =IFERROR(IF(VLOOKUP(B15,Moves!$A$1:$D$151,3,FALSE)=2,"X"," "),"") ->  | K15: =IFERROR(IF(VLOOKUP(B15,Moves!$A$1:$D$151,3,FALSE)=3,"X"," "),"") ->  | L15: =IFERROR(IF(VLOOKUP(B15,Moves!$A$1:$D$151,3,FALSE)=4,"X"," "),"") ->  | Q15: =IF(ISNUMBER(SEARCH($B$9,R15)),MAX($Q$8:Q14)+1,0) -> 7 | R15: Splits (F or S) | U15: =IFERROR(VLOOKUP(ROWS($R$9:R15),$Q$9:$R$163,2,0),"") -> Splits (F or S) | Y15: =IF(ISNUMBER(SEARCH($B$10,Z15)),MAX($Y$8:Y14)+1,0) -> 7 | Z15: Splits (F or S) | AC15: =IFERROR(VLOOKUP(ROWS($Z$9:Z15),$Y$9:$Z$163,2,0),"") -> Splits (F or S) | AG15: =IF(ISNUMBER(SEARCH($B$11,AH15)),MAX($AG$8:AG14)+1,0) -> 7 | AH15: Splits (F or S) | AK15: =IFERROR(VLOOKUP(ROWS($AH$9:AH15),$AG$9:$AH$163,2,0),"") -> Splits (F or S) | AO15: =IF(ISNUMBER(SEARCH($B$12,AP15)),MAX($AO$8:AO14)+1,0) -> 7 | AP15: Splits (F or S) | AS15: =IFERROR(VLOOKUP(ROWS($AP$9:AP15),$AO$9:$AP$163,2,0),"") -> Splits (F or S) | AW15: =IF(ISNUMBER(SEARCH($B$13,AX15)),MAX($AW$8:AW14)+1,0) -> 7 | AX15: Splits (F or S) | BA15: =IFERROR(VLOOKUP(ROWS($AX$9:AX15),$AW$9:$AX$163,2,0),"") -> Splits (F or S) | BE15: =IF(ISNUMBER(SEARCH($B$14,BF15)),MAX($BE$8:BE14)+1,0) -> 7 | BF15: Splits (F or S) | BI15: =IFERROR(VLOOKUP(ROWS($BF$9:BF15),$BE$9:$BF$163,2,0),"") -> Splits (F or S) | BM15: =IF(ISNUMBER(SEARCH($B$15,BN15)),MAX($BM$8:BM14)+1,0) -> 7 | BN15: Splits (F or S) | BQ15: =IFERROR(VLOOKUP(ROWS($BN$9:BN15),$BM$9:$BN$163,2,0),"") -> Splits (F or S) | BU15: =IF(ISNUMBER(SEARCH($B$16,BV15)),MAX($BU$8:BU14)+1,0) -> 7 | BV15: Splits (F or S) | BY15: =IFERROR(VLOOKUP(ROWS($BV$9:BV15),$BU$9:$BV$163,2,0),"") -> Splits (F or S) | CC15: =IF(ISNUMBER(SEARCH($B$17,CD15)),MAX($CC$8:CC14)+1,0) -> 7 | CD15: Splits (F or S) | CG15: =IFERROR(VLOOKUP(ROWS($CD$9:CD15),$CC$9:$CD$163,2,0),"") -> Splits (F or S) | CK15: =IF(ISNUMBER(SEARCH($B$18,CL15)),MAX($CK$8:CK14)+1,0) -> 7 | CL15: Splits (F or S) | CO15: =IFERROR(VLOOKUP(ROWS($CL$9:CL15),$CK$9:$CL$163,2,0),"") -> Splits (F or S) | CW15: =IF(M15<>$M$39,"",IF(G15="X",IF(VLOOKUP(B15,Moves!A7:D157,4,FALSE)="AFS2","Yes","No"),IF(H15="X",IF(VLOOKUP(B15,Moves!A7:D157,4,FALSE)="AFS2","Yes","No")))) ->  | CY15: =IF(N15<>$N$32,"",IF(H15<>"X","No",IF(VLOOKUP(B15,Moves!$A$1:$D$151,4,FALSE)="AFS","Yes",IF(VLOOKUP(B15,Moves!$A$1:$D$151,4,FALSE)="AFS2","Yes","No")))) ->  | CZ15: Yes
A16: 8 | D16: =IFERROR(IF(VLOOKUP(B16,Moves!$A$1:$D$151,2,FALSE)="A","X"," "),"") ->  | E16: =IFERROR(IF(VLOOKUP(B16,Moves!$A$1:$D$151,2,FALSE)="B","X"," "),"") ->  | F16: =IFERROR(IF(VLOOKUP(B16,Moves!$A$1:$D$151,2,FALSE)="C","X"," "),"") ->  | G16: =IFERROR(IF(VLOOKUP(B16,Moves!$A$1:$D$151,2,FALSE)="D","X"," "),"") ->  | H16: =IFERROR(IF(VLOOKUP(B16,Moves!$A$1:$D$151,2,FALSE)="E","X"," "),"") ->  | I16: =IFERROR(IF(VLOOKUP(B16,Moves!$A$1:$D$151,3,FALSE)=1,"X"," "),"") ->  | J16: =IFERROR(IF(VLOOKUP(B16,Moves!$A$1:$D$151,3,FALSE)=2,"X"," "),"") ->  | K16: =IFERROR(IF(VLOOKUP(B16,Moves!$A$1:$D$151,3,FALSE)=3,"X"," "),"") ->  | L16: =IFERROR(IF(VLOOKUP(B16,Moves!$A$1:$D$151,3,FALSE)=4,"X"," "),"") ->  | Q16: =IF(ISNUMBER(SEARCH($B$9,R16)),MAX($Q$8:Q15)+1,0) -> 8 | R16: Japana (up to 45⁰ chest) | U16: =IFERROR(VLOOKUP(ROWS($R$9:R16),$Q$9:$R$163,2,0),"") -> Japana (up to 45⁰ chest) | Y16: =IF(ISNUMBER(SEARCH($B$10,Z16)),MAX($Y$8:Y15)+1,0) -> 8 | Z16: Japana (up to 45⁰ chest) | AC16: =IFERROR(VLOOKUP(ROWS($Z$9:Z16),$Y$9:$Z$163,2,0),"") -> Japana (up to 45⁰ chest) | AG16: =IF(ISNUMBER(SEARCH($B$11,AH16)),MAX($AG$8:AG15)+1,0) -> 8 | AH16: Japana (up to 45⁰ chest) | AK16: =IFERROR(VLOOKUP(ROWS($AH$9:AH16),$AG$9:$AH$163,2,0),"") -> Japana (up to 45⁰ chest) | AO16: =IF(ISNUMBER(SEARCH($B$12,AP16)),MAX($AO$8:AO15)+1,0) -> 8 | AP16: Japana (up to 45⁰ chest) | AS16: =IFERROR(VLOOKUP(ROWS($AP$9:AP16),$AO$9:$AP$163,2,0),"") -> Japana (up to 45⁰ chest) | AW16: =IF(ISNUMBER(SEARCH($B$13,AX16)),MAX($AW$8:AW15)+1,0) -> 8 | AX16: Japana (up to 45⁰ chest) | BA16: =IFERROR(VLOOKUP(ROWS($AX$9:AX16),$AW$9:$AX$163,2,0),"") -> Japana (up to 45⁰ chest) | BE16: =IF(ISNUMBER(SEARCH($B$14,BF16)),MAX($BE$8:BE15)+1,0) -> 8 | BF16: Japana (up to 45⁰ chest) | BI16: =IFERROR(VLOOKUP(ROWS($BF$9:BF16),$BE$9:$BF$163,2,0),"") -> Japana (up to 45⁰ chest) | BM16: =IF(ISNUMBER(SEARCH($B$15,BN16)),MAX($BM$8:BM15)+1,0) -> 8 | BN16: Japana (up to 45⁰ chest) | BQ16: =IFERROR(VLOOKUP(ROWS($BN$9:BN16),$BM$9:$BN$163,2,0),"") -> Japana (up to 45⁰ chest) | BU16: =IF(ISNUMBER(SEARCH($B$16,BV16)),MAX($BU$8:BU15)+1,0) -> 8 | BV16: Japana (up to 45⁰ chest) | BY16: =IFERROR(VLOOKUP(ROWS($BV$9:BV16),$BU$9:$BV$163,2,0),"") -> Japana (up to 45⁰ chest) | CC16: =IF(ISNUMBER(SEARCH($B$17,CD16)),MAX($CC$8:CC15)+1,0) -> 8 | CD16: Japana (up to 45⁰ chest) | CG16: =IFERROR(VLOOKUP(ROWS($CD$9:CD16),$CC$9:$CD$163,2,0),"") -> Japana (up to 45⁰ chest) | CK16: =IF(ISNUMBER(SEARCH($B$18,CL16)),MAX($CK$8:CK15)+1,0) -> 8 | CL16: Japana (up to 45⁰ chest) | CO16: =IFERROR(VLOOKUP(ROWS($CL$9:CL16),$CK$9:$CL$163,2,0),"") -> Japana (up to 45⁰ chest) | CW16: =IF(M16<>$M$39,"",IF(G16="X",IF(VLOOKUP(B16,Moves!A8:D158,4,FALSE)="AFS2","Yes","No"),IF(H16="X",IF(VLOOKUP(B16,Moves!A8:D158,4,FALSE)="AFS2","Yes","No")))) ->  | CY16: =IF(N16<>$N$32,"",IF(H16<>"X","No",IF(VLOOKUP(B16,Moves!$A$1:$D$151,4,FALSE)="AFS","Yes",IF(VLOOKUP(B16,Moves!$A$1:$D$151,4,FALSE)="AFS2","Yes","No")))) ->  | CZ16: Yes
A17: 9 | D17: =IFERROR(IF(VLOOKUP(B17,Moves!$A$1:$D$151,2,FALSE)="A","X"," "),"") ->  | E17: =IFERROR(IF(VLOOKUP(B17,Moves!$A$1:$D$151,2,FALSE)="B","X"," "),"") ->  | F17: =IFERROR(IF(VLOOKUP(B17,Moves!$A$1:$D$151,2,FALSE)="C","X"," "),"") ->  | G17: =IFERROR(IF(VLOOKUP(B17,Moves!$A$1:$D$151,2,FALSE)="D","X"," "),"") ->  | H17: =IFERROR(IF(VLOOKUP(B17,Moves!$A$1:$D$151,2,FALSE)="E","X"," "),"") ->  | I17: =IFERROR(IF(VLOOKUP(B17,Moves!$A$1:$D$151,3,FALSE)=1,"X"," "),"") ->  | J17: =IFERROR(IF(VLOOKUP(B17,Moves!$A$1:$D$151,3,FALSE)=2,"X"," "),"") ->  | K17: =IFERROR(IF(VLOOKUP(B17,Moves!$A$1:$D$151,3,FALSE)=3,"X"," "),"") ->  | L17: =IFERROR(IF(VLOOKUP(B17,Moves!$A$1:$D$151,3,FALSE)=4,"X"," "),"") ->  | Q17: =IF(ISNUMBER(SEARCH($B$9,R17)),MAX($Q$8:Q16)+1,0) -> 9 | R17: D Shape | U17: =IFERROR(VLOOKUP(ROWS($R$9:R17),$Q$9:$R$163,2,0),"") -> D Shape | Y17: =IF(ISNUMBER(SEARCH($B$10,Z17)),MAX($Y$8:Y16)+1,0) -> 9 | Z17: D Shape | AC17: =IFERROR(VLOOKUP(ROWS($Z$9:Z17),$Y$9:$Z$163,2,0),"") -> D Shape | AG17: =IF(ISNUMBER(SEARCH($B$11,AH17)),MAX($AG$8:AG16)+1,0) -> 9 | AH17: D Shape | AK17: =IFERROR(VLOOKUP(ROWS($AH$9:AH17),$AG$9:$AH$163,2,0),"") -> D Shape | AO17: =IF(ISNUMBER(SEARCH($B$12,AP17)),MAX($AO$8:AO16)+1,0) -> 9 | AP17: D Shape | AS17: =IFERROR(VLOOKUP(ROWS($AP$9:AP17),$AO$9:$AP$163,2,0),"") -> D Shape | AW17: =IF(ISNUMBER(SEARCH($B$13,AX17)),MAX($AW$8:AW16)+1,0) -> 9 | AX17: D Shape | BA17: =IFERROR(VLOOKUP(ROWS($AX$9:AX17),$AW$9:$AX$163,2,0),"") -> D Shape | BE17: =IF(ISNUMBER(SEARCH($B$14,BF17)),MAX($BE$8:BE16)+1,0) -> 9 | BF17: D Shape | BI17: =IFERROR(VLOOKUP(ROWS($BF$9:BF17),$BE$9:$BF$163,2,0),"") -> D Shape | BM17: =IF(ISNUMBER(SEARCH($B$15,BN17)),MAX($BM$8:BM16)+1,0) -> 9 | BN17: D Shape | BQ17: =IFERROR(VLOOKUP(ROWS($BN$9:BN17),$BM$9:$BN$163,2,0),"") -> D Shape | BU17: =IF(ISNUMBER(SEARCH($B$16,BV17)),MAX($BU$8:BU16)+1,0) -> 9 | BV17: D Shape | BY17: =IFERROR(VLOOKUP(ROWS($BV$9:BV17),$BU$9:$BV$163,2,0),"") -> D Shape | CC17: =IF(ISNUMBER(SEARCH($B$17,CD17)),MAX($CC$8:CC16)+1,0) -> 9 | CD17: D Shape | CG17: =IFERROR(VLOOKUP(ROWS($CD$9:CD17),$CC$9:$CD$163,2,0),"") -> D Shape | CK17: =IF(ISNUMBER(SEARCH($B$18,CL17)),MAX($CK$8:CK16)+1,0) -> 9 | CL17: D Shape | CO17: =IFERROR(VLOOKUP(ROWS($CL$9:CL17),$CK$9:$CL$163,2,0),"") -> D Shape | CW17: =IF(M17<>$M$39,"",IF(G17="X",IF(VLOOKUP(B17,Moves!A9:D159,4,FALSE)="AFS2","Yes","No"),IF(H17="X",IF(VLOOKUP(B17,Moves!A9:D159,4,FALSE)="AFS2","Yes","No")))) ->  | CY17: =IF(N17<>$N$32,"",IF(H17<>"X","No",IF(VLOOKUP(B17,Moves!$A$1:$D$151,4,FALSE)="AFS","Yes",IF(VLOOKUP(B17,Moves!$A$1:$D$151,4,FALSE)="AFS2","Yes","No")))) ->  | CZ17: Yes
A18: 10 | D18: =IFERROR(IF(VLOOKUP(B18,Moves!$A$1:$D$151,2,FALSE)="A","X"," "),"") ->  | E18: =IFERROR(IF(VLOOKUP(B18,Moves!$A$1:$D$151,2,FALSE)="B","X"," "),"") ->  | F18: =IFERROR(IF(VLOOKUP(B18,Moves!$A$1:$D$151,2,FALSE)="C","X"," "),"") ->  | G18: =IFERROR(IF(VLOOKUP(B18,Moves!$A$1:$D$151,2,FALSE)="D","X"," "),"") ->  | H18: =IFERROR(IF(VLOOKUP(B18,Moves!$A$1:$D$151,2,FALSE)="E","X"," "),"") ->  | I18: =IFERROR(IF(VLOOKUP(B18,Moves!$A$1:$D$151,3,FALSE)=1,"X"," "),"") ->  | J18: =IFERROR(IF(VLOOKUP(B18,Moves!$A$1:$D$151,3,FALSE)=2,"X"," "),"") ->  | K18: =IFERROR(IF(VLOOKUP(B18,Moves!$A$1:$D$151,3,FALSE)=3,"X"," "),"") ->  | L18: =IFERROR(IF(VLOOKUP(B18,Moves!$A$1:$D$151,3,FALSE)=4,"X"," "),"") ->  | Q18: =IF(ISNUMBER(SEARCH($B$9,R18)),MAX($Q$8:Q17)+1,0) -> 10 | R18: Bridge | U18: =IFERROR(VLOOKUP(ROWS($R$9:R18),$Q$9:$R$163,2,0),"") -> Bridge | Y18: =IF(ISNUMBER(SEARCH($B$10,Z18)),MAX($Y$8:Y17)+1,0) -> 10 | Z18: Bridge | AC18: =IFERROR(VLOOKUP(ROWS($Z$9:Z18),$Y$9:$Z$163,2,0),"") -> Bridge | AG18: =IF(ISNUMBER(SEARCH($B$11,AH18)),MAX($AG$8:AG17)+1,0) -> 10 | AH18: Bridge | AK18: =IFERROR(VLOOKUP(ROWS($AH$9:AH18),$AG$9:$AH$163,2,0),"") -> Bridge | AO18: =IF(ISNUMBER(SEARCH($B$12,AP18)),MAX($AO$8:AO17)+1,0) -> 10 | AP18: Bridge | AS18: =IFERROR(VLOOKUP(ROWS($AP$9:AP18),$AO$9:$AP$163,2,0),"") -> Bridge | AW18: =IF(ISNUMBER(SEARCH($B$13,AX18)),MAX($AW$8:AW17)+1,0) -> 10 | AX18: Bridge | BA18: =IFERROR(VLOOKUP(ROWS($AX$9:AX18),$AW$9:$AX$163,2,0),"") -> Bridge | BE18: =IF(ISNUMBER(SEARCH($B$14,BF18)),MAX($BE$8:BE17)+1,0) -> 10 | BF18: Bridge | BI18: =IFERROR(VLOOKUP(ROWS($BF$9:BF18),$BE$9:$BF$163,2,0),"") -> Bridge | BM18: =IF(ISNUMBER(SEARCH($B$15,BN18)),MAX($BM$8:BM17)+1,0) -> 10 | BN18: Bridge | BQ18: =IFERROR(VLOOKUP(ROWS($BN$9:BN18),$BM$9:$BN$163,2,0),"") -> Bridge | BU18: =IF(ISNUMBER(SEARCH($B$16,BV18)),MAX($BU$8:BU17)+1,0) -> 10 | BV18: Bridge | BY18: =IFERROR(VLOOKUP(ROWS($BV$9:BV18),$BU$9:$BV$163,2,0),"") -> Bridge | CC18: =IF(ISNUMBER(SEARCH($B$17,CD18)),MAX($CC$8:CC17)+1,0) -> 10 | CD18: Bridge | CG18: =IFERROR(VLOOKUP(ROWS($CD$9:CD18),$CC$9:$CD$163,2,0),"") -> Bridge | CK18: =IF(ISNUMBER(SEARCH($B$18,CL18)),MAX($CK$8:CK17)+1,0) -> 10 | CL18: Bridge | CO18: =IFERROR(VLOOKUP(ROWS($CL$9:CL18),$CK$9:$CL$163,2,0),"") -> Bridge | CW18: =IF(M18<>$M$39,"",IF(G18="X",IF(VLOOKUP(B18,Moves!A10:D160,4,FALSE)="AFS2","Yes","No"),IF(H18="X",IF(VLOOKUP(B18,Moves!A10:D160,4,FALSE)="AFS2","Yes","No")))) ->  | CY18: =IF(N18<>$N$32,"",IF(H18<>"X","No",IF(VLOOKUP(B18,Moves!$A$1:$D$151,4,FALSE)="AFS","Yes",IF(VLOOKUP(B18,Moves!$A$1:$D$151,4,FALSE)="AFS2","Yes","No")))) ->  | CZ18: Yes
Q19: =IF(ISNUMBER(SEARCH($B$9,R19)),MAX($Q$8:Q18)+1,0) -> 11 | R19: F or B support (lower or push up) | U19: =IFERROR(VLOOKUP(ROWS($R$9:R19),$Q$9:$R$163,2,0),"") -> F or B support (lower or push up) | Y19: =IF(ISNUMBER(SEARCH($B$10,Z19)),MAX($Y$8:Y18)+1,0) -> 11 | Z19: F or B support (lower or push up) | AC19: =IFERROR(VLOOKUP(ROWS($Z$9:Z19),$Y$9:$Z$163,2,0),"") -> F or B support (lower or push up) | AG19: =IF(ISNUMBER(SEARCH($B$11,AH19)),MAX($AG$8:AG18)+1,0) -> 11 | AH19: F or B support (lower or push up) | AK19: =IFERROR(VLOOKUP(ROWS($AH$9:AH19),$AG$9:$AH$163,2,0),"") -> F or B support (lower or push up) | AO19: =IF(ISNUMBER(SEARCH($B$12,AP19)),MAX($AO$8:AO18)+1,0) -> 11 | AP19: F or B support (lower or push up) | AS19: =IFERROR(VLOOKUP(ROWS($AP$9:AP19),$AO$9:$AP$163,2,0),"") -> F or B support (lower or push up) | AW19: =IF(ISNUMBER(SEARCH($B$13,AX19)),MAX($AW$8:AW18)+1,0) -> 11 | AX19: F or B support (lower or push up) | BA19: =IFERROR(VLOOKUP(ROWS($AX$9:AX19),$AW$9:$AX$163,2,0),"") -> F or B support (lower or push up) | BE19: =IF(ISNUMBER(SEARCH($B$14,BF19)),MAX($BE$8:BE18)+1,0) -> 11 | BF19: F or B support (lower or push up) | BI19: =IFERROR(VLOOKUP(ROWS($BF$9:BF19),$BE$9:$BF$163,2,0),"") -> F or B support (lower or push up) | BM19: =IF(ISNUMBER(SEARCH($B$15,BN19)),MAX($BM$8:BM18)+1,0) -> 11 | BN19: F or B support (lower or push up) | BQ19: =IFERROR(VLOOKUP(ROWS($BN$9:BN19),$BM$9:$BN$163,2,0),"") -> F or B support (lower or push up) | BU19: =IF(ISNUMBER(SEARCH($B$16,BV19)),MAX($BU$8:BU18)+1,0) -> 11 | BV19: F or B support (lower or push up) | BY19: =IFERROR(VLOOKUP(ROWS($BV$9:BV19),$BU$9:$BV$163,2,0),"") -> F or B support (lower or push up) | CC19: =IF(ISNUMBER(SEARCH($B$17,CD19)),MAX($CC$8:CC18)+1,0) -> 11 | CD19: F or B support (lower or push up) | CG19: =IFERROR(VLOOKUP(ROWS($CD$9:CD19),$CC$9:$CD$163,2,0),"") -> F or B support (lower or push up) | CK19: =IF(ISNUMBER(SEARCH($B$18,CL19)),MAX($CK$8:CK18)+1,0) -> 11 | CL19: F or B support (lower or push up) | CO19: =IFERROR(VLOOKUP(ROWS($CL$9:CL19),$CK$9:$CL$163,2,0),"") -> F or B support (lower or push up)
A20: Judges Section | D20: Difficulty content: | I20: Group Content | Q20: =IF(ISNUMBER(SEARCH($B$9,R20)),MAX($Q$8:Q19)+1,0) -> 12 | R20: F Support turn to B Support | U20: =IFERROR(VLOOKUP(ROWS($R$9:R20),$Q$9:$R$163,2,0),"") -> F Support turn to B Support | Y20: =IF(ISNUMBER(SEARCH($B$10,Z20)),MAX($Y$8:Y19)+1,0) -> 12 | Z20: F Support turn to B Support | AC20: =IFERROR(VLOOKUP(ROWS($Z$9:Z20),$Y$9:$Z$163,2,0),"") -> F Support turn to B Support | AG20: =IF(ISNUMBER(SEARCH($B$11,AH20)),MAX($AG$8:AG19)+1,0) -> 12 | AH20: F Support turn to B Support | AK20: =IFERROR(VLOOKUP(ROWS($AH$9:AH20),$AG$9:$AH$163,2,0),"") -> F Support turn to B Support | AO20: =IF(ISNUMBER(SEARCH($B$12,AP20)),MAX($AO$8:AO19)+1,0) -> 12 | AP20: F Support turn to B Support | AS20: =IFERROR(VLOOKUP(ROWS($AP$9:AP20),$AO$9:$AP$163,2,0),"") -> F Support turn to B Support | AW20: =IF(ISNUMBER(SEARCH($B$13,AX20)),MAX($AW$8:AW19)+1,0) -> 12 | AX20: F Support turn to B Support | BA20: =IFERROR(VLOOKUP(ROWS($AX$9:AX20),$AW$9:$AX$163,2,0),"") -> F Support turn to B Support | BE20: =IF(ISNUMBER(SEARCH($B$14,BF20)),MAX($BE$8:BE19)+1,0) -> 12 | BF20: F Support turn to B Support | BI20: =IFERROR(VLOOKUP(ROWS($BF$9:BF20),$BE$9:$BF$163,2,0),"") -> F Support turn to B Support | BM20: =IF(ISNUMBER(SEARCH($B$15,BN20)),MAX($BM$8:BM19)+1,0) -> 12 | BN20: F Support turn to B Support | BQ20: =IFERROR(VLOOKUP(ROWS($BN$9:BN20),$BM$9:$BN$163,2,0),"") -> F Support turn to B Support | BU20: =IF(ISNUMBER(SEARCH($B$16,BV20)),MAX($BU$8:BU19)+1,0) -> 12 | BV20: F Support turn to B Support | BY20: =IFERROR(VLOOKUP(ROWS($BV$9:BV20),$BU$9:$BV$163,2,0),"") -> F Support turn to B Support | CC20: =IF(ISNUMBER(SEARCH($B$17,CD20)),MAX($CC$8:CC19)+1,0) -> 12 | CD20: F Support turn to B Support | CG20: =IFERROR(VLOOKUP(ROWS($CD$9:CD20),$CC$9:$CD$163,2,0),"") -> F Support turn to B Support | CK20: =IF(ISNUMBER(SEARCH($B$18,CL20)),MAX($CK$8:CK19)+1,0) -> 12 | CL20: F Support turn to B Support | CO20: =IFERROR(VLOOKUP(ROWS($CL$9:CL20),$CK$9:$CL$163,2,0),"") -> F Support turn to B Support
D21: 2 x B = 0.60 | I21: 2 x Grp 1 | M21: 1 = 0.20 | N21: E Acro Flight Series = 0.80 | Q21: =IF(ISNUMBER(SEARCH($B$9,R21)),MAX($Q$8:Q20)+1,0) -> 13 | R21: Piked V sit (hand supp.) | U21: =IFERROR(VLOOKUP(ROWS($R$9:R21),$Q$9:$R$163,2,0),"") -> Piked V sit (hand supp.) | Y21: =IF(ISNUMBER(SEARCH($B$10,Z21)),MAX($Y$8:Y20)+1,0) -> 13 | Z21: Piked V sit (hand supp.) | AC21: =IFERROR(VLOOKUP(ROWS($Z$9:Z21),$Y$9:$Z$163,2,0),"") -> Piked V sit (hand supp.) | AG21: =IF(ISNUMBER(SEARCH($B$11,AH21)),MAX($AG$8:AG20)+1,0) -> 13 | AH21: Piked V sit (hand supp.) | AK21: =IFERROR(VLOOKUP(ROWS($AH$9:AH21),$AG$9:$AH$163,2,0),"") -> Piked V sit (hand supp.) | AO21: =IF(ISNUMBER(SEARCH($B$12,AP21)),MAX($AO$8:AO20)+1,0) -> 13 | AP21: Piked V sit (hand supp.) | AS21: =IFERROR(VLOOKUP(ROWS($AP$9:AP21),$AO$9:$AP$163,2,0),"") -> Piked V sit (hand supp.) | AW21: =IF(ISNUMBER(SEARCH($B$13,AX21)),MAX($AW$8:AW20)+1,0) -> 13 | AX21: Piked V sit (hand supp.) | BA21: =IFERROR(VLOOKUP(ROWS($AX$9:AX21),$AW$9:$AX$163,2,0),"") -> Piked V sit (hand supp.) | BE21: =IF(ISNUMBER(SEARCH($B$14,BF21)),MAX($BE$8:BE20)+1,0) -> 13 | BF21: Piked V sit (hand supp.) | BI21: =IFERROR(VLOOKUP(ROWS($BF$9:BF21),$BE$9:$BF$163,2,0),"") -> Piked V sit (hand supp.) | BM21: =IF(ISNUMBER(SEARCH($B$15,BN21)),MAX($BM$8:BM20)+1,0) -> 13 | BN21: Piked V sit (hand supp.) | BQ21: =IFERROR(VLOOKUP(ROWS($BN$9:BN21),$BM$9:$BN$163,2,0),"") -> Piked V sit (hand supp.) | BU21: =IF(ISNUMBER(SEARCH($B$16,BV21)),MAX($BU$8:BU20)+1,0) -> 13 | BV21: Piked V sit (hand supp.) | BY21: =IFERROR(VLOOKUP(ROWS($BV$9:BV21),$BU$9:$BV$163,2,0),"") -> Piked V sit (hand supp.) | CC21: =IF(ISNUMBER(SEARCH($B$17,CD21)),MAX($CC$8:CC20)+1,0) -> 13 | CD21: Piked V sit (hand supp.) | CG21: =IFERROR(VLOOKUP(ROWS($CD$9:CD21),$CC$9:$CD$163,2,0),"") -> Piked V sit (hand supp.) | CK21: =IF(ISNUMBER(SEARCH($B$18,CL21)),MAX($CK$8:CK20)+1,0) -> 13 | CL21: Piked V sit (hand supp.) | CO21: =IFERROR(VLOOKUP(ROWS($CL$9:CL21),$CK$9:$CL$163,2,0),"") -> Piked V sit (hand supp.)
D22: 1 x C = 0.50 | I22: 2 x Grp 2 | M22: 2 = 0.20 | N22: E Skill Grp 2,3,4 = 0.80 | Q22: =IF(ISNUMBER(SEARCH($B$9,R22)),MAX($Q$8:Q21)+1,0) -> 14 | R22: ½ lever (1 foot on floor) | U22: =IFERROR(VLOOKUP(ROWS($R$9:R22),$Q$9:$R$163,2,0),"") -> ½ lever (1 foot on floor) | Y22: =IF(ISNUMBER(SEARCH($B$10,Z22)),MAX($Y$8:Y21)+1,0) -> 14 | Z22: ½ lever (1 foot on floor) | AC22: =IFERROR(VLOOKUP(ROWS($Z$9:Z22),$Y$9:$Z$163,2,0),"") -> ½ lever (1 foot on floor) | AG22: =IF(ISNUMBER(SEARCH($B$11,AH22)),MAX($AG$8:AG21)+1,0) -> 14 | AH22: ½ lever (1 foot on floor) | AK22: =IFERROR(VLOOKUP(ROWS($AH$9:AH22),$AG$9:$AH$163,2,0),"") -> ½ lever (1 foot on floor) | AO22: =IF(ISNUMBER(SEARCH($B$12,AP22)),MAX($AO$8:AO21)+1,0) -> 14 | AP22: ½ lever (1 foot on floor) | AS22: =IFERROR(VLOOKUP(ROWS($AP$9:AP22),$AO$9:$AP$163,2,0),"") -> ½ lever (1 foot on floor) | AW22: =IF(ISNUMBER(SEARCH($B$13,AX22)),MAX($AW$8:AW21)+1,0) -> 14 | AX22: ½ lever (1 foot on floor) | BA22: =IFERROR(VLOOKUP(ROWS($AX$9:AX22),$AW$9:$AX$163,2,0),"") -> ½ lever (1 foot on floor) | BE22: =IF(ISNUMBER(SEARCH($B$14,BF22)),MAX($BE$8:BE21)+1,0) -> 14 | BF22: ½ lever (1 foot on floor) | BI22: =IFERROR(VLOOKUP(ROWS($BF$9:BF22),$BE$9:$BF$163,2,0),"") -> ½ lever (1 foot on floor) | BM22: =IF(ISNUMBER(SEARCH($B$15,BN22)),MAX($BM$8:BM21)+1,0) -> 14 | BN22: ½ lever (1 foot on floor) | BQ22: =IFERROR(VLOOKUP(ROWS($BN$9:BN22),$BM$9:$BN$163,2,0),"") -> ½ lever (1 foot on floor) | BU22: =IF(ISNUMBER(SEARCH($B$16,BV22)),MAX($BU$8:BU21)+1,0) -> 14 | BV22: ½ lever (1 foot on floor) | BY22: =IFERROR(VLOOKUP(ROWS($BV$9:BV22),$BU$9:$BV$163,2,0),"") -> ½ lever (1 foot on floor) | CC22: =IF(ISNUMBER(SEARCH($B$17,CD22)),MAX($CC$8:CC21)+1,0) -> 14 | CD22: ½ lever (1 foot on floor) | CG22: =IFERROR(VLOOKUP(ROWS($CD$9:CD22),$CC$9:$CD$163,2,0),"") -> ½ lever (1 foot on floor) | CK22: =IF(ISNUMBER(SEARCH($B$18,CL22)),MAX($CK$8:CK21)+1,0) -> 14 | CL22: ½ lever (1 foot on floor) | CO22: =IFERROR(VLOOKUP(ROWS($CL$9:CL22),$CK$9:$CL$163,2,0),"") -> ½ lever (1 foot on floor)
D23: 1 x D = 0.70 | I23: 2 x Grp 3 | M23: 3 = 0.20 | Q23: =IF(ISNUMBER(SEARCH($B$9,R23)),MAX($Q$8:Q22)+1,0) -> 15 | R23: Headstand (leg optional) | U23: =IFERROR(VLOOKUP(ROWS($R$9:R23),$Q$9:$R$163,2,0),"") -> Headstand (leg optional) | Y23: =IF(ISNUMBER(SEARCH($B$10,Z23)),MAX($Y$8:Y22)+1,0) -> 15 | Z23: Headstand (leg optional) | AC23: =IFERROR(VLOOKUP(ROWS($Z$9:Z23),$Y$9:$Z$163,2,0),"") -> Headstand (leg optional) | AG23: =IF(ISNUMBER(SEARCH($B$11,AH23)),MAX($AG$8:AG22)+1,0) -> 15 | AH23: Headstand (leg optional) | AK23: =IFERROR(VLOOKUP(ROWS($AH$9:AH23),$AG$9:$AH$163,2,0),"") -> Headstand (leg optional) | AO23: =IF(ISNUMBER(SEARCH($B$12,AP23)),MAX($AO$8:AO22)+1,0) -> 15 | AP23: Headstand (leg optional) | AS23: =IFERROR(VLOOKUP(ROWS($AP$9:AP23),$AO$9:$AP$163,2,0),"") -> Headstand (leg optional) | AW23: =IF(ISNUMBER(SEARCH($B$13,AX23)),MAX($AW$8:AW22)+1,0) -> 15 | AX23: Headstand (leg optional) | BA23: =IFERROR(VLOOKUP(ROWS($AX$9:AX23),$AW$9:$AX$163,2,0),"") -> Headstand (leg optional) | BE23: =IF(ISNUMBER(SEARCH($B$14,BF23)),MAX($BE$8:BE22)+1,0) -> 15 | BF23: Headstand (leg optional) | BI23: =IFERROR(VLOOKUP(ROWS($BF$9:BF23),$BE$9:$BF$163,2,0),"") -> Headstand (leg optional) | BM23: =IF(ISNUMBER(SEARCH($B$15,BN23)),MAX($BM$8:BM22)+1,0) -> 15 | BN23: Headstand (leg optional) | BQ23: =IFERROR(VLOOKUP(ROWS($BN$9:BN23),$BM$9:$BN$163,2,0),"") -> Headstand (leg optional) | BU23: =IF(ISNUMBER(SEARCH($B$16,BV23)),MAX($BU$8:BU22)+1,0) -> 15 | BV23: Headstand (leg optional) | BY23: =IFERROR(VLOOKUP(ROWS($BV$9:BV23),$BU$9:$BV$163,2,0),"") -> Headstand (leg optional) | CC23: =IF(ISNUMBER(SEARCH($B$17,CD23)),MAX($CC$8:CC22)+1,0) -> 15 | CD23: Headstand (leg optional) | CG23: =IFERROR(VLOOKUP(ROWS($CD$9:CD23),$CC$9:$CD$163,2,0),"") -> Headstand (leg optional) | CK23: =IF(ISNUMBER(SEARCH($B$18,CL23)),MAX($CK$8:CK22)+1,0) -> 15 | CL23: Headstand (leg optional) | CO23: =IFERROR(VLOOKUP(ROWS($CL$9:CL23),$CK$9:$CL$163,2,0),"") -> Headstand (leg optional)
D24: 1 x E = 0.80 | I24: 2 x Grp 4 | Q24: =IF(ISNUMBER(SEARCH($B$9,R24)),MAX($Q$8:Q23)+1,0) -> 16 | R24: Shoulder stand (hip supp) | U24: =IFERROR(VLOOKUP(ROWS($R$9:R24),$Q$9:$R$163,2,0),"") -> Shoulder stand (hip supp) | Y24: =IF(ISNUMBER(SEARCH($B$10,Z24)),MAX($Y$8:Y23)+1,0) -> 16 | Z24: Shoulder stand (hip supp) | AC24: =IFERROR(VLOOKUP(ROWS($Z$9:Z24),$Y$9:$Z$163,2,0),"") -> Shoulder stand (hip supp) | AG24: =IF(ISNUMBER(SEARCH($B$11,AH24)),MAX($AG$8:AG23)+1,0) -> 16 | AH24: Shoulder stand (hip supp) | AK24: =IFERROR(VLOOKUP(ROWS($AH$9:AH24),$AG$9:$AH$163,2,0),"") -> Shoulder stand (hip supp) | AO24: =IF(ISNUMBER(SEARCH($B$12,AP24)),MAX($AO$8:AO23)+1,0) -> 16 | AP24: Shoulder stand (hip supp) | AS24: =IFERROR(VLOOKUP(ROWS($AP$9:AP24),$AO$9:$AP$163,2,0),"") -> Shoulder stand (hip supp) | AW24: =IF(ISNUMBER(SEARCH($B$13,AX24)),MAX($AW$8:AW23)+1,0) -> 16 | AX24: Shoulder stand (hip supp) | BA24: =IFERROR(VLOOKUP(ROWS($AX$9:AX24),$AW$9:$AX$163,2,0),"") -> Shoulder stand (hip supp) | BE24: =IF(ISNUMBER(SEARCH($B$14,BF24)),MAX($BE$8:BE23)+1,0) -> 16 | BF24: Shoulder stand (hip supp) | BI24: =IFERROR(VLOOKUP(ROWS($BF$9:BF24),$BE$9:$BF$163,2,0),"") -> Shoulder stand (hip supp) | BM24: =IF(ISNUMBER(SEARCH($B$15,BN24)),MAX($BM$8:BM23)+1,0) -> 16 | BN24: Shoulder stand (hip supp) | BQ24: =IFERROR(VLOOKUP(ROWS($BN$9:BN24),$BM$9:$BN$163,2,0),"") -> Shoulder stand (hip supp) | BU24: =IF(ISNUMBER(SEARCH($B$16,BV24)),MAX($BU$8:BU23)+1,0) -> 16 | BV24: Shoulder stand (hip supp) | BY24: =IFERROR(VLOOKUP(ROWS($BV$9:BV24),$BU$9:$BV$163,2,0),"") -> Shoulder stand (hip supp) | CC24: =IF(ISNUMBER(SEARCH($B$17,CD24)),MAX($CC$8:CC23)+1,0) -> 16 | CD24: Shoulder stand (hip supp) | CG24: =IFERROR(VLOOKUP(ROWS($CD$9:CD24),$CC$9:$CD$163,2,0),"") -> Shoulder stand (hip supp) | CK24: =IF(ISNUMBER(SEARCH($B$18,CL24)),MAX($CK$8:CK23)+1,0) -> 16 | CL24: Shoulder stand (hip supp) | CO24: =IFERROR(VLOOKUP(ROWS($CL$9:CL24),$CK$9:$CL$163,2,0),"") -> Shoulder stand (hip supp)
Q25: =IF(ISNUMBER(SEARCH($B$9,R25)),MAX($Q$8:Q24)+1,0) -> 17 | R25: Forward Roll | U25: =IFERROR(VLOOKUP(ROWS($R$9:R25),$Q$9:$R$163,2,0),"") -> Forward Roll | Y25: =IF(ISNUMBER(SEARCH($B$10,Z25)),MAX($Y$8:Y24)+1,0) -> 17 | Z25: Forward Roll | AC25: =IFERROR(VLOOKUP(ROWS($Z$9:Z25),$Y$9:$Z$163,2,0),"") -> Forward Roll | AG25: =IF(ISNUMBER(SEARCH($B$11,AH25)),MAX($AG$8:AG24)+1,0) -> 17 | AH25: Forward Roll | AK25: =IFERROR(VLOOKUP(ROWS($AH$9:AH25),$AG$9:$AH$163,2,0),"") -> Forward Roll | AO25: =IF(ISNUMBER(SEARCH($B$12,AP25)),MAX($AO$8:AO24)+1,0) -> 17 | AP25: Forward Roll | AS25: =IFERROR(VLOOKUP(ROWS($AP$9:AP25),$AO$9:$AP$163,2,0),"") -> Forward Roll | AW25: =IF(ISNUMBER(SEARCH($B$13,AX25)),MAX($AW$8:AW24)+1,0) -> 17 | AX25: Forward Roll | BA25: =IFERROR(VLOOKUP(ROWS($AX$9:AX25),$AW$9:$AX$163,2,0),"") -> Forward Roll | BE25: =IF(ISNUMBER(SEARCH($B$14,BF25)),MAX($BE$8:BE24)+1,0) -> 17 | BF25: Forward Roll | BI25: =IFERROR(VLOOKUP(ROWS($BF$9:BF25),$BE$9:$BF$163,2,0),"") -> Forward Roll | BM25: =IF(ISNUMBER(SEARCH($B$15,BN25)),MAX($BM$8:BM24)+1,0) -> 17 | BN25: Forward Roll | BQ25: =IFERROR(VLOOKUP(ROWS($BN$9:BN25),$BM$9:$BN$163,2,0),"") -> Forward Roll | BU25: =IF(ISNUMBER(SEARCH($B$16,BV25)),MAX($BU$8:BU24)+1,0) -> 17 | BV25: Forward Roll | BY25: =IFERROR(VLOOKUP(ROWS($BV$9:BV25),$BU$9:$BV$163,2,0),"") -> Forward Roll | CC25: =IF(ISNUMBER(SEARCH($B$17,CD25)),MAX($CC$8:CC24)+1,0) -> 17 | CD25: Forward Roll | CG25: =IFERROR(VLOOKUP(ROWS($CD$9:CD25),$CC$9:$CD$163,2,0),"") -> Forward Roll | CK25: =IF(ISNUMBER(SEARCH($B$18,CL25)),MAX($CK$8:CK24)+1,0) -> 17 | CL25: Forward Roll | CO25: =IFERROR(VLOOKUP(ROWS($CL$9:CL25),$CK$9:$CL$163,2,0),"") -> Forward Roll
D26: Total = 2.60 | M26: Total = 0.60 | N26: Total = 1.60 | Q26: =IF(ISNUMBER(SEARCH($B$9,R26)),MAX($Q$8:Q25)+1,0) -> 18 | R26: Back Roll & to straddle | U26: =IFERROR(VLOOKUP(ROWS($R$9:R26),$Q$9:$R$163,2,0),"") -> Back Roll & to straddle | Y26: =IF(ISNUMBER(SEARCH($B$10,Z26)),MAX($Y$8:Y25)+1,0) -> 18 | Z26: Back Roll & to straddle | AC26: =IFERROR(VLOOKUP(ROWS($Z$9:Z26),$Y$9:$Z$163,2,0),"") -> Back Roll & to straddle | AG26: =IF(ISNUMBER(SEARCH($B$11,AH26)),MAX($AG$8:AG25)+1,0) -> 18 | AH26: Back Roll & to straddle | AK26: =IFERROR(VLOOKUP(ROWS($AH$9:AH26),$AG$9:$AH$163,2,0),"") -> Back Roll & to straddle | AO26: =IF(ISNUMBER(SEARCH($B$12,AP26)),MAX($AO$8:AO25)+1,0) -> 18 | AP26: Back Roll & to straddle | AS26: =IFERROR(VLOOKUP(ROWS($AP$9:AP26),$AO$9:$AP$163,2,0),"") -> Back Roll & to straddle | AW26: =IF(ISNUMBER(SEARCH($B$13,AX26)),MAX($AW$8:AW25)+1,0) -> 18 | AX26: Back Roll & to straddle | BA26: =IFERROR(VLOOKUP(ROWS($AX$9:AX26),$AW$9:$AX$163,2,0),"") -> Back Roll & to straddle | BE26: =IF(ISNUMBER(SEARCH($B$14,BF26)),MAX($BE$8:BE25)+1,0) -> 18 | BF26: Back Roll & to straddle | BI26: =IFERROR(VLOOKUP(ROWS($BF$9:BF26),$BE$9:$BF$163,2,0),"") -> Back Roll & to straddle | BM26: =IF(ISNUMBER(SEARCH($B$15,BN26)),MAX($BM$8:BM25)+1,0) -> 18 | BN26: Back Roll & to straddle | BQ26: =IFERROR(VLOOKUP(ROWS($BN$9:BN26),$BM$9:$BN$163,2,0),"") -> Back Roll & to straddle | BU26: =IF(ISNUMBER(SEARCH($B$16,BV26)),MAX($BU$8:BU25)+1,0) -> 18 | BV26: Back Roll & to straddle | BY26: =IFERROR(VLOOKUP(ROWS($BV$9:BV26),$BU$9:$BV$163,2,0),"") -> Back Roll & to straddle | CC26: =IF(ISNUMBER(SEARCH($B$17,CD26)),MAX($CC$8:CC25)+1,0) -> 18 | CD26: Back Roll & to straddle | CG26: =IFERROR(VLOOKUP(ROWS($CD$9:CD26),$CC$9:$CD$163,2,0),"") -> Back Roll & to straddle | CK26: =IF(ISNUMBER(SEARCH($B$18,CL26)),MAX($CK$8:CK25)+1,0) -> 18 | CL26: Back Roll & to straddle | CO26: =IFERROR(VLOOKUP(ROWS($CL$9:CL26),$CK$9:$CL$163,2,0),"") -> Back Roll & to straddle
Q27: =IF(ISNUMBER(SEARCH($B$9,R27)),MAX($Q$8:Q26)+1,0) -> 19 | R27: Circle (‘teddy bear’) roll | U27: =IFERROR(VLOOKUP(ROWS($R$9:R27),$Q$9:$R$163,2,0),"") -> Circle (‘teddy bear’) roll | Y27: =IF(ISNUMBER(SEARCH($B$10,Z27)),MAX($Y$8:Y26)+1,0) -> 19 | Z27: Circle (‘teddy bear’) roll | AC27: =IFERROR(VLOOKUP(ROWS($Z$9:Z27),$Y$9:$Z$163,2,0),"") -> Circle (‘teddy bear’) roll | AG27: =IF(ISNUMBER(SEARCH($B$11,AH27)),MAX($AG$8:AG26)+1,0) -> 19 | AH27: Circle (‘teddy bear’) roll | AK27: =IFERROR(VLOOKUP(ROWS($AH$9:AH27),$AG$9:$AH$163,2,0),"") -> Circle (‘teddy bear’) roll | AO27: =IF(ISNUMBER(SEARCH($B$12,AP27)),MAX($AO$8:AO26)+1,0) -> 19 | AP27: Circle (‘teddy bear’) roll | AS27: =IFERROR(VLOOKUP(ROWS($AP$9:AP27),$AO$9:$AP$163,2,0),"") -> Circle (‘teddy bear’) roll | AW27: =IF(ISNUMBER(SEARCH($B$13,AX27)),MAX($AW$8:AW26)+1,0) -> 19 | AX27: Circle (‘teddy bear’) roll | BA27: =IFERROR(VLOOKUP(ROWS($AX$9:AX27),$AW$9:$AX$163,2,0),"") -> Circle (‘teddy bear’) roll | BE27: =IF(ISNUMBER(SEARCH($B$14,BF27)),MAX($BE$8:BE26)+1,0) -> 19 | BF27: Circle (‘teddy bear’) roll | BI27: =IFERROR(VLOOKUP(ROWS($BF$9:BF27),$BE$9:$BF$163,2,0),"") -> Circle (‘teddy bear’) roll | BM27: =IF(ISNUMBER(SEARCH($B$15,BN27)),MAX($BM$8:BM26)+1,0) -> 19 | BN27: Circle (‘teddy bear’) roll | BQ27: =IFERROR(VLOOKUP(ROWS($BN$9:BN27),$BM$9:$BN$163,2,0),"") -> Circle (‘teddy bear’) roll | BU27: =IF(ISNUMBER(SEARCH($B$16,BV27)),MAX($BU$8:BU26)+1,0) -> 19 | BV27: Circle (‘teddy bear’) roll | BY27: =IFERROR(VLOOKUP(ROWS($BV$9:BV27),$BU$9:$BV$163,2,0),"") -> Circle (‘teddy bear’) roll | CC27: =IF(ISNUMBER(SEARCH($B$17,CD27)),MAX($CC$8:CC26)+1,0) -> 19 | CD27: Circle (‘teddy bear’) roll | CG27: =IFERROR(VLOOKUP(ROWS($CD$9:CD27),$CC$9:$CD$163,2,0),"") -> Circle (‘teddy bear’) roll | CK27: =IF(ISNUMBER(SEARCH($B$18,CL27)),MAX($CK$8:CK26)+1,0) -> 19 | CL27: Circle (‘teddy bear’) roll | CO27: =IFERROR(VLOOKUP(ROWS($CL$9:CL27),$CK$9:$CL$163,2,0),"") -> Circle (‘teddy bear’) roll
A28: Execution | D28: 5 | Q28: =IF(ISNUMBER(SEARCH($B$9,R28)),MAX($Q$8:Q27)+1,0) -> 20 | R28: Side Roll (various shapes) | U28: =IFERROR(VLOOKUP(ROWS($R$9:R28),$Q$9:$R$163,2,0),"") -> Side Roll (various shapes) | Y28: =IF(ISNUMBER(SEARCH($B$10,Z28)),MAX($Y$8:Y27)+1,0) -> 20 | Z28: Side Roll (various shapes) | AC28: =IFERROR(VLOOKUP(ROWS($Z$9:Z28),$Y$9:$Z$163,2,0),"") -> Side Roll (various shapes) | AG28: =IF(ISNUMBER(SEARCH($B$11,AH28)),MAX($AG$8:AG27)+1,0) -> 20 | AH28: Side Roll (various shapes) | AK28: =IFERROR(VLOOKUP(ROWS($AH$9:AH28),$AG$9:$AH$163,2,0),"") -> Side Roll (various shapes) | AO28: =IF(ISNUMBER(SEARCH($B$12,AP28)),MAX($AO$8:AO27)+1,0) -> 20 | AP28: Side Roll (various shapes) | AS28: =IFERROR(VLOOKUP(ROWS($AP$9:AP28),$AO$9:$AP$163,2,0),"") -> Side Roll (various shapes) | AW28: =IF(ISNUMBER(SEARCH($B$13,AX28)),MAX($AW$8:AW27)+1,0) -> 20 | AX28: Side Roll (various shapes) | BA28: =IFERROR(VLOOKUP(ROWS($AX$9:AX28),$AW$9:$AX$163,2,0),"") -> Side Roll (various shapes) | BE28: =IF(ISNUMBER(SEARCH($B$14,BF28)),MAX($BE$8:BE27)+1,0) -> 20 | BF28: Side Roll (various shapes) | BI28: =IFERROR(VLOOKUP(ROWS($BF$9:BF28),$BE$9:$BF$163,2,0),"") -> Side Roll (various shapes) | BM28: =IF(ISNUMBER(SEARCH($B$15,BN28)),MAX($BM$8:BM27)+1,0) -> 20 | BN28: Side Roll (various shapes) | BQ28: =IFERROR(VLOOKUP(ROWS($BN$9:BN28),$BM$9:$BN$163,2,0),"") -> Side Roll (various shapes) | BU28: =IF(ISNUMBER(SEARCH($B$16,BV28)),MAX($BU$8:BU27)+1,0) -> 20 | BV28: Side Roll (various shapes) | BY28: =IFERROR(VLOOKUP(ROWS($BV$9:BV28),$BU$9:$BV$163,2,0),"") -> Side Roll (various shapes) | CC28: =IF(ISNUMBER(SEARCH($B$17,CD28)),MAX($CC$8:CC27)+1,0) -> 20 | CD28: Side Roll (various shapes) | CG28: =IFERROR(VLOOKUP(ROWS($CD$9:CD28),$CC$9:$CD$163,2,0),"") -> Side Roll (various shapes) | CK28: =IF(ISNUMBER(SEARCH($B$18,CL28)),MAX($CK$8:CK27)+1,0) -> 20 | CL28: Side Roll (various shapes) | CO28: =IFERROR(VLOOKUP(ROWS($CL$9:CL28),$CK$9:$CL$163,2,0),"") -> Side Roll (various shapes)
A29: Artistry / Linkage | D29: 0.2 | Q29: =IF(ISNUMBER(SEARCH($B$9,R29)),MAX($Q$8:Q28)+1,0) -> 21 | R29: Egg roll (leg shape optional) | U29: =IFERROR(VLOOKUP(ROWS($R$9:R29),$Q$9:$R$163,2,0),"") -> Egg roll (leg shape optional) | Y29: =IF(ISNUMBER(SEARCH($B$10,Z29)),MAX($Y$8:Y28)+1,0) -> 21 | Z29: Egg roll (leg shape optional) | AC29: =IFERROR(VLOOKUP(ROWS($Z$9:Z29),$Y$9:$Z$163,2,0),"") -> Egg roll (leg shape optional) | AG29: =IF(ISNUMBER(SEARCH($B$11,AH29)),MAX($AG$8:AG28)+1,0) -> 21 | AH29: Egg roll (leg shape optional) | AK29: =IFERROR(VLOOKUP(ROWS($AH$9:AH29),$AG$9:$AH$163,2,0),"") -> Egg roll (leg shape optional) | AO29: =IF(ISNUMBER(SEARCH($B$12,AP29)),MAX($AO$8:AO28)+1,0) -> 21 | AP29: Egg roll (leg shape optional) | AS29: =IFERROR(VLOOKUP(ROWS($AP$9:AP29),$AO$9:$AP$163,2,0),"") -> Egg roll (leg shape optional) | AW29: =IF(ISNUMBER(SEARCH($B$13,AX29)),MAX($AW$8:AW28)+1,0) -> 21 | AX29: Egg roll (leg shape optional) | BA29: =IFERROR(VLOOKUP(ROWS($AX$9:AX29),$AW$9:$AX$163,2,0),"") -> Egg roll (leg shape optional) | BE29: =IF(ISNUMBER(SEARCH($B$14,BF29)),MAX($BE$8:BE28)+1,0) -> 21 | BF29: Egg roll (leg shape optional) | BI29: =IFERROR(VLOOKUP(ROWS($BF$9:BF29),$BE$9:$BF$163,2,0),"") -> Egg roll (leg shape optional) | BM29: =IF(ISNUMBER(SEARCH($B$15,BN29)),MAX($BM$8:BM28)+1,0) -> 21 | BN29: Egg roll (leg shape optional) | BQ29: =IFERROR(VLOOKUP(ROWS($BN$9:BN29),$BM$9:$BN$163,2,0),"") -> Egg roll (leg shape optional) | BU29: =IF(ISNUMBER(SEARCH($B$16,BV29)),MAX($BU$8:BU28)+1,0) -> 21 | BV29: Egg roll (leg shape optional) | BY29: =IFERROR(VLOOKUP(ROWS($BV$9:BV29),$BU$9:$BV$163,2,0),"") -> Egg roll (leg shape optional) | CC29: =IF(ISNUMBER(SEARCH($B$17,CD29)),MAX($CC$8:CC28)+1,0) -> 21 | CD29: Egg roll (leg shape optional) | CG29: =IFERROR(VLOOKUP(ROWS($CD$9:CD29),$CC$9:$CD$163,2,0),"") -> Egg roll (leg shape optional) | CK29: =IF(ISNUMBER(SEARCH($B$18,CL29)),MAX($CK$8:CK28)+1,0) -> 21 | CL29: Egg roll (leg shape optional) | CO29: =IFERROR(VLOOKUP(ROWS($CL$9:CL29),$CK$9:$CL$163,2,0),"") -> Egg roll (leg shape optional)
A30: Total Start Value: | I30: Total Execution: | Q30: =IF(ISNUMBER(SEARCH($B$9,R30)),MAX($Q$8:Q29)+1,0) -> 22 | R30: Tuck Bunny Hop to Handstand | U30: =IFERROR(VLOOKUP(ROWS($R$9:R30),$Q$9:$R$163,2,0),"") -> Tuck Bunny Hop to Handstand | Y30: =IF(ISNUMBER(SEARCH($B$10,Z30)),MAX($Y$8:Y29)+1,0) -> 22 | Z30: Tuck Bunny Hop to Handstand | AC30: =IFERROR(VLOOKUP(ROWS($Z$9:Z30),$Y$9:$Z$163,2,0),"") -> Tuck Bunny Hop to Handstand | AG30: =IF(ISNUMBER(SEARCH($B$11,AH30)),MAX($AG$8:AG29)+1,0) -> 22 | AH30: Tuck Bunny Hop to Handstand | AK30: =IFERROR(VLOOKUP(ROWS($AH$9:AH30),$AG$9:$AH$163,2,0),"") -> Tuck Bunny Hop to Handstand | AO30: =IF(ISNUMBER(SEARCH($B$12,AP30)),MAX($AO$8:AO29)+1,0) -> 22 | AP30: Tuck Bunny Hop to Handstand | AS30: =IFERROR(VLOOKUP(ROWS($AP$9:AP30),$AO$9:$AP$163,2,0),"") -> Tuck Bunny Hop to Handstand | AW30: =IF(ISNUMBER(SEARCH($B$13,AX30)),MAX($AW$8:AW29)+1,0) -> 22 | AX30: Tuck Bunny Hop to Handstand | BA30: =IFERROR(VLOOKUP(ROWS($AX$9:AX30),$AW$9:$AX$163,2,0),"") -> Tuck Bunny Hop to Handstand | BE30: =IF(ISNUMBER(SEARCH($B$14,BF30)),MAX($BE$8:BE29)+1,0) -> 22 | BF30: Tuck Bunny Hop to Handstand | BI30: =IFERROR(VLOOKUP(ROWS($BF$9:BF30),$BE$9:$BF$163,2,0),"") -> Tuck Bunny Hop to Handstand | BM30: =IF(ISNUMBER(SEARCH($B$15,BN30)),MAX($BM$8:BM29)+1,0) -> 22 | BN30: Tuck Bunny Hop to Handstand | BQ30: =IFERROR(VLOOKUP(ROWS($BN$9:BN30),$BM$9:$BN$163,2,0),"") -> Tuck Bunny Hop to Handstand | BU30: =IF(ISNUMBER(SEARCH($B$16,BV30)),MAX($BU$8:BU29)+1,0) -> 22 | BV30: Tuck Bunny Hop to Handstand | BY30: =IFERROR(VLOOKUP(ROWS($BV$9:BV30),$BU$9:$BV$163,2,0),"") -> Tuck Bunny Hop to Handstand | CC30: =IF(ISNUMBER(SEARCH($B$17,CD30)),MAX($CC$8:CC29)+1,0) -> 22 | CD30: Tuck Bunny Hop to Handstand | CG30: =IFERROR(VLOOKUP(ROWS($CD$9:CD30),$CC$9:$CD$163,2,0),"") -> Tuck Bunny Hop to Handstand | CK30: =IF(ISNUMBER(SEARCH($B$18,CL30)),MAX($CK$8:CK29)+1,0) -> 22 | CL30: Tuck Bunny Hop to Handstand | CO30: =IFERROR(VLOOKUP(ROWS($CL$9:CL30),$CK$9:$CL$163,2,0),"") -> Tuck Bunny Hop to Handstand
Q31: =IF(ISNUMBER(SEARCH($B$9,R31)),MAX($Q$8:Q30)+1,0) -> 23 | R31: Handstand return to feet | U31: =IFERROR(VLOOKUP(ROWS($R$9:R31),$Q$9:$R$163,2,0),"") -> Handstand return to feet | Y31: =IF(ISNUMBER(SEARCH($B$10,Z31)),MAX($Y$8:Y30)+1,0) -> 23 | Z31: Handstand return to feet | AC31: =IFERROR(VLOOKUP(ROWS($Z$9:Z31),$Y$9:$Z$163,2,0),"") -> Handstand return to feet | AG31: =IF(ISNUMBER(SEARCH($B$11,AH31)),MAX($AG$8:AG30)+1,0) -> 23 | AH31: Handstand return to feet | AK31: =IFERROR(VLOOKUP(ROWS($AH$9:AH31),$AG$9:$AH$163,2,0),"") -> Handstand return to feet | AO31: =IF(ISNUMBER(SEARCH($B$12,AP31)),MAX($AO$8:AO30)+1,0) -> 23 | AP31: Handstand return to feet | AS31: =IFERROR(VLOOKUP(ROWS($AP$9:AP31),$AO$9:$AP$163,2,0),"") -> Handstand return to feet | AW31: =IF(ISNUMBER(SEARCH($B$13,AX31)),MAX($AW$8:AW30)+1,0) -> 23 | AX31: Handstand return to feet | BA31: =IFERROR(VLOOKUP(ROWS($AX$9:AX31),$AW$9:$AX$163,2,0),"") -> Handstand return to feet | BE31: =IF(ISNUMBER(SEARCH($B$14,BF31)),MAX($BE$8:BE30)+1,0) -> 23 | BF31: Handstand return to feet | BI31: =IFERROR(VLOOKUP(ROWS($BF$9:BF31),$BE$9:$BF$163,2,0),"") -> Handstand return to feet | BM31: =IF(ISNUMBER(SEARCH($B$15,BN31)),MAX($BM$8:BM30)+1,0) -> 23 | BN31: Handstand return to feet | BQ31: =IFERROR(VLOOKUP(ROWS($BN$9:BN31),$BM$9:$BN$163,2,0),"") -> Handstand return to feet | BU31: =IF(ISNUMBER(SEARCH($B$16,BV31)),MAX($BU$8:BU30)+1,0) -> 23 | BV31: Handstand return to feet | BY31: =IFERROR(VLOOKUP(ROWS($BV$9:BV31),$BU$9:$BV$163,2,0),"") -> Handstand return to feet | CC31: =IF(ISNUMBER(SEARCH($B$17,CD31)),MAX($CC$8:CC30)+1,0) -> 23 | CD31: Handstand return to feet | CG31: =IFERROR(VLOOKUP(ROWS($CD$9:CD31),$CC$9:$CD$163,2,0),"") -> Handstand return to feet | CK31: =IF(ISNUMBER(SEARCH($B$18,CL31)),MAX($CK$8:CK30)+1,0) -> 23 | CL31: Handstand return to feet | CO31: =IFERROR(VLOOKUP(ROWS($CL$9:CL31),$CK$9:$CL$163,2,0),"") -> Handstand return to feet
D32: B | E32: C | F32: D | G32: E | I32: 1 | J32: 2 | K32: 3 | L32: 4 | M32: Sex | N32: Bonus - E AFS | Q32: =IF(ISNUMBER(SEARCH($B$9,R32)),MAX($Q$8:Q31)+1,0) -> 24 | R32: Cartwheel | U32: =IFERROR(VLOOKUP(ROWS($R$9:R32),$Q$9:$R$163,2,0),"") -> Cartwheel | Y32: =IF(ISNUMBER(SEARCH($B$10,Z32)),MAX($Y$8:Y31)+1,0) -> 24 | Z32: Cartwheel | AC32: =IFERROR(VLOOKUP(ROWS($Z$9:Z32),$Y$9:$Z$163,2,0),"") -> Cartwheel | AG32: =IF(ISNUMBER(SEARCH($B$11,AH32)),MAX($AG$8:AG31)+1,0) -> 24 | AH32: Cartwheel | AK32: =IFERROR(VLOOKUP(ROWS($AH$9:AH32),$AG$9:$AH$163,2,0),"") -> Cartwheel | AO32: =IF(ISNUMBER(SEARCH($B$12,AP32)),MAX($AO$8:AO31)+1,0) -> 24 | AP32: Cartwheel | AS32: =IFERROR(VLOOKUP(ROWS($AP$9:AP32),$AO$9:$AP$163,2,0),"") -> Cartwheel | AW32: =IF(ISNUMBER(SEARCH($B$13,AX32)),MAX($AW$8:AW31)+1,0) -> 24 | AX32: Cartwheel | BA32: =IFERROR(VLOOKUP(ROWS($AX$9:AX32),$AW$9:$AX$163,2,0),"") -> Cartwheel | BE32: =IF(ISNUMBER(SEARCH($B$14,BF32)),MAX($BE$8:BE31)+1,0) -> 24 | BF32: Cartwheel | BI32: =IFERROR(VLOOKUP(ROWS($BF$9:BF32),$BE$9:$BF$163,2,0),"") -> Cartwheel | BM32: =IF(ISNUMBER(SEARCH($B$15,BN32)),MAX($BM$8:BM31)+1,0) -> 24 | BN32: Cartwheel | BQ32: =IFERROR(VLOOKUP(ROWS($BN$9:BN32),$BM$9:$BN$163,2,0),"") -> Cartwheel | BU32: =IF(ISNUMBER(SEARCH($B$16,BV32)),MAX($BU$8:BU31)+1,0) -> 24 | BV32: Cartwheel | BY32: =IFERROR(VLOOKUP(ROWS($BV$9:BV32),$BU$9:$BV$163,2,0),"") -> Cartwheel | CC32: =IF(ISNUMBER(SEARCH($B$17,CD32)),MAX($CC$8:CC31)+1,0) -> 24 | CD32: Cartwheel | CG32: =IFERROR(VLOOKUP(ROWS($CD$9:CD32),$CC$9:$CD$163,2,0),"") -> Cartwheel | CK32: =IF(ISNUMBER(SEARCH($B$18,CL32)),MAX($CK$8:CK31)+1,0) -> 24 | CL32: Cartwheel | CO32: =IFERROR(VLOOKUP(ROWS($CL$9:CL32),$CK$9:$CL$163,2,0),"") -> Cartwheel
D33: =IF(COUNTIF(DA9:DA18,"Yes")>=2,"Yes","No") -> No | E33: =IF(COUNTIF(DB9:DB18,"Yes")>=1,"Yes","No") -> No | F33: =IF(COUNTIF(DC9:DC18,"Yes")>=1,"Yes","No") -> No | G33: =IF(COUNTIF(H9:H18,"X")>=1,"Yes","No") -> No | I33: =IF(COUNTIF(I9:I18,"X")>=2,"Yes","No") -> No | J33: =IF(COUNTIF(J9:J18,"X")>=2,"Yes","No") -> No | K33: =IF(COUNTIF(K9:K18,"X")>=2,"Yes","No") -> No | L33: =IF(COUNTIF(L9:L18,"X")>=2,"Yes","No") -> No | M33: Female | N33: Bonus - E Grp 2,3 or 4 | Q33: =IF(ISNUMBER(SEARCH($B$9,R33)),MAX($Q$8:Q32)+1,0) -> 25 | R33: Bunny Hop / Jump - (Long) | U33: =IFERROR(VLOOKUP(ROWS($R$9:R33),$Q$9:$R$163,2,0),"") -> Bunny Hop / Jump - (Long) | Y33: =IF(ISNUMBER(SEARCH($B$10,Z33)),MAX($Y$8:Y32)+1,0) -> 25 | Z33: Bunny Hop / Jump - (Long) | AC33: =IFERROR(VLOOKUP(ROWS($Z$9:Z33),$Y$9:$Z$163,2,0),"") -> Bunny Hop / Jump - (Long) | AG33: =IF(ISNUMBER(SEARCH($B$11,AH33)),MAX($AG$8:AG32)+1,0) -> 25 | AH33: Bunny Hop / Jump - (Long) | AK33: =IFERROR(VLOOKUP(ROWS($AH$9:AH33),$AG$9:$AH$163,2,0),"") -> Bunny Hop / Jump - (Long) | AO33: =IF(ISNUMBER(SEARCH($B$12,AP33)),MAX($AO$8:AO32)+1,0) -> 25 | AP33: Bunny Hop / Jump - (Long) | AS33: =IFERROR(VLOOKUP(ROWS($AP$9:AP33),$AO$9:$AP$163,2,0),"") -> Bunny Hop / Jump - (Long) | AW33: =IF(ISNUMBER(SEARCH($B$13,AX33)),MAX($AW$8:AW32)+1,0) -> 25 | AX33: Bunny Hop / Jump - (Long) | BA33: =IFERROR(VLOOKUP(ROWS($AX$9:AX33),$AW$9:$AX$163,2,0),"") -> Bunny Hop / Jump - (Long) | BE33: =IF(ISNUMBER(SEARCH($B$14,BF33)),MAX($BE$8:BE32)+1,0) -> 25 | BF33: Bunny Hop / Jump - (Long) | BI33: =IFERROR(VLOOKUP(ROWS($BF$9:BF33),$BE$9:$BF$163,2,0),"") -> Bunny Hop / Jump - (Long) | BM33: =IF(ISNUMBER(SEARCH($B$15,BN33)),MAX($BM$8:BM32)+1,0) -> 25 | BN33: Bunny Hop / Jump - (Long) | BQ33: =IFERROR(VLOOKUP(ROWS($BN$9:BN33),$BM$9:$BN$163,2,0),"") -> Bunny Hop / Jump - (Long) | BU33: =IF(ISNUMBER(SEARCH($B$16,BV33)),MAX($BU$8:BU32)+1,0) -> 25 | BV33: Bunny Hop / Jump - (Long) | BY33: =IFERROR(VLOOKUP(ROWS($BV$9:BV33),$BU$9:$BV$163,2,0),"") -> Bunny Hop / Jump - (Long) | CC33: =IF(ISNUMBER(SEARCH($B$17,CD33)),MAX($CC$8:CC32)+1,0) -> 25 | CD33: Bunny Hop / Jump - (Long) | CG33: =IFERROR(VLOOKUP(ROWS($CD$9:CD33),$CC$9:$CD$163,2,0),"") -> Bunny Hop / Jump - (Long) | CK33: =IF(ISNUMBER(SEARCH($B$18,CL33)),MAX($CK$8:CK32)+1,0) -> 25 | CL33: Bunny Hop / Jump - (Long) | CO33: =IFERROR(VLOOKUP(ROWS($CL$9:CL33),$CK$9:$CL$163,2,0),"") -> Bunny Hop / Jump - (Long)
M34: Male | N34: E Acro Flight Series | Q34: =IF(ISNUMBER(SEARCH($B$9,R34)),MAX($Q$8:Q33)+1,0) -> 26 | R34: Bunny Hop / Jump - (High) | U34: =IFERROR(VLOOKUP(ROWS($R$9:R34),$Q$9:$R$163,2,0),"") -> Bunny Hop / Jump - (High) | Y34: =IF(ISNUMBER(SEARCH($B$10,Z34)),MAX($Y$8:Y33)+1,0) -> 26 | Z34: Bunny Hop / Jump - (High) | AC34: =IFERROR(VLOOKUP(ROWS($Z$9:Z34),$Y$9:$Z$163,2,0),"") -> Bunny Hop / Jump - (High) | AG34: =IF(ISNUMBER(SEARCH($B$11,AH34)),MAX($AG$8:AG33)+1,0) -> 26 | AH34: Bunny Hop / Jump - (High) | AK34: =IFERROR(VLOOKUP(ROWS($AH$9:AH34),$AG$9:$AH$163,2,0),"") -> Bunny Hop / Jump - (High) | AO34: =IF(ISNUMBER(SEARCH($B$12,AP34)),MAX($AO$8:AO33)+1,0) -> 26 | AP34: Bunny Hop / Jump - (High) | AS34: =IFERROR(VLOOKUP(ROWS($AP$9:AP34),$AO$9:$AP$163,2,0),"") -> Bunny Hop / Jump - (High) | AW34: =IF(ISNUMBER(SEARCH($B$13,AX34)),MAX($AW$8:AW33)+1,0) -> 26 | AX34: Bunny Hop / Jump - (High) | BA34: =IFERROR(VLOOKUP(ROWS($AX$9:AX34),$AW$9:$AX$163,2,0),"") -> Bunny Hop / Jump - (High) | BE34: =IF(ISNUMBER(SEARCH($B$14,BF34)),MAX($BE$8:BE33)+1,0) -> 26 | BF34: Bunny Hop / Jump - (High) | BI34: =IFERROR(VLOOKUP(ROWS($BF$9:BF34),$BE$9:$BF$163,2,0),"") -> Bunny Hop / Jump - (High) | BM34: =IF(ISNUMBER(SEARCH($B$15,BN34)),MAX($BM$8:BM33)+1,0) -> 26 | BN34: Bunny Hop / Jump - (High) | BQ34: =IFERROR(VLOOKUP(ROWS($BN$9:BN34),$BM$9:$BN$163,2,0),"") -> Bunny Hop / Jump - (High) | BU34: =IF(ISNUMBER(SEARCH($B$16,BV34)),MAX($BU$8:BU33)+1,0) -> 26 | BV34: Bunny Hop / Jump - (High) | BY34: =IFERROR(VLOOKUP(ROWS($BV$9:BV34),$BU$9:$BV$163,2,0),"") -> Bunny Hop / Jump - (High) | CC34: =IF(ISNUMBER(SEARCH($B$17,CD34)),MAX($CC$8:CC33)+1,0) -> 26 | CD34: Bunny Hop / Jump - (High) | CG34: =IFERROR(VLOOKUP(ROWS($CD$9:CD34),$CC$9:$CD$163,2,0),"") -> Bunny Hop / Jump - (High) | CK34: =IF(ISNUMBER(SEARCH($B$18,CL34)),MAX($CK$8:CK33)+1,0) -> 26 | CL34: Bunny Hop / Jump - (High) | CO34: =IFERROR(VLOOKUP(ROWS($CL$9:CL34),$CK$9:$CL$163,2,0),"") -> Bunny Hop / Jump - (High)
D35: Achieved | I35: Achieved | N35: =IF(COUNTIF(CZ9:CZ18,"Yes")=10,IF(COUNTIF(CY9:CY18,"Yes")>=1,"Yes","No"),"No") -> No | Q35: =IF(ISNUMBER(SEARCH($B$9,R35)),MAX($Q$8:Q34)+1,0) -> 27 | R35: Split leap / jump (120° ) | U35: =IFERROR(VLOOKUP(ROWS($R$9:R35),$Q$9:$R$163,2,0),"") -> Split leap / jump (120° ) | Y35: =IF(ISNUMBER(SEARCH($B$10,Z35)),MAX($Y$8:Y34)+1,0) -> 27 | Z35: Split leap / jump (120° ) | AC35: =IFERROR(VLOOKUP(ROWS($Z$9:Z35),$Y$9:$Z$163,2,0),"") -> Split leap / jump (120° ) | AG35: =IF(ISNUMBER(SEARCH($B$11,AH35)),MAX($AG$8:AG34)+1,0) -> 27 | AH35: Split leap / jump (120° ) | AK35: =IFERROR(VLOOKUP(ROWS($AH$9:AH35),$AG$9:$AH$163,2,0),"") -> Split leap / jump (120° ) | AO35: =IF(ISNUMBER(SEARCH($B$12,AP35)),MAX($AO$8:AO34)+1,0) -> 27 | AP35: Split leap / jump (120° ) | AS35: =IFERROR(VLOOKUP(ROWS($AP$9:AP35),$AO$9:$AP$163,2,0),"") -> Split leap / jump (120° ) | AW35: =IF(ISNUMBER(SEARCH($B$13,AX35)),MAX($AW$8:AW34)+1,0) -> 27 | AX35: Split leap / jump (120° ) | BA35: =IFERROR(VLOOKUP(ROWS($AX$9:AX35),$AW$9:$AX$163,2,0),"") -> Split leap / jump (120° ) | BE35: =IF(ISNUMBER(SEARCH($B$14,BF35)),MAX($BE$8:BE34)+1,0) -> 27 | BF35: Split leap / jump (120° ) | BI35: =IFERROR(VLOOKUP(ROWS($BF$9:BF35),$BE$9:$BF$163,2,0),"") -> Split leap / jump (120° ) | BM35: =IF(ISNUMBER(SEARCH($B$15,BN35)),MAX($BM$8:BM34)+1,0) -> 27 | BN35: Split leap / jump (120° ) | BQ35: =IFERROR(VLOOKUP(ROWS($BN$9:BN35),$BM$9:$BN$163,2,0),"") -> Split leap / jump (120° ) | BU35: =IF(ISNUMBER(SEARCH($B$16,BV35)),MAX($BU$8:BU34)+1,0) -> 27 | BV35: Split leap / jump (120° ) | BY35: =IFERROR(VLOOKUP(ROWS($BV$9:BV35),$BU$9:$BV$163,2,0),"") -> Split leap / jump (120° ) | CC35: =IF(ISNUMBER(SEARCH($B$17,CD35)),MAX($CC$8:CC34)+1,0) -> 27 | CD35: Split leap / jump (120° ) | CG35: =IFERROR(VLOOKUP(ROWS($CD$9:CD35),$CC$9:$CD$163,2,0),"") -> Split leap / jump (120° ) | CK35: =IF(ISNUMBER(SEARCH($B$18,CL35)),MAX($CK$8:CK34)+1,0) -> 27 | CL35: Split leap / jump (120° ) | CO35: =IFERROR(VLOOKUP(ROWS($CL$9:CL35),$CK$9:$CL$163,2,0),"") -> Split leap / jump (120° )
D36: =IF(COUNTIF(D33:G33,"Yes")=4,"Yes","No") -> No | I36: =IF(COUNTIF(I33:L33,"Yes")=4,"Yes","No") -> No | M36: GIRLS | Q36: =IF(ISNUMBER(SEARCH($B$9,R36)),MAX($Q$8:Q35)+1,0) -> 28 | R36: Stag leap or jump | U36: =IFERROR(VLOOKUP(ROWS($R$9:R36),$Q$9:$R$163,2,0),"") -> Stag leap or jump | Y36: =IF(ISNUMBER(SEARCH($B$10,Z36)),MAX($Y$8:Y35)+1,0) -> 28 | Z36: Stag leap or jump | AC36: =IFERROR(VLOOKUP(ROWS($Z$9:Z36),$Y$9:$Z$163,2,0),"") -> Stag leap or jump | AG36: =IF(ISNUMBER(SEARCH($B$11,AH36)),MAX($AG$8:AG35)+1,0) -> 28 | AH36: Stag leap or jump | AK36: =IFERROR(VLOOKUP(ROWS($AH$9:AH36),$AG$9:$AH$163,2,0),"") -> Stag leap or jump | AO36: =IF(ISNUMBER(SEARCH($B$12,AP36)),MAX($AO$8:AO35)+1,0) -> 28 | AP36: Stag leap or jump | AS36: =IFERROR(VLOOKUP(ROWS($AP$9:AP36),$AO$9:$AP$163,2,0),"") -> Stag leap or jump | AW36: =IF(ISNUMBER(SEARCH($B$13,AX36)),MAX($AW$8:AW35)+1,0) -> 28 | AX36: Stag leap or jump | BA36: =IFERROR(VLOOKUP(ROWS($AX$9:AX36),$AW$9:$AX$163,2,0),"") -> Stag leap or jump | BE36: =IF(ISNUMBER(SEARCH($B$14,BF36)),MAX($BE$8:BE35)+1,0) -> 28 | BF36: Stag leap or jump | BI36: =IFERROR(VLOOKUP(ROWS($BF$9:BF36),$BE$9:$BF$163,2,0),"") -> Stag leap or jump | BM36: =IF(ISNUMBER(SEARCH($B$15,BN36)),MAX($BM$8:BM35)+1,0) -> 28 | BN36: Stag leap or jump | BQ36: =IFERROR(VLOOKUP(ROWS($BN$9:BN36),$BM$9:$BN$163,2,0),"") -> Stag leap or jump | BU36: =IF(ISNUMBER(SEARCH($B$16,BV36)),MAX($BU$8:BU35)+1,0) -> 28 | BV36: Stag leap or jump | BY36: =IFERROR(VLOOKUP(ROWS($BV$9:BV36),$BU$9:$BV$163,2,0),"") -> Stag leap or jump | CC36: =IF(ISNUMBER(SEARCH($B$17,CD36)),MAX($CC$8:CC35)+1,0) -> 28 | CD36: Stag leap or jump | CG36: =IFERROR(VLOOKUP(ROWS($CD$9:CD36),$CC$9:$CD$163,2,0),"") -> Stag leap or jump | CK36: =IF(ISNUMBER(SEARCH($B$18,CL36)),MAX($CK$8:CK35)+1,0) -> 28 | CL36: Stag leap or jump | CO36: =IFERROR(VLOOKUP(ROWS($CL$9:CL36),$CK$9:$CL$163,2,0),"") -> Stag leap or jump
G37: E | M37: Leap / hop series or passage | N37: E Skill Grp 2,3,4 | Q37: =IF(ISNUMBER(SEARCH($B$9,R37)),MAX($Q$8:Q36)+1,0) -> 29 | R37: Cat leap | U37: =IFERROR(VLOOKUP(ROWS($R$9:R37),$Q$9:$R$163,2,0),"") -> Cat leap | Y37: =IF(ISNUMBER(SEARCH($B$10,Z37)),MAX($Y$8:Y36)+1,0) -> 29 | Z37: Cat leap | AC37: =IFERROR(VLOOKUP(ROWS($Z$9:Z37),$Y$9:$Z$163,2,0),"") -> Cat leap | AG37: =IF(ISNUMBER(SEARCH($B$11,AH37)),MAX($AG$8:AG36)+1,0) -> 29 | AH37: Cat leap | AK37: =IFERROR(VLOOKUP(ROWS($AH$9:AH37),$AG$9:$AH$163,2,0),"") -> Cat leap | AO37: =IF(ISNUMBER(SEARCH($B$12,AP37)),MAX($AO$8:AO36)+1,0) -> 29 | AP37: Cat leap | AS37: =IFERROR(VLOOKUP(ROWS($AP$9:AP37),$AO$9:$AP$163,2,0),"") -> Cat leap | AW37: =IF(ISNUMBER(SEARCH($B$13,AX37)),MAX($AW$8:AW36)+1,0) -> 29 | AX37: Cat leap | BA37: =IFERROR(VLOOKUP(ROWS($AX$9:AX37),$AW$9:$AX$163,2,0),"") -> Cat leap | BE37: =IF(ISNUMBER(SEARCH($B$14,BF37)),MAX($BE$8:BE36)+1,0) -> 29 | BF37: Cat leap | BI37: =IFERROR(VLOOKUP(ROWS($BF$9:BF37),$BE$9:$BF$163,2,0),"") -> Cat leap | BM37: =IF(ISNUMBER(SEARCH($B$15,BN37)),MAX($BM$8:BM36)+1,0) -> 29 | BN37: Cat leap | BQ37: =IFERROR(VLOOKUP(ROWS($BN$9:BN37),$BM$9:$BN$163,2,0),"") -> Cat leap | BU37: =IF(ISNUMBER(SEARCH($B$16,BV37)),MAX($BU$8:BU36)+1,0) -> 29 | BV37: Cat leap | BY37: =IFERROR(VLOOKUP(ROWS($BV$9:BV37),$BU$9:$BV$163,2,0),"") -> Cat leap | CC37: =IF(ISNUMBER(SEARCH($B$17,CD37)),MAX($CC$8:CC36)+1,0) -> 29 | CD37: Cat leap | CG37: =IFERROR(VLOOKUP(ROWS($CD$9:CD37),$CC$9:$CD$163,2,0),"") -> Cat leap | CK37: =IF(ISNUMBER(SEARCH($B$18,CL37)),MAX($CK$8:CK36)+1,0) -> 29 | CL37: Cat leap | CO37: =IFERROR(VLOOKUP(ROWS($CL$9:CL37),$CK$9:$CL$163,2,0),"") -> Cat leap
G38: =IF(H9="X",IF(N9=$N$32,0,IF(N9=$N$33,0,1)),0) -> 0 | M38: Mix series | N38: =IF(COUNTIF(CZ9:CZ18,"Yes")=10,IF(COUNTIF(CX9:CX18,"Yes")=1,"Yes","No"),"No") -> No | Q38: =IF(ISNUMBER(SEARCH($B$9,R38)),MAX($Q$8:Q37)+1,0) -> 30 | R38: Jump full turn | U38: =IFERROR(VLOOKUP(ROWS($R$9:R38),$Q$9:$R$163,2,0),"") -> Jump full turn | Y38: =IF(ISNUMBER(SEARCH($B$10,Z38)),MAX($Y$8:Y37)+1,0) -> 30 | Z38: Jump full turn | AC38: =IFERROR(VLOOKUP(ROWS($Z$9:Z38),$Y$9:$Z$163,2,0),"") -> Jump full turn | AG38: =IF(ISNUMBER(SEARCH($B$11,AH38)),MAX($AG$8:AG37)+1,0) -> 30 | AH38: Jump full turn | AK38: =IFERROR(VLOOKUP(ROWS($AH$9:AH38),$AG$9:$AH$163,2,0),"") -> Jump full turn | AO38: =IF(ISNUMBER(SEARCH($B$12,AP38)),MAX($AO$8:AO37)+1,0) -> 30 | AP38: Jump full turn | AS38: =IFERROR(VLOOKUP(ROWS($AP$9:AP38),$AO$9:$AP$163,2,0),"") -> Jump full turn | AW38: =IF(ISNUMBER(SEARCH($B$13,AX38)),MAX($AW$8:AW37)+1,0) -> 30 | AX38: Jump full turn | BA38: =IFERROR(VLOOKUP(ROWS($AX$9:AX38),$AW$9:$AX$163,2,0),"") -> Jump full turn | BE38: =IF(ISNUMBER(SEARCH($B$14,BF38)),MAX($BE$8:BE37)+1,0) -> 30 | BF38: Jump full turn | BI38: =IFERROR(VLOOKUP(ROWS($BF$9:BF38),$BE$9:$BF$163,2,0),"") -> Jump full turn | BM38: =IF(ISNUMBER(SEARCH($B$15,BN38)),MAX($BM$8:BM37)+1,0) -> 30 | BN38: Jump full turn | BQ38: =IFERROR(VLOOKUP(ROWS($BN$9:BN38),$BM$9:$BN$163,2,0),"") -> Jump full turn | BU38: =IF(ISNUMBER(SEARCH($B$16,BV38)),MAX($BU$8:BU37)+1,0) -> 30 | BV38: Jump full turn | BY38: =IFERROR(VLOOKUP(ROWS($BV$9:BV38),$BU$9:$BV$163,2,0),"") -> Jump full turn | CC38: =IF(ISNUMBER(SEARCH($B$17,CD38)),MAX($CC$8:CC37)+1,0) -> 30 | CD38: Jump full turn | CG38: =IFERROR(VLOOKUP(ROWS($CD$9:CD38),$CC$9:$CD$163,2,0),"") -> Jump full turn | CK38: =IF(ISNUMBER(SEARCH($B$18,CL38)),MAX($CK$8:CK37)+1,0) -> 30 | CL38: Jump full turn | CO38: =IFERROR(VLOOKUP(ROWS($CL$9:CL38),$CK$9:$CL$163,2,0),"") -> Jump full turn
G39: =IF(H10="X",IF(N10=$N$32,0,IF(N10=$N$33,0,1)),0) -> 0 | M39: Acrobatic series of 2 FS | Q39: =IF(ISNUMBER(SEARCH($B$9,R39)),MAX($Q$8:Q38)+1,0) -> 31 | R39: Scissor jump | U39: =IFERROR(VLOOKUP(ROWS($R$9:R39),$Q$9:$R$163,2,0),"") -> Scissor jump | Y39: =IF(ISNUMBER(SEARCH($B$10,Z39)),MAX($Y$8:Y38)+1,0) -> 31 | Z39: Scissor jump | AC39: =IFERROR(VLOOKUP(ROWS($Z$9:Z39),$Y$9:$Z$163,2,0),"") -> Scissor jump | AG39: =IF(ISNUMBER(SEARCH($B$11,AH39)),MAX($AG$8:AG38)+1,0) -> 31 | AH39: Scissor jump | AK39: =IFERROR(VLOOKUP(ROWS($AH$9:AH39),$AG$9:$AH$163,2,0),"") -> Scissor jump | AO39: =IF(ISNUMBER(SEARCH($B$12,AP39)),MAX($AO$8:AO38)+1,0) -> 31 | AP39: Scissor jump | AS39: =IFERROR(VLOOKUP(ROWS($AP$9:AP39),$AO$9:$AP$163,2,0),"") -> Scissor jump | AW39: =IF(ISNUMBER(SEARCH($B$13,AX39)),MAX($AW$8:AW38)+1,0) -> 31 | AX39: Scissor jump | BA39: =IFERROR(VLOOKUP(ROWS($AX$9:AX39),$AW$9:$AX$163,2,0),"") -> Scissor jump | BE39: =IF(ISNUMBER(SEARCH($B$14,BF39)),MAX($BE$8:BE38)+1,0) -> 31 | BF39: Scissor jump | BI39: =IFERROR(VLOOKUP(ROWS($BF$9:BF39),$BE$9:$BF$163,2,0),"") -> Scissor jump | BM39: =IF(ISNUMBER(SEARCH($B$15,BN39)),MAX($BM$8:BM38)+1,0) -> 31 | BN39: Scissor jump | BQ39: =IFERROR(VLOOKUP(ROWS($BN$9:BN39),$BM$9:$BN$163,2,0),"") -> Scissor jump | BU39: =IF(ISNUMBER(SEARCH($B$16,BV39)),MAX($BU$8:BU38)+1,0) -> 31 | BV39: Scissor jump | BY39: =IFERROR(VLOOKUP(ROWS($BV$9:BV39),$BU$9:$BV$163,2,0),"") -> Scissor jump | CC39: =IF(ISNUMBER(SEARCH($B$17,CD39)),MAX($CC$8:CC38)+1,0) -> 31 | CD39: Scissor jump | CG39: =IFERROR(VLOOKUP(ROWS($CD$9:CD39),$CC$9:$CD$163,2,0),"") -> Scissor jump | CK39: =IF(ISNUMBER(SEARCH($B$18,CL39)),MAX($CK$8:CK38)+1,0) -> 31 | CL39: Scissor jump | CO39: =IFERROR(VLOOKUP(ROWS($CL$9:CL39),$CK$9:$CL$163,2,0),"") -> Scissor jump
G40: 0 | N40: Criteria met before bonus | Q40: =IF(ISNUMBER(SEARCH($B$9,R40)),MAX($Q$8:Q39)+1,0) -> 32 | R40: W jump | U40: =IFERROR(VLOOKUP(ROWS($R$9:R40),$Q$9:$R$163,2,0),"") -> W jump | Y40: =IF(ISNUMBER(SEARCH($B$10,Z40)),MAX($Y$8:Y39)+1,0) -> 32 | Z40: W jump | AC40: =IFERROR(VLOOKUP(ROWS($Z$9:Z40),$Y$9:$Z$163,2,0),"") -> W jump | AG40: =IF(ISNUMBER(SEARCH($B$11,AH40)),MAX($AG$8:AG39)+1,0) -> 32 | AH40: W jump | AK40: =IFERROR(VLOOKUP(ROWS($AH$9:AH40),$AG$9:$AH$163,2,0),"") -> W jump | AO40: =IF(ISNUMBER(SEARCH($B$12,AP40)),MAX($AO$8:AO39)+1,0) -> 32 | AP40: W jump | AS40: =IFERROR(VLOOKUP(ROWS($AP$9:AP40),$AO$9:$AP$163,2,0),"") -> W jump | AW40: =IF(ISNUMBER(SEARCH($B$13,AX40)),MAX($AW$8:AW39)+1,0) -> 32 | AX40: W jump | BA40: =IFERROR(VLOOKUP(ROWS($AX$9:AX40),$AW$9:$AX$163,2,0),"") -> W jump | BE40: =IF(ISNUMBER(SEARCH($B$14,BF40)),MAX($BE$8:BE39)+1,0) -> 32 | BF40: W jump | BI40: =IFERROR(VLOOKUP(ROWS($BF$9:BF40),$BE$9:$BF$163,2,0),"") -> W jump | BM40: =IF(ISNUMBER(SEARCH($B$15,BN40)),MAX($BM$8:BM39)+1,0) -> 32 | BN40: W jump | BQ40: =IFERROR(VLOOKUP(ROWS($BN$9:BN40),$BM$9:$BN$163,2,0),"") -> W jump | BU40: =IF(ISNUMBER(SEARCH($B$16,BV40)),MAX($BU$8:BU39)+1,0) -> 32 | BV40: W jump | BY40: =IFERROR(VLOOKUP(ROWS($BV$9:BV40),$BU$9:$BV$163,2,0),"") -> W jump | CC40: =IF(ISNUMBER(SEARCH($B$17,CD40)),MAX($CC$8:CC39)+1,0) -> 32 | CD40: W jump | CG40: =IFERROR(VLOOKUP(ROWS($CD$9:CD40),$CC$9:$CD$163,2,0),"") -> W jump | CK40: =IF(ISNUMBER(SEARCH($B$18,CL40)),MAX($CK$8:CK39)+1,0) -> 32 | CL40: W jump | CO40: =IFERROR(VLOOKUP(ROWS($CL$9:CL40),$CK$9:$CL$163,2,0),"") -> W jump
G41: 0 | N41: =IF(D36="Yes",IF(M63="Yes","Yes","No")) -> FALSE | Q41: =IF(ISNUMBER(SEARCH($B$9,R41)),MAX($Q$8:Q40)+1,0) -> 33 | R41: Arabesque | U41: =IFERROR(VLOOKUP(ROWS($R$9:R41),$Q$9:$R$163,2,0),"") -> Arabesque | Y41: =IF(ISNUMBER(SEARCH($B$10,Z41)),MAX($Y$8:Y40)+1,0) -> 33 | Z41: Arabesque | AC41: =IFERROR(VLOOKUP(ROWS($Z$9:Z41),$Y$9:$Z$163,2,0),"") -> Arabesque | AG41: =IF(ISNUMBER(SEARCH($B$11,AH41)),MAX($AG$8:AG40)+1,0) -> 33 | AH41: Arabesque | AK41: =IFERROR(VLOOKUP(ROWS($AH$9:AH41),$AG$9:$AH$163,2,0),"") -> Arabesque | AO41: =IF(ISNUMBER(SEARCH($B$12,AP41)),MAX($AO$8:AO40)+1,0) -> 33 | AP41: Arabesque | AS41: =IFERROR(VLOOKUP(ROWS($AP$9:AP41),$AO$9:$AP$163,2,0),"") -> Arabesque | AW41: =IF(ISNUMBER(SEARCH($B$13,AX41)),MAX($AW$8:AW40)+1,0) -> 33 | AX41: Arabesque | BA41: =IFERROR(VLOOKUP(ROWS($AX$9:AX41),$AW$9:$AX$163,2,0),"") -> Arabesque | BE41: =IF(ISNUMBER(SEARCH($B$14,BF41)),MAX($BE$8:BE40)+1,0) -> 33 | BF41: Arabesque | BI41: =IFERROR(VLOOKUP(ROWS($BF$9:BF41),$BE$9:$BF$163,2,0),"") -> Arabesque | BM41: =IF(ISNUMBER(SEARCH($B$15,BN41)),MAX($BM$8:BM40)+1,0) -> 33 | BN41: Arabesque | BQ41: =IFERROR(VLOOKUP(ROWS($BN$9:BN41),$BM$9:$BN$163,2,0),"") -> Arabesque | BU41: =IF(ISNUMBER(SEARCH($B$16,BV41)),MAX($BU$8:BU40)+1,0) -> 33 | BV41: Arabesque | BY41: =IFERROR(VLOOKUP(ROWS($BV$9:BV41),$BU$9:$BV$163,2,0),"") -> Arabesque | CC41: =IF(ISNUMBER(SEARCH($B$17,CD41)),MAX($CC$8:CC40)+1,0) -> 33 | CD41: Arabesque | CG41: =IFERROR(VLOOKUP(ROWS($CD$9:CD41),$CC$9:$CD$163,2,0),"") -> Arabesque | CK41: =IF(ISNUMBER(SEARCH($B$18,CL41)),MAX($CK$8:CK40)+1,0) -> 33 | CL41: Arabesque | CO41: =IFERROR(VLOOKUP(ROWS($CL$9:CL41),$CK$9:$CL$163,2,0),"") -> Arabesque
G42: 0 | M42: BOYS | Q42: =IF(ISNUMBER(SEARCH($B$9,R42)),MAX($Q$8:Q41)+1,0) -> 34 | R42: Japana (flat back, chest to floor) | U42: =IFERROR(VLOOKUP(ROWS($R$9:R42),$Q$9:$R$163,2,0),"") -> Japana (flat back, chest to floor) | Y42: =IF(ISNUMBER(SEARCH($B$10,Z42)),MAX($Y$8:Y41)+1,0) -> 34 | Z42: Japana (flat back, chest to floor) | AC42: =IFERROR(VLOOKUP(ROWS($Z$9:Z42),$Y$9:$Z$163,2,0),"") -> Japana (flat back, chest to floor) | AG42: =IF(ISNUMBER(SEARCH($B$11,AH42)),MAX($AG$8:AG41)+1,0) -> 34 | AH42: Japana (flat back, chest to floor) | AK42: =IFERROR(VLOOKUP(ROWS($AH$9:AH42),$AG$9:$AH$163,2,0),"") -> Japana (flat back, chest to floor) | AO42: =IF(ISNUMBER(SEARCH($B$12,AP42)),MAX($AO$8:AO41)+1,0) -> 34 | AP42: Japana (flat back, chest to floor) | AS42: =IFERROR(VLOOKUP(ROWS($AP$9:AP42),$AO$9:$AP$163,2,0),"") -> Japana (flat back, chest to floor) | AW42: =IF(ISNUMBER(SEARCH($B$13,AX42)),MAX($AW$8:AW41)+1,0) -> 34 | AX42: Japana (flat back, chest to floor) | BA42: =IFERROR(VLOOKUP(ROWS($AX$9:AX42),$AW$9:$AX$163,2,0),"") -> Japana (flat back, chest to floor) | BE42: =IF(ISNUMBER(SEARCH($B$14,BF42)),MAX($BE$8:BE41)+1,0) -> 34 | BF42: Japana (flat back, chest to floor) | BI42: =IFERROR(VLOOKUP(ROWS($BF$9:BF42),$BE$9:$BF$163,2,0),"") -> Japana (flat back, chest to floor) | BM42: =IF(ISNUMBER(SEARCH($B$15,BN42)),MAX($BM$8:BM41)+1,0) -> 34 | BN42: Japana (flat back, chest to floor) | BQ42: =IFERROR(VLOOKUP(ROWS($BN$9:BN42),$BM$9:$BN$163,2,0),"") -> Japana (flat back, chest to floor) | BU42: =IF(ISNUMBER(SEARCH($B$16,BV42)),MAX($BU$8:BU41)+1,0) -> 34 | BV42: Japana (flat back, chest to floor) | BY42: =IFERROR(VLOOKUP(ROWS($BV$9:BV42),$BU$9:$BV$163,2,0),"") -> Japana (flat back, chest to floor) | CC42: =IF(ISNUMBER(SEARCH($B$17,CD42)),MAX($CC$8:CC41)+1,0) -> 34 | CD42: Japana (flat back, chest to floor) | CG42: =IFERROR(VLOOKUP(ROWS($CD$9:CD42),$CC$9:$CD$163,2,0),"") -> Japana (flat back, chest to floor) | CK42: =IF(ISNUMBER(SEARCH($B$18,CL42)),MAX($CK$8:CK41)+1,0) -> 34 | CL42: Japana (flat back, chest to floor) | CO42: =IFERROR(VLOOKUP(ROWS($CL$9:CL42),$CK$9:$CL$163,2,0),"") -> Japana (flat back, chest to floor)
G43: 0 | M43: Group 2 skill | N43: Achieved | Q43: =IF(ISNUMBER(SEARCH($B$9,R43)),MAX($Q$8:Q42)+1,0) -> 35 | R43: Fall to prone push to Front Support | U43: =IFERROR(VLOOKUP(ROWS($R$9:R43),$Q$9:$R$163,2,0),"") -> Fall to prone push to Front Support | Y43: =IF(ISNUMBER(SEARCH($B$10,Z43)),MAX($Y$8:Y42)+1,0) -> 35 | Z43: Fall to prone push to Front Support | AC43: =IFERROR(VLOOKUP(ROWS($Z$9:Z43),$Y$9:$Z$163,2,0),"") -> Fall to prone push to Front Support | AG43: =IF(ISNUMBER(SEARCH($B$11,AH43)),MAX($AG$8:AG42)+1,0) -> 35 | AH43: Fall to prone push to Front Support | AK43: =IFERROR(VLOOKUP(ROWS($AH$9:AH43),$AG$9:$AH$163,2,0),"") -> Fall to prone push to Front Support | AO43: =IF(ISNUMBER(SEARCH($B$12,AP43)),MAX($AO$8:AO42)+1,0) -> 35 | AP43: Fall to prone push to Front Support | AS43: =IFERROR(VLOOKUP(ROWS($AP$9:AP43),$AO$9:$AP$163,2,0),"") -> Fall to prone push to Front Support | AW43: =IF(ISNUMBER(SEARCH($B$13,AX43)),MAX($AW$8:AW42)+1,0) -> 35 | AX43: Fall to prone push to Front Support | BA43: =IFERROR(VLOOKUP(ROWS($AX$9:AX43),$AW$9:$AX$163,2,0),"") -> Fall to prone push to Front Support | BE43: =IF(ISNUMBER(SEARCH($B$14,BF43)),MAX($BE$8:BE42)+1,0) -> 35 | BF43: Fall to prone push to Front Support | BI43: =IFERROR(VLOOKUP(ROWS($BF$9:BF43),$BE$9:$BF$163,2,0),"") -> Fall to prone push to Front Support | BM43: =IF(ISNUMBER(SEARCH($B$15,BN43)),MAX($BM$8:BM42)+1,0) -> 35 | BN43: Fall to prone push to Front Support | BQ43: =IFERROR(VLOOKUP(ROWS($BN$9:BN43),$BM$9:$BN$163,2,0),"") -> Fall to prone push to Front Support | BU43: =IF(ISNUMBER(SEARCH($B$16,BV43)),MAX($BU$8:BU42)+1,0) -> 35 | BV43: Fall to prone push to Front Support | BY43: =IFERROR(VLOOKUP(ROWS($BV$9:BV43),$BU$9:$BV$163,2,0),"") -> Fall to prone push to Front Support | CC43: =IF(ISNUMBER(SEARCH($B$17,CD43)),MAX($CC$8:CC42)+1,0) -> 35 | CD43: Fall to prone push to Front Support | CG43: =IFERROR(VLOOKUP(ROWS($CD$9:CD43),$CC$9:$CD$163,2,0),"") -> Fall to prone push to Front Support | CK43: =IF(ISNUMBER(SEARCH($B$18,CL43)),MAX($CK$8:CK42)+1,0) -> 35 | CL43: Fall to prone push to Front Support | CO43: =IFERROR(VLOOKUP(ROWS($CL$9:CL43),$CK$9:$CL$163,2,0),"") -> Fall to prone push to Front Support
G44: 0 | M44: Group 2 skill - Held | N44: =IF(N41="Yes",IF(N35="Yes",IF(N38="Yes","Yes","No"),"No"),"No") -> No | Q44: =IF(ISNUMBER(SEARCH($B$9,R44)),MAX($Q$8:Q43)+1,0) -> 36 | R44: Swedish Fall | U44: =IFERROR(VLOOKUP(ROWS($R$9:R44),$Q$9:$R$163,2,0),"") -> Swedish Fall | Y44: =IF(ISNUMBER(SEARCH($B$10,Z44)),MAX($Y$8:Y43)+1,0) -> 36 | Z44: Swedish Fall | AC44: =IFERROR(VLOOKUP(ROWS($Z$9:Z44),$Y$9:$Z$163,2,0),"") -> Swedish Fall | AG44: =IF(ISNUMBER(SEARCH($B$11,AH44)),MAX($AG$8:AG43)+1,0) -> 36 | AH44: Swedish Fall | AK44: =IFERROR(VLOOKUP(ROWS($AH$9:AH44),$AG$9:$AH$163,2,0),"") -> Swedish Fall | AO44: =IF(ISNUMBER(SEARCH($B$12,AP44)),MAX($AO$8:AO43)+1,0) -> 36 | AP44: Swedish Fall | AS44: =IFERROR(VLOOKUP(ROWS($AP$9:AP44),$AO$9:$AP$163,2,0),"") -> Swedish Fall | AW44: =IF(ISNUMBER(SEARCH($B$13,AX44)),MAX($AW$8:AW43)+1,0) -> 36 | AX44: Swedish Fall | BA44: =IFERROR(VLOOKUP(ROWS($AX$9:AX44),$AW$9:$AX$163,2,0),"") -> Swedish Fall | BE44: =IF(ISNUMBER(SEARCH($B$14,BF44)),MAX($BE$8:BE43)+1,0) -> 36 | BF44: Swedish Fall | BI44: =IFERROR(VLOOKUP(ROWS($BF$9:BF44),$BE$9:$BF$163,2,0),"") -> Swedish Fall | BM44: =IF(ISNUMBER(SEARCH($B$15,BN44)),MAX($BM$8:BM43)+1,0) -> 36 | BN44: Swedish Fall | BQ44: =IFERROR(VLOOKUP(ROWS($BN$9:BN44),$BM$9:$BN$163,2,0),"") -> Swedish Fall | BU44: =IF(ISNUMBER(SEARCH($B$16,BV44)),MAX($BU$8:BU43)+1,0) -> 36 | BV44: Swedish Fall | BY44: =IFERROR(VLOOKUP(ROWS($BV$9:BV44),$BU$9:$BV$163,2,0),"") -> Swedish Fall | CC44: =IF(ISNUMBER(SEARCH($B$17,CD44)),MAX($CC$8:CC43)+1,0) -> 36 | CD44: Swedish Fall | CG44: =IFERROR(VLOOKUP(ROWS($CD$9:CD44),$CC$9:$CD$163,2,0),"") -> Swedish Fall | CK44: =IF(ISNUMBER(SEARCH($B$18,CL44)),MAX($CK$8:CK43)+1,0) -> 36 | CL44: Swedish Fall | CO44: =IFERROR(VLOOKUP(ROWS($CL$9:CL44),$CK$9:$CL$163,2,0),"") -> Swedish Fall
G45: 0 | M45: Mix series | Q45: =IF(ISNUMBER(SEARCH($B$9,R45)),MAX($Q$8:Q44)+1,0) -> 37 | R45: Piked V sit (no supp.) | U45: =IFERROR(VLOOKUP(ROWS($R$9:R45),$Q$9:$R$163,2,0),"") -> Piked V sit (no supp.) | Y45: =IF(ISNUMBER(SEARCH($B$10,Z45)),MAX($Y$8:Y44)+1,0) -> 37 | Z45: Piked V sit (no supp.) | AC45: =IFERROR(VLOOKUP(ROWS($Z$9:Z45),$Y$9:$Z$163,2,0),"") -> Piked V sit (no supp.) | AG45: =IF(ISNUMBER(SEARCH($B$11,AH45)),MAX($AG$8:AG44)+1,0) -> 37 | AH45: Piked V sit (no supp.) | AK45: =IFERROR(VLOOKUP(ROWS($AH$9:AH45),$AG$9:$AH$163,2,0),"") -> Piked V sit (no supp.) | AO45: =IF(ISNUMBER(SEARCH($B$12,AP45)),MAX($AO$8:AO44)+1,0) -> 37 | AP45: Piked V sit (no supp.) | AS45: =IFERROR(VLOOKUP(ROWS($AP$9:AP45),$AO$9:$AP$163,2,0),"") -> Piked V sit (no supp.) | AW45: =IF(ISNUMBER(SEARCH($B$13,AX45)),MAX($AW$8:AW44)+1,0) -> 37 | AX45: Piked V sit (no supp.) | BA45: =IFERROR(VLOOKUP(ROWS($AX$9:AX45),$AW$9:$AX$163,2,0),"") -> Piked V sit (no supp.) | BE45: =IF(ISNUMBER(SEARCH($B$14,BF45)),MAX($BE$8:BE44)+1,0) -> 37 | BF45: Piked V sit (no supp.) | BI45: =IFERROR(VLOOKUP(ROWS($BF$9:BF45),$BE$9:$BF$163,2,0),"") -> Piked V sit (no supp.) | BM45: =IF(ISNUMBER(SEARCH($B$15,BN45)),MAX($BM$8:BM44)+1,0) -> 37 | BN45: Piked V sit (no supp.) | BQ45: =IFERROR(VLOOKUP(ROWS($BN$9:BN45),$BM$9:$BN$163,2,0),"") -> Piked V sit (no supp.) | BU45: =IF(ISNUMBER(SEARCH($B$16,BV45)),MAX($BU$8:BU44)+1,0) -> 37 | BV45: Piked V sit (no supp.) | BY45: =IFERROR(VLOOKUP(ROWS($BV$9:BV45),$BU$9:$BV$163,2,0),"") -> Piked V sit (no supp.) | CC45: =IF(ISNUMBER(SEARCH($B$17,CD45)),MAX($CC$8:CC44)+1,0) -> 37 | CD45: Piked V sit (no supp.) | CG45: =IFERROR(VLOOKUP(ROWS($CD$9:CD45),$CC$9:$CD$163,2,0),"") -> Piked V sit (no supp.) | CK45: =IF(ISNUMBER(SEARCH($B$18,CL45)),MAX($CK$8:CK44)+1,0) -> 37 | CL45: Piked V sit (no supp.) | CO45: =IFERROR(VLOOKUP(ROWS($CL$9:CL45),$CK$9:$CL$163,2,0),"") -> Piked V sit (no supp.)
G46: 0 | M46: Acrobatic series of 2 FS | Q46: =IF(ISNUMBER(SEARCH($B$9,R46)),MAX($Q$8:Q45)+1,0) -> 38 | R46: 1/2 lever shown (straight or straddled) | U46: =IFERROR(VLOOKUP(ROWS($R$9:R46),$Q$9:$R$163,2,0),"") -> 1/2 lever shown (straight or straddled) | Y46: =IF(ISNUMBER(SEARCH($B$10,Z46)),MAX($Y$8:Y45)+1,0) -> 38 | Z46: 1/2 lever shown (straight or straddled) | AC46: =IFERROR(VLOOKUP(ROWS($Z$9:Z46),$Y$9:$Z$163,2,0),"") -> 1/2 lever shown (straight or straddled) | AG46: =IF(ISNUMBER(SEARCH($B$11,AH46)),MAX($AG$8:AG45)+1,0) -> 38 | AH46: 1/2 lever shown (straight or straddled) | AK46: =IFERROR(VLOOKUP(ROWS($AH$9:AH46),$AG$9:$AH$163,2,0),"") -> 1/2 lever shown (straight or straddled) | AO46: =IF(ISNUMBER(SEARCH($B$12,AP46)),MAX($AO$8:AO45)+1,0) -> 38 | AP46: 1/2 lever shown (straight or straddled) | AS46: =IFERROR(VLOOKUP(ROWS($AP$9:AP46),$AO$9:$AP$163,2,0),"") -> 1/2 lever shown (straight or straddled) | AW46: =IF(ISNUMBER(SEARCH($B$13,AX46)),MAX($AW$8:AW45)+1,0) -> 38 | AX46: 1/2 lever shown (straight or straddled) | BA46: =IFERROR(VLOOKUP(ROWS($AX$9:AX46),$AW$9:$AX$163,2,0),"") -> 1/2 lever shown (straight or straddled) | BE46: =IF(ISNUMBER(SEARCH($B$14,BF46)),MAX($BE$8:BE45)+1,0) -> 38 | BF46: 1/2 lever shown (straight or straddled) | BI46: =IFERROR(VLOOKUP(ROWS($BF$9:BF46),$BE$9:$BF$163,2,0),"") -> 1/2 lever shown (straight or straddled) | BM46: =IF(ISNUMBER(SEARCH($B$15,BN46)),MAX($BM$8:BM45)+1,0) -> 38 | BN46: 1/2 lever shown (straight or straddled) | BQ46: =IFERROR(VLOOKUP(ROWS($BN$9:BN46),$BM$9:$BN$163,2,0),"") -> 1/2 lever shown (straight or straddled) | BU46: =IF(ISNUMBER(SEARCH($B$16,BV46)),MAX($BU$8:BU45)+1,0) -> 38 | BV46: 1/2 lever shown (straight or straddled) | BY46: =IFERROR(VLOOKUP(ROWS($BV$9:BV46),$BU$9:$BV$163,2,0),"") -> 1/2 lever shown (straight or straddled) | CC46: =IF(ISNUMBER(SEARCH($B$17,CD46)),MAX($CC$8:CC45)+1,0) -> 38 | CD46: 1/2 lever shown (straight or straddled) | CG46: =IFERROR(VLOOKUP(ROWS($CD$9:CD46),$CC$9:$CD$163,2,0),"") -> 1/2 lever shown (straight or straddled) | CK46: =IF(ISNUMBER(SEARCH($B$18,CL46)),MAX($CK$8:CK45)+1,0) -> 38 | CL46: 1/2 lever shown (straight or straddled) | CO46: =IFERROR(VLOOKUP(ROWS($CL$9:CL46),$CK$9:$CL$163,2,0),"") -> 1/2 lever shown (straight or straddled)
G47: 0 | Q47: =IF(ISNUMBER(SEARCH($B$9,R47)),MAX($Q$8:Q46)+1,0) -> 39 | R47: Shoulder stand (no support) | U47: =IFERROR(VLOOKUP(ROWS($R$9:R47),$Q$9:$R$163,2,0),"") -> Shoulder stand (no support) | Y47: =IF(ISNUMBER(SEARCH($B$10,Z47)),MAX($Y$8:Y46)+1,0) -> 39 | Z47: Shoulder stand (no support) | AC47: =IFERROR(VLOOKUP(ROWS($Z$9:Z47),$Y$9:$Z$163,2,0),"") -> Shoulder stand (no support) | AG47: =IF(ISNUMBER(SEARCH($B$11,AH47)),MAX($AG$8:AG46)+1,0) -> 39 | AH47: Shoulder stand (no support) | AK47: =IFERROR(VLOOKUP(ROWS($AH$9:AH47),$AG$9:$AH$163,2,0),"") -> Shoulder stand (no support) | AO47: =IF(ISNUMBER(SEARCH($B$12,AP47)),MAX($AO$8:AO46)+1,0) -> 39 | AP47: Shoulder stand (no support) | AS47: =IFERROR(VLOOKUP(ROWS($AP$9:AP47),$AO$9:$AP$163,2,0),"") -> Shoulder stand (no support) | AW47: =IF(ISNUMBER(SEARCH($B$13,AX47)),MAX($AW$8:AW46)+1,0) -> 39 | AX47: Shoulder stand (no support) | BA47: =IFERROR(VLOOKUP(ROWS($AX$9:AX47),$AW$9:$AX$163,2,0),"") -> Shoulder stand (no support) | BE47: =IF(ISNUMBER(SEARCH($B$14,BF47)),MAX($BE$8:BE46)+1,0) -> 39 | BF47: Shoulder stand (no support) | BI47: =IFERROR(VLOOKUP(ROWS($BF$9:BF47),$BE$9:$BF$163,2,0),"") -> Shoulder stand (no support) | BM47: =IF(ISNUMBER(SEARCH($B$15,BN47)),MAX($BM$8:BM46)+1,0) -> 39 | BN47: Shoulder stand (no support) | BQ47: =IFERROR(VLOOKUP(ROWS($BN$9:BN47),$BM$9:$BN$163,2,0),"") -> Shoulder stand (no support) | BU47: =IF(ISNUMBER(SEARCH($B$16,BV47)),MAX($BU$8:BU46)+1,0) -> 39 | BV47: Shoulder stand (no support) | BY47: =IFERROR(VLOOKUP(ROWS($BV$9:BV47),$BU$9:$BV$163,2,0),"") -> Shoulder stand (no support) | CC47: =IF(ISNUMBER(SEARCH($B$17,CD47)),MAX($CC$8:CC46)+1,0) -> 39 | CD47: Shoulder stand (no support) | CG47: =IFERROR(VLOOKUP(ROWS($CD$9:CD47),$CC$9:$CD$163,2,0),"") -> Shoulder stand (no support) | CK47: =IF(ISNUMBER(SEARCH($B$18,CL47)),MAX($CK$8:CK46)+1,0) -> 39 | CL47: Shoulder stand (no support) | CO47: =IFERROR(VLOOKUP(ROWS($CL$9:CL47),$CK$9:$CL$163,2,0),"") -> Shoulder stand (no support)
Q48: =IF(ISNUMBER(SEARCH($B$9,R48)),MAX($Q$8:Q47)+1,0) -> 40 | R48: F Roll to straddle stand | U48: =IFERROR(VLOOKUP(ROWS($R$9:R48),$Q$9:$R$163,2,0),"") -> F Roll to straddle stand | Y48: =IF(ISNUMBER(SEARCH($B$10,Z48)),MAX($Y$8:Y47)+1,0) -> 40 | Z48: F Roll to straddle stand | AC48: =IFERROR(VLOOKUP(ROWS($Z$9:Z48),$Y$9:$Z$163,2,0),"") -> F Roll to straddle stand | AG48: =IF(ISNUMBER(SEARCH($B$11,AH48)),MAX($AG$8:AG47)+1,0) -> 40 | AH48: F Roll to straddle stand | AK48: =IFERROR(VLOOKUP(ROWS($AH$9:AH48),$AG$9:$AH$163,2,0),"") -> F Roll to straddle stand | AO48: =IF(ISNUMBER(SEARCH($B$12,AP48)),MAX($AO$8:AO47)+1,0) -> 40 | AP48: F Roll to straddle stand | AS48: =IFERROR(VLOOKUP(ROWS($AP$9:AP48),$AO$9:$AP$163,2,0),"") -> F Roll to straddle stand | AW48: =IF(ISNUMBER(SEARCH($B$13,AX48)),MAX($AW$8:AW47)+1,0) -> 40 | AX48: F Roll to straddle stand | BA48: =IFERROR(VLOOKUP(ROWS($AX$9:AX48),$AW$9:$AX$163,2,0),"") -> F Roll to straddle stand | BE48: =IF(ISNUMBER(SEARCH($B$14,BF48)),MAX($BE$8:BE47)+1,0) -> 40 | BF48: F Roll to straddle stand | BI48: =IFERROR(VLOOKUP(ROWS($BF$9:BF48),$BE$9:$BF$163,2,0),"") -> F Roll to straddle stand | BM48: =IF(ISNUMBER(SEARCH($B$15,BN48)),MAX($BM$8:BM47)+1,0) -> 40 | BN48: F Roll to straddle stand | BQ48: =IFERROR(VLOOKUP(ROWS($BN$9:BN48),$BM$9:$BN$163,2,0),"") -> F Roll to straddle stand | BU48: =IF(ISNUMBER(SEARCH($B$16,BV48)),MAX($BU$8:BU47)+1,0) -> 40 | BV48: F Roll to straddle stand | BY48: =IFERROR(VLOOKUP(ROWS($BV$9:BV48),$BU$9:$BV$163,2,0),"") -> F Roll to straddle stand | CC48: =IF(ISNUMBER(SEARCH($B$17,CD48)),MAX($CC$8:CC47)+1,0) -> 40 | CD48: F Roll to straddle stand | CG48: =IFERROR(VLOOKUP(ROWS($CD$9:CD48),$CC$9:$CD$163,2,0),"") -> F Roll to straddle stand | CK48: =IF(ISNUMBER(SEARCH($B$18,CL48)),MAX($CK$8:CK47)+1,0) -> 40 | CL48: F Roll to straddle stand | CO48: =IFERROR(VLOOKUP(ROWS($CL$9:CL48),$CK$9:$CL$163,2,0),"") -> F Roll to straddle stand
M49: 1 | Q49: =IF(ISNUMBER(SEARCH($B$9,R49)),MAX($Q$8:Q48)+1,0) -> 41 | R49: Handstand F roll | U49: =IFERROR(VLOOKUP(ROWS($R$9:R49),$Q$9:$R$163,2,0),"") -> Handstand F roll | Y49: =IF(ISNUMBER(SEARCH($B$10,Z49)),MAX($Y$8:Y48)+1,0) -> 41 | Z49: Handstand F roll | AC49: =IFERROR(VLOOKUP(ROWS($Z$9:Z49),$Y$9:$Z$163,2,0),"") -> Handstand F roll | AG49: =IF(ISNUMBER(SEARCH($B$11,AH49)),MAX($AG$8:AG48)+1,0) -> 41 | AH49: Handstand F roll | AK49: =IFERROR(VLOOKUP(ROWS($AH$9:AH49),$AG$9:$AH$163,2,0),"") -> Handstand F roll | AO49: =IF(ISNUMBER(SEARCH($B$12,AP49)),MAX($AO$8:AO48)+1,0) -> 41 | AP49: Handstand F roll | AS49: =IFERROR(VLOOKUP(ROWS($AP$9:AP49),$AO$9:$AP$163,2,0),"") -> Handstand F roll | AW49: =IF(ISNUMBER(SEARCH($B$13,AX49)),MAX($AW$8:AW48)+1,0) -> 41 | AX49: Handstand F roll | BA49: =IFERROR(VLOOKUP(ROWS($AX$9:AX49),$AW$9:$AX$163,2,0),"") -> Handstand F roll | BE49: =IF(ISNUMBER(SEARCH($B$14,BF49)),MAX($BE$8:BE48)+1,0) -> 41 | BF49: Handstand F roll | BI49: =IFERROR(VLOOKUP(ROWS($BF$9:BF49),$BE$9:$BF$163,2,0),"") -> Handstand F roll | BM49: =IF(ISNUMBER(SEARCH($B$15,BN49)),MAX($BM$8:BM48)+1,0) -> 41 | BN49: Handstand F roll | BQ49: =IFERROR(VLOOKUP(ROWS($BN$9:BN49),$BM$9:$BN$163,2,0),"") -> Handstand F roll | BU49: =IF(ISNUMBER(SEARCH($B$16,BV49)),MAX($BU$8:BU48)+1,0) -> 41 | BV49: Handstand F roll | BY49: =IFERROR(VLOOKUP(ROWS($BV$9:BV49),$BU$9:$BV$163,2,0),"") -> Handstand F roll | CC49: =IF(ISNUMBER(SEARCH($B$17,CD49)),MAX($CC$8:CC48)+1,0) -> 41 | CD49: Handstand F roll | CG49: =IFERROR(VLOOKUP(ROWS($CD$9:CD49),$CC$9:$CD$163,2,0),"") -> Handstand F roll | CK49: =IF(ISNUMBER(SEARCH($B$18,CL49)),MAX($CK$8:CK48)+1,0) -> 41 | CL49: Handstand F roll | CO49: =IFERROR(VLOOKUP(ROWS($CL$9:CL49),$CK$9:$CL$163,2,0),"") -> Handstand F roll
M50: Leap/hop | Q50: =IF(ISNUMBER(SEARCH($B$9,R50)),MAX($Q$8:Q49)+1,0) -> 42 | R50: B Roll to pike stand | U50: =IFERROR(VLOOKUP(ROWS($R$9:R50),$Q$9:$R$163,2,0),"") -> B Roll to pike stand | Y50: =IF(ISNUMBER(SEARCH($B$10,Z50)),MAX($Y$8:Y49)+1,0) -> 42 | Z50: B Roll to pike stand | AC50: =IFERROR(VLOOKUP(ROWS($Z$9:Z50),$Y$9:$Z$163,2,0),"") -> B Roll to pike stand | AG50: =IF(ISNUMBER(SEARCH($B$11,AH50)),MAX($AG$8:AG49)+1,0) -> 42 | AH50: B Roll to pike stand | AK50: =IFERROR(VLOOKUP(ROWS($AH$9:AH50),$AG$9:$AH$163,2,0),"") -> B Roll to pike stand | AO50: =IF(ISNUMBER(SEARCH($B$12,AP50)),MAX($AO$8:AO49)+1,0) -> 42 | AP50: B Roll to pike stand | AS50: =IFERROR(VLOOKUP(ROWS($AP$9:AP50),$AO$9:$AP$163,2,0),"") -> B Roll to pike stand | AW50: =IF(ISNUMBER(SEARCH($B$13,AX50)),MAX($AW$8:AW49)+1,0) -> 42 | AX50: B Roll to pike stand | BA50: =IFERROR(VLOOKUP(ROWS($AX$9:AX50),$AW$9:$AX$163,2,0),"") -> B Roll to pike stand | BE50: =IF(ISNUMBER(SEARCH($B$14,BF50)),MAX($BE$8:BE49)+1,0) -> 42 | BF50: B Roll to pike stand | BI50: =IFERROR(VLOOKUP(ROWS($BF$9:BF50),$BE$9:$BF$163,2,0),"") -> B Roll to pike stand | BM50: =IF(ISNUMBER(SEARCH($B$15,BN50)),MAX($BM$8:BM49)+1,0) -> 42 | BN50: B Roll to pike stand | BQ50: =IFERROR(VLOOKUP(ROWS($BN$9:BN50),$BM$9:$BN$163,2,0),"") -> B Roll to pike stand | BU50: =IF(ISNUMBER(SEARCH($B$16,BV50)),MAX($BU$8:BU49)+1,0) -> 42 | BV50: B Roll to pike stand | BY50: =IFERROR(VLOOKUP(ROWS($BV$9:BV50),$BU$9:$BV$163,2,0),"") -> B Roll to pike stand | CC50: =IF(ISNUMBER(SEARCH($B$17,CD50)),MAX($CC$8:CC49)+1,0) -> 42 | CD50: B Roll to pike stand | CG50: =IFERROR(VLOOKUP(ROWS($CD$9:CD50),$CC$9:$CD$163,2,0),"") -> B Roll to pike stand | CK50: =IF(ISNUMBER(SEARCH($B$18,CL50)),MAX($CK$8:CK49)+1,0) -> 42 | CL50: B Roll to pike stand | CO50: =IFERROR(VLOOKUP(ROWS($CL$9:CL50),$CK$9:$CL$163,2,0),"") -> B Roll to pike stand
M51: =IF(D5="Male","Yes",IF(COUNTIF(CS9:CS18,"Yes")>=2,"Yes","No")) -> No | Q51: =IF(ISNUMBER(SEARCH($B$9,R51)),MAX($Q$8:Q50)+1,0) -> 43 | R51: Handstand ½ turn | U51: =IFERROR(VLOOKUP(ROWS($R$9:R51),$Q$9:$R$163,2,0),"") -> Handstand ½ turn | Y51: =IF(ISNUMBER(SEARCH($B$10,Z51)),MAX($Y$8:Y50)+1,0) -> 43 | Z51: Handstand ½ turn | AC51: =IFERROR(VLOOKUP(ROWS($Z$9:Z51),$Y$9:$Z$163,2,0),"") -> Handstand ½ turn | AG51: =IF(ISNUMBER(SEARCH($B$11,AH51)),MAX($AG$8:AG50)+1,0) -> 43 | AH51: Handstand ½ turn | AK51: =IFERROR(VLOOKUP(ROWS($AH$9:AH51),$AG$9:$AH$163,2,0),"") -> Handstand ½ turn | AO51: =IF(ISNUMBER(SEARCH($B$12,AP51)),MAX($AO$8:AO50)+1,0) -> 43 | AP51: Handstand ½ turn | AS51: =IFERROR(VLOOKUP(ROWS($AP$9:AP51),$AO$9:$AP$163,2,0),"") -> Handstand ½ turn | AW51: =IF(ISNUMBER(SEARCH($B$13,AX51)),MAX($AW$8:AW50)+1,0) -> 43 | AX51: Handstand ½ turn | BA51: =IFERROR(VLOOKUP(ROWS($AX$9:AX51),$AW$9:$AX$163,2,0),"") -> Handstand ½ turn | BE51: =IF(ISNUMBER(SEARCH($B$14,BF51)),MAX($BE$8:BE50)+1,0) -> 43 | BF51: Handstand ½ turn | BI51: =IFERROR(VLOOKUP(ROWS($BF$9:BF51),$BE$9:$BF$163,2,0),"") -> Handstand ½ turn | BM51: =IF(ISNUMBER(SEARCH($B$15,BN51)),MAX($BM$8:BM50)+1,0) -> 43 | BN51: Handstand ½ turn | BQ51: =IFERROR(VLOOKUP(ROWS($BN$9:BN51),$BM$9:$BN$163,2,0),"") -> Handstand ½ turn | BU51: =IF(ISNUMBER(SEARCH($B$16,BV51)),MAX($BU$8:BU50)+1,0) -> 43 | BV51: Handstand ½ turn | BY51: =IFERROR(VLOOKUP(ROWS($BV$9:BV51),$BU$9:$BV$163,2,0),"") -> Handstand ½ turn | CC51: =IF(ISNUMBER(SEARCH($B$17,CD51)),MAX($CC$8:CC50)+1,0) -> 43 | CD51: Handstand ½ turn | CG51: =IFERROR(VLOOKUP(ROWS($CD$9:CD51),$CC$9:$CD$163,2,0),"") -> Handstand ½ turn | CK51: =IF(ISNUMBER(SEARCH($B$18,CL51)),MAX($CK$8:CK50)+1,0) -> 43 | CL51: Handstand ½ turn | CO51: =IFERROR(VLOOKUP(ROWS($CL$9:CL51),$CK$9:$CL$163,2,0),"") -> Handstand ½ turn
M52: G2 | Q52: =IF(ISNUMBER(SEARCH($B$9,R52)),MAX($Q$8:Q51)+1,0) -> 44 | R52: Straddle Bunny Hop to Handstand | U52: =IFERROR(VLOOKUP(ROWS($R$9:R52),$Q$9:$R$163,2,0),"") -> Straddle Bunny Hop to Handstand | Y52: =IF(ISNUMBER(SEARCH($B$10,Z52)),MAX($Y$8:Y51)+1,0) -> 44 | Z52: Straddle Bunny Hop to Handstand | AC52: =IFERROR(VLOOKUP(ROWS($Z$9:Z52),$Y$9:$Z$163,2,0),"") -> Straddle Bunny Hop to Handstand | AG52: =IF(ISNUMBER(SEARCH($B$11,AH52)),MAX($AG$8:AG51)+1,0) -> 44 | AH52: Straddle Bunny Hop to Handstand | AK52: =IFERROR(VLOOKUP(ROWS($AH$9:AH52),$AG$9:$AH$163,2,0),"") -> Straddle Bunny Hop to Handstand | AO52: =IF(ISNUMBER(SEARCH($B$12,AP52)),MAX($AO$8:AO51)+1,0) -> 44 | AP52: Straddle Bunny Hop to Handstand | AS52: =IFERROR(VLOOKUP(ROWS($AP$9:AP52),$AO$9:$AP$163,2,0),"") -> Straddle Bunny Hop to Handstand | AW52: =IF(ISNUMBER(SEARCH($B$13,AX52)),MAX($AW$8:AW51)+1,0) -> 44 | AX52: Straddle Bunny Hop to Handstand | BA52: =IFERROR(VLOOKUP(ROWS($AX$9:AX52),$AW$9:$AX$163,2,0),"") -> Straddle Bunny Hop to Handstand | BE52: =IF(ISNUMBER(SEARCH($B$14,BF52)),MAX($BE$8:BE51)+1,0) -> 44 | BF52: Straddle Bunny Hop to Handstand | BI52: =IFERROR(VLOOKUP(ROWS($BF$9:BF52),$BE$9:$BF$163,2,0),"") -> Straddle Bunny Hop to Handstand | BM52: =IF(ISNUMBER(SEARCH($B$15,BN52)),MAX($BM$8:BM51)+1,0) -> 44 | BN52: Straddle Bunny Hop to Handstand | BQ52: =IFERROR(VLOOKUP(ROWS($BN$9:BN52),$BM$9:$BN$163,2,0),"") -> Straddle Bunny Hop to Handstand | BU52: =IF(ISNUMBER(SEARCH($B$16,BV52)),MAX($BU$8:BU51)+1,0) -> 44 | BV52: Straddle Bunny Hop to Handstand | BY52: =IFERROR(VLOOKUP(ROWS($BV$9:BV52),$BU$9:$BV$163,2,0),"") -> Straddle Bunny Hop to Handstand | CC52: =IF(ISNUMBER(SEARCH($B$17,CD52)),MAX($CC$8:CC51)+1,0) -> 44 | CD52: Straddle Bunny Hop to Handstand | CG52: =IFERROR(VLOOKUP(ROWS($CD$9:CD52),$CC$9:$CD$163,2,0),"") -> Straddle Bunny Hop to Handstand | CK52: =IF(ISNUMBER(SEARCH($B$18,CL52)),MAX($CK$8:CK51)+1,0) -> 44 | CL52: Straddle Bunny Hop to Handstand | CO52: =IFERROR(VLOOKUP(ROWS($CL$9:CL52),$CK$9:$CL$163,2,0),"") -> Straddle Bunny Hop to Handstand
M53: =IF(COUNTIF(CT9:CT18,"Yes")=2,"Yes","No") -> No | Q53: =IF(ISNUMBER(SEARCH($B$9,R53)),MAX($Q$8:Q52)+1,0) -> 45 | R53: Single Leg Circle | U53: =IFERROR(VLOOKUP(ROWS($R$9:R53),$Q$9:$R$163,2,0),"") -> Single Leg Circle | Y53: =IF(ISNUMBER(SEARCH($B$10,Z53)),MAX($Y$8:Y52)+1,0) -> 45 | Z53: Single Leg Circle | AC53: =IFERROR(VLOOKUP(ROWS($Z$9:Z53),$Y$9:$Z$163,2,0),"") -> Single Leg Circle | AG53: =IF(ISNUMBER(SEARCH($B$11,AH53)),MAX($AG$8:AG52)+1,0) -> 45 | AH53: Single Leg Circle | AK53: =IFERROR(VLOOKUP(ROWS($AH$9:AH53),$AG$9:$AH$163,2,0),"") -> Single Leg Circle | AO53: =IF(ISNUMBER(SEARCH($B$12,AP53)),MAX($AO$8:AO52)+1,0) -> 45 | AP53: Single Leg Circle | AS53: =IFERROR(VLOOKUP(ROWS($AP$9:AP53),$AO$9:$AP$163,2,0),"") -> Single Leg Circle | AW53: =IF(ISNUMBER(SEARCH($B$13,AX53)),MAX($AW$8:AW52)+1,0) -> 45 | AX53: Single Leg Circle | BA53: =IFERROR(VLOOKUP(ROWS($AX$9:AX53),$AW$9:$AX$163,2,0),"") -> Single Leg Circle | BE53: =IF(ISNUMBER(SEARCH($B$14,BF53)),MAX($BE$8:BE52)+1,0) -> 45 | BF53: Single Leg Circle | BI53: =IFERROR(VLOOKUP(ROWS($BF$9:BF53),$BE$9:$BF$163,2,0),"") -> Single Leg Circle | BM53: =IF(ISNUMBER(SEARCH($B$15,BN53)),MAX($BM$8:BM52)+1,0) -> 45 | BN53: Single Leg Circle | BQ53: =IFERROR(VLOOKUP(ROWS($BN$9:BN53),$BM$9:$BN$163,2,0),"") -> Single Leg Circle | BU53: =IF(ISNUMBER(SEARCH($B$16,BV53)),MAX($BU$8:BU52)+1,0) -> 45 | BV53: Single Leg Circle | BY53: =IFERROR(VLOOKUP(ROWS($BV$9:BV53),$BU$9:$BV$163,2,0),"") -> Single Leg Circle | CC53: =IF(ISNUMBER(SEARCH($B$17,CD53)),MAX($CC$8:CC52)+1,0) -> 45 | CD53: Single Leg Circle | CG53: =IFERROR(VLOOKUP(ROWS($CD$9:CD53),$CC$9:$CD$163,2,0),"") -> Single Leg Circle | CK53: =IF(ISNUMBER(SEARCH($B$18,CL53)),MAX($CK$8:CK52)+1,0) -> 45 | CL53: Single Leg Circle | CO53: =IFERROR(VLOOKUP(ROWS($CL$9:CL53),$CK$9:$CL$163,2,0),"") -> Single Leg Circle
M54: =IF(D5=M34,IF(M53="Yes","Yes","No"),IF(D5=M33,IF(M51="Yes","Yes","No"))) -> FALSE | Q54: =IF(ISNUMBER(SEARCH($B$9,R54)),MAX($Q$8:Q53)+1,0) -> 46 | R54: Backward walkover | U54: =IFERROR(VLOOKUP(ROWS($R$9:R54),$Q$9:$R$163,2,0),"") -> Backward walkover | Y54: =IF(ISNUMBER(SEARCH($B$10,Z54)),MAX($Y$8:Y53)+1,0) -> 46 | Z54: Backward walkover | AC54: =IFERROR(VLOOKUP(ROWS($Z$9:Z54),$Y$9:$Z$163,2,0),"") -> Backward walkover | AG54: =IF(ISNUMBER(SEARCH($B$11,AH54)),MAX($AG$8:AG53)+1,0) -> 46 | AH54: Backward walkover | AK54: =IFERROR(VLOOKUP(ROWS($AH$9:AH54),$AG$9:$AH$163,2,0),"") -> Backward walkover | AO54: =IF(ISNUMBER(SEARCH($B$12,AP54)),MAX($AO$8:AO53)+1,0) -> 46 | AP54: Backward walkover | AS54: =IFERROR(VLOOKUP(ROWS($AP$9:AP54),$AO$9:$AP$163,2,0),"") -> Backward walkover | AW54: =IF(ISNUMBER(SEARCH($B$13,AX54)),MAX($AW$8:AW53)+1,0) -> 46 | AX54: Backward walkover | BA54: =IFERROR(VLOOKUP(ROWS($AX$9:AX54),$AW$9:$AX$163,2,0),"") -> Backward walkover | BE54: =IF(ISNUMBER(SEARCH($B$14,BF54)),MAX($BE$8:BE53)+1,0) -> 46 | BF54: Backward walkover | BI54: =IFERROR(VLOOKUP(ROWS($BF$9:BF54),$BE$9:$BF$163,2,0),"") -> Backward walkover | BM54: =IF(ISNUMBER(SEARCH($B$15,BN54)),MAX($BM$8:BM53)+1,0) -> 46 | BN54: Backward walkover | BQ54: =IFERROR(VLOOKUP(ROWS($BN$9:BN54),$BM$9:$BN$163,2,0),"") -> Backward walkover | BU54: =IF(ISNUMBER(SEARCH($B$16,BV54)),MAX($BU$8:BU53)+1,0) -> 46 | BV54: Backward walkover | BY54: =IFERROR(VLOOKUP(ROWS($BV$9:BV54),$BU$9:$BV$163,2,0),"") -> Backward walkover | CC54: =IF(ISNUMBER(SEARCH($B$17,CD54)),MAX($CC$8:CC53)+1,0) -> 46 | CD54: Backward walkover | CG54: =IFERROR(VLOOKUP(ROWS($CD$9:CD54),$CC$9:$CD$163,2,0),"") -> Backward walkover | CK54: =IF(ISNUMBER(SEARCH($B$18,CL54)),MAX($CK$8:CK53)+1,0) -> 46 | CL54: Backward walkover | CO54: =IFERROR(VLOOKUP(ROWS($CL$9:CL54),$CK$9:$CL$163,2,0),"") -> Backward walkover
M55: 2 | Q55: =IF(ISNUMBER(SEARCH($B$9,R55)),MAX($Q$8:Q54)+1,0) -> 47 | R55: Cartwheel ¼ turn in (Front to Back)↓ | U55: =IFERROR(VLOOKUP(ROWS($R$9:R55),$Q$9:$R$163,2,0),"") -> Cartwheel ¼ turn in (Front to Back)↓ | Y55: =IF(ISNUMBER(SEARCH($B$10,Z55)),MAX($Y$8:Y54)+1,0) -> 47 | Z55: Cartwheel ¼ turn in (Front to Back)↓ | AC55: =IFERROR(VLOOKUP(ROWS($Z$9:Z55),$Y$9:$Z$163,2,0),"") -> Cartwheel ¼ turn in (Front to Back)↓ | AG55: =IF(ISNUMBER(SEARCH($B$11,AH55)),MAX($AG$8:AG54)+1,0) -> 47 | AH55: Cartwheel ¼ turn in (Front to Back)↓ | AK55: =IFERROR(VLOOKUP(ROWS($AH$9:AH55),$AG$9:$AH$163,2,0),"") -> Cartwheel ¼ turn in (Front to Back)↓ | AO55: =IF(ISNUMBER(SEARCH($B$12,AP55)),MAX($AO$8:AO54)+1,0) -> 47 | AP55: Cartwheel ¼ turn in (Front to Back)↓ | AS55: =IFERROR(VLOOKUP(ROWS($AP$9:AP55),$AO$9:$AP$163,2,0),"") -> Cartwheel ¼ turn in (Front to Back)↓ | AW55: =IF(ISNUMBER(SEARCH($B$13,AX55)),MAX($AW$8:AW54)+1,0) -> 47 | AX55: Cartwheel ¼ turn in (Front to Back)↓ | BA55: =IFERROR(VLOOKUP(ROWS($AX$9:AX55),$AW$9:$AX$163,2,0),"") -> Cartwheel ¼ turn in (Front to Back)↓ | BE55: =IF(ISNUMBER(SEARCH($B$14,BF55)),MAX($BE$8:BE54)+1,0) -> 47 | BF55: Cartwheel ¼ turn in (Front to Back)↓ | BI55: =IFERROR(VLOOKUP(ROWS($BF$9:BF55),$BE$9:$BF$163,2,0),"") -> Cartwheel ¼ turn in (Front to Back)↓ | BM55: =IF(ISNUMBER(SEARCH($B$15,BN55)),MAX($BM$8:BM54)+1,0) -> 47 | BN55: Cartwheel ¼ turn in (Front to Back)↓ | BQ55: =IFERROR(VLOOKUP(ROWS($BN$9:BN55),$BM$9:$BN$163,2,0),"") -> Cartwheel ¼ turn in (Front to Back)↓ | BU55: =IF(ISNUMBER(SEARCH($B$16,BV55)),MAX($BU$8:BU54)+1,0) -> 47 | BV55: Cartwheel ¼ turn in (Front to Back)↓ | BY55: =IFERROR(VLOOKUP(ROWS($BV$9:BV55),$BU$9:$BV$163,2,0),"") -> Cartwheel ¼ turn in (Front to Back)↓ | CC55: =IF(ISNUMBER(SEARCH($B$17,CD55)),MAX($CC$8:CC54)+1,0) -> 47 | CD55: Cartwheel ¼ turn in (Front to Back)↓ | CG55: =IFERROR(VLOOKUP(ROWS($CD$9:CD55),$CC$9:$CD$163,2,0),"") -> Cartwheel ¼ turn in (Front to Back)↓ | CK55: =IF(ISNUMBER(SEARCH($B$18,CL55)),MAX($CK$8:CK54)+1,0) -> 47 | CL55: Cartwheel ¼ turn in (Front to Back)↓ | CO55: =IFERROR(VLOOKUP(ROWS($CL$9:CL55),$CK$9:$CL$163,2,0),"") -> Cartwheel ¼ turn in (Front to Back)↓
M56: Mix Series | Q56: =IF(ISNUMBER(SEARCH($B$9,R56)),MAX($Q$8:Q55)+1,0) -> 48 | R56: Cartwheel ¼ turn out | U56: =IFERROR(VLOOKUP(ROWS($R$9:R56),$Q$9:$R$163,2,0),"") -> Cartwheel ¼ turn out | Y56: =IF(ISNUMBER(SEARCH($B$10,Z56)),MAX($Y$8:Y55)+1,0) -> 48 | Z56: Cartwheel ¼ turn out | AC56: =IFERROR(VLOOKUP(ROWS($Z$9:Z56),$Y$9:$Z$163,2,0),"") -> Cartwheel ¼ turn out | AG56: =IF(ISNUMBER(SEARCH($B$11,AH56)),MAX($AG$8:AG55)+1,0) -> 48 | AH56: Cartwheel ¼ turn out | AK56: =IFERROR(VLOOKUP(ROWS($AH$9:AH56),$AG$9:$AH$163,2,0),"") -> Cartwheel ¼ turn out | AO56: =IF(ISNUMBER(SEARCH($B$12,AP56)),MAX($AO$8:AO55)+1,0) -> 48 | AP56: Cartwheel ¼ turn out | AS56: =IFERROR(VLOOKUP(ROWS($AP$9:AP56),$AO$9:$AP$163,2,0),"") -> Cartwheel ¼ turn out | AW56: =IF(ISNUMBER(SEARCH($B$13,AX56)),MAX($AW$8:AW55)+1,0) -> 48 | AX56: Cartwheel ¼ turn out | BA56: =IFERROR(VLOOKUP(ROWS($AX$9:AX56),$AW$9:$AX$163,2,0),"") -> Cartwheel ¼ turn out | BE56: =IF(ISNUMBER(SEARCH($B$14,BF56)),MAX($BE$8:BE55)+1,0) -> 48 | BF56: Cartwheel ¼ turn out | BI56: =IFERROR(VLOOKUP(ROWS($BF$9:BF56),$BE$9:$BF$163,2,0),"") -> Cartwheel ¼ turn out | BM56: =IF(ISNUMBER(SEARCH($B$15,BN56)),MAX($BM$8:BM55)+1,0) -> 48 | BN56: Cartwheel ¼ turn out | BQ56: =IFERROR(VLOOKUP(ROWS($BN$9:BN56),$BM$9:$BN$163,2,0),"") -> Cartwheel ¼ turn out | BU56: =IF(ISNUMBER(SEARCH($B$16,BV56)),MAX($BU$8:BU55)+1,0) -> 48 | BV56: Cartwheel ¼ turn out | BY56: =IFERROR(VLOOKUP(ROWS($BV$9:BV56),$BU$9:$BV$163,2,0),"") -> Cartwheel ¼ turn out | CC56: =IF(ISNUMBER(SEARCH($B$17,CD56)),MAX($CC$8:CC55)+1,0) -> 48 | CD56: Cartwheel ¼ turn out | CG56: =IFERROR(VLOOKUP(ROWS($CD$9:CD56),$CC$9:$CD$163,2,0),"") -> Cartwheel ¼ turn out | CK56: =IF(ISNUMBER(SEARCH($B$18,CL56)),MAX($CK$8:CK55)+1,0) -> 48 | CL56: Cartwheel ¼ turn out | CO56: =IFERROR(VLOOKUP(ROWS($CL$9:CL56),$CK$9:$CL$163,2,0),"") -> Cartwheel ¼ turn out
M57: =IF(COUNTIF(DE9:DE18,"Yes")=2,"Yes","No") -> No | Q57: =IF(ISNUMBER(SEARCH($B$9,R57)),MAX($Q$8:Q56)+1,0) -> 49 | R57: 1 Arm Cartwheel | U57: =IFERROR(VLOOKUP(ROWS($R$9:R57),$Q$9:$R$163,2,0),"") -> 1 Arm Cartwheel | Y57: =IF(ISNUMBER(SEARCH($B$10,Z57)),MAX($Y$8:Y56)+1,0) -> 49 | Z57: 1 Arm Cartwheel | AC57: =IFERROR(VLOOKUP(ROWS($Z$9:Z57),$Y$9:$Z$163,2,0),"") -> 1 Arm Cartwheel | AG57: =IF(ISNUMBER(SEARCH($B$11,AH57)),MAX($AG$8:AG56)+1,0) -> 49 | AH57: 1 Arm Cartwheel | AK57: =IFERROR(VLOOKUP(ROWS($AH$9:AH57),$AG$9:$AH$163,2,0),"") -> 1 Arm Cartwheel | AO57: =IF(ISNUMBER(SEARCH($B$12,AP57)),MAX($AO$8:AO56)+1,0) -> 49 | AP57: 1 Arm Cartwheel | AS57: =IFERROR(VLOOKUP(ROWS($AP$9:AP57),$AO$9:$AP$163,2,0),"") -> 1 Arm Cartwheel | AW57: =IF(ISNUMBER(SEARCH($B$13,AX57)),MAX($AW$8:AW56)+1,0) -> 49 | AX57: 1 Arm Cartwheel | BA57: =IFERROR(VLOOKUP(ROWS($AX$9:AX57),$AW$9:$AX$163,2,0),"") -> 1 Arm Cartwheel | BE57: =IF(ISNUMBER(SEARCH($B$14,BF57)),MAX($BE$8:BE56)+1,0) -> 49 | BF57: 1 Arm Cartwheel | BI57: =IFERROR(VLOOKUP(ROWS($BF$9:BF57),$BE$9:$BF$163,2,0),"") -> 1 Arm Cartwheel | BM57: =IF(ISNUMBER(SEARCH($B$15,BN57)),MAX($BM$8:BM56)+1,0) -> 49 | BN57: 1 Arm Cartwheel | BQ57: =IFERROR(VLOOKUP(ROWS($BN$9:BN57),$BM$9:$BN$163,2,0),"") -> 1 Arm Cartwheel | BU57: =IF(ISNUMBER(SEARCH($B$16,BV57)),MAX($BU$8:BU56)+1,0) -> 49 | BV57: 1 Arm Cartwheel | BY57: =IFERROR(VLOOKUP(ROWS($BV$9:BV57),$BU$9:$BV$163,2,0),"") -> 1 Arm Cartwheel | CC57: =IF(ISNUMBER(SEARCH($B$17,CD57)),MAX($CC$8:CC56)+1,0) -> 49 | CD57: 1 Arm Cartwheel | CG57: =IFERROR(VLOOKUP(ROWS($CD$9:CD57),$CC$9:$CD$163,2,0),"") -> 1 Arm Cartwheel | CK57: =IF(ISNUMBER(SEARCH($B$18,CL57)),MAX($CK$8:CK56)+1,0) -> 49 | CL57: 1 Arm Cartwheel | CO57: =IFERROR(VLOOKUP(ROWS($CL$9:CL57),$CK$9:$CL$163,2,0),"") -> 1 Arm Cartwheel
M58: 3 | Q58: =IF(ISNUMBER(SEARCH($B$9,R58)),MAX($Q$8:Q57)+1,0) -> 50 | R58: 2 x side C/wheels (opt. entry / exit) | U58: =IFERROR(VLOOKUP(ROWS($R$9:R58),$Q$9:$R$163,2,0),"") -> 2 x side C/wheels (opt. entry / exit) | Y58: =IF(ISNUMBER(SEARCH($B$10,Z58)),MAX($Y$8:Y57)+1,0) -> 50 | Z58: 2 x side C/wheels (opt. entry / exit) | AC58: =IFERROR(VLOOKUP(ROWS($Z$9:Z58),$Y$9:$Z$163,2,0),"") -> 2 x side C/wheels (opt. entry / exit) | AG58: =IF(ISNUMBER(SEARCH($B$11,AH58)),MAX($AG$8:AG57)+1,0) -> 50 | AH58: 2 x side C/wheels (opt. entry / exit) | AK58: =IFERROR(VLOOKUP(ROWS($AH$9:AH58),$AG$9:$AH$163,2,0),"") -> 2 x side C/wheels (opt. entry / exit) | AO58: =IF(ISNUMBER(SEARCH($B$12,AP58)),MAX($AO$8:AO57)+1,0) -> 50 | AP58: 2 x side C/wheels (opt. entry / exit) | AS58: =IFERROR(VLOOKUP(ROWS($AP$9:AP58),$AO$9:$AP$163,2,0),"") -> 2 x side C/wheels (opt. entry / exit) | AW58: =IF(ISNUMBER(SEARCH($B$13,AX58)),MAX($AW$8:AW57)+1,0) -> 50 | AX58: 2 x side C/wheels (opt. entry / exit) | BA58: =IFERROR(VLOOKUP(ROWS($AX$9:AX58),$AW$9:$AX$163,2,0),"") -> 2 x side C/wheels (opt. entry / exit) | BE58: =IF(ISNUMBER(SEARCH($B$14,BF58)),MAX($BE$8:BE57)+1,0) -> 50 | BF58: 2 x side C/wheels (opt. entry / exit) | BI58: =IFERROR(VLOOKUP(ROWS($BF$9:BF58),$BE$9:$BF$163,2,0),"") -> 2 x side C/wheels (opt. entry / exit) | BM58: =IF(ISNUMBER(SEARCH($B$15,BN58)),MAX($BM$8:BM57)+1,0) -> 50 | BN58: 2 x side C/wheels (opt. entry / exit) | BQ58: =IFERROR(VLOOKUP(ROWS($BN$9:BN58),$BM$9:$BN$163,2,0),"") -> 2 x side C/wheels (opt. entry / exit) | BU58: =IF(ISNUMBER(SEARCH($B$16,BV58)),MAX($BU$8:BU57)+1,0) -> 50 | BV58: 2 x side C/wheels (opt. entry / exit) | BY58: =IFERROR(VLOOKUP(ROWS($BV$9:BV58),$BU$9:$BV$163,2,0),"") -> 2 x side C/wheels (opt. entry / exit) | CC58: =IF(ISNUMBER(SEARCH($B$17,CD58)),MAX($CC$8:CC57)+1,0) -> 50 | CD58: 2 x side C/wheels (opt. entry / exit) | CG58: =IFERROR(VLOOKUP(ROWS($CD$9:CD58),$CC$9:$CD$163,2,0),"") -> 2 x side C/wheels (opt. entry / exit) | CK58: =IF(ISNUMBER(SEARCH($B$18,CL58)),MAX($CK$8:CK57)+1,0) -> 50 | CL58: 2 x side C/wheels (opt. entry / exit) | CO58: =IFERROR(VLOOKUP(ROWS($CL$9:CL58),$CK$9:$CL$163,2,0),"") -> 2 x side C/wheels (opt. entry / exit)
M59: AS2FS | Q59: =IF(ISNUMBER(SEARCH($B$9,R59)),MAX($Q$8:Q58)+1,0) -> 51 | R59: Dive C/wheel (must show flight) | U59: =IFERROR(VLOOKUP(ROWS($R$9:R59),$Q$9:$R$163,2,0),"") -> Dive C/wheel (must show flight) | Y59: =IF(ISNUMBER(SEARCH($B$10,Z59)),MAX($Y$8:Y58)+1,0) -> 51 | Z59: Dive C/wheel (must show flight) | AC59: =IFERROR(VLOOKUP(ROWS($Z$9:Z59),$Y$9:$Z$163,2,0),"") -> Dive C/wheel (must show flight) | AG59: =IF(ISNUMBER(SEARCH($B$11,AH59)),MAX($AG$8:AG58)+1,0) -> 51 | AH59: Dive C/wheel (must show flight) | AK59: =IFERROR(VLOOKUP(ROWS($AH$9:AH59),$AG$9:$AH$163,2,0),"") -> Dive C/wheel (must show flight) | AO59: =IF(ISNUMBER(SEARCH($B$12,AP59)),MAX($AO$8:AO58)+1,0) -> 51 | AP59: Dive C/wheel (must show flight) | AS59: =IFERROR(VLOOKUP(ROWS($AP$9:AP59),$AO$9:$AP$163,2,0),"") -> Dive C/wheel (must show flight) | AW59: =IF(ISNUMBER(SEARCH($B$13,AX59)),MAX($AW$8:AW58)+1,0) -> 51 | AX59: Dive C/wheel (must show flight) | BA59: =IFERROR(VLOOKUP(ROWS($AX$9:AX59),$AW$9:$AX$163,2,0),"") -> Dive C/wheel (must show flight) | BE59: =IF(ISNUMBER(SEARCH($B$14,BF59)),MAX($BE$8:BE58)+1,0) -> 51 | BF59: Dive C/wheel (must show flight) | BI59: =IFERROR(VLOOKUP(ROWS($BF$9:BF59),$BE$9:$BF$163,2,0),"") -> Dive C/wheel (must show flight) | BM59: =IF(ISNUMBER(SEARCH($B$15,BN59)),MAX($BM$8:BM58)+1,0) -> 51 | BN59: Dive C/wheel (must show flight) | BQ59: =IFERROR(VLOOKUP(ROWS($BN$9:BN59),$BM$9:$BN$163,2,0),"") -> Dive C/wheel (must show flight) | BU59: =IF(ISNUMBER(SEARCH($B$16,BV59)),MAX($BU$8:BU58)+1,0) -> 51 | BV59: Dive C/wheel (must show flight) | BY59: =IFERROR(VLOOKUP(ROWS($BV$9:BV59),$BU$9:$BV$163,2,0),"") -> Dive C/wheel (must show flight) | CC59: =IF(ISNUMBER(SEARCH($B$17,CD59)),MAX($CC$8:CC58)+1,0) -> 51 | CD59: Dive C/wheel (must show flight) | CG59: =IFERROR(VLOOKUP(ROWS($CD$9:CD59),$CC$9:$CD$163,2,0),"") -> Dive C/wheel (must show flight) | CK59: =IF(ISNUMBER(SEARCH($B$18,CL59)),MAX($CK$8:CK58)+1,0) -> 51 | CL59: Dive C/wheel (must show flight) | CO59: =IFERROR(VLOOKUP(ROWS($CL$9:CL59),$CK$9:$CL$163,2,0),"") -> Dive C/wheel (must show flight)
M60: =IF(COUNTIF(CW8:CW18,"Yes")=1,"Yes","No") -> No | Q60: =IF(ISNUMBER(SEARCH($B$9,R60)),MAX($Q$8:Q59)+1,0) -> 52 | R60: Roundoff | U60: =IFERROR(VLOOKUP(ROWS($R$9:R60),$Q$9:$R$163,2,0),"") -> Roundoff | Y60: =IF(ISNUMBER(SEARCH($B$10,Z60)),MAX($Y$8:Y59)+1,0) -> 52 | Z60: Roundoff | AC60: =IFERROR(VLOOKUP(ROWS($Z$9:Z60),$Y$9:$Z$163,2,0),"") -> Roundoff | AG60: =IF(ISNUMBER(SEARCH($B$11,AH60)),MAX($AG$8:AG59)+1,0) -> 52 | AH60: Roundoff | AK60: =IFERROR(VLOOKUP(ROWS($AH$9:AH60),$AG$9:$AH$163,2,0),"") -> Roundoff | AO60: =IF(ISNUMBER(SEARCH($B$12,AP60)),MAX($AO$8:AO59)+1,0) -> 52 | AP60: Roundoff | AS60: =IFERROR(VLOOKUP(ROWS($AP$9:AP60),$AO$9:$AP$163,2,0),"") -> Roundoff | AW60: =IF(ISNUMBER(SEARCH($B$13,AX60)),MAX($AW$8:AW59)+1,0) -> 52 | AX60: Roundoff | BA60: =IFERROR(VLOOKUP(ROWS($AX$9:AX60),$AW$9:$AX$163,2,0),"") -> Roundoff | BE60: =IF(ISNUMBER(SEARCH($B$14,BF60)),MAX($BE$8:BE59)+1,0) -> 52 | BF60: Roundoff | BI60: =IFERROR(VLOOKUP(ROWS($BF$9:BF60),$BE$9:$BF$163,2,0),"") -> Roundoff | BM60: =IF(ISNUMBER(SEARCH($B$15,BN60)),MAX($BM$8:BM59)+1,0) -> 52 | BN60: Roundoff | BQ60: =IFERROR(VLOOKUP(ROWS($BN$9:BN60),$BM$9:$BN$163,2,0),"") -> Roundoff | BU60: =IF(ISNUMBER(SEARCH($B$16,BV60)),MAX($BU$8:BU59)+1,0) -> 52 | BV60: Roundoff | BY60: =IFERROR(VLOOKUP(ROWS($BV$9:BV60),$BU$9:$BV$163,2,0),"") -> Roundoff | CC60: =IF(ISNUMBER(SEARCH($B$17,CD60)),MAX($CC$8:CC59)+1,0) -> 52 | CD60: Roundoff | CG60: =IFERROR(VLOOKUP(ROWS($CD$9:CD60),$CC$9:$CD$163,2,0),"") -> Roundoff | CK60: =IF(ISNUMBER(SEARCH($B$18,CL60)),MAX($CK$8:CK59)+1,0) -> 52 | CL60: Roundoff | CO60: =IFERROR(VLOOKUP(ROWS($CL$9:CL60),$CK$9:$CL$163,2,0),"") -> Roundoff
Q61: =IF(ISNUMBER(SEARCH($B$9,R61)),MAX($Q$8:Q60)+1,0) -> 53 | R61: Roundoff jump (optional shape) | U61: =IFERROR(VLOOKUP(ROWS($R$9:R61),$Q$9:$R$163,2,0),"") -> Roundoff jump (optional shape) | Y61: =IF(ISNUMBER(SEARCH($B$10,Z61)),MAX($Y$8:Y60)+1,0) -> 53 | Z61: Roundoff jump (optional shape) | AC61: =IFERROR(VLOOKUP(ROWS($Z$9:Z61),$Y$9:$Z$163,2,0),"") -> Roundoff jump (optional shape) | AG61: =IF(ISNUMBER(SEARCH($B$11,AH61)),MAX($AG$8:AG60)+1,0) -> 53 | AH61: Roundoff jump (optional shape) | AK61: =IFERROR(VLOOKUP(ROWS($AH$9:AH61),$AG$9:$AH$163,2,0),"") -> Roundoff jump (optional shape) | AO61: =IF(ISNUMBER(SEARCH($B$12,AP61)),MAX($AO$8:AO60)+1,0) -> 53 | AP61: Roundoff jump (optional shape) | AS61: =IFERROR(VLOOKUP(ROWS($AP$9:AP61),$AO$9:$AP$163,2,0),"") -> Roundoff jump (optional shape) | AW61: =IF(ISNUMBER(SEARCH($B$13,AX61)),MAX($AW$8:AW60)+1,0) -> 53 | AX61: Roundoff jump (optional shape) | BA61: =IFERROR(VLOOKUP(ROWS($AX$9:AX61),$AW$9:$AX$163,2,0),"") -> Roundoff jump (optional shape) | BE61: =IF(ISNUMBER(SEARCH($B$14,BF61)),MAX($BE$8:BE60)+1,0) -> 53 | BF61: Roundoff jump (optional shape) | BI61: =IFERROR(VLOOKUP(ROWS($BF$9:BF61),$BE$9:$BF$163,2,0),"") -> Roundoff jump (optional shape) | BM61: =IF(ISNUMBER(SEARCH($B$15,BN61)),MAX($BM$8:BM60)+1,0) -> 53 | BN61: Roundoff jump (optional shape) | BQ61: =IFERROR(VLOOKUP(ROWS($BN$9:BN61),$BM$9:$BN$163,2,0),"") -> Roundoff jump (optional shape) | BU61: =IF(ISNUMBER(SEARCH($B$16,BV61)),MAX($BU$8:BU60)+1,0) -> 53 | BV61: Roundoff jump (optional shape) | BY61: =IFERROR(VLOOKUP(ROWS($BV$9:BV61),$BU$9:$BV$163,2,0),"") -> Roundoff jump (optional shape) | CC61: =IF(ISNUMBER(SEARCH($B$17,CD61)),MAX($CC$8:CC60)+1,0) -> 53 | CD61: Roundoff jump (optional shape) | CG61: =IFERROR(VLOOKUP(ROWS($CD$9:CD61),$CC$9:$CD$163,2,0),"") -> Roundoff jump (optional shape) | CK61: =IF(ISNUMBER(SEARCH($B$18,CL61)),MAX($CK$8:CK60)+1,0) -> 53 | CL61: Roundoff jump (optional shape) | CO61: =IFERROR(VLOOKUP(ROWS($CL$9:CL61),$CK$9:$CL$163,2,0),"") -> Roundoff jump (optional shape)
M62: Achieved | Q62: =IF(ISNUMBER(SEARCH($B$9,R62)),MAX($Q$8:Q61)+1,0) -> 54 | R62: Split leap or jump (150°) | U62: =IFERROR(VLOOKUP(ROWS($R$9:R62),$Q$9:$R$163,2,0),"") -> Split leap or jump (150°) | Y62: =IF(ISNUMBER(SEARCH($B$10,Z62)),MAX($Y$8:Y61)+1,0) -> 54 | Z62: Split leap or jump (150°) | AC62: =IFERROR(VLOOKUP(ROWS($Z$9:Z62),$Y$9:$Z$163,2,0),"") -> Split leap or jump (150°) | AG62: =IF(ISNUMBER(SEARCH($B$11,AH62)),MAX($AG$8:AG61)+1,0) -> 54 | AH62: Split leap or jump (150°) | AK62: =IFERROR(VLOOKUP(ROWS($AH$9:AH62),$AG$9:$AH$163,2,0),"") -> Split leap or jump (150°) | AO62: =IF(ISNUMBER(SEARCH($B$12,AP62)),MAX($AO$8:AO61)+1,0) -> 54 | AP62: Split leap or jump (150°) | AS62: =IFERROR(VLOOKUP(ROWS($AP$9:AP62),$AO$9:$AP$163,2,0),"") -> Split leap or jump (150°) | AW62: =IF(ISNUMBER(SEARCH($B$13,AX62)),MAX($AW$8:AW61)+1,0) -> 54 | AX62: Split leap or jump (150°) | BA62: =IFERROR(VLOOKUP(ROWS($AX$9:AX62),$AW$9:$AX$163,2,0),"") -> Split leap or jump (150°) | BE62: =IF(ISNUMBER(SEARCH($B$14,BF62)),MAX($BE$8:BE61)+1,0) -> 54 | BF62: Split leap or jump (150°) | BI62: =IFERROR(VLOOKUP(ROWS($BF$9:BF62),$BE$9:$BF$163,2,0),"") -> Split leap or jump (150°) | BM62: =IF(ISNUMBER(SEARCH($B$15,BN62)),MAX($BM$8:BM61)+1,0) -> 54 | BN62: Split leap or jump (150°) | BQ62: =IFERROR(VLOOKUP(ROWS($BN$9:BN62),$BM$9:$BN$163,2,0),"") -> Split leap or jump (150°) | BU62: =IF(ISNUMBER(SEARCH($B$16,BV62)),MAX($BU$8:BU61)+1,0) -> 54 | BV62: Split leap or jump (150°) | BY62: =IFERROR(VLOOKUP(ROWS($BV$9:BV62),$BU$9:$BV$163,2,0),"") -> Split leap or jump (150°) | CC62: =IF(ISNUMBER(SEARCH($B$17,CD62)),MAX($CC$8:CC61)+1,0) -> 54 | CD62: Split leap or jump (150°) | CG62: =IFERROR(VLOOKUP(ROWS($CD$9:CD62),$CC$9:$CD$163,2,0),"") -> Split leap or jump (150°) | CK62: =IF(ISNUMBER(SEARCH($B$18,CL62)),MAX($CK$8:CK61)+1,0) -> 54 | CL62: Split leap or jump (150°) | CO62: =IFERROR(VLOOKUP(ROWS($CL$9:CL62),$CK$9:$CL$163,2,0),"") -> Split leap or jump (150°)
M63: =IF(M54="Yes",IF(M57="Yes",IF(M60="Yes","Yes","No"),"No"),"No") -> No | Q63: =IF(ISNUMBER(SEARCH($B$9,R63)),MAX($Q$8:Q62)+1,0) -> 55 | R63: Fouette Turn | U63: =IFERROR(VLOOKUP(ROWS($R$9:R63),$Q$9:$R$163,2,0),"") -> Fouette Turn | Y63: =IF(ISNUMBER(SEARCH($B$10,Z63)),MAX($Y$8:Y62)+1,0) -> 55 | Z63: Fouette Turn | AC63: =IFERROR(VLOOKUP(ROWS($Z$9:Z63),$Y$9:$Z$163,2,0),"") -> Fouette Turn | AG63: =IF(ISNUMBER(SEARCH($B$11,AH63)),MAX($AG$8:AG62)+1,0) -> 55 | AH63: Fouette Turn | AK63: =IFERROR(VLOOKUP(ROWS($AH$9:AH63),$AG$9:$AH$163,2,0),"") -> Fouette Turn | AO63: =IF(ISNUMBER(SEARCH($B$12,AP63)),MAX($AO$8:AO62)+1,0) -> 55 | AP63: Fouette Turn | AS63: =IFERROR(VLOOKUP(ROWS($AP$9:AP63),$AO$9:$AP$163,2,0),"") -> Fouette Turn | AW63: =IF(ISNUMBER(SEARCH($B$13,AX63)),MAX($AW$8:AW62)+1,0) -> 55 | AX63: Fouette Turn | BA63: =IFERROR(VLOOKUP(ROWS($AX$9:AX63),$AW$9:$AX$163,2,0),"") -> Fouette Turn | BE63: =IF(ISNUMBER(SEARCH($B$14,BF63)),MAX($BE$8:BE62)+1,0) -> 55 | BF63: Fouette Turn | BI63: =IFERROR(VLOOKUP(ROWS($BF$9:BF63),$BE$9:$BF$163,2,0),"") -> Fouette Turn | BM63: =IF(ISNUMBER(SEARCH($B$15,BN63)),MAX($BM$8:BM62)+1,0) -> 55 | BN63: Fouette Turn | BQ63: =IFERROR(VLOOKUP(ROWS($BN$9:BN63),$BM$9:$BN$163,2,0),"") -> Fouette Turn | BU63: =IF(ISNUMBER(SEARCH($B$16,BV63)),MAX($BU$8:BU62)+1,0) -> 55 | BV63: Fouette Turn | BY63: =IFERROR(VLOOKUP(ROWS($BV$9:BV63),$BU$9:$BV$163,2,0),"") -> Fouette Turn | CC63: =IF(ISNUMBER(SEARCH($B$17,CD63)),MAX($CC$8:CC62)+1,0) -> 55 | CD63: Fouette Turn | CG63: =IFERROR(VLOOKUP(ROWS($CD$9:CD63),$CC$9:$CD$163,2,0),"") -> Fouette Turn | CK63: =IF(ISNUMBER(SEARCH($B$18,CL63)),MAX($CK$8:CK62)+1,0) -> 55 | CL63: Fouette Turn | CO63: =IFERROR(VLOOKUP(ROWS($CL$9:CL63),$CK$9:$CL$163,2,0),"") -> Fouette Turn
Q64: =IF(ISNUMBER(SEARCH($B$9,R64)),MAX($Q$8:Q63)+1,0) -> 56 | R64: Cat leap ½ turn | U64: =IFERROR(VLOOKUP(ROWS($R$9:R64),$Q$9:$R$163,2,0),"") -> Cat leap ½ turn | Y64: =IF(ISNUMBER(SEARCH($B$10,Z64)),MAX($Y$8:Y63)+1,0) -> 56 | Z64: Cat leap ½ turn | AC64: =IFERROR(VLOOKUP(ROWS($Z$9:Z64),$Y$9:$Z$163,2,0),"") -> Cat leap ½ turn | AG64: =IF(ISNUMBER(SEARCH($B$11,AH64)),MAX($AG$8:AG63)+1,0) -> 56 | AH64: Cat leap ½ turn | AK64: =IFERROR(VLOOKUP(ROWS($AH$9:AH64),$AG$9:$AH$163,2,0),"") -> Cat leap ½ turn | AO64: =IF(ISNUMBER(SEARCH($B$12,AP64)),MAX($AO$8:AO63)+1,0) -> 56 | AP64: Cat leap ½ turn | AS64: =IFERROR(VLOOKUP(ROWS($AP$9:AP64),$AO$9:$AP$163,2,0),"") -> Cat leap ½ turn | AW64: =IF(ISNUMBER(SEARCH($B$13,AX64)),MAX($AW$8:AW63)+1,0) -> 56 | AX64: Cat leap ½ turn | BA64: =IFERROR(VLOOKUP(ROWS($AX$9:AX64),$AW$9:$AX$163,2,0),"") -> Cat leap ½ turn | BE64: =IF(ISNUMBER(SEARCH($B$14,BF64)),MAX($BE$8:BE63)+1,0) -> 56 | BF64: Cat leap ½ turn | BI64: =IFERROR(VLOOKUP(ROWS($BF$9:BF64),$BE$9:$BF$163,2,0),"") -> Cat leap ½ turn | BM64: =IF(ISNUMBER(SEARCH($B$15,BN64)),MAX($BM$8:BM63)+1,0) -> 56 | BN64: Cat leap ½ turn | BQ64: =IFERROR(VLOOKUP(ROWS($BN$9:BN64),$BM$9:$BN$163,2,0),"") -> Cat leap ½ turn | BU64: =IF(ISNUMBER(SEARCH($B$16,BV64)),MAX($BU$8:BU63)+1,0) -> 56 | BV64: Cat leap ½ turn | BY64: =IFERROR(VLOOKUP(ROWS($BV$9:BV64),$BU$9:$BV$163,2,0),"") -> Cat leap ½ turn | CC64: =IF(ISNUMBER(SEARCH($B$17,CD64)),MAX($CC$8:CC63)+1,0) -> 56 | CD64: Cat leap ½ turn | CG64: =IFERROR(VLOOKUP(ROWS($CD$9:CD64),$CC$9:$CD$163,2,0),"") -> Cat leap ½ turn | CK64: =IF(ISNUMBER(SEARCH($B$18,CL64)),MAX($CK$8:CK63)+1,0) -> 56 | CL64: Cat leap ½ turn | CO64: =IFERROR(VLOOKUP(ROWS($CL$9:CL64),$CK$9:$CL$163,2,0),"") -> Cat leap ½ turn
Q65: =IF(ISNUMBER(SEARCH($B$9,R65)),MAX($Q$8:Q64)+1,0) -> 57 | R65: Jump 1 ½ turn | U65: =IFERROR(VLOOKUP(ROWS($R$9:R65),$Q$9:$R$163,2,0),"") -> Jump 1 ½ turn | Y65: =IF(ISNUMBER(SEARCH($B$10,Z65)),MAX($Y$8:Y64)+1,0) -> 57 | Z65: Jump 1 ½ turn | AC65: =IFERROR(VLOOKUP(ROWS($Z$9:Z65),$Y$9:$Z$163,2,0),"") -> Jump 1 ½ turn | AG65: =IF(ISNUMBER(SEARCH($B$11,AH65)),MAX($AG$8:AG64)+1,0) -> 57 | AH65: Jump 1 ½ turn | AK65: =IFERROR(VLOOKUP(ROWS($AH$9:AH65),$AG$9:$AH$163,2,0),"") -> Jump 1 ½ turn | AO65: =IF(ISNUMBER(SEARCH($B$12,AP65)),MAX($AO$8:AO64)+1,0) -> 57 | AP65: Jump 1 ½ turn | AS65: =IFERROR(VLOOKUP(ROWS($AP$9:AP65),$AO$9:$AP$163,2,0),"") -> Jump 1 ½ turn | AW65: =IF(ISNUMBER(SEARCH($B$13,AX65)),MAX($AW$8:AW64)+1,0) -> 57 | AX65: Jump 1 ½ turn | BA65: =IFERROR(VLOOKUP(ROWS($AX$9:AX65),$AW$9:$AX$163,2,0),"") -> Jump 1 ½ turn | BE65: =IF(ISNUMBER(SEARCH($B$14,BF65)),MAX($BE$8:BE64)+1,0) -> 57 | BF65: Jump 1 ½ turn | BI65: =IFERROR(VLOOKUP(ROWS($BF$9:BF65),$BE$9:$BF$163,2,0),"") -> Jump 1 ½ turn | BM65: =IF(ISNUMBER(SEARCH($B$15,BN65)),MAX($BM$8:BM64)+1,0) -> 57 | BN65: Jump 1 ½ turn | BQ65: =IFERROR(VLOOKUP(ROWS($BN$9:BN65),$BM$9:$BN$163,2,0),"") -> Jump 1 ½ turn | BU65: =IF(ISNUMBER(SEARCH($B$16,BV65)),MAX($BU$8:BU64)+1,0) -> 57 | BV65: Jump 1 ½ turn | BY65: =IFERROR(VLOOKUP(ROWS($BV$9:BV65),$BU$9:$BV$163,2,0),"") -> Jump 1 ½ turn | CC65: =IF(ISNUMBER(SEARCH($B$17,CD65)),MAX($CC$8:CC64)+1,0) -> 57 | CD65: Jump 1 ½ turn | CG65: =IFERROR(VLOOKUP(ROWS($CD$9:CD65),$CC$9:$CD$163,2,0),"") -> Jump 1 ½ turn | CK65: =IF(ISNUMBER(SEARCH($B$18,CL65)),MAX($CK$8:CK64)+1,0) -> 57 | CL65: Jump 1 ½ turn | CO65: =IFERROR(VLOOKUP(ROWS($CL$9:CL65),$CK$9:$CL$163,2,0),"") -> Jump 1 ½ turn
Q66: =IF(ISNUMBER(SEARCH($B$9,R66)),MAX($Q$8:Q65)+1,0) -> 58 | R66: Straddle jump | U66: =IFERROR(VLOOKUP(ROWS($R$9:R66),$Q$9:$R$163,2,0),"") -> Straddle jump | Y66: =IF(ISNUMBER(SEARCH($B$10,Z66)),MAX($Y$8:Y65)+1,0) -> 58 | Z66: Straddle jump | AC66: =IFERROR(VLOOKUP(ROWS($Z$9:Z66),$Y$9:$Z$163,2,0),"") -> Straddle jump | AG66: =IF(ISNUMBER(SEARCH($B$11,AH66)),MAX($AG$8:AG65)+1,0) -> 58 | AH66: Straddle jump | AK66: =IFERROR(VLOOKUP(ROWS($AH$9:AH66),$AG$9:$AH$163,2,0),"") -> Straddle jump | AO66: =IF(ISNUMBER(SEARCH($B$12,AP66)),MAX($AO$8:AO65)+1,0) -> 58 | AP66: Straddle jump | AS66: =IFERROR(VLOOKUP(ROWS($AP$9:AP66),$AO$9:$AP$163,2,0),"") -> Straddle jump | AW66: =IF(ISNUMBER(SEARCH($B$13,AX66)),MAX($AW$8:AW65)+1,0) -> 58 | AX66: Straddle jump | BA66: =IFERROR(VLOOKUP(ROWS($AX$9:AX66),$AW$9:$AX$163,2,0),"") -> Straddle jump | BE66: =IF(ISNUMBER(SEARCH($B$14,BF66)),MAX($BE$8:BE65)+1,0) -> 58 | BF66: Straddle jump | BI66: =IFERROR(VLOOKUP(ROWS($BF$9:BF66),$BE$9:$BF$163,2,0),"") -> Straddle jump | BM66: =IF(ISNUMBER(SEARCH($B$15,BN66)),MAX($BM$8:BM65)+1,0) -> 58 | BN66: Straddle jump | BQ66: =IFERROR(VLOOKUP(ROWS($BN$9:BN66),$BM$9:$BN$163,2,0),"") -> Straddle jump | BU66: =IF(ISNUMBER(SEARCH($B$16,BV66)),MAX($BU$8:BU65)+1,0) -> 58 | BV66: Straddle jump | BY66: =IFERROR(VLOOKUP(ROWS($BV$9:BV66),$BU$9:$BV$163,2,0),"") -> Straddle jump | CC66: =IF(ISNUMBER(SEARCH($B$17,CD66)),MAX($CC$8:CC65)+1,0) -> 58 | CD66: Straddle jump | CG66: =IFERROR(VLOOKUP(ROWS($CD$9:CD66),$CC$9:$CD$163,2,0),"") -> Straddle jump | CK66: =IF(ISNUMBER(SEARCH($B$18,CL66)),MAX($CK$8:CK65)+1,0) -> 58 | CL66: Straddle jump | CO66: =IFERROR(VLOOKUP(ROWS($CL$9:CL66),$CK$9:$CL$163,2,0),"") -> Straddle jump
Q67: =IF(ISNUMBER(SEARCH($B$9,R67)),MAX($Q$8:Q66)+1,0) -> 59 | R67: Tuck jump ½ turn | U67: =IFERROR(VLOOKUP(ROWS($R$9:R67),$Q$9:$R$163,2,0),"") -> Tuck jump ½ turn | Y67: =IF(ISNUMBER(SEARCH($B$10,Z67)),MAX($Y$8:Y66)+1,0) -> 59 | Z67: Tuck jump ½ turn | AC67: =IFERROR(VLOOKUP(ROWS($Z$9:Z67),$Y$9:$Z$163,2,0),"") -> Tuck jump ½ turn | AG67: =IF(ISNUMBER(SEARCH($B$11,AH67)),MAX($AG$8:AG66)+1,0) -> 59 | AH67: Tuck jump ½ turn | AK67: =IFERROR(VLOOKUP(ROWS($AH$9:AH67),$AG$9:$AH$163,2,0),"") -> Tuck jump ½ turn | AO67: =IF(ISNUMBER(SEARCH($B$12,AP67)),MAX($AO$8:AO66)+1,0) -> 59 | AP67: Tuck jump ½ turn | AS67: =IFERROR(VLOOKUP(ROWS($AP$9:AP67),$AO$9:$AP$163,2,0),"") -> Tuck jump ½ turn | AW67: =IF(ISNUMBER(SEARCH($B$13,AX67)),MAX($AW$8:AW66)+1,0) -> 59 | AX67: Tuck jump ½ turn | BA67: =IFERROR(VLOOKUP(ROWS($AX$9:AX67),$AW$9:$AX$163,2,0),"") -> Tuck jump ½ turn | BE67: =IF(ISNUMBER(SEARCH($B$14,BF67)),MAX($BE$8:BE66)+1,0) -> 59 | BF67: Tuck jump ½ turn | BI67: =IFERROR(VLOOKUP(ROWS($BF$9:BF67),$BE$9:$BF$163,2,0),"") -> Tuck jump ½ turn | BM67: =IF(ISNUMBER(SEARCH($B$15,BN67)),MAX($BM$8:BM66)+1,0) -> 59 | BN67: Tuck jump ½ turn | BQ67: =IFERROR(VLOOKUP(ROWS($BN$9:BN67),$BM$9:$BN$163,2,0),"") -> Tuck jump ½ turn | BU67: =IF(ISNUMBER(SEARCH($B$16,BV67)),MAX($BU$8:BU66)+1,0) -> 59 | BV67: Tuck jump ½ turn | BY67: =IFERROR(VLOOKUP(ROWS($BV$9:BV67),$BU$9:$BV$163,2,0),"") -> Tuck jump ½ turn | CC67: =IF(ISNUMBER(SEARCH($B$17,CD67)),MAX($CC$8:CC66)+1,0) -> 59 | CD67: Tuck jump ½ turn | CG67: =IFERROR(VLOOKUP(ROWS($CD$9:CD67),$CC$9:$CD$163,2,0),"") -> Tuck jump ½ turn | CK67: =IF(ISNUMBER(SEARCH($B$18,CL67)),MAX($CK$8:CK66)+1,0) -> 59 | CL67: Tuck jump ½ turn | CO67: =IFERROR(VLOOKUP(ROWS($CL$9:CL67),$CK$9:$CL$163,2,0),"") -> Tuck jump ½ turn
Q68: =IF(ISNUMBER(SEARCH($B$9,R68)),MAX($Q$8:Q67)+1,0) -> 60 | R68: Full Spin | U68: =IFERROR(VLOOKUP(ROWS($R$9:R68),$Q$9:$R$163,2,0),"") -> Full Spin | Y68: =IF(ISNUMBER(SEARCH($B$10,Z68)),MAX($Y$8:Y67)+1,0) -> 60 | Z68: Full Spin | AC68: =IFERROR(VLOOKUP(ROWS($Z$9:Z68),$Y$9:$Z$163,2,0),"") -> Full Spin | AG68: =IF(ISNUMBER(SEARCH($B$11,AH68)),MAX($AG$8:AG67)+1,0) -> 60 | AH68: Full Spin | AK68: =IFERROR(VLOOKUP(ROWS($AH$9:AH68),$AG$9:$AH$163,2,0),"") -> Full Spin | AO68: =IF(ISNUMBER(SEARCH($B$12,AP68)),MAX($AO$8:AO67)+1,0) -> 60 | AP68: Full Spin | AS68: =IFERROR(VLOOKUP(ROWS($AP$9:AP68),$AO$9:$AP$163,2,0),"") -> Full Spin | AW68: =IF(ISNUMBER(SEARCH($B$13,AX68)),MAX($AW$8:AW67)+1,0) -> 60 | AX68: Full Spin | BA68: =IFERROR(VLOOKUP(ROWS($AX$9:AX68),$AW$9:$AX$163,2,0),"") -> Full Spin | BE68: =IF(ISNUMBER(SEARCH($B$14,BF68)),MAX($BE$8:BE67)+1,0) -> 60 | BF68: Full Spin | BI68: =IFERROR(VLOOKUP(ROWS($BF$9:BF68),$BE$9:$BF$163,2,0),"") -> Full Spin | BM68: =IF(ISNUMBER(SEARCH($B$15,BN68)),MAX($BM$8:BM67)+1,0) -> 60 | BN68: Full Spin | BQ68: =IFERROR(VLOOKUP(ROWS($BN$9:BN68),$BM$9:$BN$163,2,0),"") -> Full Spin | BU68: =IF(ISNUMBER(SEARCH($B$16,BV68)),MAX($BU$8:BU67)+1,0) -> 60 | BV68: Full Spin | BY68: =IFERROR(VLOOKUP(ROWS($BV$9:BV68),$BU$9:$BV$163,2,0),"") -> Full Spin | CC68: =IF(ISNUMBER(SEARCH($B$17,CD68)),MAX($CC$8:CC67)+1,0) -> 60 | CD68: Full Spin | CG68: =IFERROR(VLOOKUP(ROWS($CD$9:CD68),$CC$9:$CD$163,2,0),"") -> Full Spin | CK68: =IF(ISNUMBER(SEARCH($B$18,CL68)),MAX($CK$8:CK67)+1,0) -> 60 | CL68: Full Spin | CO68: =IFERROR(VLOOKUP(ROWS($CL$9:CL68),$CK$9:$CL$163,2,0),"") -> Full Spin
Q69: =IF(ISNUMBER(SEARCH($B$9,R69)),MAX($Q$8:Q68)+1,0) -> 61 | R69: Y scale (leg above waist height) | U69: =IFERROR(VLOOKUP(ROWS($R$9:R69),$Q$9:$R$163,2,0),"") -> Y scale (leg above waist height) | Y69: =IF(ISNUMBER(SEARCH($B$10,Z69)),MAX($Y$8:Y68)+1,0) -> 61 | Z69: Y scale (leg above waist height) | AC69: =IFERROR(VLOOKUP(ROWS($Z$9:Z69),$Y$9:$Z$163,2,0),"") -> Y scale (leg above waist height) | AG69: =IF(ISNUMBER(SEARCH($B$11,AH69)),MAX($AG$8:AG68)+1,0) -> 61 | AH69: Y scale (leg above waist height) | AK69: =IFERROR(VLOOKUP(ROWS($AH$9:AH69),$AG$9:$AH$163,2,0),"") -> Y scale (leg above waist height) | AO69: =IF(ISNUMBER(SEARCH($B$12,AP69)),MAX($AO$8:AO68)+1,0) -> 61 | AP69: Y scale (leg above waist height) | AS69: =IFERROR(VLOOKUP(ROWS($AP$9:AP69),$AO$9:$AP$163,2,0),"") -> Y scale (leg above waist height) | AW69: =IF(ISNUMBER(SEARCH($B$13,AX69)),MAX($AW$8:AW68)+1,0) -> 61 | AX69: Y scale (leg above waist height) | BA69: =IFERROR(VLOOKUP(ROWS($AX$9:AX69),$AW$9:$AX$163,2,0),"") -> Y scale (leg above waist height) | BE69: =IF(ISNUMBER(SEARCH($B$14,BF69)),MAX($BE$8:BE68)+1,0) -> 61 | BF69: Y scale (leg above waist height) | BI69: =IFERROR(VLOOKUP(ROWS($BF$9:BF69),$BE$9:$BF$163,2,0),"") -> Y scale (leg above waist height) | BM69: =IF(ISNUMBER(SEARCH($B$15,BN69)),MAX($BM$8:BM68)+1,0) -> 61 | BN69: Y scale (leg above waist height) | BQ69: =IFERROR(VLOOKUP(ROWS($BN$9:BN69),$BM$9:$BN$163,2,0),"") -> Y scale (leg above waist height) | BU69: =IF(ISNUMBER(SEARCH($B$16,BV69)),MAX($BU$8:BU68)+1,0) -> 61 | BV69: Y scale (leg above waist height) | BY69: =IFERROR(VLOOKUP(ROWS($BV$9:BV69),$BU$9:$BV$163,2,0),"") -> Y scale (leg above waist height) | CC69: =IF(ISNUMBER(SEARCH($B$17,CD69)),MAX($CC$8:CC68)+1,0) -> 61 | CD69: Y scale (leg above waist height) | CG69: =IFERROR(VLOOKUP(ROWS($CD$9:CD69),$CC$9:$CD$163,2,0),"") -> Y scale (leg above waist height) | CK69: =IF(ISNUMBER(SEARCH($B$18,CL69)),MAX($CK$8:CK68)+1,0) -> 61 | CL69: Y scale (leg above waist height) | CO69: =IFERROR(VLOOKUP(ROWS($CL$9:CL69),$CK$9:$CL$163,2,0),"") -> Y scale (leg above waist height)
Q70: =IF(ISNUMBER(SEARCH($B$9,R70)),MAX($Q$8:Q69)+1,0) -> 62 | R70: 2 way Splits | U70: =IFERROR(VLOOKUP(ROWS($R$9:R70),$Q$9:$R$163,2,0),"") -> 2 way Splits | Y70: =IF(ISNUMBER(SEARCH($B$10,Z70)),MAX($Y$8:Y69)+1,0) -> 62 | Z70: 2 way Splits | AC70: =IFERROR(VLOOKUP(ROWS($Z$9:Z70),$Y$9:$Z$163,2,0),"") -> 2 way Splits | AG70: =IF(ISNUMBER(SEARCH($B$11,AH70)),MAX($AG$8:AG69)+1,0) -> 62 | AH70: 2 way Splits | AK70: =IFERROR(VLOOKUP(ROWS($AH$9:AH70),$AG$9:$AH$163,2,0),"") -> 2 way Splits | AO70: =IF(ISNUMBER(SEARCH($B$12,AP70)),MAX($AO$8:AO69)+1,0) -> 62 | AP70: 2 way Splits | AS70: =IFERROR(VLOOKUP(ROWS($AP$9:AP70),$AO$9:$AP$163,2,0),"") -> 2 way Splits | AW70: =IF(ISNUMBER(SEARCH($B$13,AX70)),MAX($AW$8:AW69)+1,0) -> 62 | AX70: 2 way Splits | BA70: =IFERROR(VLOOKUP(ROWS($AX$9:AX70),$AW$9:$AX$163,2,0),"") -> 2 way Splits | BE70: =IF(ISNUMBER(SEARCH($B$14,BF70)),MAX($BE$8:BE69)+1,0) -> 62 | BF70: 2 way Splits | BI70: =IFERROR(VLOOKUP(ROWS($BF$9:BF70),$BE$9:$BF$163,2,0),"") -> 2 way Splits | BM70: =IF(ISNUMBER(SEARCH($B$15,BN70)),MAX($BM$8:BM69)+1,0) -> 62 | BN70: 2 way Splits | BQ70: =IFERROR(VLOOKUP(ROWS($BN$9:BN70),$BM$9:$BN$163,2,0),"") -> 2 way Splits | BU70: =IF(ISNUMBER(SEARCH($B$16,BV70)),MAX($BU$8:BU69)+1,0) -> 62 | BV70: 2 way Splits | BY70: =IFERROR(VLOOKUP(ROWS($BV$9:BV70),$BU$9:$BV$163,2,0),"") -> 2 way Splits | CC70: =IF(ISNUMBER(SEARCH($B$17,CD70)),MAX($CC$8:CC69)+1,0) -> 62 | CD70: 2 way Splits | CG70: =IFERROR(VLOOKUP(ROWS($CD$9:CD70),$CC$9:$CD$163,2,0),"") -> 2 way Splits | CK70: =IF(ISNUMBER(SEARCH($B$18,CL70)),MAX($CK$8:CK69)+1,0) -> 62 | CL70: 2 way Splits | CO70: =IFERROR(VLOOKUP(ROWS($CL$9:CL70),$CK$9:$CL$163,2,0),"") -> 2 way Splits
Q71: =IF(ISNUMBER(SEARCH($B$9,R71)),MAX($Q$8:Q70)+1,0) -> 63 | R71: Japana Swim Through | U71: =IFERROR(VLOOKUP(ROWS($R$9:R71),$Q$9:$R$163,2,0),"") -> Japana Swim Through | Y71: =IF(ISNUMBER(SEARCH($B$10,Z71)),MAX($Y$8:Y70)+1,0) -> 63 | Z71: Japana Swim Through | AC71: =IFERROR(VLOOKUP(ROWS($Z$9:Z71),$Y$9:$Z$163,2,0),"") -> Japana Swim Through | AG71: =IF(ISNUMBER(SEARCH($B$11,AH71)),MAX($AG$8:AG70)+1,0) -> 63 | AH71: Japana Swim Through | AK71: =IFERROR(VLOOKUP(ROWS($AH$9:AH71),$AG$9:$AH$163,2,0),"") -> Japana Swim Through | AO71: =IF(ISNUMBER(SEARCH($B$12,AP71)),MAX($AO$8:AO70)+1,0) -> 63 | AP71: Japana Swim Through | AS71: =IFERROR(VLOOKUP(ROWS($AP$9:AP71),$AO$9:$AP$163,2,0),"") -> Japana Swim Through | AW71: =IF(ISNUMBER(SEARCH($B$13,AX71)),MAX($AW$8:AW70)+1,0) -> 63 | AX71: Japana Swim Through | BA71: =IFERROR(VLOOKUP(ROWS($AX$9:AX71),$AW$9:$AX$163,2,0),"") -> Japana Swim Through | BE71: =IF(ISNUMBER(SEARCH($B$14,BF71)),MAX($BE$8:BE70)+1,0) -> 63 | BF71: Japana Swim Through | BI71: =IFERROR(VLOOKUP(ROWS($BF$9:BF71),$BE$9:$BF$163,2,0),"") -> Japana Swim Through | BM71: =IF(ISNUMBER(SEARCH($B$15,BN71)),MAX($BM$8:BM70)+1,0) -> 63 | BN71: Japana Swim Through | BQ71: =IFERROR(VLOOKUP(ROWS($BN$9:BN71),$BM$9:$BN$163,2,0),"") -> Japana Swim Through | BU71: =IF(ISNUMBER(SEARCH($B$16,BV71)),MAX($BU$8:BU70)+1,0) -> 63 | BV71: Japana Swim Through | BY71: =IFERROR(VLOOKUP(ROWS($BV$9:BV71),$BU$9:$BV$163,2,0),"") -> Japana Swim Through | CC71: =IF(ISNUMBER(SEARCH($B$17,CD71)),MAX($CC$8:CC70)+1,0) -> 63 | CD71: Japana Swim Through | CG71: =IFERROR(VLOOKUP(ROWS($CD$9:CD71),$CC$9:$CD$163,2,0),"") -> Japana Swim Through | CK71: =IF(ISNUMBER(SEARCH($B$18,CL71)),MAX($CK$8:CK70)+1,0) -> 63 | CL71: Japana Swim Through | CO71: =IFERROR(VLOOKUP(ROWS($CL$9:CL71),$CK$9:$CL$163,2,0),"") -> Japana Swim Through
Q72: =IF(ISNUMBER(SEARCH($B$9,R72)),MAX($Q$8:Q71)+1,0) -> 64 | R72: Fall to Prone Jump to Straddle Stand | U72: =IFERROR(VLOOKUP(ROWS($R$9:R72),$Q$9:$R$163,2,0),"") -> Fall to Prone Jump to Straddle Stand | Y72: =IF(ISNUMBER(SEARCH($B$10,Z72)),MAX($Y$8:Y71)+1,0) -> 64 | Z72: Fall to Prone Jump to Straddle Stand | AC72: =IFERROR(VLOOKUP(ROWS($Z$9:Z72),$Y$9:$Z$163,2,0),"") -> Fall to Prone Jump to Straddle Stand | AG72: =IF(ISNUMBER(SEARCH($B$11,AH72)),MAX($AG$8:AG71)+1,0) -> 64 | AH72: Fall to Prone Jump to Straddle Stand | AK72: =IFERROR(VLOOKUP(ROWS($AH$9:AH72),$AG$9:$AH$163,2,0),"") -> Fall to Prone Jump to Straddle Stand | AO72: =IF(ISNUMBER(SEARCH($B$12,AP72)),MAX($AO$8:AO71)+1,0) -> 64 | AP72: Fall to Prone Jump to Straddle Stand | AS72: =IFERROR(VLOOKUP(ROWS($AP$9:AP72),$AO$9:$AP$163,2,0),"") -> Fall to Prone Jump to Straddle Stand | AW72: =IF(ISNUMBER(SEARCH($B$13,AX72)),MAX($AW$8:AW71)+1,0) -> 64 | AX72: Fall to Prone Jump to Straddle Stand | BA72: =IFERROR(VLOOKUP(ROWS($AX$9:AX72),$AW$9:$AX$163,2,0),"") -> Fall to Prone Jump to Straddle Stand | BE72: =IF(ISNUMBER(SEARCH($B$14,BF72)),MAX($BE$8:BE71)+1,0) -> 64 | BF72: Fall to Prone Jump to Straddle Stand | BI72: =IFERROR(VLOOKUP(ROWS($BF$9:BF72),$BE$9:$BF$163,2,0),"") -> Fall to Prone Jump to Straddle Stand | BM72: =IF(ISNUMBER(SEARCH($B$15,BN72)),MAX($BM$8:BM71)+1,0) -> 64 | BN72: Fall to Prone Jump to Straddle Stand | BQ72: =IFERROR(VLOOKUP(ROWS($BN$9:BN72),$BM$9:$BN$163,2,0),"") -> Fall to Prone Jump to Straddle Stand | BU72: =IF(ISNUMBER(SEARCH($B$16,BV72)),MAX($BU$8:BU71)+1,0) -> 64 | BV72: Fall to Prone Jump to Straddle Stand | BY72: =IFERROR(VLOOKUP(ROWS($BV$9:BV72),$BU$9:$BV$163,2,0),"") -> Fall to Prone Jump to Straddle Stand | CC72: =IF(ISNUMBER(SEARCH($B$17,CD72)),MAX($CC$8:CC71)+1,0) -> 64 | CD72: Fall to Prone Jump to Straddle Stand | CG72: =IFERROR(VLOOKUP(ROWS($CD$9:CD72),$CC$9:$CD$163,2,0),"") -> Fall to Prone Jump to Straddle Stand | CK72: =IF(ISNUMBER(SEARCH($B$18,CL72)),MAX($CK$8:CK71)+1,0) -> 64 | CL72: Fall to Prone Jump to Straddle Stand | CO72: =IFERROR(VLOOKUP(ROWS($CL$9:CL72),$CK$9:$CL$163,2,0),"") -> Fall to Prone Jump to Straddle Stand
Q73: =IF(ISNUMBER(SEARCH($B$9,R73)),MAX($Q$8:Q72)+1,0) -> 65 | R73: F Supp jump legs through straddle - | U73: =IFERROR(VLOOKUP(ROWS($R$9:R73),$Q$9:$R$163,2,0),"") -> F Supp jump legs through straddle - | Y73: =IF(ISNUMBER(SEARCH($B$10,Z73)),MAX($Y$8:Y72)+1,0) -> 65 | Z73: F Supp jump legs through straddle - | AC73: =IFERROR(VLOOKUP(ROWS($Z$9:Z73),$Y$9:$Z$163,2,0),"") -> F Supp jump legs through straddle - | AG73: =IF(ISNUMBER(SEARCH($B$11,AH73)),MAX($AG$8:AG72)+1,0) -> 65 | AH73: F Supp jump legs through straddle - | AK73: =IFERROR(VLOOKUP(ROWS($AH$9:AH73),$AG$9:$AH$163,2,0),"") -> F Supp jump legs through straddle - | AO73: =IF(ISNUMBER(SEARCH($B$12,AP73)),MAX($AO$8:AO72)+1,0) -> 65 | AP73: F Supp jump legs through straddle - | AS73: =IFERROR(VLOOKUP(ROWS($AP$9:AP73),$AO$9:$AP$163,2,0),"") -> F Supp jump legs through straddle - | AW73: =IF(ISNUMBER(SEARCH($B$13,AX73)),MAX($AW$8:AW72)+1,0) -> 65 | AX73: F Supp jump legs through straddle - | BA73: =IFERROR(VLOOKUP(ROWS($AX$9:AX73),$AW$9:$AX$163,2,0),"") -> F Supp jump legs through straddle - | BE73: =IF(ISNUMBER(SEARCH($B$14,BF73)),MAX($BE$8:BE72)+1,0) -> 65 | BF73: F Supp jump legs through straddle - | BI73: =IFERROR(VLOOKUP(ROWS($BF$9:BF73),$BE$9:$BF$163,2,0),"") -> F Supp jump legs through straddle - | BM73: =IF(ISNUMBER(SEARCH($B$15,BN73)),MAX($BM$8:BM72)+1,0) -> 65 | BN73: F Supp jump legs through straddle - | BQ73: =IFERROR(VLOOKUP(ROWS($BN$9:BN73),$BM$9:$BN$163,2,0),"") -> F Supp jump legs through straddle - | BU73: =IF(ISNUMBER(SEARCH($B$16,BV73)),MAX($BU$8:BU72)+1,0) -> 65 | BV73: F Supp jump legs through straddle - | BY73: =IFERROR(VLOOKUP(ROWS($BV$9:BV73),$BU$9:$BV$163,2,0),"") -> F Supp jump legs through straddle - | CC73: =IF(ISNUMBER(SEARCH($B$17,CD73)),MAX($CC$8:CC72)+1,0) -> 65 | CD73: F Supp jump legs through straddle - | CG73: =IFERROR(VLOOKUP(ROWS($CD$9:CD73),$CC$9:$CD$163,2,0),"") -> F Supp jump legs through straddle - | CK73: =IF(ISNUMBER(SEARCH($B$18,CL73)),MAX($CK$8:CK72)+1,0) -> 65 | CL73: F Supp jump legs through straddle - | CO73: =IFERROR(VLOOKUP(ROWS($CL$9:CL73),$CK$9:$CL$163,2,0),"") -> F Supp jump legs through straddle -
Q74: =IF(ISNUMBER(SEARCH($B$9,R74)),MAX($Q$8:Q73)+1,0) -> 66 | R74: Tuck ‘Russian’ Lever | U74: =IFERROR(VLOOKUP(ROWS($R$9:R74),$Q$9:$R$163,2,0),"") -> Tuck ‘Russian’ Lever | Y74: =IF(ISNUMBER(SEARCH($B$10,Z74)),MAX($Y$8:Y73)+1,0) -> 66 | Z74: Tuck ‘Russian’ Lever | AC74: =IFERROR(VLOOKUP(ROWS($Z$9:Z74),$Y$9:$Z$163,2,0),"") -> Tuck ‘Russian’ Lever | AG74: =IF(ISNUMBER(SEARCH($B$11,AH74)),MAX($AG$8:AG73)+1,0) -> 66 | AH74: Tuck ‘Russian’ Lever | AK74: =IFERROR(VLOOKUP(ROWS($AH$9:AH74),$AG$9:$AH$163,2,0),"") -> Tuck ‘Russian’ Lever | AO74: =IF(ISNUMBER(SEARCH($B$12,AP74)),MAX($AO$8:AO73)+1,0) -> 66 | AP74: Tuck ‘Russian’ Lever | AS74: =IFERROR(VLOOKUP(ROWS($AP$9:AP74),$AO$9:$AP$163,2,0),"") -> Tuck ‘Russian’ Lever | AW74: =IF(ISNUMBER(SEARCH($B$13,AX74)),MAX($AW$8:AW73)+1,0) -> 66 | AX74: Tuck ‘Russian’ Lever | BA74: =IFERROR(VLOOKUP(ROWS($AX$9:AX74),$AW$9:$AX$163,2,0),"") -> Tuck ‘Russian’ Lever | BE74: =IF(ISNUMBER(SEARCH($B$14,BF74)),MAX($BE$8:BE73)+1,0) -> 66 | BF74: Tuck ‘Russian’ Lever | BI74: =IFERROR(VLOOKUP(ROWS($BF$9:BF74),$BE$9:$BF$163,2,0),"") -> Tuck ‘Russian’ Lever | BM74: =IF(ISNUMBER(SEARCH($B$15,BN74)),MAX($BM$8:BM73)+1,0) -> 66 | BN74: Tuck ‘Russian’ Lever | BQ74: =IFERROR(VLOOKUP(ROWS($BN$9:BN74),$BM$9:$BN$163,2,0),"") -> Tuck ‘Russian’ Lever | BU74: =IF(ISNUMBER(SEARCH($B$16,BV74)),MAX($BU$8:BU73)+1,0) -> 66 | BV74: Tuck ‘Russian’ Lever | BY74: =IFERROR(VLOOKUP(ROWS($BV$9:BV74),$BU$9:$BV$163,2,0),"") -> Tuck ‘Russian’ Lever | CC74: =IF(ISNUMBER(SEARCH($B$17,CD74)),MAX($CC$8:CC73)+1,0) -> 66 | CD74: Tuck ‘Russian’ Lever | CG74: =IFERROR(VLOOKUP(ROWS($CD$9:CD74),$CC$9:$CD$163,2,0),"") -> Tuck ‘Russian’ Lever | CK74: =IF(ISNUMBER(SEARCH($B$18,CL74)),MAX($CK$8:CK73)+1,0) -> 66 | CL74: Tuck ‘Russian’ Lever | CO74: =IFERROR(VLOOKUP(ROWS($CL$9:CL74),$CK$9:$CL$163,2,0),"") -> Tuck ‘Russian’ Lever
Q75: =IF(ISNUMBER(SEARCH($B$9,R75)),MAX($Q$8:Q74)+1,0) -> 67 | R75: Tucked hold (press off knees) | U75: =IFERROR(VLOOKUP(ROWS($R$9:R75),$Q$9:$R$163,2,0),"") -> Tucked hold (press off knees) | Y75: =IF(ISNUMBER(SEARCH($B$10,Z75)),MAX($Y$8:Y74)+1,0) -> 67 | Z75: Tucked hold (press off knees) | AC75: =IFERROR(VLOOKUP(ROWS($Z$9:Z75),$Y$9:$Z$163,2,0),"") -> Tucked hold (press off knees) | AG75: =IF(ISNUMBER(SEARCH($B$11,AH75)),MAX($AG$8:AG74)+1,0) -> 67 | AH75: Tucked hold (press off knees) | AK75: =IFERROR(VLOOKUP(ROWS($AH$9:AH75),$AG$9:$AH$163,2,0),"") -> Tucked hold (press off knees) | AO75: =IF(ISNUMBER(SEARCH($B$12,AP75)),MAX($AO$8:AO74)+1,0) -> 67 | AP75: Tucked hold (press off knees) | AS75: =IFERROR(VLOOKUP(ROWS($AP$9:AP75),$AO$9:$AP$163,2,0),"") -> Tucked hold (press off knees) | AW75: =IF(ISNUMBER(SEARCH($B$13,AX75)),MAX($AW$8:AW74)+1,0) -> 67 | AX75: Tucked hold (press off knees) | BA75: =IFERROR(VLOOKUP(ROWS($AX$9:AX75),$AW$9:$AX$163,2,0),"") -> Tucked hold (press off knees) | BE75: =IF(ISNUMBER(SEARCH($B$14,BF75)),MAX($BE$8:BE74)+1,0) -> 67 | BF75: Tucked hold (press off knees) | BI75: =IFERROR(VLOOKUP(ROWS($BF$9:BF75),$BE$9:$BF$163,2,0),"") -> Tucked hold (press off knees) | BM75: =IF(ISNUMBER(SEARCH($B$15,BN75)),MAX($BM$8:BM74)+1,0) -> 67 | BN75: Tucked hold (press off knees) | BQ75: =IFERROR(VLOOKUP(ROWS($BN$9:BN75),$BM$9:$BN$163,2,0),"") -> Tucked hold (press off knees) | BU75: =IF(ISNUMBER(SEARCH($B$16,BV75)),MAX($BU$8:BU74)+1,0) -> 67 | BV75: Tucked hold (press off knees) | BY75: =IFERROR(VLOOKUP(ROWS($BV$9:BV75),$BU$9:$BV$163,2,0),"") -> Tucked hold (press off knees) | CC75: =IF(ISNUMBER(SEARCH($B$17,CD75)),MAX($CC$8:CC74)+1,0) -> 67 | CD75: Tucked hold (press off knees) | CG75: =IFERROR(VLOOKUP(ROWS($CD$9:CD75),$CC$9:$CD$163,2,0),"") -> Tucked hold (press off knees) | CK75: =IF(ISNUMBER(SEARCH($B$18,CL75)),MAX($CK$8:CK74)+1,0) -> 67 | CL75: Tucked hold (press off knees) | CO75: =IFERROR(VLOOKUP(ROWS($CL$9:CL75),$CK$9:$CL$163,2,0),"") -> Tucked hold (press off knees)
Q76: =IF(ISNUMBER(SEARCH($B$9,R76)),MAX($Q$8:Q75)+1,0) -> 68 | R76: 1/2 lever held 2 secs (pike / straddle) | U76: =IFERROR(VLOOKUP(ROWS($R$9:R76),$Q$9:$R$163,2,0),"") -> 1/2 lever held 2 secs (pike / straddle) | Y76: =IF(ISNUMBER(SEARCH($B$10,Z76)),MAX($Y$8:Y75)+1,0) -> 68 | Z76: 1/2 lever held 2 secs (pike / straddle) | AC76: =IFERROR(VLOOKUP(ROWS($Z$9:Z76),$Y$9:$Z$163,2,0),"") -> 1/2 lever held 2 secs (pike / straddle) | AG76: =IF(ISNUMBER(SEARCH($B$11,AH76)),MAX($AG$8:AG75)+1,0) -> 68 | AH76: 1/2 lever held 2 secs (pike / straddle) | AK76: =IFERROR(VLOOKUP(ROWS($AH$9:AH76),$AG$9:$AH$163,2,0),"") -> 1/2 lever held 2 secs (pike / straddle) | AO76: =IF(ISNUMBER(SEARCH($B$12,AP76)),MAX($AO$8:AO75)+1,0) -> 68 | AP76: 1/2 lever held 2 secs (pike / straddle) | AS76: =IFERROR(VLOOKUP(ROWS($AP$9:AP76),$AO$9:$AP$163,2,0),"") -> 1/2 lever held 2 secs (pike / straddle) | AW76: =IF(ISNUMBER(SEARCH($B$13,AX76)),MAX($AW$8:AW75)+1,0) -> 68 | AX76: 1/2 lever held 2 secs (pike / straddle) | BA76: =IFERROR(VLOOKUP(ROWS($AX$9:AX76),$AW$9:$AX$163,2,0),"") -> 1/2 lever held 2 secs (pike / straddle) | BE76: =IF(ISNUMBER(SEARCH($B$14,BF76)),MAX($BE$8:BE75)+1,0) -> 68 | BF76: 1/2 lever held 2 secs (pike / straddle) | BI76: =IFERROR(VLOOKUP(ROWS($BF$9:BF76),$BE$9:$BF$163,2,0),"") -> 1/2 lever held 2 secs (pike / straddle) | BM76: =IF(ISNUMBER(SEARCH($B$15,BN76)),MAX($BM$8:BM75)+1,0) -> 68 | BN76: 1/2 lever held 2 secs (pike / straddle) | BQ76: =IFERROR(VLOOKUP(ROWS($BN$9:BN76),$BM$9:$BN$163,2,0),"") -> 1/2 lever held 2 secs (pike / straddle) | BU76: =IF(ISNUMBER(SEARCH($B$16,BV76)),MAX($BU$8:BU75)+1,0) -> 68 | BV76: 1/2 lever held 2 secs (pike / straddle) | BY76: =IFERROR(VLOOKUP(ROWS($BV$9:BV76),$BU$9:$BV$163,2,0),"") -> 1/2 lever held 2 secs (pike / straddle) | CC76: =IF(ISNUMBER(SEARCH($B$17,CD76)),MAX($CC$8:CC75)+1,0) -> 68 | CD76: 1/2 lever held 2 secs (pike / straddle) | CG76: =IFERROR(VLOOKUP(ROWS($CD$9:CD76),$CC$9:$CD$163,2,0),"") -> 1/2 lever held 2 secs (pike / straddle) | CK76: =IF(ISNUMBER(SEARCH($B$18,CL76)),MAX($CK$8:CK75)+1,0) -> 68 | CL76: 1/2 lever held 2 secs (pike / straddle) | CO76: =IFERROR(VLOOKUP(ROWS($CL$9:CL76),$CK$9:$CL$163,2,0),"") -> 1/2 lever held 2 secs (pike / straddle)
Q77: =IF(ISNUMBER(SEARCH($B$9,R77)),MAX($Q$8:Q76)+1,0) -> 69 | R77: Straddle stand press to h/stand | U77: =IFERROR(VLOOKUP(ROWS($R$9:R77),$Q$9:$R$163,2,0),"") -> Straddle stand press to h/stand | Y77: =IF(ISNUMBER(SEARCH($B$10,Z77)),MAX($Y$8:Y76)+1,0) -> 69 | Z77: Straddle stand press to h/stand | AC77: =IFERROR(VLOOKUP(ROWS($Z$9:Z77),$Y$9:$Z$163,2,0),"") -> Straddle stand press to h/stand | AG77: =IF(ISNUMBER(SEARCH($B$11,AH77)),MAX($AG$8:AG76)+1,0) -> 69 | AH77: Straddle stand press to h/stand | AK77: =IFERROR(VLOOKUP(ROWS($AH$9:AH77),$AG$9:$AH$163,2,0),"") -> Straddle stand press to h/stand | AO77: =IF(ISNUMBER(SEARCH($B$12,AP77)),MAX($AO$8:AO76)+1,0) -> 69 | AP77: Straddle stand press to h/stand | AS77: =IFERROR(VLOOKUP(ROWS($AP$9:AP77),$AO$9:$AP$163,2,0),"") -> Straddle stand press to h/stand | AW77: =IF(ISNUMBER(SEARCH($B$13,AX77)),MAX($AW$8:AW76)+1,0) -> 69 | AX77: Straddle stand press to h/stand | BA77: =IFERROR(VLOOKUP(ROWS($AX$9:AX77),$AW$9:$AX$163,2,0),"") -> Straddle stand press to h/stand | BE77: =IF(ISNUMBER(SEARCH($B$14,BF77)),MAX($BE$8:BE76)+1,0) -> 69 | BF77: Straddle stand press to h/stand | BI77: =IFERROR(VLOOKUP(ROWS($BF$9:BF77),$BE$9:$BF$163,2,0),"") -> Straddle stand press to h/stand | BM77: =IF(ISNUMBER(SEARCH($B$15,BN77)),MAX($BM$8:BM76)+1,0) -> 69 | BN77: Straddle stand press to h/stand | BQ77: =IFERROR(VLOOKUP(ROWS($BN$9:BN77),$BM$9:$BN$163,2,0),"") -> Straddle stand press to h/stand | BU77: =IF(ISNUMBER(SEARCH($B$16,BV77)),MAX($BU$8:BU76)+1,0) -> 69 | BV77: Straddle stand press to h/stand | BY77: =IFERROR(VLOOKUP(ROWS($BV$9:BV77),$BU$9:$BV$163,2,0),"") -> Straddle stand press to h/stand | CC77: =IF(ISNUMBER(SEARCH($B$17,CD77)),MAX($CC$8:CC76)+1,0) -> 69 | CD77: Straddle stand press to h/stand | CG77: =IFERROR(VLOOKUP(ROWS($CD$9:CD77),$CC$9:$CD$163,2,0),"") -> Straddle stand press to h/stand | CK77: =IF(ISNUMBER(SEARCH($B$18,CL77)),MAX($CK$8:CK76)+1,0) -> 69 | CL77: Straddle stand press to h/stand | CO77: =IFERROR(VLOOKUP(ROWS($CL$9:CL77),$CK$9:$CL$163,2,0),"") -> Straddle stand press to h/stand
Q78: =IF(ISNUMBER(SEARCH($B$9,R78)),MAX($Q$8:Q77)+1,0) -> 70 | R78: Forward roll with straight legs | U78: =IFERROR(VLOOKUP(ROWS($R$9:R78),$Q$9:$R$163,2,0),"") -> Forward roll with straight legs | Y78: =IF(ISNUMBER(SEARCH($B$10,Z78)),MAX($Y$8:Y77)+1,0) -> 70 | Z78: Forward roll with straight legs | AC78: =IFERROR(VLOOKUP(ROWS($Z$9:Z78),$Y$9:$Z$163,2,0),"") -> Forward roll with straight legs | AG78: =IF(ISNUMBER(SEARCH($B$11,AH78)),MAX($AG$8:AG77)+1,0) -> 70 | AH78: Forward roll with straight legs | AK78: =IFERROR(VLOOKUP(ROWS($AH$9:AH78),$AG$9:$AH$163,2,0),"") -> Forward roll with straight legs | AO78: =IF(ISNUMBER(SEARCH($B$12,AP78)),MAX($AO$8:AO77)+1,0) -> 70 | AP78: Forward roll with straight legs | AS78: =IFERROR(VLOOKUP(ROWS($AP$9:AP78),$AO$9:$AP$163,2,0),"") -> Forward roll with straight legs | AW78: =IF(ISNUMBER(SEARCH($B$13,AX78)),MAX($AW$8:AW77)+1,0) -> 70 | AX78: Forward roll with straight legs | BA78: =IFERROR(VLOOKUP(ROWS($AX$9:AX78),$AW$9:$AX$163,2,0),"") -> Forward roll with straight legs | BE78: =IF(ISNUMBER(SEARCH($B$14,BF78)),MAX($BE$8:BE77)+1,0) -> 70 | BF78: Forward roll with straight legs | BI78: =IFERROR(VLOOKUP(ROWS($BF$9:BF78),$BE$9:$BF$163,2,0),"") -> Forward roll with straight legs | BM78: =IF(ISNUMBER(SEARCH($B$15,BN78)),MAX($BM$8:BM77)+1,0) -> 70 | BN78: Forward roll with straight legs | BQ78: =IFERROR(VLOOKUP(ROWS($BN$9:BN78),$BM$9:$BN$163,2,0),"") -> Forward roll with straight legs | BU78: =IF(ISNUMBER(SEARCH($B$16,BV78)),MAX($BU$8:BU77)+1,0) -> 70 | BV78: Forward roll with straight legs | BY78: =IFERROR(VLOOKUP(ROWS($BV$9:BV78),$BU$9:$BV$163,2,0),"") -> Forward roll with straight legs | CC78: =IF(ISNUMBER(SEARCH($B$17,CD78)),MAX($CC$8:CC77)+1,0) -> 70 | CD78: Forward roll with straight legs | CG78: =IFERROR(VLOOKUP(ROWS($CD$9:CD78),$CC$9:$CD$163,2,0),"") -> Forward roll with straight legs | CK78: =IF(ISNUMBER(SEARCH($B$18,CL78)),MAX($CK$8:CK77)+1,0) -> 70 | CL78: Forward roll with straight legs | CO78: =IFERROR(VLOOKUP(ROWS($CL$9:CL78),$CK$9:$CL$163,2,0),"") -> Forward roll with straight legs
Q79: =IF(ISNUMBER(SEARCH($B$9,R79)),MAX($Q$8:Q78)+1,0) -> 71 | R79: H/stand F Roll straight arms | U79: =IFERROR(VLOOKUP(ROWS($R$9:R79),$Q$9:$R$163,2,0),"") -> H/stand F Roll straight arms | Y79: =IF(ISNUMBER(SEARCH($B$10,Z79)),MAX($Y$8:Y78)+1,0) -> 71 | Z79: H/stand F Roll straight arms | AC79: =IFERROR(VLOOKUP(ROWS($Z$9:Z79),$Y$9:$Z$163,2,0),"") -> H/stand F Roll straight arms | AG79: =IF(ISNUMBER(SEARCH($B$11,AH79)),MAX($AG$8:AG78)+1,0) -> 71 | AH79: H/stand F Roll straight arms | AK79: =IFERROR(VLOOKUP(ROWS($AH$9:AH79),$AG$9:$AH$163,2,0),"") -> H/stand F Roll straight arms | AO79: =IF(ISNUMBER(SEARCH($B$12,AP79)),MAX($AO$8:AO78)+1,0) -> 71 | AP79: H/stand F Roll straight arms | AS79: =IFERROR(VLOOKUP(ROWS($AP$9:AP79),$AO$9:$AP$163,2,0),"") -> H/stand F Roll straight arms | AW79: =IF(ISNUMBER(SEARCH($B$13,AX79)),MAX($AW$8:AW78)+1,0) -> 71 | AX79: H/stand F Roll straight arms | BA79: =IFERROR(VLOOKUP(ROWS($AX$9:AX79),$AW$9:$AX$163,2,0),"") -> H/stand F Roll straight arms | BE79: =IF(ISNUMBER(SEARCH($B$14,BF79)),MAX($BE$8:BE78)+1,0) -> 71 | BF79: H/stand F Roll straight arms | BI79: =IFERROR(VLOOKUP(ROWS($BF$9:BF79),$BE$9:$BF$163,2,0),"") -> H/stand F Roll straight arms | BM79: =IF(ISNUMBER(SEARCH($B$15,BN79)),MAX($BM$8:BM78)+1,0) -> 71 | BN79: H/stand F Roll straight arms | BQ79: =IFERROR(VLOOKUP(ROWS($BN$9:BN79),$BM$9:$BN$163,2,0),"") -> H/stand F Roll straight arms | BU79: =IF(ISNUMBER(SEARCH($B$16,BV79)),MAX($BU$8:BU78)+1,0) -> 71 | BV79: H/stand F Roll straight arms | BY79: =IFERROR(VLOOKUP(ROWS($BV$9:BV79),$BU$9:$BV$163,2,0),"") -> H/stand F Roll straight arms | CC79: =IF(ISNUMBER(SEARCH($B$17,CD79)),MAX($CC$8:CC78)+1,0) -> 71 | CD79: H/stand F Roll straight arms | CG79: =IFERROR(VLOOKUP(ROWS($CD$9:CD79),$CC$9:$CD$163,2,0),"") -> H/stand F Roll straight arms | CK79: =IF(ISNUMBER(SEARCH($B$18,CL79)),MAX($CK$8:CK78)+1,0) -> 71 | CL79: H/stand F Roll straight arms | CO79: =IFERROR(VLOOKUP(ROWS($CL$9:CL79),$CK$9:$CL$163,2,0),"") -> H/stand F Roll straight arms
Q80: =IF(ISNUMBER(SEARCH($B$9,R80)),MAX($Q$8:Q79)+1,0) -> 72 | R80: B Roll through h/stand | U80: =IFERROR(VLOOKUP(ROWS($R$9:R80),$Q$9:$R$163,2,0),"") -> B Roll through h/stand | Y80: =IF(ISNUMBER(SEARCH($B$10,Z80)),MAX($Y$8:Y79)+1,0) -> 72 | Z80: B Roll through h/stand | AC80: =IFERROR(VLOOKUP(ROWS($Z$9:Z80),$Y$9:$Z$163,2,0),"") -> B Roll through h/stand | AG80: =IF(ISNUMBER(SEARCH($B$11,AH80)),MAX($AG$8:AG79)+1,0) -> 72 | AH80: B Roll through h/stand | AK80: =IFERROR(VLOOKUP(ROWS($AH$9:AH80),$AG$9:$AH$163,2,0),"") -> B Roll through h/stand | AO80: =IF(ISNUMBER(SEARCH($B$12,AP80)),MAX($AO$8:AO79)+1,0) -> 72 | AP80: B Roll through h/stand | AS80: =IFERROR(VLOOKUP(ROWS($AP$9:AP80),$AO$9:$AP$163,2,0),"") -> B Roll through h/stand | AW80: =IF(ISNUMBER(SEARCH($B$13,AX80)),MAX($AW$8:AW79)+1,0) -> 72 | AX80: B Roll through h/stand | BA80: =IFERROR(VLOOKUP(ROWS($AX$9:AX80),$AW$9:$AX$163,2,0),"") -> B Roll through h/stand | BE80: =IF(ISNUMBER(SEARCH($B$14,BF80)),MAX($BE$8:BE79)+1,0) -> 72 | BF80: B Roll through h/stand | BI80: =IFERROR(VLOOKUP(ROWS($BF$9:BF80),$BE$9:$BF$163,2,0),"") -> B Roll through h/stand | BM80: =IF(ISNUMBER(SEARCH($B$15,BN80)),MAX($BM$8:BM79)+1,0) -> 72 | BN80: B Roll through h/stand | BQ80: =IFERROR(VLOOKUP(ROWS($BN$9:BN80),$BM$9:$BN$163,2,0),"") -> B Roll through h/stand | BU80: =IF(ISNUMBER(SEARCH($B$16,BV80)),MAX($BU$8:BU79)+1,0) -> 72 | BV80: B Roll through h/stand | BY80: =IFERROR(VLOOKUP(ROWS($BV$9:BV80),$BU$9:$BV$163,2,0),"") -> B Roll through h/stand | CC80: =IF(ISNUMBER(SEARCH($B$17,CD80)),MAX($CC$8:CC79)+1,0) -> 72 | CD80: B Roll through h/stand | CG80: =IFERROR(VLOOKUP(ROWS($CD$9:CD80),$CC$9:$CD$163,2,0),"") -> B Roll through h/stand | CK80: =IF(ISNUMBER(SEARCH($B$18,CL80)),MAX($CK$8:CK79)+1,0) -> 72 | CL80: B Roll through h/stand | CO80: =IFERROR(VLOOKUP(ROWS($CL$9:CL80),$CK$9:$CL$163,2,0),"") -> B Roll through h/stand
Q81: =IF(ISNUMBER(SEARCH($B$9,R81)),MAX($Q$8:Q80)+1,0) -> 73 | R81: Handstand full pirouette | U81: =IFERROR(VLOOKUP(ROWS($R$9:R81),$Q$9:$R$163,2,0),"") -> Handstand full pirouette | Y81: =IF(ISNUMBER(SEARCH($B$10,Z81)),MAX($Y$8:Y80)+1,0) -> 73 | Z81: Handstand full pirouette | AC81: =IFERROR(VLOOKUP(ROWS($Z$9:Z81),$Y$9:$Z$163,2,0),"") -> Handstand full pirouette | AG81: =IF(ISNUMBER(SEARCH($B$11,AH81)),MAX($AG$8:AG80)+1,0) -> 73 | AH81: Handstand full pirouette | AK81: =IFERROR(VLOOKUP(ROWS($AH$9:AH81),$AG$9:$AH$163,2,0),"") -> Handstand full pirouette | AO81: =IF(ISNUMBER(SEARCH($B$12,AP81)),MAX($AO$8:AO80)+1,0) -> 73 | AP81: Handstand full pirouette | AS81: =IFERROR(VLOOKUP(ROWS($AP$9:AP81),$AO$9:$AP$163,2,0),"") -> Handstand full pirouette | AW81: =IF(ISNUMBER(SEARCH($B$13,AX81)),MAX($AW$8:AW80)+1,0) -> 73 | AX81: Handstand full pirouette | BA81: =IFERROR(VLOOKUP(ROWS($AX$9:AX81),$AW$9:$AX$163,2,0),"") -> Handstand full pirouette | BE81: =IF(ISNUMBER(SEARCH($B$14,BF81)),MAX($BE$8:BE80)+1,0) -> 73 | BF81: Handstand full pirouette | BI81: =IFERROR(VLOOKUP(ROWS($BF$9:BF81),$BE$9:$BF$163,2,0),"") -> Handstand full pirouette | BM81: =IF(ISNUMBER(SEARCH($B$15,BN81)),MAX($BM$8:BM80)+1,0) -> 73 | BN81: Handstand full pirouette | BQ81: =IFERROR(VLOOKUP(ROWS($BN$9:BN81),$BM$9:$BN$163,2,0),"") -> Handstand full pirouette | BU81: =IF(ISNUMBER(SEARCH($B$16,BV81)),MAX($BU$8:BU80)+1,0) -> 73 | BV81: Handstand full pirouette | BY81: =IFERROR(VLOOKUP(ROWS($BV$9:BV81),$BU$9:$BV$163,2,0),"") -> Handstand full pirouette | CC81: =IF(ISNUMBER(SEARCH($B$17,CD81)),MAX($CC$8:CC80)+1,0) -> 73 | CD81: Handstand full pirouette | CG81: =IFERROR(VLOOKUP(ROWS($CD$9:CD81),$CC$9:$CD$163,2,0),"") -> Handstand full pirouette | CK81: =IF(ISNUMBER(SEARCH($B$18,CL81)),MAX($CK$8:CK80)+1,0) -> 73 | CL81: Handstand full pirouette | CO81: =IFERROR(VLOOKUP(ROWS($CL$9:CL81),$CK$9:$CL$163,2,0),"") -> Handstand full pirouette
Q82: =IF(ISNUMBER(SEARCH($B$9,R82)),MAX($Q$8:Q81)+1,0) -> 74 | R82: Pike Bunny Hop to Handstand - | U82: =IFERROR(VLOOKUP(ROWS($R$9:R82),$Q$9:$R$163,2,0),"") -> Pike Bunny Hop to Handstand - | Y82: =IF(ISNUMBER(SEARCH($B$10,Z82)),MAX($Y$8:Y81)+1,0) -> 74 | Z82: Pike Bunny Hop to Handstand - | AC82: =IFERROR(VLOOKUP(ROWS($Z$9:Z82),$Y$9:$Z$163,2,0),"") -> Pike Bunny Hop to Handstand - | AG82: =IF(ISNUMBER(SEARCH($B$11,AH82)),MAX($AG$8:AG81)+1,0) -> 74 | AH82: Pike Bunny Hop to Handstand - | AK82: =IFERROR(VLOOKUP(ROWS($AH$9:AH82),$AG$9:$AH$163,2,0),"") -> Pike Bunny Hop to Handstand - | AO82: =IF(ISNUMBER(SEARCH($B$12,AP82)),MAX($AO$8:AO81)+1,0) -> 74 | AP82: Pike Bunny Hop to Handstand - | AS82: =IFERROR(VLOOKUP(ROWS($AP$9:AP82),$AO$9:$AP$163,2,0),"") -> Pike Bunny Hop to Handstand - | AW82: =IF(ISNUMBER(SEARCH($B$13,AX82)),MAX($AW$8:AW81)+1,0) -> 74 | AX82: Pike Bunny Hop to Handstand - | BA82: =IFERROR(VLOOKUP(ROWS($AX$9:AX82),$AW$9:$AX$163,2,0),"") -> Pike Bunny Hop to Handstand - | BE82: =IF(ISNUMBER(SEARCH($B$14,BF82)),MAX($BE$8:BE81)+1,0) -> 74 | BF82: Pike Bunny Hop to Handstand - | BI82: =IFERROR(VLOOKUP(ROWS($BF$9:BF82),$BE$9:$BF$163,2,0),"") -> Pike Bunny Hop to Handstand - | BM82: =IF(ISNUMBER(SEARCH($B$15,BN82)),MAX($BM$8:BM81)+1,0) -> 74 | BN82: Pike Bunny Hop to Handstand - | BQ82: =IFERROR(VLOOKUP(ROWS($BN$9:BN82),$BM$9:$BN$163,2,0),"") -> Pike Bunny Hop to Handstand - | BU82: =IF(ISNUMBER(SEARCH($B$16,BV82)),MAX($BU$8:BU81)+1,0) -> 74 | BV82: Pike Bunny Hop to Handstand - | BY82: =IFERROR(VLOOKUP(ROWS($BV$9:BV82),$BU$9:$BV$163,2,0),"") -> Pike Bunny Hop to Handstand - | CC82: =IF(ISNUMBER(SEARCH($B$17,CD82)),MAX($CC$8:CC81)+1,0) -> 74 | CD82: Pike Bunny Hop to Handstand - | CG82: =IFERROR(VLOOKUP(ROWS($CD$9:CD82),$CC$9:$CD$163,2,0),"") -> Pike Bunny Hop to Handstand - | CK82: =IF(ISNUMBER(SEARCH($B$18,CL82)),MAX($CK$8:CK81)+1,0) -> 74 | CL82: Pike Bunny Hop to Handstand - | CO82: =IFERROR(VLOOKUP(ROWS($CL$9:CL82),$CK$9:$CL$163,2,0),"") -> Pike Bunny Hop to Handstand -
Q83: =IF(ISNUMBER(SEARCH($B$9,R83)),MAX($Q$8:Q82)+1,0) -> 75 | R83: Half Double Leg Circle | U83: =IFERROR(VLOOKUP(ROWS($R$9:R83),$Q$9:$R$163,2,0),"") -> Half Double Leg Circle | Y83: =IF(ISNUMBER(SEARCH($B$10,Z83)),MAX($Y$8:Y82)+1,0) -> 75 | Z83: Half Double Leg Circle | AC83: =IFERROR(VLOOKUP(ROWS($Z$9:Z83),$Y$9:$Z$163,2,0),"") -> Half Double Leg Circle | AG83: =IF(ISNUMBER(SEARCH($B$11,AH83)),MAX($AG$8:AG82)+1,0) -> 75 | AH83: Half Double Leg Circle | AK83: =IFERROR(VLOOKUP(ROWS($AH$9:AH83),$AG$9:$AH$163,2,0),"") -> Half Double Leg Circle | AO83: =IF(ISNUMBER(SEARCH($B$12,AP83)),MAX($AO$8:AO82)+1,0) -> 75 | AP83: Half Double Leg Circle | AS83: =IFERROR(VLOOKUP(ROWS($AP$9:AP83),$AO$9:$AP$163,2,0),"") -> Half Double Leg Circle | AW83: =IF(ISNUMBER(SEARCH($B$13,AX83)),MAX($AW$8:AW82)+1,0) -> 75 | AX83: Half Double Leg Circle | BA83: =IFERROR(VLOOKUP(ROWS($AX$9:AX83),$AW$9:$AX$163,2,0),"") -> Half Double Leg Circle | BE83: =IF(ISNUMBER(SEARCH($B$14,BF83)),MAX($BE$8:BE82)+1,0) -> 75 | BF83: Half Double Leg Circle | BI83: =IFERROR(VLOOKUP(ROWS($BF$9:BF83),$BE$9:$BF$163,2,0),"") -> Half Double Leg Circle | BM83: =IF(ISNUMBER(SEARCH($B$15,BN83)),MAX($BM$8:BM82)+1,0) -> 75 | BN83: Half Double Leg Circle | BQ83: =IFERROR(VLOOKUP(ROWS($BN$9:BN83),$BM$9:$BN$163,2,0),"") -> Half Double Leg Circle | BU83: =IF(ISNUMBER(SEARCH($B$16,BV83)),MAX($BU$8:BU82)+1,0) -> 75 | BV83: Half Double Leg Circle | BY83: =IFERROR(VLOOKUP(ROWS($BV$9:BV83),$BU$9:$BV$163,2,0),"") -> Half Double Leg Circle | CC83: =IF(ISNUMBER(SEARCH($B$17,CD83)),MAX($CC$8:CC82)+1,0) -> 75 | CD83: Half Double Leg Circle | CG83: =IFERROR(VLOOKUP(ROWS($CD$9:CD83),$CC$9:$CD$163,2,0),"") -> Half Double Leg Circle | CK83: =IF(ISNUMBER(SEARCH($B$18,CL83)),MAX($CK$8:CK82)+1,0) -> 75 | CL83: Half Double Leg Circle | CO83: =IFERROR(VLOOKUP(ROWS($CL$9:CL83),$CK$9:$CL$163,2,0),"") -> Half Double Leg Circle
Q84: =IF(ISNUMBER(SEARCH($B$9,R84)),MAX($Q$8:Q83)+1,0) -> 76 | R84: Forward walkover | U84: =IFERROR(VLOOKUP(ROWS($R$9:R84),$Q$9:$R$163,2,0),"") -> Forward walkover | Y84: =IF(ISNUMBER(SEARCH($B$10,Z84)),MAX($Y$8:Y83)+1,0) -> 76 | Z84: Forward walkover | AC84: =IFERROR(VLOOKUP(ROWS($Z$9:Z84),$Y$9:$Z$163,2,0),"") -> Forward walkover | AG84: =IF(ISNUMBER(SEARCH($B$11,AH84)),MAX($AG$8:AG83)+1,0) -> 76 | AH84: Forward walkover | AK84: =IFERROR(VLOOKUP(ROWS($AH$9:AH84),$AG$9:$AH$163,2,0),"") -> Forward walkover | AO84: =IF(ISNUMBER(SEARCH($B$12,AP84)),MAX($AO$8:AO83)+1,0) -> 76 | AP84: Forward walkover | AS84: =IFERROR(VLOOKUP(ROWS($AP$9:AP84),$AO$9:$AP$163,2,0),"") -> Forward walkover | AW84: =IF(ISNUMBER(SEARCH($B$13,AX84)),MAX($AW$8:AW83)+1,0) -> 76 | AX84: Forward walkover | BA84: =IFERROR(VLOOKUP(ROWS($AX$9:AX84),$AW$9:$AX$163,2,0),"") -> Forward walkover | BE84: =IF(ISNUMBER(SEARCH($B$14,BF84)),MAX($BE$8:BE83)+1,0) -> 76 | BF84: Forward walkover | BI84: =IFERROR(VLOOKUP(ROWS($BF$9:BF84),$BE$9:$BF$163,2,0),"") -> Forward walkover | BM84: =IF(ISNUMBER(SEARCH($B$15,BN84)),MAX($BM$8:BM83)+1,0) -> 76 | BN84: Forward walkover | BQ84: =IFERROR(VLOOKUP(ROWS($BN$9:BN84),$BM$9:$BN$163,2,0),"") -> Forward walkover | BU84: =IF(ISNUMBER(SEARCH($B$16,BV84)),MAX($BU$8:BU83)+1,0) -> 76 | BV84: Forward walkover | BY84: =IFERROR(VLOOKUP(ROWS($BV$9:BV84),$BU$9:$BV$163,2,0),"") -> Forward walkover | CC84: =IF(ISNUMBER(SEARCH($B$17,CD84)),MAX($CC$8:CC83)+1,0) -> 76 | CD84: Forward walkover | CG84: =IFERROR(VLOOKUP(ROWS($CD$9:CD84),$CC$9:$CD$163,2,0),"") -> Forward walkover | CK84: =IF(ISNUMBER(SEARCH($B$18,CL84)),MAX($CK$8:CK83)+1,0) -> 76 | CL84: Forward walkover | CO84: =IFERROR(VLOOKUP(ROWS($CL$9:CL84),$CK$9:$CL$163,2,0),"") -> Forward walkover
Q85: =IF(ISNUMBER(SEARCH($B$9,R85)),MAX($Q$8:Q84)+1,0) -> 77 | R85: Standing Flic to 2 feet | U85: =IFERROR(VLOOKUP(ROWS($R$9:R85),$Q$9:$R$163,2,0),"") -> Standing Flic to 2 feet | Y85: =IF(ISNUMBER(SEARCH($B$10,Z85)),MAX($Y$8:Y84)+1,0) -> 77 | Z85: Standing Flic to 2 feet | AC85: =IFERROR(VLOOKUP(ROWS($Z$9:Z85),$Y$9:$Z$163,2,0),"") -> Standing Flic to 2 feet | AG85: =IF(ISNUMBER(SEARCH($B$11,AH85)),MAX($AG$8:AG84)+1,0) -> 77 | AH85: Standing Flic to 2 feet | AK85: =IFERROR(VLOOKUP(ROWS($AH$9:AH85),$AG$9:$AH$163,2,0),"") -> Standing Flic to 2 feet | AO85: =IF(ISNUMBER(SEARCH($B$12,AP85)),MAX($AO$8:AO84)+1,0) -> 77 | AP85: Standing Flic to 2 feet | AS85: =IFERROR(VLOOKUP(ROWS($AP$9:AP85),$AO$9:$AP$163,2,0),"") -> Standing Flic to 2 feet | AW85: =IF(ISNUMBER(SEARCH($B$13,AX85)),MAX($AW$8:AW84)+1,0) -> 77 | AX85: Standing Flic to 2 feet | BA85: =IFERROR(VLOOKUP(ROWS($AX$9:AX85),$AW$9:$AX$163,2,0),"") -> Standing Flic to 2 feet | BE85: =IF(ISNUMBER(SEARCH($B$14,BF85)),MAX($BE$8:BE84)+1,0) -> 77 | BF85: Standing Flic to 2 feet | BI85: =IFERROR(VLOOKUP(ROWS($BF$9:BF85),$BE$9:$BF$163,2,0),"") -> Standing Flic to 2 feet | BM85: =IF(ISNUMBER(SEARCH($B$15,BN85)),MAX($BM$8:BM84)+1,0) -> 77 | BN85: Standing Flic to 2 feet | BQ85: =IFERROR(VLOOKUP(ROWS($BN$9:BN85),$BM$9:$BN$163,2,0),"") -> Standing Flic to 2 feet | BU85: =IF(ISNUMBER(SEARCH($B$16,BV85)),MAX($BU$8:BU84)+1,0) -> 77 | BV85: Standing Flic to 2 feet | BY85: =IFERROR(VLOOKUP(ROWS($BV$9:BV85),$BU$9:$BV$163,2,0),"") -> Standing Flic to 2 feet | CC85: =IF(ISNUMBER(SEARCH($B$17,CD85)),MAX($CC$8:CC84)+1,0) -> 77 | CD85: Standing Flic to 2 feet | CG85: =IFERROR(VLOOKUP(ROWS($CD$9:CD85),$CC$9:$CD$163,2,0),"") -> Standing Flic to 2 feet | CK85: =IF(ISNUMBER(SEARCH($B$18,CL85)),MAX($CK$8:CK84)+1,0) -> 77 | CL85: Standing Flic to 2 feet | CO85: =IFERROR(VLOOKUP(ROWS($CL$9:CL85),$CK$9:$CL$163,2,0),"") -> Standing Flic to 2 feet
Q86: =IF(ISNUMBER(SEARCH($B$9,R86)),MAX($Q$8:Q85)+1,0) -> 78 | R86: Standing Flic to 1 foot | U86: =IFERROR(VLOOKUP(ROWS($R$9:R86),$Q$9:$R$163,2,0),"") -> Standing Flic to 1 foot | Y86: =IF(ISNUMBER(SEARCH($B$10,Z86)),MAX($Y$8:Y85)+1,0) -> 78 | Z86: Standing Flic to 1 foot | AC86: =IFERROR(VLOOKUP(ROWS($Z$9:Z86),$Y$9:$Z$163,2,0),"") -> Standing Flic to 1 foot | AG86: =IF(ISNUMBER(SEARCH($B$11,AH86)),MAX($AG$8:AG85)+1,0) -> 78 | AH86: Standing Flic to 1 foot | AK86: =IFERROR(VLOOKUP(ROWS($AH$9:AH86),$AG$9:$AH$163,2,0),"") -> Standing Flic to 1 foot | AO86: =IF(ISNUMBER(SEARCH($B$12,AP86)),MAX($AO$8:AO85)+1,0) -> 78 | AP86: Standing Flic to 1 foot | AS86: =IFERROR(VLOOKUP(ROWS($AP$9:AP86),$AO$9:$AP$163,2,0),"") -> Standing Flic to 1 foot | AW86: =IF(ISNUMBER(SEARCH($B$13,AX86)),MAX($AW$8:AW85)+1,0) -> 78 | AX86: Standing Flic to 1 foot | BA86: =IFERROR(VLOOKUP(ROWS($AX$9:AX86),$AW$9:$AX$163,2,0),"") -> Standing Flic to 1 foot | BE86: =IF(ISNUMBER(SEARCH($B$14,BF86)),MAX($BE$8:BE85)+1,0) -> 78 | BF86: Standing Flic to 1 foot | BI86: =IFERROR(VLOOKUP(ROWS($BF$9:BF86),$BE$9:$BF$163,2,0),"") -> Standing Flic to 1 foot | BM86: =IF(ISNUMBER(SEARCH($B$15,BN86)),MAX($BM$8:BM85)+1,0) -> 78 | BN86: Standing Flic to 1 foot | BQ86: =IFERROR(VLOOKUP(ROWS($BN$9:BN86),$BM$9:$BN$163,2,0),"") -> Standing Flic to 1 foot | BU86: =IF(ISNUMBER(SEARCH($B$16,BV86)),MAX($BU$8:BU85)+1,0) -> 78 | BV86: Standing Flic to 1 foot | BY86: =IFERROR(VLOOKUP(ROWS($BV$9:BV86),$BU$9:$BV$163,2,0),"") -> Standing Flic to 1 foot | CC86: =IF(ISNUMBER(SEARCH($B$17,CD86)),MAX($CC$8:CC85)+1,0) -> 78 | CD86: Standing Flic to 1 foot | CG86: =IFERROR(VLOOKUP(ROWS($CD$9:CD86),$CC$9:$CD$163,2,0),"") -> Standing Flic to 1 foot | CK86: =IF(ISNUMBER(SEARCH($B$18,CL86)),MAX($CK$8:CK85)+1,0) -> 78 | CL86: Standing Flic to 1 foot | CO86: =IFERROR(VLOOKUP(ROWS($CL$9:CL86),$CK$9:$CL$163,2,0),"") -> Standing Flic to 1 foot
Q87: =IF(ISNUMBER(SEARCH($B$9,R87)),MAX($Q$8:Q86)+1,0) -> 79 | R87: Standing Flic to Front Support | U87: =IFERROR(VLOOKUP(ROWS($R$9:R87),$Q$9:$R$163,2,0),"") -> Standing Flic to Front Support | Y87: =IF(ISNUMBER(SEARCH($B$10,Z87)),MAX($Y$8:Y86)+1,0) -> 79 | Z87: Standing Flic to Front Support | AC87: =IFERROR(VLOOKUP(ROWS($Z$9:Z87),$Y$9:$Z$163,2,0),"") -> Standing Flic to Front Support | AG87: =IF(ISNUMBER(SEARCH($B$11,AH87)),MAX($AG$8:AG86)+1,0) -> 79 | AH87: Standing Flic to Front Support | AK87: =IFERROR(VLOOKUP(ROWS($AH$9:AH87),$AG$9:$AH$163,2,0),"") -> Standing Flic to Front Support | AO87: =IF(ISNUMBER(SEARCH($B$12,AP87)),MAX($AO$8:AO86)+1,0) -> 79 | AP87: Standing Flic to Front Support | AS87: =IFERROR(VLOOKUP(ROWS($AP$9:AP87),$AO$9:$AP$163,2,0),"") -> Standing Flic to Front Support | AW87: =IF(ISNUMBER(SEARCH($B$13,AX87)),MAX($AW$8:AW86)+1,0) -> 79 | AX87: Standing Flic to Front Support | BA87: =IFERROR(VLOOKUP(ROWS($AX$9:AX87),$AW$9:$AX$163,2,0),"") -> Standing Flic to Front Support | BE87: =IF(ISNUMBER(SEARCH($B$14,BF87)),MAX($BE$8:BE86)+1,0) -> 79 | BF87: Standing Flic to Front Support | BI87: =IFERROR(VLOOKUP(ROWS($BF$9:BF87),$BE$9:$BF$163,2,0),"") -> Standing Flic to Front Support | BM87: =IF(ISNUMBER(SEARCH($B$15,BN87)),MAX($BM$8:BM86)+1,0) -> 79 | BN87: Standing Flic to Front Support | BQ87: =IFERROR(VLOOKUP(ROWS($BN$9:BN87),$BM$9:$BN$163,2,0),"") -> Standing Flic to Front Support | BU87: =IF(ISNUMBER(SEARCH($B$16,BV87)),MAX($BU$8:BU86)+1,0) -> 79 | BV87: Standing Flic to Front Support | BY87: =IFERROR(VLOOKUP(ROWS($BV$9:BV87),$BU$9:$BV$163,2,0),"") -> Standing Flic to Front Support | CC87: =IF(ISNUMBER(SEARCH($B$17,CD87)),MAX($CC$8:CC86)+1,0) -> 79 | CD87: Standing Flic to Front Support | CG87: =IFERROR(VLOOKUP(ROWS($CD$9:CD87),$CC$9:$CD$163,2,0),"") -> Standing Flic to Front Support | CK87: =IF(ISNUMBER(SEARCH($B$18,CL87)),MAX($CK$8:CK86)+1,0) -> 79 | CL87: Standing Flic to Front Support | CO87: =IFERROR(VLOOKUP(ROWS($CL$9:CL87),$CK$9:$CL$163,2,0),"") -> Standing Flic to Front Support
Q88: =IF(ISNUMBER(SEARCH($B$9,R88)),MAX($Q$8:Q87)+1,0) -> 80 | R88: Back Walkover, Flick (1or2 feet) | U88: =IFERROR(VLOOKUP(ROWS($R$9:R88),$Q$9:$R$163,2,0),"") -> Back Walkover, Flick (1or2 feet) | Y88: =IF(ISNUMBER(SEARCH($B$10,Z88)),MAX($Y$8:Y87)+1,0) -> 80 | Z88: Back Walkover, Flick (1or2 feet) | AC88: =IFERROR(VLOOKUP(ROWS($Z$9:Z88),$Y$9:$Z$163,2,0),"") -> Back Walkover, Flick (1or2 feet) | AG88: =IF(ISNUMBER(SEARCH($B$11,AH88)),MAX($AG$8:AG87)+1,0) -> 80 | AH88: Back Walkover, Flick (1or2 feet) | AK88: =IFERROR(VLOOKUP(ROWS($AH$9:AH88),$AG$9:$AH$163,2,0),"") -> Back Walkover, Flick (1or2 feet) | AO88: =IF(ISNUMBER(SEARCH($B$12,AP88)),MAX($AO$8:AO87)+1,0) -> 80 | AP88: Back Walkover, Flick (1or2 feet) | AS88: =IFERROR(VLOOKUP(ROWS($AP$9:AP88),$AO$9:$AP$163,2,0),"") -> Back Walkover, Flick (1or2 feet) | AW88: =IF(ISNUMBER(SEARCH($B$13,AX88)),MAX($AW$8:AW87)+1,0) -> 80 | AX88: Back Walkover, Flick (1or2 feet) | BA88: =IFERROR(VLOOKUP(ROWS($AX$9:AX88),$AW$9:$AX$163,2,0),"") -> Back Walkover, Flick (1or2 feet) | BE88: =IF(ISNUMBER(SEARCH($B$14,BF88)),MAX($BE$8:BE87)+1,0) -> 80 | BF88: Back Walkover, Flick (1or2 feet) | BI88: =IFERROR(VLOOKUP(ROWS($BF$9:BF88),$BE$9:$BF$163,2,0),"") -> Back Walkover, Flick (1or2 feet) | BM88: =IF(ISNUMBER(SEARCH($B$15,BN88)),MAX($BM$8:BM87)+1,0) -> 80 | BN88: Back Walkover, Flick (1or2 feet) | BQ88: =IFERROR(VLOOKUP(ROWS($BN$9:BN88),$BM$9:$BN$163,2,0),"") -> Back Walkover, Flick (1or2 feet) | BU88: =IF(ISNUMBER(SEARCH($B$16,BV88)),MAX($BU$8:BU87)+1,0) -> 80 | BV88: Back Walkover, Flick (1or2 feet) | BY88: =IFERROR(VLOOKUP(ROWS($BV$9:BV88),$BU$9:$BV$163,2,0),"") -> Back Walkover, Flick (1or2 feet) | CC88: =IF(ISNUMBER(SEARCH($B$17,CD88)),MAX($CC$8:CC87)+1,0) -> 80 | CD88: Back Walkover, Flick (1or2 feet) | CG88: =IFERROR(VLOOKUP(ROWS($CD$9:CD88),$CC$9:$CD$163,2,0),"") -> Back Walkover, Flick (1or2 feet) | CK88: =IF(ISNUMBER(SEARCH($B$18,CL88)),MAX($CK$8:CK87)+1,0) -> 80 | CL88: Back Walkover, Flick (1or2 feet) | CO88: =IFERROR(VLOOKUP(ROWS($CL$9:CL88),$CK$9:$CL$163,2,0),"") -> Back Walkover, Flick (1or2 feet)
Q89: =IF(ISNUMBER(SEARCH($B$9,R89)),MAX($Q$8:Q88)+1,0) -> 81 | R89: Cartwheel, Flick | U89: =IFERROR(VLOOKUP(ROWS($R$9:R89),$Q$9:$R$163,2,0),"") -> Cartwheel, Flick | Y89: =IF(ISNUMBER(SEARCH($B$10,Z89)),MAX($Y$8:Y88)+1,0) -> 81 | Z89: Cartwheel, Flick | AC89: =IFERROR(VLOOKUP(ROWS($Z$9:Z89),$Y$9:$Z$163,2,0),"") -> Cartwheel, Flick | AG89: =IF(ISNUMBER(SEARCH($B$11,AH89)),MAX($AG$8:AG88)+1,0) -> 81 | AH89: Cartwheel, Flick | AK89: =IFERROR(VLOOKUP(ROWS($AH$9:AH89),$AG$9:$AH$163,2,0),"") -> Cartwheel, Flick | AO89: =IF(ISNUMBER(SEARCH($B$12,AP89)),MAX($AO$8:AO88)+1,0) -> 81 | AP89: Cartwheel, Flick | AS89: =IFERROR(VLOOKUP(ROWS($AP$9:AP89),$AO$9:$AP$163,2,0),"") -> Cartwheel, Flick | AW89: =IF(ISNUMBER(SEARCH($B$13,AX89)),MAX($AW$8:AW88)+1,0) -> 81 | AX89: Cartwheel, Flick | BA89: =IFERROR(VLOOKUP(ROWS($AX$9:AX89),$AW$9:$AX$163,2,0),"") -> Cartwheel, Flick | BE89: =IF(ISNUMBER(SEARCH($B$14,BF89)),MAX($BE$8:BE88)+1,0) -> 81 | BF89: Cartwheel, Flick | BI89: =IFERROR(VLOOKUP(ROWS($BF$9:BF89),$BE$9:$BF$163,2,0),"") -> Cartwheel, Flick | BM89: =IF(ISNUMBER(SEARCH($B$15,BN89)),MAX($BM$8:BM88)+1,0) -> 81 | BN89: Cartwheel, Flick | BQ89: =IFERROR(VLOOKUP(ROWS($BN$9:BN89),$BM$9:$BN$163,2,0),"") -> Cartwheel, Flick | BU89: =IF(ISNUMBER(SEARCH($B$16,BV89)),MAX($BU$8:BU88)+1,0) -> 81 | BV89: Cartwheel, Flick | BY89: =IFERROR(VLOOKUP(ROWS($BV$9:BV89),$BU$9:$BV$163,2,0),"") -> Cartwheel, Flick | CC89: =IF(ISNUMBER(SEARCH($B$17,CD89)),MAX($CC$8:CC88)+1,0) -> 81 | CD89: Cartwheel, Flick | CG89: =IFERROR(VLOOKUP(ROWS($CD$9:CD89),$CC$9:$CD$163,2,0),"") -> Cartwheel, Flick | CK89: =IF(ISNUMBER(SEARCH($B$18,CL89)),MAX($CK$8:CK88)+1,0) -> 81 | CL89: Cartwheel, Flick | CO89: =IFERROR(VLOOKUP(ROWS($CL$9:CL89),$CK$9:$CL$163,2,0),"") -> Cartwheel, Flick
Q90: =IF(ISNUMBER(SEARCH($B$9,R90)),MAX($Q$8:Q89)+1,0) -> 82 | R90: Roundoff, Flic to 1 foot | U90: =IFERROR(VLOOKUP(ROWS($R$9:R90),$Q$9:$R$163,2,0),"") -> Roundoff, Flic to 1 foot | Y90: =IF(ISNUMBER(SEARCH($B$10,Z90)),MAX($Y$8:Y89)+1,0) -> 82 | Z90: Roundoff, Flic to 1 foot | AC90: =IFERROR(VLOOKUP(ROWS($Z$9:Z90),$Y$9:$Z$163,2,0),"") -> Roundoff, Flic to 1 foot | AG90: =IF(ISNUMBER(SEARCH($B$11,AH90)),MAX($AG$8:AG89)+1,0) -> 82 | AH90: Roundoff, Flic to 1 foot | AK90: =IFERROR(VLOOKUP(ROWS($AH$9:AH90),$AG$9:$AH$163,2,0),"") -> Roundoff, Flic to 1 foot | AO90: =IF(ISNUMBER(SEARCH($B$12,AP90)),MAX($AO$8:AO89)+1,0) -> 82 | AP90: Roundoff, Flic to 1 foot | AS90: =IFERROR(VLOOKUP(ROWS($AP$9:AP90),$AO$9:$AP$163,2,0),"") -> Roundoff, Flic to 1 foot | AW90: =IF(ISNUMBER(SEARCH($B$13,AX90)),MAX($AW$8:AW89)+1,0) -> 82 | AX90: Roundoff, Flic to 1 foot | BA90: =IFERROR(VLOOKUP(ROWS($AX$9:AX90),$AW$9:$AX$163,2,0),"") -> Roundoff, Flic to 1 foot | BE90: =IF(ISNUMBER(SEARCH($B$14,BF90)),MAX($BE$8:BE89)+1,0) -> 82 | BF90: Roundoff, Flic to 1 foot | BI90: =IFERROR(VLOOKUP(ROWS($BF$9:BF90),$BE$9:$BF$163,2,0),"") -> Roundoff, Flic to 1 foot | BM90: =IF(ISNUMBER(SEARCH($B$15,BN90)),MAX($BM$8:BM89)+1,0) -> 82 | BN90: Roundoff, Flic to 1 foot | BQ90: =IFERROR(VLOOKUP(ROWS($BN$9:BN90),$BM$9:$BN$163,2,0),"") -> Roundoff, Flic to 1 foot | BU90: =IF(ISNUMBER(SEARCH($B$16,BV90)),MAX($BU$8:BU89)+1,0) -> 82 | BV90: Roundoff, Flic to 1 foot | BY90: =IFERROR(VLOOKUP(ROWS($BV$9:BV90),$BU$9:$BV$163,2,0),"") -> Roundoff, Flic to 1 foot | CC90: =IF(ISNUMBER(SEARCH($B$17,CD90)),MAX($CC$8:CC89)+1,0) -> 82 | CD90: Roundoff, Flic to 1 foot | CG90: =IFERROR(VLOOKUP(ROWS($CD$9:CD90),$CC$9:$CD$163,2,0),"") -> Roundoff, Flic to 1 foot | CK90: =IF(ISNUMBER(SEARCH($B$18,CL90)),MAX($CK$8:CK89)+1,0) -> 82 | CL90: Roundoff, Flic to 1 foot | CO90: =IFERROR(VLOOKUP(ROWS($CL$9:CL90),$CK$9:$CL$163,2,0),"") -> Roundoff, Flic to 1 foot
Q91: =IF(ISNUMBER(SEARCH($B$9,R91)),MAX($Q$8:Q90)+1,0) -> 83 | R91: Roundoff, Flic to 2 feet | U91: =IFERROR(VLOOKUP(ROWS($R$9:R91),$Q$9:$R$163,2,0),"") -> Roundoff, Flic to 2 feet | Y91: =IF(ISNUMBER(SEARCH($B$10,Z91)),MAX($Y$8:Y90)+1,0) -> 83 | Z91: Roundoff, Flic to 2 feet | AC91: =IFERROR(VLOOKUP(ROWS($Z$9:Z91),$Y$9:$Z$163,2,0),"") -> Roundoff, Flic to 2 feet | AG91: =IF(ISNUMBER(SEARCH($B$11,AH91)),MAX($AG$8:AG90)+1,0) -> 83 | AH91: Roundoff, Flic to 2 feet | AK91: =IFERROR(VLOOKUP(ROWS($AH$9:AH91),$AG$9:$AH$163,2,0),"") -> Roundoff, Flic to 2 feet | AO91: =IF(ISNUMBER(SEARCH($B$12,AP91)),MAX($AO$8:AO90)+1,0) -> 83 | AP91: Roundoff, Flic to 2 feet | AS91: =IFERROR(VLOOKUP(ROWS($AP$9:AP91),$AO$9:$AP$163,2,0),"") -> Roundoff, Flic to 2 feet | AW91: =IF(ISNUMBER(SEARCH($B$13,AX91)),MAX($AW$8:AW90)+1,0) -> 83 | AX91: Roundoff, Flic to 2 feet | BA91: =IFERROR(VLOOKUP(ROWS($AX$9:AX91),$AW$9:$AX$163,2,0),"") -> Roundoff, Flic to 2 feet | BE91: =IF(ISNUMBER(SEARCH($B$14,BF91)),MAX($BE$8:BE90)+1,0) -> 83 | BF91: Roundoff, Flic to 2 feet | BI91: =IFERROR(VLOOKUP(ROWS($BF$9:BF91),$BE$9:$BF$163,2,0),"") -> Roundoff, Flic to 2 feet | BM91: =IF(ISNUMBER(SEARCH($B$15,BN91)),MAX($BM$8:BM90)+1,0) -> 83 | BN91: Roundoff, Flic to 2 feet | BQ91: =IFERROR(VLOOKUP(ROWS($BN$9:BN91),$BM$9:$BN$163,2,0),"") -> Roundoff, Flic to 2 feet | BU91: =IF(ISNUMBER(SEARCH($B$16,BV91)),MAX($BU$8:BU90)+1,0) -> 83 | BV91: Roundoff, Flic to 2 feet | BY91: =IFERROR(VLOOKUP(ROWS($BV$9:BV91),$BU$9:$BV$163,2,0),"") -> Roundoff, Flic to 2 feet | CC91: =IF(ISNUMBER(SEARCH($B$17,CD91)),MAX($CC$8:CC90)+1,0) -> 83 | CD91: Roundoff, Flic to 2 feet | CG91: =IFERROR(VLOOKUP(ROWS($CD$9:CD91),$CC$9:$CD$163,2,0),"") -> Roundoff, Flic to 2 feet | CK91: =IF(ISNUMBER(SEARCH($B$18,CL91)),MAX($CK$8:CK90)+1,0) -> 83 | CL91: Roundoff, Flic to 2 feet | CO91: =IFERROR(VLOOKUP(ROWS($CL$9:CL91),$CK$9:$CL$163,2,0),"") -> Roundoff, Flic to 2 feet
Q92: =IF(ISNUMBER(SEARCH($B$9,R92)),MAX($Q$8:Q91)+1,0) -> 84 | R92: Roundoff, Flic, Flic | U92: =IFERROR(VLOOKUP(ROWS($R$9:R92),$Q$9:$R$163,2,0),"") -> Roundoff, Flic, Flic | Y92: =IF(ISNUMBER(SEARCH($B$10,Z92)),MAX($Y$8:Y91)+1,0) -> 84 | Z92: Roundoff, Flic, Flic | AC92: =IFERROR(VLOOKUP(ROWS($Z$9:Z92),$Y$9:$Z$163,2,0),"") -> Roundoff, Flic, Flic | AG92: =IF(ISNUMBER(SEARCH($B$11,AH92)),MAX($AG$8:AG91)+1,0) -> 84 | AH92: Roundoff, Flic, Flic | AK92: =IFERROR(VLOOKUP(ROWS($AH$9:AH92),$AG$9:$AH$163,2,0),"") -> Roundoff, Flic, Flic | AO92: =IF(ISNUMBER(SEARCH($B$12,AP92)),MAX($AO$8:AO91)+1,0) -> 84 | AP92: Roundoff, Flic, Flic | AS92: =IFERROR(VLOOKUP(ROWS($AP$9:AP92),$AO$9:$AP$163,2,0),"") -> Roundoff, Flic, Flic | AW92: =IF(ISNUMBER(SEARCH($B$13,AX92)),MAX($AW$8:AW91)+1,0) -> 84 | AX92: Roundoff, Flic, Flic | BA92: =IFERROR(VLOOKUP(ROWS($AX$9:AX92),$AW$9:$AX$163,2,0),"") -> Roundoff, Flic, Flic | BE92: =IF(ISNUMBER(SEARCH($B$14,BF92)),MAX($BE$8:BE91)+1,0) -> 84 | BF92: Roundoff, Flic, Flic | BI92: =IFERROR(VLOOKUP(ROWS($BF$9:BF92),$BE$9:$BF$163,2,0),"") -> Roundoff, Flic, Flic | BM92: =IF(ISNUMBER(SEARCH($B$15,BN92)),MAX($BM$8:BM91)+1,0) -> 84 | BN92: Roundoff, Flic, Flic | BQ92: =IFERROR(VLOOKUP(ROWS($BN$9:BN92),$BM$9:$BN$163,2,0),"") -> Roundoff, Flic, Flic | BU92: =IF(ISNUMBER(SEARCH($B$16,BV92)),MAX($BU$8:BU91)+1,0) -> 84 | BV92: Roundoff, Flic, Flic | BY92: =IFERROR(VLOOKUP(ROWS($BV$9:BV92),$BU$9:$BV$163,2,0),"") -> Roundoff, Flic, Flic | CC92: =IF(ISNUMBER(SEARCH($B$17,CD92)),MAX($CC$8:CC91)+1,0) -> 84 | CD92: Roundoff, Flic, Flic | CG92: =IFERROR(VLOOKUP(ROWS($CD$9:CD92),$CC$9:$CD$163,2,0),"") -> Roundoff, Flic, Flic | CK92: =IF(ISNUMBER(SEARCH($B$18,CL92)),MAX($CK$8:CK91)+1,0) -> 84 | CL92: Roundoff, Flic, Flic | CO92: =IFERROR(VLOOKUP(ROWS($CL$9:CL92),$CK$9:$CL$163,2,0),"") -> Roundoff, Flic, Flic
Q93: =IF(ISNUMBER(SEARCH($B$9,R93)),MAX($Q$8:Q92)+1,0) -> 85 | R93: Handspring to 2 feet | U93: =IFERROR(VLOOKUP(ROWS($R$9:R93),$Q$9:$R$163,2,0),"") -> Handspring to 2 feet | Y93: =IF(ISNUMBER(SEARCH($B$10,Z93)),MAX($Y$8:Y92)+1,0) -> 85 | Z93: Handspring to 2 feet | AC93: =IFERROR(VLOOKUP(ROWS($Z$9:Z93),$Y$9:$Z$163,2,0),"") -> Handspring to 2 feet | AG93: =IF(ISNUMBER(SEARCH($B$11,AH93)),MAX($AG$8:AG92)+1,0) -> 85 | AH93: Handspring to 2 feet | AK93: =IFERROR(VLOOKUP(ROWS($AH$9:AH93),$AG$9:$AH$163,2,0),"") -> Handspring to 2 feet | AO93: =IF(ISNUMBER(SEARCH($B$12,AP93)),MAX($AO$8:AO92)+1,0) -> 85 | AP93: Handspring to 2 feet | AS93: =IFERROR(VLOOKUP(ROWS($AP$9:AP93),$AO$9:$AP$163,2,0),"") -> Handspring to 2 feet | AW93: =IF(ISNUMBER(SEARCH($B$13,AX93)),MAX($AW$8:AW92)+1,0) -> 85 | AX93: Handspring to 2 feet | BA93: =IFERROR(VLOOKUP(ROWS($AX$9:AX93),$AW$9:$AX$163,2,0),"") -> Handspring to 2 feet | BE93: =IF(ISNUMBER(SEARCH($B$14,BF93)),MAX($BE$8:BE92)+1,0) -> 85 | BF93: Handspring to 2 feet | BI93: =IFERROR(VLOOKUP(ROWS($BF$9:BF93),$BE$9:$BF$163,2,0),"") -> Handspring to 2 feet | BM93: =IF(ISNUMBER(SEARCH($B$15,BN93)),MAX($BM$8:BM92)+1,0) -> 85 | BN93: Handspring to 2 feet | BQ93: =IFERROR(VLOOKUP(ROWS($BN$9:BN93),$BM$9:$BN$163,2,0),"") -> Handspring to 2 feet | BU93: =IF(ISNUMBER(SEARCH($B$16,BV93)),MAX($BU$8:BU92)+1,0) -> 85 | BV93: Handspring to 2 feet | BY93: =IFERROR(VLOOKUP(ROWS($BV$9:BV93),$BU$9:$BV$163,2,0),"") -> Handspring to 2 feet | CC93: =IF(ISNUMBER(SEARCH($B$17,CD93)),MAX($CC$8:CC92)+1,0) -> 85 | CD93: Handspring to 2 feet | CG93: =IFERROR(VLOOKUP(ROWS($CD$9:CD93),$CC$9:$CD$163,2,0),"") -> Handspring to 2 feet | CK93: =IF(ISNUMBER(SEARCH($B$18,CL93)),MAX($CK$8:CK92)+1,0) -> 85 | CL93: Handspring to 2 feet | CO93: =IFERROR(VLOOKUP(ROWS($CL$9:CL93),$CK$9:$CL$163,2,0),"") -> Handspring to 2 feet
Q94: =IF(ISNUMBER(SEARCH($B$9,R94)),MAX($Q$8:Q93)+1,0) -> 86 | R94: Handspring to 1 foot | U94: =IFERROR(VLOOKUP(ROWS($R$9:R94),$Q$9:$R$163,2,0),"") -> Handspring to 1 foot | Y94: =IF(ISNUMBER(SEARCH($B$10,Z94)),MAX($Y$8:Y93)+1,0) -> 86 | Z94: Handspring to 1 foot | AC94: =IFERROR(VLOOKUP(ROWS($Z$9:Z94),$Y$9:$Z$163,2,0),"") -> Handspring to 1 foot | AG94: =IF(ISNUMBER(SEARCH($B$11,AH94)),MAX($AG$8:AG93)+1,0) -> 86 | AH94: Handspring to 1 foot | AK94: =IFERROR(VLOOKUP(ROWS($AH$9:AH94),$AG$9:$AH$163,2,0),"") -> Handspring to 1 foot | AO94: =IF(ISNUMBER(SEARCH($B$12,AP94)),MAX($AO$8:AO93)+1,0) -> 86 | AP94: Handspring to 1 foot | AS94: =IFERROR(VLOOKUP(ROWS($AP$9:AP94),$AO$9:$AP$163,2,0),"") -> Handspring to 1 foot | AW94: =IF(ISNUMBER(SEARCH($B$13,AX94)),MAX($AW$8:AW93)+1,0) -> 86 | AX94: Handspring to 1 foot | BA94: =IFERROR(VLOOKUP(ROWS($AX$9:AX94),$AW$9:$AX$163,2,0),"") -> Handspring to 1 foot | BE94: =IF(ISNUMBER(SEARCH($B$14,BF94)),MAX($BE$8:BE93)+1,0) -> 86 | BF94: Handspring to 1 foot | BI94: =IFERROR(VLOOKUP(ROWS($BF$9:BF94),$BE$9:$BF$163,2,0),"") -> Handspring to 1 foot | BM94: =IF(ISNUMBER(SEARCH($B$15,BN94)),MAX($BM$8:BM93)+1,0) -> 86 | BN94: Handspring to 1 foot | BQ94: =IFERROR(VLOOKUP(ROWS($BN$9:BN94),$BM$9:$BN$163,2,0),"") -> Handspring to 1 foot | BU94: =IF(ISNUMBER(SEARCH($B$16,BV94)),MAX($BU$8:BU93)+1,0) -> 86 | BV94: Handspring to 1 foot | BY94: =IFERROR(VLOOKUP(ROWS($BV$9:BV94),$BU$9:$BV$163,2,0),"") -> Handspring to 1 foot | CC94: =IF(ISNUMBER(SEARCH($B$17,CD94)),MAX($CC$8:CC93)+1,0) -> 86 | CD94: Handspring to 1 foot | CG94: =IFERROR(VLOOKUP(ROWS($CD$9:CD94),$CC$9:$CD$163,2,0),"") -> Handspring to 1 foot | CK94: =IF(ISNUMBER(SEARCH($B$18,CL94)),MAX($CK$8:CK93)+1,0) -> 86 | CL94: Handspring to 1 foot | CO94: =IFERROR(VLOOKUP(ROWS($CL$9:CL94),$CK$9:$CL$163,2,0),"") -> Handspring to 1 foot
Q95: =IF(ISNUMBER(SEARCH($B$9,R95)),MAX($Q$8:Q94)+1,0) -> 87 | R95: Handspring to Roundoff | U95: =IFERROR(VLOOKUP(ROWS($R$9:R95),$Q$9:$R$163,2,0),"") -> Handspring to Roundoff | Y95: =IF(ISNUMBER(SEARCH($B$10,Z95)),MAX($Y$8:Y94)+1,0) -> 87 | Z95: Handspring to Roundoff | AC95: =IFERROR(VLOOKUP(ROWS($Z$9:Z95),$Y$9:$Z$163,2,0),"") -> Handspring to Roundoff | AG95: =IF(ISNUMBER(SEARCH($B$11,AH95)),MAX($AG$8:AG94)+1,0) -> 87 | AH95: Handspring to Roundoff | AK95: =IFERROR(VLOOKUP(ROWS($AH$9:AH95),$AG$9:$AH$163,2,0),"") -> Handspring to Roundoff | AO95: =IF(ISNUMBER(SEARCH($B$12,AP95)),MAX($AO$8:AO94)+1,0) -> 87 | AP95: Handspring to Roundoff | AS95: =IFERROR(VLOOKUP(ROWS($AP$9:AP95),$AO$9:$AP$163,2,0),"") -> Handspring to Roundoff | AW95: =IF(ISNUMBER(SEARCH($B$13,AX95)),MAX($AW$8:AW94)+1,0) -> 87 | AX95: Handspring to Roundoff | BA95: =IFERROR(VLOOKUP(ROWS($AX$9:AX95),$AW$9:$AX$163,2,0),"") -> Handspring to Roundoff | BE95: =IF(ISNUMBER(SEARCH($B$14,BF95)),MAX($BE$8:BE94)+1,0) -> 87 | BF95: Handspring to Roundoff | BI95: =IFERROR(VLOOKUP(ROWS($BF$9:BF95),$BE$9:$BF$163,2,0),"") -> Handspring to Roundoff | BM95: =IF(ISNUMBER(SEARCH($B$15,BN95)),MAX($BM$8:BM94)+1,0) -> 87 | BN95: Handspring to Roundoff | BQ95: =IFERROR(VLOOKUP(ROWS($BN$9:BN95),$BM$9:$BN$163,2,0),"") -> Handspring to Roundoff | BU95: =IF(ISNUMBER(SEARCH($B$16,BV95)),MAX($BU$8:BU94)+1,0) -> 87 | BV95: Handspring to Roundoff | BY95: =IFERROR(VLOOKUP(ROWS($BV$9:BV95),$BU$9:$BV$163,2,0),"") -> Handspring to Roundoff | CC95: =IF(ISNUMBER(SEARCH($B$17,CD95)),MAX($CC$8:CC94)+1,0) -> 87 | CD95: Handspring to Roundoff | CG95: =IFERROR(VLOOKUP(ROWS($CD$9:CD95),$CC$9:$CD$163,2,0),"") -> Handspring to Roundoff | CK95: =IF(ISNUMBER(SEARCH($B$18,CL95)),MAX($CK$8:CK94)+1,0) -> 87 | CL95: Handspring to Roundoff | CO95: =IFERROR(VLOOKUP(ROWS($CL$9:CL95),$CK$9:$CL$163,2,0),"") -> Handspring to Roundoff
Q96: =IF(ISNUMBER(SEARCH($B$9,R96)),MAX($Q$8:Q95)+1,0) -> 88 | R96: 2 Handsprings 1 – 2 feet | U96: =IFERROR(VLOOKUP(ROWS($R$9:R96),$Q$9:$R$163,2,0),"") -> 2 Handsprings 1 – 2 feet | Y96: =IF(ISNUMBER(SEARCH($B$10,Z96)),MAX($Y$8:Y95)+1,0) -> 88 | Z96: 2 Handsprings 1 – 2 feet | AC96: =IFERROR(VLOOKUP(ROWS($Z$9:Z96),$Y$9:$Z$163,2,0),"") -> 2 Handsprings 1 – 2 feet | AG96: =IF(ISNUMBER(SEARCH($B$11,AH96)),MAX($AG$8:AG95)+1,0) -> 88 | AH96: 2 Handsprings 1 – 2 feet | AK96: =IFERROR(VLOOKUP(ROWS($AH$9:AH96),$AG$9:$AH$163,2,0),"") -> 2 Handsprings 1 – 2 feet | AO96: =IF(ISNUMBER(SEARCH($B$12,AP96)),MAX($AO$8:AO95)+1,0) -> 88 | AP96: 2 Handsprings 1 – 2 feet | AS96: =IFERROR(VLOOKUP(ROWS($AP$9:AP96),$AO$9:$AP$163,2,0),"") -> 2 Handsprings 1 – 2 feet | AW96: =IF(ISNUMBER(SEARCH($B$13,AX96)),MAX($AW$8:AW95)+1,0) -> 88 | AX96: 2 Handsprings 1 – 2 feet | BA96: =IFERROR(VLOOKUP(ROWS($AX$9:AX96),$AW$9:$AX$163,2,0),"") -> 2 Handsprings 1 – 2 feet | BE96: =IF(ISNUMBER(SEARCH($B$14,BF96)),MAX($BE$8:BE95)+1,0) -> 88 | BF96: 2 Handsprings 1 – 2 feet | BI96: =IFERROR(VLOOKUP(ROWS($BF$9:BF96),$BE$9:$BF$163,2,0),"") -> 2 Handsprings 1 – 2 feet | BM96: =IF(ISNUMBER(SEARCH($B$15,BN96)),MAX($BM$8:BM95)+1,0) -> 88 | BN96: 2 Handsprings 1 – 2 feet | BQ96: =IFERROR(VLOOKUP(ROWS($BN$9:BN96),$BM$9:$BN$163,2,0),"") -> 2 Handsprings 1 – 2 feet | BU96: =IF(ISNUMBER(SEARCH($B$16,BV96)),MAX($BU$8:BU95)+1,0) -> 88 | BV96: 2 Handsprings 1 – 2 feet | BY96: =IFERROR(VLOOKUP(ROWS($BV$9:BV96),$BU$9:$BV$163,2,0),"") -> 2 Handsprings 1 – 2 feet | CC96: =IF(ISNUMBER(SEARCH($B$17,CD96)),MAX($CC$8:CC95)+1,0) -> 88 | CD96: 2 Handsprings 1 – 2 feet | CG96: =IFERROR(VLOOKUP(ROWS($CD$9:CD96),$CC$9:$CD$163,2,0),"") -> 2 Handsprings 1 – 2 feet | CK96: =IF(ISNUMBER(SEARCH($B$18,CL96)),MAX($CK$8:CK95)+1,0) -> 88 | CL96: 2 Handsprings 1 – 2 feet | CO96: =IFERROR(VLOOKUP(ROWS($CL$9:CL96),$CK$9:$CL$163,2,0),"") -> 2 Handsprings 1 – 2 feet
Q97: =IF(ISNUMBER(SEARCH($B$9,R97)),MAX($Q$8:Q96)+1,0) -> 89 | R97: Handspring, Roundoff, Flic | U97: =IFERROR(VLOOKUP(ROWS($R$9:R97),$Q$9:$R$163,2,0),"") -> Handspring, Roundoff, Flic | Y97: =IF(ISNUMBER(SEARCH($B$10,Z97)),MAX($Y$8:Y96)+1,0) -> 89 | Z97: Handspring, Roundoff, Flic | AC97: =IFERROR(VLOOKUP(ROWS($Z$9:Z97),$Y$9:$Z$163,2,0),"") -> Handspring, Roundoff, Flic | AG97: =IF(ISNUMBER(SEARCH($B$11,AH97)),MAX($AG$8:AG96)+1,0) -> 89 | AH97: Handspring, Roundoff, Flic | AK97: =IFERROR(VLOOKUP(ROWS($AH$9:AH97),$AG$9:$AH$163,2,0),"") -> Handspring, Roundoff, Flic | AO97: =IF(ISNUMBER(SEARCH($B$12,AP97)),MAX($AO$8:AO96)+1,0) -> 89 | AP97: Handspring, Roundoff, Flic | AS97: =IFERROR(VLOOKUP(ROWS($AP$9:AP97),$AO$9:$AP$163,2,0),"") -> Handspring, Roundoff, Flic | AW97: =IF(ISNUMBER(SEARCH($B$13,AX97)),MAX($AW$8:AW96)+1,0) -> 89 | AX97: Handspring, Roundoff, Flic | BA97: =IFERROR(VLOOKUP(ROWS($AX$9:AX97),$AW$9:$AX$163,2,0),"") -> Handspring, Roundoff, Flic | BE97: =IF(ISNUMBER(SEARCH($B$14,BF97)),MAX($BE$8:BE96)+1,0) -> 89 | BF97: Handspring, Roundoff, Flic | BI97: =IFERROR(VLOOKUP(ROWS($BF$9:BF97),$BE$9:$BF$163,2,0),"") -> Handspring, Roundoff, Flic | BM97: =IF(ISNUMBER(SEARCH($B$15,BN97)),MAX($BM$8:BM96)+1,0) -> 89 | BN97: Handspring, Roundoff, Flic | BQ97: =IFERROR(VLOOKUP(ROWS($BN$9:BN97),$BM$9:$BN$163,2,0),"") -> Handspring, Roundoff, Flic | BU97: =IF(ISNUMBER(SEARCH($B$16,BV97)),MAX($BU$8:BU96)+1,0) -> 89 | BV97: Handspring, Roundoff, Flic | BY97: =IFERROR(VLOOKUP(ROWS($BV$9:BV97),$BU$9:$BV$163,2,0),"") -> Handspring, Roundoff, Flic | CC97: =IF(ISNUMBER(SEARCH($B$17,CD97)),MAX($CC$8:CC96)+1,0) -> 89 | CD97: Handspring, Roundoff, Flic | CG97: =IFERROR(VLOOKUP(ROWS($CD$9:CD97),$CC$9:$CD$163,2,0),"") -> Handspring, Roundoff, Flic | CK97: =IF(ISNUMBER(SEARCH($B$18,CL97)),MAX($CK$8:CK96)+1,0) -> 89 | CL97: Handspring, Roundoff, Flic | CO97: =IFERROR(VLOOKUP(ROWS($CL$9:CL97),$CK$9:$CL$163,2,0),"") -> Handspring, Roundoff, Flic
Q98: =IF(ISNUMBER(SEARCH($B$9,R98)),MAX($Q$8:Q97)+1,0) -> 90 | R98: Split leap or jump (180° split) | U98: =IFERROR(VLOOKUP(ROWS($R$9:R98),$Q$9:$R$163,2,0),"") -> Split leap or jump (180° split) | Y98: =IF(ISNUMBER(SEARCH($B$10,Z98)),MAX($Y$8:Y97)+1,0) -> 90 | Z98: Split leap or jump (180° split) | AC98: =IFERROR(VLOOKUP(ROWS($Z$9:Z98),$Y$9:$Z$163,2,0),"") -> Split leap or jump (180° split) | AG98: =IF(ISNUMBER(SEARCH($B$11,AH98)),MAX($AG$8:AG97)+1,0) -> 90 | AH98: Split leap or jump (180° split) | AK98: =IFERROR(VLOOKUP(ROWS($AH$9:AH98),$AG$9:$AH$163,2,0),"") -> Split leap or jump (180° split) | AO98: =IF(ISNUMBER(SEARCH($B$12,AP98)),MAX($AO$8:AO97)+1,0) -> 90 | AP98: Split leap or jump (180° split) | AS98: =IFERROR(VLOOKUP(ROWS($AP$9:AP98),$AO$9:$AP$163,2,0),"") -> Split leap or jump (180° split) | AW98: =IF(ISNUMBER(SEARCH($B$13,AX98)),MAX($AW$8:AW97)+1,0) -> 90 | AX98: Split leap or jump (180° split) | BA98: =IFERROR(VLOOKUP(ROWS($AX$9:AX98),$AW$9:$AX$163,2,0),"") -> Split leap or jump (180° split) | BE98: =IF(ISNUMBER(SEARCH($B$14,BF98)),MAX($BE$8:BE97)+1,0) -> 90 | BF98: Split leap or jump (180° split) | BI98: =IFERROR(VLOOKUP(ROWS($BF$9:BF98),$BE$9:$BF$163,2,0),"") -> Split leap or jump (180° split) | BM98: =IF(ISNUMBER(SEARCH($B$15,BN98)),MAX($BM$8:BM97)+1,0) -> 90 | BN98: Split leap or jump (180° split) | BQ98: =IFERROR(VLOOKUP(ROWS($BN$9:BN98),$BM$9:$BN$163,2,0),"") -> Split leap or jump (180° split) | BU98: =IF(ISNUMBER(SEARCH($B$16,BV98)),MAX($BU$8:BU97)+1,0) -> 90 | BV98: Split leap or jump (180° split) | BY98: =IFERROR(VLOOKUP(ROWS($BV$9:BV98),$BU$9:$BV$163,2,0),"") -> Split leap or jump (180° split) | CC98: =IF(ISNUMBER(SEARCH($B$17,CD98)),MAX($CC$8:CC97)+1,0) -> 90 | CD98: Split leap or jump (180° split) | CG98: =IFERROR(VLOOKUP(ROWS($CD$9:CD98),$CC$9:$CD$163,2,0),"") -> Split leap or jump (180° split) | CK98: =IF(ISNUMBER(SEARCH($B$18,CL98)),MAX($CK$8:CK97)+1,0) -> 90 | CL98: Split leap or jump (180° split) | CO98: =IFERROR(VLOOKUP(ROWS($CL$9:CL98),$CK$9:$CL$163,2,0),"") -> Split leap or jump (180° split)
Q99: =IF(ISNUMBER(SEARCH($B$9,R99)),MAX($Q$8:Q98)+1,0) -> 91 | R99: Change leg split leap or jump ↓(180° split) | U99: =IFERROR(VLOOKUP(ROWS($R$9:R99),$Q$9:$R$163,2,0),"") -> Change leg split leap or jump ↓(180° split) | Y99: =IF(ISNUMBER(SEARCH($B$10,Z99)),MAX($Y$8:Y98)+1,0) -> 91 | Z99: Change leg split leap or jump ↓(180° split) | AC99: =IFERROR(VLOOKUP(ROWS($Z$9:Z99),$Y$9:$Z$163,2,0),"") -> Change leg split leap or jump ↓(180° split) | AG99: =IF(ISNUMBER(SEARCH($B$11,AH99)),MAX($AG$8:AG98)+1,0) -> 91 | AH99: Change leg split leap or jump ↓(180° split) | AK99: =IFERROR(VLOOKUP(ROWS($AH$9:AH99),$AG$9:$AH$163,2,0),"") -> Change leg split leap or jump ↓(180° split) | AO99: =IF(ISNUMBER(SEARCH($B$12,AP99)),MAX($AO$8:AO98)+1,0) -> 91 | AP99: Change leg split leap or jump ↓(180° split) | AS99: =IFERROR(VLOOKUP(ROWS($AP$9:AP99),$AO$9:$AP$163,2,0),"") -> Change leg split leap or jump ↓(180° split) | AW99: =IF(ISNUMBER(SEARCH($B$13,AX99)),MAX($AW$8:AW98)+1,0) -> 91 | AX99: Change leg split leap or jump ↓(180° split) | BA99: =IFERROR(VLOOKUP(ROWS($AX$9:AX99),$AW$9:$AX$163,2,0),"") -> Change leg split leap or jump ↓(180° split) | BE99: =IF(ISNUMBER(SEARCH($B$14,BF99)),MAX($BE$8:BE98)+1,0) -> 91 | BF99: Change leg split leap or jump ↓(180° split) | BI99: =IFERROR(VLOOKUP(ROWS($BF$9:BF99),$BE$9:$BF$163,2,0),"") -> Change leg split leap or jump ↓(180° split) | BM99: =IF(ISNUMBER(SEARCH($B$15,BN99)),MAX($BM$8:BM98)+1,0) -> 91 | BN99: Change leg split leap or jump ↓(180° split) | BQ99: =IFERROR(VLOOKUP(ROWS($BN$9:BN99),$BM$9:$BN$163,2,0),"") -> Change leg split leap or jump ↓(180° split) | BU99: =IF(ISNUMBER(SEARCH($B$16,BV99)),MAX($BU$8:BU98)+1,0) -> 91 | BV99: Change leg split leap or jump ↓(180° split) | BY99: =IFERROR(VLOOKUP(ROWS($BV$9:BV99),$BU$9:$BV$163,2,0),"") -> Change leg split leap or jump ↓(180° split) | CC99: =IF(ISNUMBER(SEARCH($B$17,CD99)),MAX($CC$8:CC98)+1,0) -> 91 | CD99: Change leg split leap or jump ↓(180° split) | CG99: =IFERROR(VLOOKUP(ROWS($CD$9:CD99),$CC$9:$CD$163,2,0),"") -> Change leg split leap or jump ↓(180° split) | CK99: =IF(ISNUMBER(SEARCH($B$18,CL99)),MAX($CK$8:CK98)+1,0) -> 91 | CL99: Change leg split leap or jump ↓(180° split) | CO99: =IFERROR(VLOOKUP(ROWS($CL$9:CL99),$CK$9:$CL$163,2,0),"") -> Change leg split leap or jump ↓(180° split)
Q100: =IF(ISNUMBER(SEARCH($B$9,R100)),MAX($Q$8:Q99)+1,0) -> 92 | R100: Sissone | U100: =IFERROR(VLOOKUP(ROWS($R$9:R100),$Q$9:$R$163,2,0),"") -> Sissone | Y100: =IF(ISNUMBER(SEARCH($B$10,Z100)),MAX($Y$8:Y99)+1,0) -> 92 | Z100: Sissone | AC100: =IFERROR(VLOOKUP(ROWS($Z$9:Z100),$Y$9:$Z$163,2,0),"") -> Sissone | AG100: =IF(ISNUMBER(SEARCH($B$11,AH100)),MAX($AG$8:AG99)+1,0) -> 92 | AH100: Sissone | AK100: =IFERROR(VLOOKUP(ROWS($AH$9:AH100),$AG$9:$AH$163,2,0),"") -> Sissone | AO100: =IF(ISNUMBER(SEARCH($B$12,AP100)),MAX($AO$8:AO99)+1,0) -> 92 | AP100: Sissone | AS100: =IFERROR(VLOOKUP(ROWS($AP$9:AP100),$AO$9:$AP$163,2,0),"") -> Sissone | AW100: =IF(ISNUMBER(SEARCH($B$13,AX100)),MAX($AW$8:AW99)+1,0) -> 92 | AX100: Sissone | BA100: =IFERROR(VLOOKUP(ROWS($AX$9:AX100),$AW$9:$AX$163,2,0),"") -> Sissone | BE100: =IF(ISNUMBER(SEARCH($B$14,BF100)),MAX($BE$8:BE99)+1,0) -> 92 | BF100: Sissone | BI100: =IFERROR(VLOOKUP(ROWS($BF$9:BF100),$BE$9:$BF$163,2,0),"") -> Sissone | BM100: =IF(ISNUMBER(SEARCH($B$15,BN100)),MAX($BM$8:BM99)+1,0) -> 92 | BN100: Sissone | BQ100: =IFERROR(VLOOKUP(ROWS($BN$9:BN100),$BM$9:$BN$163,2,0),"") -> Sissone | BU100: =IF(ISNUMBER(SEARCH($B$16,BV100)),MAX($BU$8:BU99)+1,0) -> 92 | BV100: Sissone | BY100: =IFERROR(VLOOKUP(ROWS($BV$9:BV100),$BU$9:$BV$163,2,0),"") -> Sissone | CC100: =IF(ISNUMBER(SEARCH($B$17,CD100)),MAX($CC$8:CC99)+1,0) -> 92 | CD100: Sissone | CG100: =IFERROR(VLOOKUP(ROWS($CD$9:CD100),$CC$9:$CD$163,2,0),"") -> Sissone | CK100: =IF(ISNUMBER(SEARCH($B$18,CL100)),MAX($CK$8:CK99)+1,0) -> 92 | CL100: Sissone | CO100: =IFERROR(VLOOKUP(ROWS($CL$9:CL100),$CK$9:$CL$163,2,0),"") -> Sissone
Q101: =IF(ISNUMBER(SEARCH($B$9,R101)),MAX($Q$8:Q100)+1,0) -> 93 | R101: Cat leap full turn | U101: =IFERROR(VLOOKUP(ROWS($R$9:R101),$Q$9:$R$163,2,0),"") -> Cat leap full turn | Y101: =IF(ISNUMBER(SEARCH($B$10,Z101)),MAX($Y$8:Y100)+1,0) -> 93 | Z101: Cat leap full turn | AC101: =IFERROR(VLOOKUP(ROWS($Z$9:Z101),$Y$9:$Z$163,2,0),"") -> Cat leap full turn | AG101: =IF(ISNUMBER(SEARCH($B$11,AH101)),MAX($AG$8:AG100)+1,0) -> 93 | AH101: Cat leap full turn | AK101: =IFERROR(VLOOKUP(ROWS($AH$9:AH101),$AG$9:$AH$163,2,0),"") -> Cat leap full turn | AO101: =IF(ISNUMBER(SEARCH($B$12,AP101)),MAX($AO$8:AO100)+1,0) -> 93 | AP101: Cat leap full turn | AS101: =IFERROR(VLOOKUP(ROWS($AP$9:AP101),$AO$9:$AP$163,2,0),"") -> Cat leap full turn | AW101: =IF(ISNUMBER(SEARCH($B$13,AX101)),MAX($AW$8:AW100)+1,0) -> 93 | AX101: Cat leap full turn | BA101: =IFERROR(VLOOKUP(ROWS($AX$9:AX101),$AW$9:$AX$163,2,0),"") -> Cat leap full turn | BE101: =IF(ISNUMBER(SEARCH($B$14,BF101)),MAX($BE$8:BE100)+1,0) -> 93 | BF101: Cat leap full turn | BI101: =IFERROR(VLOOKUP(ROWS($BF$9:BF101),$BE$9:$BF$163,2,0),"") -> Cat leap full turn | BM101: =IF(ISNUMBER(SEARCH($B$15,BN101)),MAX($BM$8:BM100)+1,0) -> 93 | BN101: Cat leap full turn | BQ101: =IFERROR(VLOOKUP(ROWS($BN$9:BN101),$BM$9:$BN$163,2,0),"") -> Cat leap full turn | BU101: =IF(ISNUMBER(SEARCH($B$16,BV101)),MAX($BU$8:BU100)+1,0) -> 93 | BV101: Cat leap full turn | BY101: =IFERROR(VLOOKUP(ROWS($BV$9:BV101),$BU$9:$BV$163,2,0),"") -> Cat leap full turn | CC101: =IF(ISNUMBER(SEARCH($B$17,CD101)),MAX($CC$8:CC100)+1,0) -> 93 | CD101: Cat leap full turn | CG101: =IFERROR(VLOOKUP(ROWS($CD$9:CD101),$CC$9:$CD$163,2,0),"") -> Cat leap full turn | CK101: =IF(ISNUMBER(SEARCH($B$18,CL101)),MAX($CK$8:CK100)+1,0) -> 93 | CL101: Cat leap full turn | CO101: =IFERROR(VLOOKUP(ROWS($CL$9:CL101),$CK$9:$CL$163,2,0),"") -> Cat leap full turn
Q102: =IF(ISNUMBER(SEARCH($B$9,R102)),MAX($Q$8:Q101)+1,0) -> 94 | R102: Jump double turn | U102: =IFERROR(VLOOKUP(ROWS($R$9:R102),$Q$9:$R$163,2,0),"") -> Jump double turn | Y102: =IF(ISNUMBER(SEARCH($B$10,Z102)),MAX($Y$8:Y101)+1,0) -> 94 | Z102: Jump double turn | AC102: =IFERROR(VLOOKUP(ROWS($Z$9:Z102),$Y$9:$Z$163,2,0),"") -> Jump double turn | AG102: =IF(ISNUMBER(SEARCH($B$11,AH102)),MAX($AG$8:AG101)+1,0) -> 94 | AH102: Jump double turn | AK102: =IFERROR(VLOOKUP(ROWS($AH$9:AH102),$AG$9:$AH$163,2,0),"") -> Jump double turn | AO102: =IF(ISNUMBER(SEARCH($B$12,AP102)),MAX($AO$8:AO101)+1,0) -> 94 | AP102: Jump double turn | AS102: =IFERROR(VLOOKUP(ROWS($AP$9:AP102),$AO$9:$AP$163,2,0),"") -> Jump double turn | AW102: =IF(ISNUMBER(SEARCH($B$13,AX102)),MAX($AW$8:AW101)+1,0) -> 94 | AX102: Jump double turn | BA102: =IFERROR(VLOOKUP(ROWS($AX$9:AX102),$AW$9:$AX$163,2,0),"") -> Jump double turn | BE102: =IF(ISNUMBER(SEARCH($B$14,BF102)),MAX($BE$8:BE101)+1,0) -> 94 | BF102: Jump double turn | BI102: =IFERROR(VLOOKUP(ROWS($BF$9:BF102),$BE$9:$BF$163,2,0),"") -> Jump double turn | BM102: =IF(ISNUMBER(SEARCH($B$15,BN102)),MAX($BM$8:BM101)+1,0) -> 94 | BN102: Jump double turn | BQ102: =IFERROR(VLOOKUP(ROWS($BN$9:BN102),$BM$9:$BN$163,2,0),"") -> Jump double turn | BU102: =IF(ISNUMBER(SEARCH($B$16,BV102)),MAX($BU$8:BU101)+1,0) -> 94 | BV102: Jump double turn | BY102: =IFERROR(VLOOKUP(ROWS($BV$9:BV102),$BU$9:$BV$163,2,0),"") -> Jump double turn | CC102: =IF(ISNUMBER(SEARCH($B$17,CD102)),MAX($CC$8:CC101)+1,0) -> 94 | CD102: Jump double turn | CG102: =IFERROR(VLOOKUP(ROWS($CD$9:CD102),$CC$9:$CD$163,2,0),"") -> Jump double turn | CK102: =IF(ISNUMBER(SEARCH($B$18,CL102)),MAX($CK$8:CK101)+1,0) -> 94 | CL102: Jump double turn | CO102: =IFERROR(VLOOKUP(ROWS($CL$9:CL102),$CK$9:$CL$163,2,0),"") -> Jump double turn
Q103: =IF(ISNUMBER(SEARCH($B$9,R103)),MAX($Q$8:Q102)+1,0) -> 95 | R103: Jump to Prone | U103: =IFERROR(VLOOKUP(ROWS($R$9:R103),$Q$9:$R$163,2,0),"") -> Jump to Prone | Y103: =IF(ISNUMBER(SEARCH($B$10,Z103)),MAX($Y$8:Y102)+1,0) -> 95 | Z103: Jump to Prone | AC103: =IFERROR(VLOOKUP(ROWS($Z$9:Z103),$Y$9:$Z$163,2,0),"") -> Jump to Prone | AG103: =IF(ISNUMBER(SEARCH($B$11,AH103)),MAX($AG$8:AG102)+1,0) -> 95 | AH103: Jump to Prone | AK103: =IFERROR(VLOOKUP(ROWS($AH$9:AH103),$AG$9:$AH$163,2,0),"") -> Jump to Prone | AO103: =IF(ISNUMBER(SEARCH($B$12,AP103)),MAX($AO$8:AO102)+1,0) -> 95 | AP103: Jump to Prone | AS103: =IFERROR(VLOOKUP(ROWS($AP$9:AP103),$AO$9:$AP$163,2,0),"") -> Jump to Prone | AW103: =IF(ISNUMBER(SEARCH($B$13,AX103)),MAX($AW$8:AW102)+1,0) -> 95 | AX103: Jump to Prone | BA103: =IFERROR(VLOOKUP(ROWS($AX$9:AX103),$AW$9:$AX$163,2,0),"") -> Jump to Prone | BE103: =IF(ISNUMBER(SEARCH($B$14,BF103)),MAX($BE$8:BE102)+1,0) -> 95 | BF103: Jump to Prone | BI103: =IFERROR(VLOOKUP(ROWS($BF$9:BF103),$BE$9:$BF$163,2,0),"") -> Jump to Prone | BM103: =IF(ISNUMBER(SEARCH($B$15,BN103)),MAX($BM$8:BM102)+1,0) -> 95 | BN103: Jump to Prone | BQ103: =IFERROR(VLOOKUP(ROWS($BN$9:BN103),$BM$9:$BN$163,2,0),"") -> Jump to Prone | BU103: =IF(ISNUMBER(SEARCH($B$16,BV103)),MAX($BU$8:BU102)+1,0) -> 95 | BV103: Jump to Prone | BY103: =IFERROR(VLOOKUP(ROWS($BV$9:BV103),$BU$9:$BV$163,2,0),"") -> Jump to Prone | CC103: =IF(ISNUMBER(SEARCH($B$17,CD103)),MAX($CC$8:CC102)+1,0) -> 95 | CD103: Jump to Prone | CG103: =IFERROR(VLOOKUP(ROWS($CD$9:CD103),$CC$9:$CD$163,2,0),"") -> Jump to Prone | CK103: =IF(ISNUMBER(SEARCH($B$18,CL103)),MAX($CK$8:CK102)+1,0) -> 95 | CL103: Jump to Prone | CO103: =IFERROR(VLOOKUP(ROWS($CL$9:CL103),$CK$9:$CL$163,2,0),"") -> Jump to Prone
Q104: =IF(ISNUMBER(SEARCH($B$9,R104)),MAX($Q$8:Q103)+1,0) -> 96 | R104: Straddle jump (feet hip high) | U104: =IFERROR(VLOOKUP(ROWS($R$9:R104),$Q$9:$R$163,2,0),"") -> Straddle jump (feet hip high) | Y104: =IF(ISNUMBER(SEARCH($B$10,Z104)),MAX($Y$8:Y103)+1,0) -> 96 | Z104: Straddle jump (feet hip high) | AC104: =IFERROR(VLOOKUP(ROWS($Z$9:Z104),$Y$9:$Z$163,2,0),"") -> Straddle jump (feet hip high) | AG104: =IF(ISNUMBER(SEARCH($B$11,AH104)),MAX($AG$8:AG103)+1,0) -> 96 | AH104: Straddle jump (feet hip high) | AK104: =IFERROR(VLOOKUP(ROWS($AH$9:AH104),$AG$9:$AH$163,2,0),"") -> Straddle jump (feet hip high) | AO104: =IF(ISNUMBER(SEARCH($B$12,AP104)),MAX($AO$8:AO103)+1,0) -> 96 | AP104: Straddle jump (feet hip high) | AS104: =IFERROR(VLOOKUP(ROWS($AP$9:AP104),$AO$9:$AP$163,2,0),"") -> Straddle jump (feet hip high) | AW104: =IF(ISNUMBER(SEARCH($B$13,AX104)),MAX($AW$8:AW103)+1,0) -> 96 | AX104: Straddle jump (feet hip high) | BA104: =IFERROR(VLOOKUP(ROWS($AX$9:AX104),$AW$9:$AX$163,2,0),"") -> Straddle jump (feet hip high) | BE104: =IF(ISNUMBER(SEARCH($B$14,BF104)),MAX($BE$8:BE103)+1,0) -> 96 | BF104: Straddle jump (feet hip high) | BI104: =IFERROR(VLOOKUP(ROWS($BF$9:BF104),$BE$9:$BF$163,2,0),"") -> Straddle jump (feet hip high) | BM104: =IF(ISNUMBER(SEARCH($B$15,BN104)),MAX($BM$8:BM103)+1,0) -> 96 | BN104: Straddle jump (feet hip high) | BQ104: =IFERROR(VLOOKUP(ROWS($BN$9:BN104),$BM$9:$BN$163,2,0),"") -> Straddle jump (feet hip high) | BU104: =IF(ISNUMBER(SEARCH($B$16,BV104)),MAX($BU$8:BU103)+1,0) -> 96 | BV104: Straddle jump (feet hip high) | BY104: =IFERROR(VLOOKUP(ROWS($BV$9:BV104),$BU$9:$BV$163,2,0),"") -> Straddle jump (feet hip high) | CC104: =IF(ISNUMBER(SEARCH($B$17,CD104)),MAX($CC$8:CC103)+1,0) -> 96 | CD104: Straddle jump (feet hip high) | CG104: =IFERROR(VLOOKUP(ROWS($CD$9:CD104),$CC$9:$CD$163,2,0),"") -> Straddle jump (feet hip high) | CK104: =IF(ISNUMBER(SEARCH($B$18,CL104)),MAX($CK$8:CK103)+1,0) -> 96 | CL104: Straddle jump (feet hip high) | CO104: =IFERROR(VLOOKUP(ROWS($CL$9:CL104),$CK$9:$CL$163,2,0),"") -> Straddle jump (feet hip high)
Q105: =IF(ISNUMBER(SEARCH($B$9,R105)),MAX($Q$8:Q104)+1,0) -> 97 | R105: Tuck jump full turn | U105: =IFERROR(VLOOKUP(ROWS($R$9:R105),$Q$9:$R$163,2,0),"") -> Tuck jump full turn | Y105: =IF(ISNUMBER(SEARCH($B$10,Z105)),MAX($Y$8:Y104)+1,0) -> 97 | Z105: Tuck jump full turn | AC105: =IFERROR(VLOOKUP(ROWS($Z$9:Z105),$Y$9:$Z$163,2,0),"") -> Tuck jump full turn | AG105: =IF(ISNUMBER(SEARCH($B$11,AH105)),MAX($AG$8:AG104)+1,0) -> 97 | AH105: Tuck jump full turn | AK105: =IFERROR(VLOOKUP(ROWS($AH$9:AH105),$AG$9:$AH$163,2,0),"") -> Tuck jump full turn | AO105: =IF(ISNUMBER(SEARCH($B$12,AP105)),MAX($AO$8:AO104)+1,0) -> 97 | AP105: Tuck jump full turn | AS105: =IFERROR(VLOOKUP(ROWS($AP$9:AP105),$AO$9:$AP$163,2,0),"") -> Tuck jump full turn | AW105: =IF(ISNUMBER(SEARCH($B$13,AX105)),MAX($AW$8:AW104)+1,0) -> 97 | AX105: Tuck jump full turn | BA105: =IFERROR(VLOOKUP(ROWS($AX$9:AX105),$AW$9:$AX$163,2,0),"") -> Tuck jump full turn | BE105: =IF(ISNUMBER(SEARCH($B$14,BF105)),MAX($BE$8:BE104)+1,0) -> 97 | BF105: Tuck jump full turn | BI105: =IFERROR(VLOOKUP(ROWS($BF$9:BF105),$BE$9:$BF$163,2,0),"") -> Tuck jump full turn | BM105: =IF(ISNUMBER(SEARCH($B$15,BN105)),MAX($BM$8:BM104)+1,0) -> 97 | BN105: Tuck jump full turn | BQ105: =IFERROR(VLOOKUP(ROWS($BN$9:BN105),$BM$9:$BN$163,2,0),"") -> Tuck jump full turn | BU105: =IF(ISNUMBER(SEARCH($B$16,BV105)),MAX($BU$8:BU104)+1,0) -> 97 | BV105: Tuck jump full turn | BY105: =IFERROR(VLOOKUP(ROWS($BV$9:BV105),$BU$9:$BV$163,2,0),"") -> Tuck jump full turn | CC105: =IF(ISNUMBER(SEARCH($B$17,CD105)),MAX($CC$8:CC104)+1,0) -> 97 | CD105: Tuck jump full turn | CG105: =IFERROR(VLOOKUP(ROWS($CD$9:CD105),$CC$9:$CD$163,2,0),"") -> Tuck jump full turn | CK105: =IF(ISNUMBER(SEARCH($B$18,CL105)),MAX($CK$8:CK104)+1,0) -> 97 | CL105: Tuck jump full turn | CO105: =IFERROR(VLOOKUP(ROWS($CL$9:CL105),$CK$9:$CL$163,2,0),"") -> Tuck jump full turn
Q106: =IF(ISNUMBER(SEARCH($B$9,R106)),MAX($Q$8:Q105)+1,0) -> 98 | R106: 1½ Spin | U106: =IFERROR(VLOOKUP(ROWS($R$9:R106),$Q$9:$R$163,2,0),"") -> 1½ Spin | Y106: =IF(ISNUMBER(SEARCH($B$10,Z106)),MAX($Y$8:Y105)+1,0) -> 98 | Z106: 1½ Spin | AC106: =IFERROR(VLOOKUP(ROWS($Z$9:Z106),$Y$9:$Z$163,2,0),"") -> 1½ Spin | AG106: =IF(ISNUMBER(SEARCH($B$11,AH106)),MAX($AG$8:AG105)+1,0) -> 98 | AH106: 1½ Spin | AK106: =IFERROR(VLOOKUP(ROWS($AH$9:AH106),$AG$9:$AH$163,2,0),"") -> 1½ Spin | AO106: =IF(ISNUMBER(SEARCH($B$12,AP106)),MAX($AO$8:AO105)+1,0) -> 98 | AP106: 1½ Spin | AS106: =IFERROR(VLOOKUP(ROWS($AP$9:AP106),$AO$9:$AP$163,2,0),"") -> 1½ Spin | AW106: =IF(ISNUMBER(SEARCH($B$13,AX106)),MAX($AW$8:AW105)+1,0) -> 98 | AX106: 1½ Spin | BA106: =IFERROR(VLOOKUP(ROWS($AX$9:AX106),$AW$9:$AX$163,2,0),"") -> 1½ Spin | BE106: =IF(ISNUMBER(SEARCH($B$14,BF106)),MAX($BE$8:BE105)+1,0) -> 98 | BF106: 1½ Spin | BI106: =IFERROR(VLOOKUP(ROWS($BF$9:BF106),$BE$9:$BF$163,2,0),"") -> 1½ Spin | BM106: =IF(ISNUMBER(SEARCH($B$15,BN106)),MAX($BM$8:BM105)+1,0) -> 98 | BN106: 1½ Spin | BQ106: =IFERROR(VLOOKUP(ROWS($BN$9:BN106),$BM$9:$BN$163,2,0),"") -> 1½ Spin | BU106: =IF(ISNUMBER(SEARCH($B$16,BV106)),MAX($BU$8:BU105)+1,0) -> 98 | BV106: 1½ Spin | BY106: =IFERROR(VLOOKUP(ROWS($BV$9:BV106),$BU$9:$BV$163,2,0),"") -> 1½ Spin | CC106: =IF(ISNUMBER(SEARCH($B$17,CD106)),MAX($CC$8:CC105)+1,0) -> 98 | CD106: 1½ Spin | CG106: =IFERROR(VLOOKUP(ROWS($CD$9:CD106),$CC$9:$CD$163,2,0),"") -> 1½ Spin | CK106: =IF(ISNUMBER(SEARCH($B$18,CL106)),MAX($CK$8:CK105)+1,0) -> 98 | CL106: 1½ Spin | CO106: =IFERROR(VLOOKUP(ROWS($CL$9:CL106),$CK$9:$CL$163,2,0),"") -> 1½ Spin
Q107: =IF(ISNUMBER(SEARCH($B$9,R107)),MAX($Q$8:Q106)+1,0) -> 99 | R107: Y Scale (leg at shoulder height) | U107: =IFERROR(VLOOKUP(ROWS($R$9:R107),$Q$9:$R$163,2,0),"") -> Y Scale (leg at shoulder height) | Y107: =IF(ISNUMBER(SEARCH($B$10,Z107)),MAX($Y$8:Y106)+1,0) -> 99 | Z107: Y Scale (leg at shoulder height) | AC107: =IFERROR(VLOOKUP(ROWS($Z$9:Z107),$Y$9:$Z$163,2,0),"") -> Y Scale (leg at shoulder height) | AG107: =IF(ISNUMBER(SEARCH($B$11,AH107)),MAX($AG$8:AG106)+1,0) -> 99 | AH107: Y Scale (leg at shoulder height) | AK107: =IFERROR(VLOOKUP(ROWS($AH$9:AH107),$AG$9:$AH$163,2,0),"") -> Y Scale (leg at shoulder height) | AO107: =IF(ISNUMBER(SEARCH($B$12,AP107)),MAX($AO$8:AO106)+1,0) -> 99 | AP107: Y Scale (leg at shoulder height) | AS107: =IFERROR(VLOOKUP(ROWS($AP$9:AP107),$AO$9:$AP$163,2,0),"") -> Y Scale (leg at shoulder height) | AW107: =IF(ISNUMBER(SEARCH($B$13,AX107)),MAX($AW$8:AW106)+1,0) -> 99 | AX107: Y Scale (leg at shoulder height) | BA107: =IFERROR(VLOOKUP(ROWS($AX$9:AX107),$AW$9:$AX$163,2,0),"") -> Y Scale (leg at shoulder height) | BE107: =IF(ISNUMBER(SEARCH($B$14,BF107)),MAX($BE$8:BE106)+1,0) -> 99 | BF107: Y Scale (leg at shoulder height) | BI107: =IFERROR(VLOOKUP(ROWS($BF$9:BF107),$BE$9:$BF$163,2,0),"") -> Y Scale (leg at shoulder height) | BM107: =IF(ISNUMBER(SEARCH($B$15,BN107)),MAX($BM$8:BM106)+1,0) -> 99 | BN107: Y Scale (leg at shoulder height) | BQ107: =IFERROR(VLOOKUP(ROWS($BN$9:BN107),$BM$9:$BN$163,2,0),"") -> Y Scale (leg at shoulder height) | BU107: =IF(ISNUMBER(SEARCH($B$16,BV107)),MAX($BU$8:BU106)+1,0) -> 99 | BV107: Y Scale (leg at shoulder height) | BY107: =IFERROR(VLOOKUP(ROWS($BV$9:BV107),$BU$9:$BV$163,2,0),"") -> Y Scale (leg at shoulder height) | CC107: =IF(ISNUMBER(SEARCH($B$17,CD107)),MAX($CC$8:CC106)+1,0) -> 99 | CD107: Y Scale (leg at shoulder height) | CG107: =IFERROR(VLOOKUP(ROWS($CD$9:CD107),$CC$9:$CD$163,2,0),"") -> Y Scale (leg at shoulder height) | CK107: =IF(ISNUMBER(SEARCH($B$18,CL107)),MAX($CK$8:CK106)+1,0) -> 99 | CL107: Y Scale (leg at shoulder height) | CO107: =IFERROR(VLOOKUP(ROWS($CL$9:CL107),$CK$9:$CL$163,2,0),"") -> Y Scale (leg at shoulder height)
Q108: =IF(ISNUMBER(SEARCH($B$9,R108)),MAX($Q$8:Q107)+1,0) -> 100 | R108: 3 way Splits | U108: =IFERROR(VLOOKUP(ROWS($R$9:R108),$Q$9:$R$163,2,0),"") -> 3 way Splits | Y108: =IF(ISNUMBER(SEARCH($B$10,Z108)),MAX($Y$8:Y107)+1,0) -> 100 | Z108: 3 way Splits | AC108: =IFERROR(VLOOKUP(ROWS($Z$9:Z108),$Y$9:$Z$163,2,0),"") -> 3 way Splits | AG108: =IF(ISNUMBER(SEARCH($B$11,AH108)),MAX($AG$8:AG107)+1,0) -> 100 | AH108: 3 way Splits | AK108: =IFERROR(VLOOKUP(ROWS($AH$9:AH108),$AG$9:$AH$163,2,0),"") -> 3 way Splits | AO108: =IF(ISNUMBER(SEARCH($B$12,AP108)),MAX($AO$8:AO107)+1,0) -> 100 | AP108: 3 way Splits | AS108: =IFERROR(VLOOKUP(ROWS($AP$9:AP108),$AO$9:$AP$163,2,0),"") -> 3 way Splits | AW108: =IF(ISNUMBER(SEARCH($B$13,AX108)),MAX($AW$8:AW107)+1,0) -> 100 | AX108: 3 way Splits | BA108: =IFERROR(VLOOKUP(ROWS($AX$9:AX108),$AW$9:$AX$163,2,0),"") -> 3 way Splits | BE108: =IF(ISNUMBER(SEARCH($B$14,BF108)),MAX($BE$8:BE107)+1,0) -> 100 | BF108: 3 way Splits | BI108: =IFERROR(VLOOKUP(ROWS($BF$9:BF108),$BE$9:$BF$163,2,0),"") -> 3 way Splits | BM108: =IF(ISNUMBER(SEARCH($B$15,BN108)),MAX($BM$8:BM107)+1,0) -> 100 | BN108: 3 way Splits | BQ108: =IFERROR(VLOOKUP(ROWS($BN$9:BN108),$BM$9:$BN$163,2,0),"") -> 3 way Splits | BU108: =IF(ISNUMBER(SEARCH($B$16,BV108)),MAX($BU$8:BU107)+1,0) -> 100 | BV108: 3 way Splits | BY108: =IFERROR(VLOOKUP(ROWS($BV$9:BV108),$BU$9:$BV$163,2,0),"") -> 3 way Splits | CC108: =IF(ISNUMBER(SEARCH($B$17,CD108)),MAX($CC$8:CC107)+1,0) -> 100 | CD108: 3 way Splits | CG108: =IFERROR(VLOOKUP(ROWS($CD$9:CD108),$CC$9:$CD$163,2,0),"") -> 3 way Splits | CK108: =IF(ISNUMBER(SEARCH($B$18,CL108)),MAX($CK$8:CK107)+1,0) -> 100 | CL108: 3 way Splits | CO108: =IFERROR(VLOOKUP(ROWS($CL$9:CL108),$CK$9:$CL$163,2,0),"") -> 3 way Splits
Q109: =IF(ISNUMBER(SEARCH($B$9,R109)),MAX($Q$8:Q108)+1,0) -> 101 | R109: F Supp jump legs through straddle - | U109: =IFERROR(VLOOKUP(ROWS($R$9:R109),$Q$9:$R$163,2,0),"") -> F Supp jump legs through straddle - | Y109: =IF(ISNUMBER(SEARCH($B$10,Z109)),MAX($Y$8:Y108)+1,0) -> 101 | Z109: F Supp jump legs through straddle - | AC109: =IFERROR(VLOOKUP(ROWS($Z$9:Z109),$Y$9:$Z$163,2,0),"") -> F Supp jump legs through straddle - | AG109: =IF(ISNUMBER(SEARCH($B$11,AH109)),MAX($AG$8:AG108)+1,0) -> 101 | AH109: F Supp jump legs through straddle - | AK109: =IFERROR(VLOOKUP(ROWS($AH$9:AH109),$AG$9:$AH$163,2,0),"") -> F Supp jump legs through straddle - | AO109: =IF(ISNUMBER(SEARCH($B$12,AP109)),MAX($AO$8:AO108)+1,0) -> 101 | AP109: F Supp jump legs through straddle - | AS109: =IFERROR(VLOOKUP(ROWS($AP$9:AP109),$AO$9:$AP$163,2,0),"") -> F Supp jump legs through straddle - | AW109: =IF(ISNUMBER(SEARCH($B$13,AX109)),MAX($AW$8:AW108)+1,0) -> 101 | AX109: F Supp jump legs through straddle - | BA109: =IFERROR(VLOOKUP(ROWS($AX$9:AX109),$AW$9:$AX$163,2,0),"") -> F Supp jump legs through straddle - | BE109: =IF(ISNUMBER(SEARCH($B$14,BF109)),MAX($BE$8:BE108)+1,0) -> 101 | BF109: F Supp jump legs through straddle - | BI109: =IFERROR(VLOOKUP(ROWS($BF$9:BF109),$BE$9:$BF$163,2,0),"") -> F Supp jump legs through straddle - | BM109: =IF(ISNUMBER(SEARCH($B$15,BN109)),MAX($BM$8:BM108)+1,0) -> 101 | BN109: F Supp jump legs through straddle - | BQ109: =IFERROR(VLOOKUP(ROWS($BN$9:BN109),$BM$9:$BN$163,2,0),"") -> F Supp jump legs through straddle - | BU109: =IF(ISNUMBER(SEARCH($B$16,BV109)),MAX($BU$8:BU108)+1,0) -> 101 | BV109: F Supp jump legs through straddle - | BY109: =IFERROR(VLOOKUP(ROWS($BV$9:BV109),$BU$9:$BV$163,2,0),"") -> F Supp jump legs through straddle - | CC109: =IF(ISNUMBER(SEARCH($B$17,CD109)),MAX($CC$8:CC108)+1,0) -> 101 | CD109: F Supp jump legs through straddle - | CG109: =IFERROR(VLOOKUP(ROWS($CD$9:CD109),$CC$9:$CD$163,2,0),"") -> F Supp jump legs through straddle - | CK109: =IF(ISNUMBER(SEARCH($B$18,CL109)),MAX($CK$8:CK108)+1,0) -> 101 | CL109: F Supp jump legs through straddle - | CO109: =IFERROR(VLOOKUP(ROWS($CL$9:CL109),$CK$9:$CL$163,2,0),"") -> F Supp jump legs through straddle -
Q110: =IF(ISNUMBER(SEARCH($B$9,R110)),MAX($Q$8:Q109)+1,0) -> 102 | R110: Straddle 'Russian' Lever | U110: =IFERROR(VLOOKUP(ROWS($R$9:R110),$Q$9:$R$163,2,0),"") -> Straddle 'Russian' Lever | Y110: =IF(ISNUMBER(SEARCH($B$10,Z110)),MAX($Y$8:Y109)+1,0) -> 102 | Z110: Straddle 'Russian' Lever | AC110: =IFERROR(VLOOKUP(ROWS($Z$9:Z110),$Y$9:$Z$163,2,0),"") -> Straddle 'Russian' Lever | AG110: =IF(ISNUMBER(SEARCH($B$11,AH110)),MAX($AG$8:AG109)+1,0) -> 102 | AH110: Straddle 'Russian' Lever | AK110: =IFERROR(VLOOKUP(ROWS($AH$9:AH110),$AG$9:$AH$163,2,0),"") -> Straddle 'Russian' Lever | AO110: =IF(ISNUMBER(SEARCH($B$12,AP110)),MAX($AO$8:AO109)+1,0) -> 102 | AP110: Straddle 'Russian' Lever | AS110: =IFERROR(VLOOKUP(ROWS($AP$9:AP110),$AO$9:$AP$163,2,0),"") -> Straddle 'Russian' Lever | AW110: =IF(ISNUMBER(SEARCH($B$13,AX110)),MAX($AW$8:AW109)+1,0) -> 102 | AX110: Straddle 'Russian' Lever | BA110: =IFERROR(VLOOKUP(ROWS($AX$9:AX110),$AW$9:$AX$163,2,0),"") -> Straddle 'Russian' Lever | BE110: =IF(ISNUMBER(SEARCH($B$14,BF110)),MAX($BE$8:BE109)+1,0) -> 102 | BF110: Straddle 'Russian' Lever | BI110: =IFERROR(VLOOKUP(ROWS($BF$9:BF110),$BE$9:$BF$163,2,0),"") -> Straddle 'Russian' Lever | BM110: =IF(ISNUMBER(SEARCH($B$15,BN110)),MAX($BM$8:BM109)+1,0) -> 102 | BN110: Straddle 'Russian' Lever | BQ110: =IFERROR(VLOOKUP(ROWS($BN$9:BN110),$BM$9:$BN$163,2,0),"") -> Straddle 'Russian' Lever | BU110: =IF(ISNUMBER(SEARCH($B$16,BV110)),MAX($BU$8:BU109)+1,0) -> 102 | BV110: Straddle 'Russian' Lever | BY110: =IFERROR(VLOOKUP(ROWS($BV$9:BV110),$BU$9:$BV$163,2,0),"") -> Straddle 'Russian' Lever | CC110: =IF(ISNUMBER(SEARCH($B$17,CD110)),MAX($CC$8:CC109)+1,0) -> 102 | CD110: Straddle 'Russian' Lever | CG110: =IFERROR(VLOOKUP(ROWS($CD$9:CD110),$CC$9:$CD$163,2,0),"") -> Straddle 'Russian' Lever | CK110: =IF(ISNUMBER(SEARCH($B$18,CL110)),MAX($CK$8:CK109)+1,0) -> 102 | CL110: Straddle 'Russian' Lever | CO110: =IFERROR(VLOOKUP(ROWS($CL$9:CL110),$CK$9:$CL$163,2,0),"") -> Straddle 'Russian' Lever
Q111: =IF(ISNUMBER(SEARCH($B$9,R111)),MAX($Q$8:Q110)+1,0) -> 103 | R111: Straddle 1/2 Lever lift to Stand | U111: =IFERROR(VLOOKUP(ROWS($R$9:R111),$Q$9:$R$163,2,0),"") -> Straddle 1/2 Lever lift to Stand | Y111: =IF(ISNUMBER(SEARCH($B$10,Z111)),MAX($Y$8:Y110)+1,0) -> 103 | Z111: Straddle 1/2 Lever lift to Stand | AC111: =IFERROR(VLOOKUP(ROWS($Z$9:Z111),$Y$9:$Z$163,2,0),"") -> Straddle 1/2 Lever lift to Stand | AG111: =IF(ISNUMBER(SEARCH($B$11,AH111)),MAX($AG$8:AG110)+1,0) -> 103 | AH111: Straddle 1/2 Lever lift to Stand | AK111: =IFERROR(VLOOKUP(ROWS($AH$9:AH111),$AG$9:$AH$163,2,0),"") -> Straddle 1/2 Lever lift to Stand | AO111: =IF(ISNUMBER(SEARCH($B$12,AP111)),MAX($AO$8:AO110)+1,0) -> 103 | AP111: Straddle 1/2 Lever lift to Stand | AS111: =IFERROR(VLOOKUP(ROWS($AP$9:AP111),$AO$9:$AP$163,2,0),"") -> Straddle 1/2 Lever lift to Stand | AW111: =IF(ISNUMBER(SEARCH($B$13,AX111)),MAX($AW$8:AW110)+1,0) -> 103 | AX111: Straddle 1/2 Lever lift to Stand | BA111: =IFERROR(VLOOKUP(ROWS($AX$9:AX111),$AW$9:$AX$163,2,0),"") -> Straddle 1/2 Lever lift to Stand | BE111: =IF(ISNUMBER(SEARCH($B$14,BF111)),MAX($BE$8:BE110)+1,0) -> 103 | BF111: Straddle 1/2 Lever lift to Stand | BI111: =IFERROR(VLOOKUP(ROWS($BF$9:BF111),$BE$9:$BF$163,2,0),"") -> Straddle 1/2 Lever lift to Stand | BM111: =IF(ISNUMBER(SEARCH($B$15,BN111)),MAX($BM$8:BM110)+1,0) -> 103 | BN111: Straddle 1/2 Lever lift to Stand | BQ111: =IFERROR(VLOOKUP(ROWS($BN$9:BN111),$BM$9:$BN$163,2,0),"") -> Straddle 1/2 Lever lift to Stand | BU111: =IF(ISNUMBER(SEARCH($B$16,BV111)),MAX($BU$8:BU110)+1,0) -> 103 | BV111: Straddle 1/2 Lever lift to Stand | BY111: =IFERROR(VLOOKUP(ROWS($BV$9:BV111),$BU$9:$BV$163,2,0),"") -> Straddle 1/2 Lever lift to Stand | CC111: =IF(ISNUMBER(SEARCH($B$17,CD111)),MAX($CC$8:CC110)+1,0) -> 103 | CD111: Straddle 1/2 Lever lift to Stand | CG111: =IFERROR(VLOOKUP(ROWS($CD$9:CD111),$CC$9:$CD$163,2,0),"") -> Straddle 1/2 Lever lift to Stand | CK111: =IF(ISNUMBER(SEARCH($B$18,CL111)),MAX($CK$8:CK110)+1,0) -> 103 | CL111: Straddle 1/2 Lever lift to Stand | CO111: =IFERROR(VLOOKUP(ROWS($CL$9:CL111),$CK$9:$CL$163,2,0),"") -> Straddle 1/2 Lever lift to Stand
Q112: =IF(ISNUMBER(SEARCH($B$9,R112)),MAX($Q$8:Q111)+1,0) -> 104 | R112: H/stand from straddle stand full turn | U112: =IFERROR(VLOOKUP(ROWS($R$9:R112),$Q$9:$R$163,2,0),"") -> H/stand from straddle stand full turn | Y112: =IF(ISNUMBER(SEARCH($B$10,Z112)),MAX($Y$8:Y111)+1,0) -> 104 | Z112: H/stand from straddle stand full turn | AC112: =IFERROR(VLOOKUP(ROWS($Z$9:Z112),$Y$9:$Z$163,2,0),"") -> H/stand from straddle stand full turn | AG112: =IF(ISNUMBER(SEARCH($B$11,AH112)),MAX($AG$8:AG111)+1,0) -> 104 | AH112: H/stand from straddle stand full turn | AK112: =IFERROR(VLOOKUP(ROWS($AH$9:AH112),$AG$9:$AH$163,2,0),"") -> H/stand from straddle stand full turn | AO112: =IF(ISNUMBER(SEARCH($B$12,AP112)),MAX($AO$8:AO111)+1,0) -> 104 | AP112: H/stand from straddle stand full turn | AS112: =IFERROR(VLOOKUP(ROWS($AP$9:AP112),$AO$9:$AP$163,2,0),"") -> H/stand from straddle stand full turn | AW112: =IF(ISNUMBER(SEARCH($B$13,AX112)),MAX($AW$8:AW111)+1,0) -> 104 | AX112: H/stand from straddle stand full turn | BA112: =IFERROR(VLOOKUP(ROWS($AX$9:AX112),$AW$9:$AX$163,2,0),"") -> H/stand from straddle stand full turn | BE112: =IF(ISNUMBER(SEARCH($B$14,BF112)),MAX($BE$8:BE111)+1,0) -> 104 | BF112: H/stand from straddle stand full turn | BI112: =IFERROR(VLOOKUP(ROWS($BF$9:BF112),$BE$9:$BF$163,2,0),"") -> H/stand from straddle stand full turn | BM112: =IF(ISNUMBER(SEARCH($B$15,BN112)),MAX($BM$8:BM111)+1,0) -> 104 | BN112: H/stand from straddle stand full turn | BQ112: =IFERROR(VLOOKUP(ROWS($BN$9:BN112),$BM$9:$BN$163,2,0),"") -> H/stand from straddle stand full turn | BU112: =IF(ISNUMBER(SEARCH($B$16,BV112)),MAX($BU$8:BU111)+1,0) -> 104 | BV112: H/stand from straddle stand full turn | BY112: =IFERROR(VLOOKUP(ROWS($BV$9:BV112),$BU$9:$BV$163,2,0),"") -> H/stand from straddle stand full turn | CC112: =IF(ISNUMBER(SEARCH($B$17,CD112)),MAX($CC$8:CC111)+1,0) -> 104 | CD112: H/stand from straddle stand full turn | CG112: =IFERROR(VLOOKUP(ROWS($CD$9:CD112),$CC$9:$CD$163,2,0),"") -> H/stand from straddle stand full turn | CK112: =IF(ISNUMBER(SEARCH($B$18,CL112)),MAX($CK$8:CK111)+1,0) -> 104 | CL112: H/stand from straddle stand full turn | CO112: =IFERROR(VLOOKUP(ROWS($CL$9:CL112),$CK$9:$CL$163,2,0),"") -> H/stand from straddle stand full turn
Q113: =IF(ISNUMBER(SEARCH($B$9,R113)),MAX($Q$8:Q112)+1,0) -> 105 | R113: H/stand lower to Straddle 1/2 Lever | U113: =IFERROR(VLOOKUP(ROWS($R$9:R113),$Q$9:$R$163,2,0),"") -> H/stand lower to Straddle 1/2 Lever | Y113: =IF(ISNUMBER(SEARCH($B$10,Z113)),MAX($Y$8:Y112)+1,0) -> 105 | Z113: H/stand lower to Straddle 1/2 Lever | AC113: =IFERROR(VLOOKUP(ROWS($Z$9:Z113),$Y$9:$Z$163,2,0),"") -> H/stand lower to Straddle 1/2 Lever | AG113: =IF(ISNUMBER(SEARCH($B$11,AH113)),MAX($AG$8:AG112)+1,0) -> 105 | AH113: H/stand lower to Straddle 1/2 Lever | AK113: =IFERROR(VLOOKUP(ROWS($AH$9:AH113),$AG$9:$AH$163,2,0),"") -> H/stand lower to Straddle 1/2 Lever | AO113: =IF(ISNUMBER(SEARCH($B$12,AP113)),MAX($AO$8:AO112)+1,0) -> 105 | AP113: H/stand lower to Straddle 1/2 Lever | AS113: =IFERROR(VLOOKUP(ROWS($AP$9:AP113),$AO$9:$AP$163,2,0),"") -> H/stand lower to Straddle 1/2 Lever | AW113: =IF(ISNUMBER(SEARCH($B$13,AX113)),MAX($AW$8:AW112)+1,0) -> 105 | AX113: H/stand lower to Straddle 1/2 Lever | BA113: =IFERROR(VLOOKUP(ROWS($AX$9:AX113),$AW$9:$AX$163,2,0),"") -> H/stand lower to Straddle 1/2 Lever | BE113: =IF(ISNUMBER(SEARCH($B$14,BF113)),MAX($BE$8:BE112)+1,0) -> 105 | BF113: H/stand lower to Straddle 1/2 Lever | BI113: =IFERROR(VLOOKUP(ROWS($BF$9:BF113),$BE$9:$BF$163,2,0),"") -> H/stand lower to Straddle 1/2 Lever | BM113: =IF(ISNUMBER(SEARCH($B$15,BN113)),MAX($BM$8:BM112)+1,0) -> 105 | BN113: H/stand lower to Straddle 1/2 Lever | BQ113: =IFERROR(VLOOKUP(ROWS($BN$9:BN113),$BM$9:$BN$163,2,0),"") -> H/stand lower to Straddle 1/2 Lever | BU113: =IF(ISNUMBER(SEARCH($B$16,BV113)),MAX($BU$8:BU112)+1,0) -> 105 | BV113: H/stand lower to Straddle 1/2 Lever | BY113: =IFERROR(VLOOKUP(ROWS($BV$9:BV113),$BU$9:$BV$163,2,0),"") -> H/stand lower to Straddle 1/2 Lever | CC113: =IF(ISNUMBER(SEARCH($B$17,CD113)),MAX($CC$8:CC112)+1,0) -> 105 | CD113: H/stand lower to Straddle 1/2 Lever | CG113: =IFERROR(VLOOKUP(ROWS($CD$9:CD113),$CC$9:$CD$163,2,0),"") -> H/stand lower to Straddle 1/2 Lever | CK113: =IF(ISNUMBER(SEARCH($B$18,CL113)),MAX($CK$8:CK112)+1,0) -> 105 | CL113: H/stand lower to Straddle 1/2 Lever | CO113: =IFERROR(VLOOKUP(ROWS($CL$9:CL113),$CK$9:$CL$163,2,0),"") -> H/stand lower to Straddle 1/2 Lever
Q114: =IF(ISNUMBER(SEARCH($B$9,R114)),MAX($Q$8:Q113)+1,0) -> 106 | R114: Chest Roll to Bent Arms Handstand | U114: =IFERROR(VLOOKUP(ROWS($R$9:R114),$Q$9:$R$163,2,0),"") -> Chest Roll to Bent Arms Handstand | Y114: =IF(ISNUMBER(SEARCH($B$10,Z114)),MAX($Y$8:Y113)+1,0) -> 106 | Z114: Chest Roll to Bent Arms Handstand | AC114: =IFERROR(VLOOKUP(ROWS($Z$9:Z114),$Y$9:$Z$163,2,0),"") -> Chest Roll to Bent Arms Handstand | AG114: =IF(ISNUMBER(SEARCH($B$11,AH114)),MAX($AG$8:AG113)+1,0) -> 106 | AH114: Chest Roll to Bent Arms Handstand | AK114: =IFERROR(VLOOKUP(ROWS($AH$9:AH114),$AG$9:$AH$163,2,0),"") -> Chest Roll to Bent Arms Handstand | AO114: =IF(ISNUMBER(SEARCH($B$12,AP114)),MAX($AO$8:AO113)+1,0) -> 106 | AP114: Chest Roll to Bent Arms Handstand | AS114: =IFERROR(VLOOKUP(ROWS($AP$9:AP114),$AO$9:$AP$163,2,0),"") -> Chest Roll to Bent Arms Handstand | AW114: =IF(ISNUMBER(SEARCH($B$13,AX114)),MAX($AW$8:AW113)+1,0) -> 106 | AX114: Chest Roll to Bent Arms Handstand | BA114: =IFERROR(VLOOKUP(ROWS($AX$9:AX114),$AW$9:$AX$163,2,0),"") -> Chest Roll to Bent Arms Handstand | BE114: =IF(ISNUMBER(SEARCH($B$14,BF114)),MAX($BE$8:BE113)+1,0) -> 106 | BF114: Chest Roll to Bent Arms Handstand | BI114: =IFERROR(VLOOKUP(ROWS($BF$9:BF114),$BE$9:$BF$163,2,0),"") -> Chest Roll to Bent Arms Handstand | BM114: =IF(ISNUMBER(SEARCH($B$15,BN114)),MAX($BM$8:BM113)+1,0) -> 106 | BN114: Chest Roll to Bent Arms Handstand | BQ114: =IFERROR(VLOOKUP(ROWS($BN$9:BN114),$BM$9:$BN$163,2,0),"") -> Chest Roll to Bent Arms Handstand | BU114: =IF(ISNUMBER(SEARCH($B$16,BV114)),MAX($BU$8:BU113)+1,0) -> 106 | BV114: Chest Roll to Bent Arms Handstand | BY114: =IFERROR(VLOOKUP(ROWS($BV$9:BV114),$BU$9:$BV$163,2,0),"") -> Chest Roll to Bent Arms Handstand | CC114: =IF(ISNUMBER(SEARCH($B$17,CD114)),MAX($CC$8:CC113)+1,0) -> 106 | CD114: Chest Roll to Bent Arms Handstand | CG114: =IFERROR(VLOOKUP(ROWS($CD$9:CD114),$CC$9:$CD$163,2,0),"") -> Chest Roll to Bent Arms Handstand | CK114: =IF(ISNUMBER(SEARCH($B$18,CL114)),MAX($CK$8:CK113)+1,0) -> 106 | CL114: Chest Roll to Bent Arms Handstand | CO114: =IFERROR(VLOOKUP(ROWS($CL$9:CL114),$CK$9:$CL$163,2,0),"") -> Chest Roll to Bent Arms Handstand
Q115: =IF(ISNUMBER(SEARCH($B$9,R115)),MAX($Q$8:Q114)+1,0) -> 107 | R115: H/stand FR piked exit (straight arms) | U115: =IFERROR(VLOOKUP(ROWS($R$9:R115),$Q$9:$R$163,2,0),"") -> H/stand FR piked exit (straight arms) | Y115: =IF(ISNUMBER(SEARCH($B$10,Z115)),MAX($Y$8:Y114)+1,0) -> 107 | Z115: H/stand FR piked exit (straight arms) | AC115: =IFERROR(VLOOKUP(ROWS($Z$9:Z115),$Y$9:$Z$163,2,0),"") -> H/stand FR piked exit (straight arms) | AG115: =IF(ISNUMBER(SEARCH($B$11,AH115)),MAX($AG$8:AG114)+1,0) -> 107 | AH115: H/stand FR piked exit (straight arms) | AK115: =IFERROR(VLOOKUP(ROWS($AH$9:AH115),$AG$9:$AH$163,2,0),"") -> H/stand FR piked exit (straight arms) | AO115: =IF(ISNUMBER(SEARCH($B$12,AP115)),MAX($AO$8:AO114)+1,0) -> 107 | AP115: H/stand FR piked exit (straight arms) | AS115: =IFERROR(VLOOKUP(ROWS($AP$9:AP115),$AO$9:$AP$163,2,0),"") -> H/stand FR piked exit (straight arms) | AW115: =IF(ISNUMBER(SEARCH($B$13,AX115)),MAX($AW$8:AW114)+1,0) -> 107 | AX115: H/stand FR piked exit (straight arms) | BA115: =IFERROR(VLOOKUP(ROWS($AX$9:AX115),$AW$9:$AX$163,2,0),"") -> H/stand FR piked exit (straight arms) | BE115: =IF(ISNUMBER(SEARCH($B$14,BF115)),MAX($BE$8:BE114)+1,0) -> 107 | BF115: H/stand FR piked exit (straight arms) | BI115: =IFERROR(VLOOKUP(ROWS($BF$9:BF115),$BE$9:$BF$163,2,0),"") -> H/stand FR piked exit (straight arms) | BM115: =IF(ISNUMBER(SEARCH($B$15,BN115)),MAX($BM$8:BM114)+1,0) -> 107 | BN115: H/stand FR piked exit (straight arms) | BQ115: =IFERROR(VLOOKUP(ROWS($BN$9:BN115),$BM$9:$BN$163,2,0),"") -> H/stand FR piked exit (straight arms) | BU115: =IF(ISNUMBER(SEARCH($B$16,BV115)),MAX($BU$8:BU114)+1,0) -> 107 | BV115: H/stand FR piked exit (straight arms) | BY115: =IFERROR(VLOOKUP(ROWS($BV$9:BV115),$BU$9:$BV$163,2,0),"") -> H/stand FR piked exit (straight arms) | CC115: =IF(ISNUMBER(SEARCH($B$17,CD115)),MAX($CC$8:CC114)+1,0) -> 107 | CD115: H/stand FR piked exit (straight arms) | CG115: =IFERROR(VLOOKUP(ROWS($CD$9:CD115),$CC$9:$CD$163,2,0),"") -> H/stand FR piked exit (straight arms) | CK115: =IF(ISNUMBER(SEARCH($B$18,CL115)),MAX($CK$8:CK114)+1,0) -> 107 | CL115: H/stand FR piked exit (straight arms) | CO115: =IFERROR(VLOOKUP(ROWS($CL$9:CL115),$CK$9:$CL$163,2,0),"") -> H/stand FR piked exit (straight arms)
Q116: =IF(ISNUMBER(SEARCH($B$9,R116)),MAX($Q$8:Q115)+1,0) -> 108 | R116: B Roll to h/stand (straight arms) | U116: =IFERROR(VLOOKUP(ROWS($R$9:R116),$Q$9:$R$163,2,0),"") -> B Roll to h/stand (straight arms) | Y116: =IF(ISNUMBER(SEARCH($B$10,Z116)),MAX($Y$8:Y115)+1,0) -> 108 | Z116: B Roll to h/stand (straight arms) | AC116: =IFERROR(VLOOKUP(ROWS($Z$9:Z116),$Y$9:$Z$163,2,0),"") -> B Roll to h/stand (straight arms) | AG116: =IF(ISNUMBER(SEARCH($B$11,AH116)),MAX($AG$8:AG115)+1,0) -> 108 | AH116: B Roll to h/stand (straight arms) | AK116: =IFERROR(VLOOKUP(ROWS($AH$9:AH116),$AG$9:$AH$163,2,0),"") -> B Roll to h/stand (straight arms) | AO116: =IF(ISNUMBER(SEARCH($B$12,AP116)),MAX($AO$8:AO115)+1,0) -> 108 | AP116: B Roll to h/stand (straight arms) | AS116: =IFERROR(VLOOKUP(ROWS($AP$9:AP116),$AO$9:$AP$163,2,0),"") -> B Roll to h/stand (straight arms) | AW116: =IF(ISNUMBER(SEARCH($B$13,AX116)),MAX($AW$8:AW115)+1,0) -> 108 | AX116: B Roll to h/stand (straight arms) | BA116: =IFERROR(VLOOKUP(ROWS($AX$9:AX116),$AW$9:$AX$163,2,0),"") -> B Roll to h/stand (straight arms) | BE116: =IF(ISNUMBER(SEARCH($B$14,BF116)),MAX($BE$8:BE115)+1,0) -> 108 | BF116: B Roll to h/stand (straight arms) | BI116: =IFERROR(VLOOKUP(ROWS($BF$9:BF116),$BE$9:$BF$163,2,0),"") -> B Roll to h/stand (straight arms) | BM116: =IF(ISNUMBER(SEARCH($B$15,BN116)),MAX($BM$8:BM115)+1,0) -> 108 | BN116: B Roll to h/stand (straight arms) | BQ116: =IFERROR(VLOOKUP(ROWS($BN$9:BN116),$BM$9:$BN$163,2,0),"") -> B Roll to h/stand (straight arms) | BU116: =IF(ISNUMBER(SEARCH($B$16,BV116)),MAX($BU$8:BU115)+1,0) -> 108 | BV116: B Roll to h/stand (straight arms) | BY116: =IFERROR(VLOOKUP(ROWS($BV$9:BV116),$BU$9:$BV$163,2,0),"") -> B Roll to h/stand (straight arms) | CC116: =IF(ISNUMBER(SEARCH($B$17,CD116)),MAX($CC$8:CC115)+1,0) -> 108 | CD116: B Roll to h/stand (straight arms) | CG116: =IFERROR(VLOOKUP(ROWS($CD$9:CD116),$CC$9:$CD$163,2,0),"") -> B Roll to h/stand (straight arms) | CK116: =IF(ISNUMBER(SEARCH($B$18,CL116)),MAX($CK$8:CK115)+1,0) -> 108 | CL116: B Roll to h/stand (straight arms) | CO116: =IFERROR(VLOOKUP(ROWS($CL$9:CL116),$CK$9:$CL$163,2,0),"") -> B Roll to h/stand (straight arms)
Q117: =IF(ISNUMBER(SEARCH($B$9,R117)),MAX($Q$8:Q116)+1,0) -> 109 | R117: Handstand 1½ pirouette | U117: =IFERROR(VLOOKUP(ROWS($R$9:R117),$Q$9:$R$163,2,0),"") -> Handstand 1½ pirouette | Y117: =IF(ISNUMBER(SEARCH($B$10,Z117)),MAX($Y$8:Y116)+1,0) -> 109 | Z117: Handstand 1½ pirouette | AC117: =IFERROR(VLOOKUP(ROWS($Z$9:Z117),$Y$9:$Z$163,2,0),"") -> Handstand 1½ pirouette | AG117: =IF(ISNUMBER(SEARCH($B$11,AH117)),MAX($AG$8:AG116)+1,0) -> 109 | AH117: Handstand 1½ pirouette | AK117: =IFERROR(VLOOKUP(ROWS($AH$9:AH117),$AG$9:$AH$163,2,0),"") -> Handstand 1½ pirouette | AO117: =IF(ISNUMBER(SEARCH($B$12,AP117)),MAX($AO$8:AO116)+1,0) -> 109 | AP117: Handstand 1½ pirouette | AS117: =IFERROR(VLOOKUP(ROWS($AP$9:AP117),$AO$9:$AP$163,2,0),"") -> Handstand 1½ pirouette | AW117: =IF(ISNUMBER(SEARCH($B$13,AX117)),MAX($AW$8:AW116)+1,0) -> 109 | AX117: Handstand 1½ pirouette | BA117: =IFERROR(VLOOKUP(ROWS($AX$9:AX117),$AW$9:$AX$163,2,0),"") -> Handstand 1½ pirouette | BE117: =IF(ISNUMBER(SEARCH($B$14,BF117)),MAX($BE$8:BE116)+1,0) -> 109 | BF117: Handstand 1½ pirouette | BI117: =IFERROR(VLOOKUP(ROWS($BF$9:BF117),$BE$9:$BF$163,2,0),"") -> Handstand 1½ pirouette | BM117: =IF(ISNUMBER(SEARCH($B$15,BN117)),MAX($BM$8:BM116)+1,0) -> 109 | BN117: Handstand 1½ pirouette | BQ117: =IFERROR(VLOOKUP(ROWS($BN$9:BN117),$BM$9:$BN$163,2,0),"") -> Handstand 1½ pirouette | BU117: =IF(ISNUMBER(SEARCH($B$16,BV117)),MAX($BU$8:BU116)+1,0) -> 109 | BV117: Handstand 1½ pirouette | BY117: =IFERROR(VLOOKUP(ROWS($BV$9:BV117),$BU$9:$BV$163,2,0),"") -> Handstand 1½ pirouette | CC117: =IF(ISNUMBER(SEARCH($B$17,CD117)),MAX($CC$8:CC116)+1,0) -> 109 | CD117: Handstand 1½ pirouette | CG117: =IFERROR(VLOOKUP(ROWS($CD$9:CD117),$CC$9:$CD$163,2,0),"") -> Handstand 1½ pirouette | CK117: =IF(ISNUMBER(SEARCH($B$18,CL117)),MAX($CK$8:CK116)+1,0) -> 109 | CL117: Handstand 1½ pirouette | CO117: =IFERROR(VLOOKUP(ROWS($CL$9:CL117),$CK$9:$CL$163,2,0),"") -> Handstand 1½ pirouette
Q118: =IF(ISNUMBER(SEARCH($B$9,R118)),MAX($Q$8:Q117)+1,0) -> 110 | R118: Tic toc | U118: =IFERROR(VLOOKUP(ROWS($R$9:R118),$Q$9:$R$163,2,0),"") -> Tic toc | Y118: =IF(ISNUMBER(SEARCH($B$10,Z118)),MAX($Y$8:Y117)+1,0) -> 110 | Z118: Tic toc | AC118: =IFERROR(VLOOKUP(ROWS($Z$9:Z118),$Y$9:$Z$163,2,0),"") -> Tic toc | AG118: =IF(ISNUMBER(SEARCH($B$11,AH118)),MAX($AG$8:AG117)+1,0) -> 110 | AH118: Tic toc | AK118: =IFERROR(VLOOKUP(ROWS($AH$9:AH118),$AG$9:$AH$163,2,0),"") -> Tic toc | AO118: =IF(ISNUMBER(SEARCH($B$12,AP118)),MAX($AO$8:AO117)+1,0) -> 110 | AP118: Tic toc | AS118: =IFERROR(VLOOKUP(ROWS($AP$9:AP118),$AO$9:$AP$163,2,0),"") -> Tic toc | AW118: =IF(ISNUMBER(SEARCH($B$13,AX118)),MAX($AW$8:AW117)+1,0) -> 110 | AX118: Tic toc | BA118: =IFERROR(VLOOKUP(ROWS($AX$9:AX118),$AW$9:$AX$163,2,0),"") -> Tic toc | BE118: =IF(ISNUMBER(SEARCH($B$14,BF118)),MAX($BE$8:BE117)+1,0) -> 110 | BF118: Tic toc | BI118: =IFERROR(VLOOKUP(ROWS($BF$9:BF118),$BE$9:$BF$163,2,0),"") -> Tic toc | BM118: =IF(ISNUMBER(SEARCH($B$15,BN118)),MAX($BM$8:BM117)+1,0) -> 110 | BN118: Tic toc | BQ118: =IFERROR(VLOOKUP(ROWS($BN$9:BN118),$BM$9:$BN$163,2,0),"") -> Tic toc | BU118: =IF(ISNUMBER(SEARCH($B$16,BV118)),MAX($BU$8:BU117)+1,0) -> 110 | BV118: Tic toc | BY118: =IFERROR(VLOOKUP(ROWS($BV$9:BV118),$BU$9:$BV$163,2,0),"") -> Tic toc | CC118: =IF(ISNUMBER(SEARCH($B$17,CD118)),MAX($CC$8:CC117)+1,0) -> 110 | CD118: Tic toc | CG118: =IFERROR(VLOOKUP(ROWS($CD$9:CD118),$CC$9:$CD$163,2,0),"") -> Tic toc | CK118: =IF(ISNUMBER(SEARCH($B$18,CL118)),MAX($CK$8:CK117)+1,0) -> 110 | CL118: Tic toc | CO118: =IFERROR(VLOOKUP(ROWS($CL$9:CL118),$CK$9:$CL$163,2,0),"") -> Tic toc
Q119: =IF(ISNUMBER(SEARCH($B$9,R119)),MAX($Q$8:Q118)+1,0) -> 111 | R119: Flyspring | U119: =IFERROR(VLOOKUP(ROWS($R$9:R119),$Q$9:$R$163,2,0),"") -> Flyspring | Y119: =IF(ISNUMBER(SEARCH($B$10,Z119)),MAX($Y$8:Y118)+1,0) -> 111 | Z119: Flyspring | AC119: =IFERROR(VLOOKUP(ROWS($Z$9:Z119),$Y$9:$Z$163,2,0),"") -> Flyspring | AG119: =IF(ISNUMBER(SEARCH($B$11,AH119)),MAX($AG$8:AG118)+1,0) -> 111 | AH119: Flyspring | AK119: =IFERROR(VLOOKUP(ROWS($AH$9:AH119),$AG$9:$AH$163,2,0),"") -> Flyspring | AO119: =IF(ISNUMBER(SEARCH($B$12,AP119)),MAX($AO$8:AO118)+1,0) -> 111 | AP119: Flyspring | AS119: =IFERROR(VLOOKUP(ROWS($AP$9:AP119),$AO$9:$AP$163,2,0),"") -> Flyspring | AW119: =IF(ISNUMBER(SEARCH($B$13,AX119)),MAX($AW$8:AW118)+1,0) -> 111 | AX119: Flyspring | BA119: =IFERROR(VLOOKUP(ROWS($AX$9:AX119),$AW$9:$AX$163,2,0),"") -> Flyspring | BE119: =IF(ISNUMBER(SEARCH($B$14,BF119)),MAX($BE$8:BE118)+1,0) -> 111 | BF119: Flyspring | BI119: =IFERROR(VLOOKUP(ROWS($BF$9:BF119),$BE$9:$BF$163,2,0),"") -> Flyspring | BM119: =IF(ISNUMBER(SEARCH($B$15,BN119)),MAX($BM$8:BM118)+1,0) -> 111 | BN119: Flyspring | BQ119: =IFERROR(VLOOKUP(ROWS($BN$9:BN119),$BM$9:$BN$163,2,0),"") -> Flyspring | BU119: =IF(ISNUMBER(SEARCH($B$16,BV119)),MAX($BU$8:BU118)+1,0) -> 111 | BV119: Flyspring | BY119: =IFERROR(VLOOKUP(ROWS($BV$9:BV119),$BU$9:$BV$163,2,0),"") -> Flyspring | CC119: =IF(ISNUMBER(SEARCH($B$17,CD119)),MAX($CC$8:CC118)+1,0) -> 111 | CD119: Flyspring | CG119: =IFERROR(VLOOKUP(ROWS($CD$9:CD119),$CC$9:$CD$163,2,0),"") -> Flyspring | CK119: =IF(ISNUMBER(SEARCH($B$18,CL119)),MAX($CK$8:CK118)+1,0) -> 111 | CL119: Flyspring | CO119: =IFERROR(VLOOKUP(ROWS($CL$9:CL119),$CK$9:$CL$163,2,0),"") -> Flyspring
Q120: =IF(ISNUMBER(SEARCH($B$9,R120)),MAX($Q$8:Q119)+1,0) -> 112 | R120: Tucked Front Salto | U120: =IFERROR(VLOOKUP(ROWS($R$9:R120),$Q$9:$R$163,2,0),"") -> Tucked Front Salto | Y120: =IF(ISNUMBER(SEARCH($B$10,Z120)),MAX($Y$8:Y119)+1,0) -> 112 | Z120: Tucked Front Salto | AC120: =IFERROR(VLOOKUP(ROWS($Z$9:Z120),$Y$9:$Z$163,2,0),"") -> Tucked Front Salto | AG120: =IF(ISNUMBER(SEARCH($B$11,AH120)),MAX($AG$8:AG119)+1,0) -> 112 | AH120: Tucked Front Salto | AK120: =IFERROR(VLOOKUP(ROWS($AH$9:AH120),$AG$9:$AH$163,2,0),"") -> Tucked Front Salto | AO120: =IF(ISNUMBER(SEARCH($B$12,AP120)),MAX($AO$8:AO119)+1,0) -> 112 | AP120: Tucked Front Salto | AS120: =IFERROR(VLOOKUP(ROWS($AP$9:AP120),$AO$9:$AP$163,2,0),"") -> Tucked Front Salto | AW120: =IF(ISNUMBER(SEARCH($B$13,AX120)),MAX($AW$8:AW119)+1,0) -> 112 | AX120: Tucked Front Salto | BA120: =IFERROR(VLOOKUP(ROWS($AX$9:AX120),$AW$9:$AX$163,2,0),"") -> Tucked Front Salto | BE120: =IF(ISNUMBER(SEARCH($B$14,BF120)),MAX($BE$8:BE119)+1,0) -> 112 | BF120: Tucked Front Salto | BI120: =IFERROR(VLOOKUP(ROWS($BF$9:BF120),$BE$9:$BF$163,2,0),"") -> Tucked Front Salto | BM120: =IF(ISNUMBER(SEARCH($B$15,BN120)),MAX($BM$8:BM119)+1,0) -> 112 | BN120: Tucked Front Salto | BQ120: =IFERROR(VLOOKUP(ROWS($BN$9:BN120),$BM$9:$BN$163,2,0),"") -> Tucked Front Salto | BU120: =IF(ISNUMBER(SEARCH($B$16,BV120)),MAX($BU$8:BU119)+1,0) -> 112 | BV120: Tucked Front Salto | BY120: =IFERROR(VLOOKUP(ROWS($BV$9:BV120),$BU$9:$BV$163,2,0),"") -> Tucked Front Salto | CC120: =IF(ISNUMBER(SEARCH($B$17,CD120)),MAX($CC$8:CC119)+1,0) -> 112 | CD120: Tucked Front Salto | CG120: =IFERROR(VLOOKUP(ROWS($CD$9:CD120),$CC$9:$CD$163,2,0),"") -> Tucked Front Salto | CK120: =IF(ISNUMBER(SEARCH($B$18,CL120)),MAX($CK$8:CK119)+1,0) -> 112 | CL120: Tucked Front Salto | CO120: =IFERROR(VLOOKUP(ROWS($CL$9:CL120),$CK$9:$CL$163,2,0),"") -> Tucked Front Salto
Q121: =IF(ISNUMBER(SEARCH($B$9,R121)),MAX($Q$8:Q120)+1,0) -> 113 | R121: Tucked Back Salto FS | U121: =IFERROR(VLOOKUP(ROWS($R$9:R121),$Q$9:$R$163,2,0),"") -> Tucked Back Salto FS | Y121: =IF(ISNUMBER(SEARCH($B$10,Z121)),MAX($Y$8:Y120)+1,0) -> 113 | Z121: Tucked Back Salto FS | AC121: =IFERROR(VLOOKUP(ROWS($Z$9:Z121),$Y$9:$Z$163,2,0),"") -> Tucked Back Salto FS | AG121: =IF(ISNUMBER(SEARCH($B$11,AH121)),MAX($AG$8:AG120)+1,0) -> 113 | AH121: Tucked Back Salto FS | AK121: =IFERROR(VLOOKUP(ROWS($AH$9:AH121),$AG$9:$AH$163,2,0),"") -> Tucked Back Salto FS | AO121: =IF(ISNUMBER(SEARCH($B$12,AP121)),MAX($AO$8:AO120)+1,0) -> 113 | AP121: Tucked Back Salto FS | AS121: =IFERROR(VLOOKUP(ROWS($AP$9:AP121),$AO$9:$AP$163,2,0),"") -> Tucked Back Salto FS | AW121: =IF(ISNUMBER(SEARCH($B$13,AX121)),MAX($AW$8:AW120)+1,0) -> 113 | AX121: Tucked Back Salto FS | BA121: =IFERROR(VLOOKUP(ROWS($AX$9:AX121),$AW$9:$AX$163,2,0),"") -> Tucked Back Salto FS | BE121: =IF(ISNUMBER(SEARCH($B$14,BF121)),MAX($BE$8:BE120)+1,0) -> 113 | BF121: Tucked Back Salto FS | BI121: =IFERROR(VLOOKUP(ROWS($BF$9:BF121),$BE$9:$BF$163,2,0),"") -> Tucked Back Salto FS | BM121: =IF(ISNUMBER(SEARCH($B$15,BN121)),MAX($BM$8:BM120)+1,0) -> 113 | BN121: Tucked Back Salto FS | BQ121: =IFERROR(VLOOKUP(ROWS($BN$9:BN121),$BM$9:$BN$163,2,0),"") -> Tucked Back Salto FS | BU121: =IF(ISNUMBER(SEARCH($B$16,BV121)),MAX($BU$8:BU120)+1,0) -> 113 | BV121: Tucked Back Salto FS | BY121: =IFERROR(VLOOKUP(ROWS($BV$9:BV121),$BU$9:$BV$163,2,0),"") -> Tucked Back Salto FS | CC121: =IF(ISNUMBER(SEARCH($B$17,CD121)),MAX($CC$8:CC120)+1,0) -> 113 | CD121: Tucked Back Salto FS | CG121: =IFERROR(VLOOKUP(ROWS($CD$9:CD121),$CC$9:$CD$163,2,0),"") -> Tucked Back Salto FS | CK121: =IF(ISNUMBER(SEARCH($B$18,CL121)),MAX($CK$8:CK120)+1,0) -> 113 | CL121: Tucked Back Salto FS | CO121: =IFERROR(VLOOKUP(ROWS($CL$9:CL121),$CK$9:$CL$163,2,0),"") -> Tucked Back Salto FS
Q122: =IF(ISNUMBER(SEARCH($B$9,R122)),MAX($Q$8:Q121)+1,0) -> 114 | R122: Free Cartwheel | U122: =IFERROR(VLOOKUP(ROWS($R$9:R122),$Q$9:$R$163,2,0),"") -> Free Cartwheel | Y122: =IF(ISNUMBER(SEARCH($B$10,Z122)),MAX($Y$8:Y121)+1,0) -> 114 | Z122: Free Cartwheel | AC122: =IFERROR(VLOOKUP(ROWS($Z$9:Z122),$Y$9:$Z$163,2,0),"") -> Free Cartwheel | AG122: =IF(ISNUMBER(SEARCH($B$11,AH122)),MAX($AG$8:AG121)+1,0) -> 114 | AH122: Free Cartwheel | AK122: =IFERROR(VLOOKUP(ROWS($AH$9:AH122),$AG$9:$AH$163,2,0),"") -> Free Cartwheel | AO122: =IF(ISNUMBER(SEARCH($B$12,AP122)),MAX($AO$8:AO121)+1,0) -> 114 | AP122: Free Cartwheel | AS122: =IFERROR(VLOOKUP(ROWS($AP$9:AP122),$AO$9:$AP$163,2,0),"") -> Free Cartwheel | AW122: =IF(ISNUMBER(SEARCH($B$13,AX122)),MAX($AW$8:AW121)+1,0) -> 114 | AX122: Free Cartwheel | BA122: =IFERROR(VLOOKUP(ROWS($AX$9:AX122),$AW$9:$AX$163,2,0),"") -> Free Cartwheel | BE122: =IF(ISNUMBER(SEARCH($B$14,BF122)),MAX($BE$8:BE121)+1,0) -> 114 | BF122: Free Cartwheel | BI122: =IFERROR(VLOOKUP(ROWS($BF$9:BF122),$BE$9:$BF$163,2,0),"") -> Free Cartwheel | BM122: =IF(ISNUMBER(SEARCH($B$15,BN122)),MAX($BM$8:BM121)+1,0) -> 114 | BN122: Free Cartwheel | BQ122: =IFERROR(VLOOKUP(ROWS($BN$9:BN122),$BM$9:$BN$163,2,0),"") -> Free Cartwheel | BU122: =IF(ISNUMBER(SEARCH($B$16,BV122)),MAX($BU$8:BU121)+1,0) -> 114 | BV122: Free Cartwheel | BY122: =IFERROR(VLOOKUP(ROWS($BV$9:BV122),$BU$9:$BV$163,2,0),"") -> Free Cartwheel | CC122: =IF(ISNUMBER(SEARCH($B$17,CD122)),MAX($CC$8:CC121)+1,0) -> 114 | CD122: Free Cartwheel | CG122: =IFERROR(VLOOKUP(ROWS($CD$9:CD122),$CC$9:$CD$163,2,0),"") -> Free Cartwheel | CK122: =IF(ISNUMBER(SEARCH($B$18,CL122)),MAX($CK$8:CK121)+1,0) -> 114 | CL122: Free Cartwheel | CO122: =IFERROR(VLOOKUP(ROWS($CL$9:CL122),$CK$9:$CL$163,2,0),"") -> Free Cartwheel
Q123: =IF(ISNUMBER(SEARCH($B$9,R123)),MAX($Q$8:Q122)+1,0) -> 115 | R123: Free Cartwheel Flick | U123: =IFERROR(VLOOKUP(ROWS($R$9:R123),$Q$9:$R$163,2,0),"") -> Free Cartwheel Flick | Y123: =IF(ISNUMBER(SEARCH($B$10,Z123)),MAX($Y$8:Y122)+1,0) -> 115 | Z123: Free Cartwheel Flick | AC123: =IFERROR(VLOOKUP(ROWS($Z$9:Z123),$Y$9:$Z$163,2,0),"") -> Free Cartwheel Flick | AG123: =IF(ISNUMBER(SEARCH($B$11,AH123)),MAX($AG$8:AG122)+1,0) -> 115 | AH123: Free Cartwheel Flick | AK123: =IFERROR(VLOOKUP(ROWS($AH$9:AH123),$AG$9:$AH$163,2,0),"") -> Free Cartwheel Flick | AO123: =IF(ISNUMBER(SEARCH($B$12,AP123)),MAX($AO$8:AO122)+1,0) -> 115 | AP123: Free Cartwheel Flick | AS123: =IFERROR(VLOOKUP(ROWS($AP$9:AP123),$AO$9:$AP$163,2,0),"") -> Free Cartwheel Flick | AW123: =IF(ISNUMBER(SEARCH($B$13,AX123)),MAX($AW$8:AW122)+1,0) -> 115 | AX123: Free Cartwheel Flick | BA123: =IFERROR(VLOOKUP(ROWS($AX$9:AX123),$AW$9:$AX$163,2,0),"") -> Free Cartwheel Flick | BE123: =IF(ISNUMBER(SEARCH($B$14,BF123)),MAX($BE$8:BE122)+1,0) -> 115 | BF123: Free Cartwheel Flick | BI123: =IFERROR(VLOOKUP(ROWS($BF$9:BF123),$BE$9:$BF$163,2,0),"") -> Free Cartwheel Flick | BM123: =IF(ISNUMBER(SEARCH($B$15,BN123)),MAX($BM$8:BM122)+1,0) -> 115 | BN123: Free Cartwheel Flick | BQ123: =IFERROR(VLOOKUP(ROWS($BN$9:BN123),$BM$9:$BN$163,2,0),"") -> Free Cartwheel Flick | BU123: =IF(ISNUMBER(SEARCH($B$16,BV123)),MAX($BU$8:BU122)+1,0) -> 115 | BV123: Free Cartwheel Flick | BY123: =IFERROR(VLOOKUP(ROWS($BV$9:BV123),$BU$9:$BV$163,2,0),"") -> Free Cartwheel Flick | CC123: =IF(ISNUMBER(SEARCH($B$17,CD123)),MAX($CC$8:CC122)+1,0) -> 115 | CD123: Free Cartwheel Flick | CG123: =IFERROR(VLOOKUP(ROWS($CD$9:CD123),$CC$9:$CD$163,2,0),"") -> Free Cartwheel Flick | CK123: =IF(ISNUMBER(SEARCH($B$18,CL123)),MAX($CK$8:CK122)+1,0) -> 115 | CL123: Free Cartwheel Flick | CO123: =IFERROR(VLOOKUP(ROWS($CL$9:CL123),$CK$9:$CL$163,2,0),"") -> Free Cartwheel Flick
Q124: =IF(ISNUMBER(SEARCH($B$9,R124)),MAX($Q$8:Q123)+1,0) -> 116 | R124: Front Salto to 1 R/O | U124: =IFERROR(VLOOKUP(ROWS($R$9:R124),$Q$9:$R$163,2,0),"") -> Front Salto to 1 R/O | Y124: =IF(ISNUMBER(SEARCH($B$10,Z124)),MAX($Y$8:Y123)+1,0) -> 116 | Z124: Front Salto to 1 R/O | AC124: =IFERROR(VLOOKUP(ROWS($Z$9:Z124),$Y$9:$Z$163,2,0),"") -> Front Salto to 1 R/O | AG124: =IF(ISNUMBER(SEARCH($B$11,AH124)),MAX($AG$8:AG123)+1,0) -> 116 | AH124: Front Salto to 1 R/O | AK124: =IFERROR(VLOOKUP(ROWS($AH$9:AH124),$AG$9:$AH$163,2,0),"") -> Front Salto to 1 R/O | AO124: =IF(ISNUMBER(SEARCH($B$12,AP124)),MAX($AO$8:AO123)+1,0) -> 116 | AP124: Front Salto to 1 R/O | AS124: =IFERROR(VLOOKUP(ROWS($AP$9:AP124),$AO$9:$AP$163,2,0),"") -> Front Salto to 1 R/O | AW124: =IF(ISNUMBER(SEARCH($B$13,AX124)),MAX($AW$8:AW123)+1,0) -> 116 | AX124: Front Salto to 1 R/O | BA124: =IFERROR(VLOOKUP(ROWS($AX$9:AX124),$AW$9:$AX$163,2,0),"") -> Front Salto to 1 R/O | BE124: =IF(ISNUMBER(SEARCH($B$14,BF124)),MAX($BE$8:BE123)+1,0) -> 116 | BF124: Front Salto to 1 R/O | BI124: =IFERROR(VLOOKUP(ROWS($BF$9:BF124),$BE$9:$BF$163,2,0),"") -> Front Salto to 1 R/O | BM124: =IF(ISNUMBER(SEARCH($B$15,BN124)),MAX($BM$8:BM123)+1,0) -> 116 | BN124: Front Salto to 1 R/O | BQ124: =IFERROR(VLOOKUP(ROWS($BN$9:BN124),$BM$9:$BN$163,2,0),"") -> Front Salto to 1 R/O | BU124: =IF(ISNUMBER(SEARCH($B$16,BV124)),MAX($BU$8:BU123)+1,0) -> 116 | BV124: Front Salto to 1 R/O | BY124: =IFERROR(VLOOKUP(ROWS($BV$9:BV124),$BU$9:$BV$163,2,0),"") -> Front Salto to 1 R/O | CC124: =IF(ISNUMBER(SEARCH($B$17,CD124)),MAX($CC$8:CC123)+1,0) -> 116 | CD124: Front Salto to 1 R/O | CG124: =IFERROR(VLOOKUP(ROWS($CD$9:CD124),$CC$9:$CD$163,2,0),"") -> Front Salto to 1 R/O | CK124: =IF(ISNUMBER(SEARCH($B$18,CL124)),MAX($CK$8:CK123)+1,0) -> 116 | CL124: Front Salto to 1 R/O | CO124: =IFERROR(VLOOKUP(ROWS($CL$9:CL124),$CK$9:$CL$163,2,0),"") -> Front Salto to 1 R/O
Q125: =IF(ISNUMBER(SEARCH($B$9,R125)),MAX($Q$8:Q124)+1,0) -> 117 | R125: Front Salto, R/O, flic | U125: =IFERROR(VLOOKUP(ROWS($R$9:R125),$Q$9:$R$163,2,0),"") -> Front Salto, R/O, flic | Y125: =IF(ISNUMBER(SEARCH($B$10,Z125)),MAX($Y$8:Y124)+1,0) -> 117 | Z125: Front Salto, R/O, flic | AC125: =IFERROR(VLOOKUP(ROWS($Z$9:Z125),$Y$9:$Z$163,2,0),"") -> Front Salto, R/O, flic | AG125: =IF(ISNUMBER(SEARCH($B$11,AH125)),MAX($AG$8:AG124)+1,0) -> 117 | AH125: Front Salto, R/O, flic | AK125: =IFERROR(VLOOKUP(ROWS($AH$9:AH125),$AG$9:$AH$163,2,0),"") -> Front Salto, R/O, flic | AO125: =IF(ISNUMBER(SEARCH($B$12,AP125)),MAX($AO$8:AO124)+1,0) -> 117 | AP125: Front Salto, R/O, flic | AS125: =IFERROR(VLOOKUP(ROWS($AP$9:AP125),$AO$9:$AP$163,2,0),"") -> Front Salto, R/O, flic | AW125: =IF(ISNUMBER(SEARCH($B$13,AX125)),MAX($AW$8:AW124)+1,0) -> 117 | AX125: Front Salto, R/O, flic | BA125: =IFERROR(VLOOKUP(ROWS($AX$9:AX125),$AW$9:$AX$163,2,0),"") -> Front Salto, R/O, flic | BE125: =IF(ISNUMBER(SEARCH($B$14,BF125)),MAX($BE$8:BE124)+1,0) -> 117 | BF125: Front Salto, R/O, flic | BI125: =IFERROR(VLOOKUP(ROWS($BF$9:BF125),$BE$9:$BF$163,2,0),"") -> Front Salto, R/O, flic | BM125: =IF(ISNUMBER(SEARCH($B$15,BN125)),MAX($BM$8:BM124)+1,0) -> 117 | BN125: Front Salto, R/O, flic | BQ125: =IFERROR(VLOOKUP(ROWS($BN$9:BN125),$BM$9:$BN$163,2,0),"") -> Front Salto, R/O, flic | BU125: =IF(ISNUMBER(SEARCH($B$16,BV125)),MAX($BU$8:BU124)+1,0) -> 117 | BV125: Front Salto, R/O, flic | BY125: =IFERROR(VLOOKUP(ROWS($BV$9:BV125),$BU$9:$BV$163,2,0),"") -> Front Salto, R/O, flic | CC125: =IF(ISNUMBER(SEARCH($B$17,CD125)),MAX($CC$8:CC124)+1,0) -> 117 | CD125: Front Salto, R/O, flic | CG125: =IFERROR(VLOOKUP(ROWS($CD$9:CD125),$CC$9:$CD$163,2,0),"") -> Front Salto, R/O, flic | CK125: =IF(ISNUMBER(SEARCH($B$18,CL125)),MAX($CK$8:CK124)+1,0) -> 117 | CL125: Front Salto, R/O, flic | CO125: =IFERROR(VLOOKUP(ROWS($CL$9:CL125),$CK$9:$CL$163,2,0),"") -> Front Salto, R/O, flic
Q126: =IF(ISNUMBER(SEARCH($B$9,R126)),MAX($Q$8:Q125)+1,0) -> 118 | R126: F Salto step out, R/O, B Salto | U126: =IFERROR(VLOOKUP(ROWS($R$9:R126),$Q$9:$R$163,2,0),"") -> F Salto step out, R/O, B Salto | Y126: =IF(ISNUMBER(SEARCH($B$10,Z126)),MAX($Y$8:Y125)+1,0) -> 118 | Z126: F Salto step out, R/O, B Salto | AC126: =IFERROR(VLOOKUP(ROWS($Z$9:Z126),$Y$9:$Z$163,2,0),"") -> F Salto step out, R/O, B Salto | AG126: =IF(ISNUMBER(SEARCH($B$11,AH126)),MAX($AG$8:AG125)+1,0) -> 118 | AH126: F Salto step out, R/O, B Salto | AK126: =IFERROR(VLOOKUP(ROWS($AH$9:AH126),$AG$9:$AH$163,2,0),"") -> F Salto step out, R/O, B Salto | AO126: =IF(ISNUMBER(SEARCH($B$12,AP126)),MAX($AO$8:AO125)+1,0) -> 118 | AP126: F Salto step out, R/O, B Salto | AS126: =IFERROR(VLOOKUP(ROWS($AP$9:AP126),$AO$9:$AP$163,2,0),"") -> F Salto step out, R/O, B Salto | AW126: =IF(ISNUMBER(SEARCH($B$13,AX126)),MAX($AW$8:AW125)+1,0) -> 118 | AX126: F Salto step out, R/O, B Salto | BA126: =IFERROR(VLOOKUP(ROWS($AX$9:AX126),$AW$9:$AX$163,2,0),"") -> F Salto step out, R/O, B Salto | BE126: =IF(ISNUMBER(SEARCH($B$14,BF126)),MAX($BE$8:BE125)+1,0) -> 118 | BF126: F Salto step out, R/O, B Salto | BI126: =IFERROR(VLOOKUP(ROWS($BF$9:BF126),$BE$9:$BF$163,2,0),"") -> F Salto step out, R/O, B Salto | BM126: =IF(ISNUMBER(SEARCH($B$15,BN126)),MAX($BM$8:BM125)+1,0) -> 118 | BN126: F Salto step out, R/O, B Salto | BQ126: =IFERROR(VLOOKUP(ROWS($BN$9:BN126),$BM$9:$BN$163,2,0),"") -> F Salto step out, R/O, B Salto | BU126: =IF(ISNUMBER(SEARCH($B$16,BV126)),MAX($BU$8:BU125)+1,0) -> 118 | BV126: F Salto step out, R/O, B Salto | BY126: =IFERROR(VLOOKUP(ROWS($BV$9:BV126),$BU$9:$BV$163,2,0),"") -> F Salto step out, R/O, B Salto | CC126: =IF(ISNUMBER(SEARCH($B$17,CD126)),MAX($CC$8:CC125)+1,0) -> 118 | CD126: F Salto step out, R/O, B Salto | CG126: =IFERROR(VLOOKUP(ROWS($CD$9:CD126),$CC$9:$CD$163,2,0),"") -> F Salto step out, R/O, B Salto | CK126: =IF(ISNUMBER(SEARCH($B$18,CL126)),MAX($CK$8:CK125)+1,0) -> 118 | CL126: F Salto step out, R/O, B Salto | CO126: =IFERROR(VLOOKUP(ROWS($CL$9:CL126),$CK$9:$CL$163,2,0),"") -> F Salto step out, R/O, B Salto
Q127: =IF(ISNUMBER(SEARCH($B$9,R127)),MAX($Q$8:Q126)+1,0) -> 119 | R127: R/O Tuck Back Salto | U127: =IFERROR(VLOOKUP(ROWS($R$9:R127),$Q$9:$R$163,2,0),"") -> R/O Tuck Back Salto | Y127: =IF(ISNUMBER(SEARCH($B$10,Z127)),MAX($Y$8:Y126)+1,0) -> 119 | Z127: R/O Tuck Back Salto | AC127: =IFERROR(VLOOKUP(ROWS($Z$9:Z127),$Y$9:$Z$163,2,0),"") -> R/O Tuck Back Salto | AG127: =IF(ISNUMBER(SEARCH($B$11,AH127)),MAX($AG$8:AG126)+1,0) -> 119 | AH127: R/O Tuck Back Salto | AK127: =IFERROR(VLOOKUP(ROWS($AH$9:AH127),$AG$9:$AH$163,2,0),"") -> R/O Tuck Back Salto | AO127: =IF(ISNUMBER(SEARCH($B$12,AP127)),MAX($AO$8:AO126)+1,0) -> 119 | AP127: R/O Tuck Back Salto | AS127: =IFERROR(VLOOKUP(ROWS($AP$9:AP127),$AO$9:$AP$163,2,0),"") -> R/O Tuck Back Salto | AW127: =IF(ISNUMBER(SEARCH($B$13,AX127)),MAX($AW$8:AW126)+1,0) -> 119 | AX127: R/O Tuck Back Salto | BA127: =IFERROR(VLOOKUP(ROWS($AX$9:AX127),$AW$9:$AX$163,2,0),"") -> R/O Tuck Back Salto | BE127: =IF(ISNUMBER(SEARCH($B$14,BF127)),MAX($BE$8:BE126)+1,0) -> 119 | BF127: R/O Tuck Back Salto | BI127: =IFERROR(VLOOKUP(ROWS($BF$9:BF127),$BE$9:$BF$163,2,0),"") -> R/O Tuck Back Salto | BM127: =IF(ISNUMBER(SEARCH($B$15,BN127)),MAX($BM$8:BM126)+1,0) -> 119 | BN127: R/O Tuck Back Salto | BQ127: =IFERROR(VLOOKUP(ROWS($BN$9:BN127),$BM$9:$BN$163,2,0),"") -> R/O Tuck Back Salto | BU127: =IF(ISNUMBER(SEARCH($B$16,BV127)),MAX($BU$8:BU126)+1,0) -> 119 | BV127: R/O Tuck Back Salto | BY127: =IFERROR(VLOOKUP(ROWS($BV$9:BV127),$BU$9:$BV$163,2,0),"") -> R/O Tuck Back Salto | CC127: =IF(ISNUMBER(SEARCH($B$17,CD127)),MAX($CC$8:CC126)+1,0) -> 119 | CD127: R/O Tuck Back Salto | CG127: =IFERROR(VLOOKUP(ROWS($CD$9:CD127),$CC$9:$CD$163,2,0),"") -> R/O Tuck Back Salto | CK127: =IF(ISNUMBER(SEARCH($B$18,CL127)),MAX($CK$8:CK126)+1,0) -> 119 | CL127: R/O Tuck Back Salto | CO127: =IFERROR(VLOOKUP(ROWS($CL$9:CL127),$CK$9:$CL$163,2,0),"") -> R/O Tuck Back Salto
Q128: =IF(ISNUMBER(SEARCH($B$9,R128)),MAX($Q$8:Q127)+1,0) -> 120 | R128: R/O, Flic, Tuck Back Salto | U128: =IFERROR(VLOOKUP(ROWS($R$9:R128),$Q$9:$R$163,2,0),"") -> R/O, Flic, Tuck Back Salto | Y128: =IF(ISNUMBER(SEARCH($B$10,Z128)),MAX($Y$8:Y127)+1,0) -> 120 | Z128: R/O, Flic, Tuck Back Salto | AC128: =IFERROR(VLOOKUP(ROWS($Z$9:Z128),$Y$9:$Z$163,2,0),"") -> R/O, Flic, Tuck Back Salto | AG128: =IF(ISNUMBER(SEARCH($B$11,AH128)),MAX($AG$8:AG127)+1,0) -> 120 | AH128: R/O, Flic, Tuck Back Salto | AK128: =IFERROR(VLOOKUP(ROWS($AH$9:AH128),$AG$9:$AH$163,2,0),"") -> R/O, Flic, Tuck Back Salto | AO128: =IF(ISNUMBER(SEARCH($B$12,AP128)),MAX($AO$8:AO127)+1,0) -> 120 | AP128: R/O, Flic, Tuck Back Salto | AS128: =IFERROR(VLOOKUP(ROWS($AP$9:AP128),$AO$9:$AP$163,2,0),"") -> R/O, Flic, Tuck Back Salto | AW128: =IF(ISNUMBER(SEARCH($B$13,AX128)),MAX($AW$8:AW127)+1,0) -> 120 | AX128: R/O, Flic, Tuck Back Salto | BA128: =IFERROR(VLOOKUP(ROWS($AX$9:AX128),$AW$9:$AX$163,2,0),"") -> R/O, Flic, Tuck Back Salto | BE128: =IF(ISNUMBER(SEARCH($B$14,BF128)),MAX($BE$8:BE127)+1,0) -> 120 | BF128: R/O, Flic, Tuck Back Salto | BI128: =IFERROR(VLOOKUP(ROWS($BF$9:BF128),$BE$9:$BF$163,2,0),"") -> R/O, Flic, Tuck Back Salto | BM128: =IF(ISNUMBER(SEARCH($B$15,BN128)),MAX($BM$8:BM127)+1,0) -> 120 | BN128: R/O, Flic, Tuck Back Salto | BQ128: =IFERROR(VLOOKUP(ROWS($BN$9:BN128),$BM$9:$BN$163,2,0),"") -> R/O, Flic, Tuck Back Salto | BU128: =IF(ISNUMBER(SEARCH($B$16,BV128)),MAX($BU$8:BU127)+1,0) -> 120 | BV128: R/O, Flic, Tuck Back Salto | BY128: =IFERROR(VLOOKUP(ROWS($BV$9:BV128),$BU$9:$BV$163,2,0),"") -> R/O, Flic, Tuck Back Salto | CC128: =IF(ISNUMBER(SEARCH($B$17,CD128)),MAX($CC$8:CC127)+1,0) -> 120 | CD128: R/O, Flic, Tuck Back Salto | CG128: =IFERROR(VLOOKUP(ROWS($CD$9:CD128),$CC$9:$CD$163,2,0),"") -> R/O, Flic, Tuck Back Salto | CK128: =IF(ISNUMBER(SEARCH($B$18,CL128)),MAX($CK$8:CK127)+1,0) -> 120 | CL128: R/O, Flic, Tuck Back Salto | CO128: =IFERROR(VLOOKUP(ROWS($CL$9:CL128),$CK$9:$CL$163,2,0),"") -> R/O, Flic, Tuck Back Salto
Q129: =IF(ISNUMBER(SEARCH($B$9,R129)),MAX($Q$8:Q128)+1,0) -> 121 | R129: Handspring Flyspring | U129: =IFERROR(VLOOKUP(ROWS($R$9:R129),$Q$9:$R$163,2,0),"") -> Handspring Flyspring | Y129: =IF(ISNUMBER(SEARCH($B$10,Z129)),MAX($Y$8:Y128)+1,0) -> 121 | Z129: Handspring Flyspring | AC129: =IFERROR(VLOOKUP(ROWS($Z$9:Z129),$Y$9:$Z$163,2,0),"") -> Handspring Flyspring | AG129: =IF(ISNUMBER(SEARCH($B$11,AH129)),MAX($AG$8:AG128)+1,0) -> 121 | AH129: Handspring Flyspring | AK129: =IFERROR(VLOOKUP(ROWS($AH$9:AH129),$AG$9:$AH$163,2,0),"") -> Handspring Flyspring | AO129: =IF(ISNUMBER(SEARCH($B$12,AP129)),MAX($AO$8:AO128)+1,0) -> 121 | AP129: Handspring Flyspring | AS129: =IFERROR(VLOOKUP(ROWS($AP$9:AP129),$AO$9:$AP$163,2,0),"") -> Handspring Flyspring | AW129: =IF(ISNUMBER(SEARCH($B$13,AX129)),MAX($AW$8:AW128)+1,0) -> 121 | AX129: Handspring Flyspring | BA129: =IFERROR(VLOOKUP(ROWS($AX$9:AX129),$AW$9:$AX$163,2,0),"") -> Handspring Flyspring | BE129: =IF(ISNUMBER(SEARCH($B$14,BF129)),MAX($BE$8:BE128)+1,0) -> 121 | BF129: Handspring Flyspring | BI129: =IFERROR(VLOOKUP(ROWS($BF$9:BF129),$BE$9:$BF$163,2,0),"") -> Handspring Flyspring | BM129: =IF(ISNUMBER(SEARCH($B$15,BN129)),MAX($BM$8:BM128)+1,0) -> 121 | BN129: Handspring Flyspring | BQ129: =IFERROR(VLOOKUP(ROWS($BN$9:BN129),$BM$9:$BN$163,2,0),"") -> Handspring Flyspring | BU129: =IF(ISNUMBER(SEARCH($B$16,BV129)),MAX($BU$8:BU128)+1,0) -> 121 | BV129: Handspring Flyspring | BY129: =IFERROR(VLOOKUP(ROWS($BV$9:BV129),$BU$9:$BV$163,2,0),"") -> Handspring Flyspring | CC129: =IF(ISNUMBER(SEARCH($B$17,CD129)),MAX($CC$8:CC128)+1,0) -> 121 | CD129: Handspring Flyspring | CG129: =IFERROR(VLOOKUP(ROWS($CD$9:CD129),$CC$9:$CD$163,2,0),"") -> Handspring Flyspring | CK129: =IF(ISNUMBER(SEARCH($B$18,CL129)),MAX($CK$8:CK128)+1,0) -> 121 | CL129: Handspring Flyspring | CO129: =IFERROR(VLOOKUP(ROWS($CL$9:CL129),$CK$9:$CL$163,2,0),"") -> Handspring Flyspring
Q130: =IF(ISNUMBER(SEARCH($B$9,R130)),MAX($Q$8:Q129)+1,0) -> 122 | R130: Handspring, Front Salto | U130: =IFERROR(VLOOKUP(ROWS($R$9:R130),$Q$9:$R$163,2,0),"") -> Handspring, Front Salto | Y130: =IF(ISNUMBER(SEARCH($B$10,Z130)),MAX($Y$8:Y129)+1,0) -> 122 | Z130: Handspring, Front Salto | AC130: =IFERROR(VLOOKUP(ROWS($Z$9:Z130),$Y$9:$Z$163,2,0),"") -> Handspring, Front Salto | AG130: =IF(ISNUMBER(SEARCH($B$11,AH130)),MAX($AG$8:AG129)+1,0) -> 122 | AH130: Handspring, Front Salto | AK130: =IFERROR(VLOOKUP(ROWS($AH$9:AH130),$AG$9:$AH$163,2,0),"") -> Handspring, Front Salto | AO130: =IF(ISNUMBER(SEARCH($B$12,AP130)),MAX($AO$8:AO129)+1,0) -> 122 | AP130: Handspring, Front Salto | AS130: =IFERROR(VLOOKUP(ROWS($AP$9:AP130),$AO$9:$AP$163,2,0),"") -> Handspring, Front Salto | AW130: =IF(ISNUMBER(SEARCH($B$13,AX130)),MAX($AW$8:AW129)+1,0) -> 122 | AX130: Handspring, Front Salto | BA130: =IFERROR(VLOOKUP(ROWS($AX$9:AX130),$AW$9:$AX$163,2,0),"") -> Handspring, Front Salto | BE130: =IF(ISNUMBER(SEARCH($B$14,BF130)),MAX($BE$8:BE129)+1,0) -> 122 | BF130: Handspring, Front Salto | BI130: =IFERROR(VLOOKUP(ROWS($BF$9:BF130),$BE$9:$BF$163,2,0),"") -> Handspring, Front Salto | BM130: =IF(ISNUMBER(SEARCH($B$15,BN130)),MAX($BM$8:BM129)+1,0) -> 122 | BN130: Handspring, Front Salto | BQ130: =IFERROR(VLOOKUP(ROWS($BN$9:BN130),$BM$9:$BN$163,2,0),"") -> Handspring, Front Salto | BU130: =IF(ISNUMBER(SEARCH($B$16,BV130)),MAX($BU$8:BU129)+1,0) -> 122 | BV130: Handspring, Front Salto | BY130: =IFERROR(VLOOKUP(ROWS($BV$9:BV130),$BU$9:$BV$163,2,0),"") -> Handspring, Front Salto | CC130: =IF(ISNUMBER(SEARCH($B$17,CD130)),MAX($CC$8:CC129)+1,0) -> 122 | CD130: Handspring, Front Salto | CG130: =IFERROR(VLOOKUP(ROWS($CD$9:CD130),$CC$9:$CD$163,2,0),"") -> Handspring, Front Salto | CK130: =IF(ISNUMBER(SEARCH($B$18,CL130)),MAX($CK$8:CK129)+1,0) -> 122 | CL130: Handspring, Front Salto | CO130: =IFERROR(VLOOKUP(ROWS($CL$9:CL130),$CK$9:$CL$163,2,0),"") -> Handspring, Front Salto
Q131: =IF(ISNUMBER(SEARCH($B$9,R131)),MAX($Q$8:Q130)+1,0) -> 123 | R131: Split leap - sissone | U131: =IFERROR(VLOOKUP(ROWS($R$9:R131),$Q$9:$R$163,2,0),"") -> Split leap - sissone | Y131: =IF(ISNUMBER(SEARCH($B$10,Z131)),MAX($Y$8:Y130)+1,0) -> 123 | Z131: Split leap - sissone | AC131: =IFERROR(VLOOKUP(ROWS($Z$9:Z131),$Y$9:$Z$163,2,0),"") -> Split leap - sissone | AG131: =IF(ISNUMBER(SEARCH($B$11,AH131)),MAX($AG$8:AG130)+1,0) -> 123 | AH131: Split leap - sissone | AK131: =IFERROR(VLOOKUP(ROWS($AH$9:AH131),$AG$9:$AH$163,2,0),"") -> Split leap - sissone | AO131: =IF(ISNUMBER(SEARCH($B$12,AP131)),MAX($AO$8:AO130)+1,0) -> 123 | AP131: Split leap - sissone | AS131: =IFERROR(VLOOKUP(ROWS($AP$9:AP131),$AO$9:$AP$163,2,0),"") -> Split leap - sissone | AW131: =IF(ISNUMBER(SEARCH($B$13,AX131)),MAX($AW$8:AW130)+1,0) -> 123 | AX131: Split leap - sissone | BA131: =IFERROR(VLOOKUP(ROWS($AX$9:AX131),$AW$9:$AX$163,2,0),"") -> Split leap - sissone | BE131: =IF(ISNUMBER(SEARCH($B$14,BF131)),MAX($BE$8:BE130)+1,0) -> 123 | BF131: Split leap - sissone | BI131: =IFERROR(VLOOKUP(ROWS($BF$9:BF131),$BE$9:$BF$163,2,0),"") -> Split leap - sissone | BM131: =IF(ISNUMBER(SEARCH($B$15,BN131)),MAX($BM$8:BM130)+1,0) -> 123 | BN131: Split leap - sissone | BQ131: =IFERROR(VLOOKUP(ROWS($BN$9:BN131),$BM$9:$BN$163,2,0),"") -> Split leap - sissone | BU131: =IF(ISNUMBER(SEARCH($B$16,BV131)),MAX($BU$8:BU130)+1,0) -> 123 | BV131: Split leap - sissone | BY131: =IFERROR(VLOOKUP(ROWS($BV$9:BV131),$BU$9:$BV$163,2,0),"") -> Split leap - sissone | CC131: =IF(ISNUMBER(SEARCH($B$17,CD131)),MAX($CC$8:CC130)+1,0) -> 123 | CD131: Split leap - sissone | CG131: =IFERROR(VLOOKUP(ROWS($CD$9:CD131),$CC$9:$CD$163,2,0),"") -> Split leap - sissone | CK131: =IF(ISNUMBER(SEARCH($B$18,CL131)),MAX($CK$8:CK130)+1,0) -> 123 | CL131: Split leap - sissone | CO131: =IFERROR(VLOOKUP(ROWS($CL$9:CL131),$CK$9:$CL$163,2,0),"") -> Split leap - sissone
Q132: =IF(ISNUMBER(SEARCH($B$9,R132)),MAX($Q$8:Q131)+1,0) -> 124 | R132: Split leap - cat leap full turn | U132: =IFERROR(VLOOKUP(ROWS($R$9:R132),$Q$9:$R$163,2,0),"") -> Split leap - cat leap full turn | Y132: =IF(ISNUMBER(SEARCH($B$10,Z132)),MAX($Y$8:Y131)+1,0) -> 124 | Z132: Split leap - cat leap full turn | AC132: =IFERROR(VLOOKUP(ROWS($Z$9:Z132),$Y$9:$Z$163,2,0),"") -> Split leap - cat leap full turn | AG132: =IF(ISNUMBER(SEARCH($B$11,AH132)),MAX($AG$8:AG131)+1,0) -> 124 | AH132: Split leap - cat leap full turn | AK132: =IFERROR(VLOOKUP(ROWS($AH$9:AH132),$AG$9:$AH$163,2,0),"") -> Split leap - cat leap full turn | AO132: =IF(ISNUMBER(SEARCH($B$12,AP132)),MAX($AO$8:AO131)+1,0) -> 124 | AP132: Split leap - cat leap full turn | AS132: =IFERROR(VLOOKUP(ROWS($AP$9:AP132),$AO$9:$AP$163,2,0),"") -> Split leap - cat leap full turn | AW132: =IF(ISNUMBER(SEARCH($B$13,AX132)),MAX($AW$8:AW131)+1,0) -> 124 | AX132: Split leap - cat leap full turn | BA132: =IFERROR(VLOOKUP(ROWS($AX$9:AX132),$AW$9:$AX$163,2,0),"") -> Split leap - cat leap full turn | BE132: =IF(ISNUMBER(SEARCH($B$14,BF132)),MAX($BE$8:BE131)+1,0) -> 124 | BF132: Split leap - cat leap full turn | BI132: =IFERROR(VLOOKUP(ROWS($BF$9:BF132),$BE$9:$BF$163,2,0),"") -> Split leap - cat leap full turn | BM132: =IF(ISNUMBER(SEARCH($B$15,BN132)),MAX($BM$8:BM131)+1,0) -> 124 | BN132: Split leap - cat leap full turn | BQ132: =IFERROR(VLOOKUP(ROWS($BN$9:BN132),$BM$9:$BN$163,2,0),"") -> Split leap - cat leap full turn | BU132: =IF(ISNUMBER(SEARCH($B$16,BV132)),MAX($BU$8:BU131)+1,0) -> 124 | BV132: Split leap - cat leap full turn | BY132: =IFERROR(VLOOKUP(ROWS($BV$9:BV132),$BU$9:$BV$163,2,0),"") -> Split leap - cat leap full turn | CC132: =IF(ISNUMBER(SEARCH($B$17,CD132)),MAX($CC$8:CC131)+1,0) -> 124 | CD132: Split leap - cat leap full turn | CG132: =IFERROR(VLOOKUP(ROWS($CD$9:CD132),$CC$9:$CD$163,2,0),"") -> Split leap - cat leap full turn | CK132: =IF(ISNUMBER(SEARCH($B$18,CL132)),MAX($CK$8:CK131)+1,0) -> 124 | CL132: Split leap - cat leap full turn | CO132: =IFERROR(VLOOKUP(ROWS($CL$9:CL132),$CK$9:$CL$163,2,0),"") -> Split leap - cat leap full turn
Q133: =IF(ISNUMBER(SEARCH($B$9,R133)),MAX($Q$8:Q132)+1,0) -> 125 | R133: Change leg split leap - split leap | U133: =IFERROR(VLOOKUP(ROWS($R$9:R133),$Q$9:$R$163,2,0),"") -> Change leg split leap - split leap | Y133: =IF(ISNUMBER(SEARCH($B$10,Z133)),MAX($Y$8:Y132)+1,0) -> 125 | Z133: Change leg split leap - split leap | AC133: =IFERROR(VLOOKUP(ROWS($Z$9:Z133),$Y$9:$Z$163,2,0),"") -> Change leg split leap - split leap | AG133: =IF(ISNUMBER(SEARCH($B$11,AH133)),MAX($AG$8:AG132)+1,0) -> 125 | AH133: Change leg split leap - split leap | AK133: =IFERROR(VLOOKUP(ROWS($AH$9:AH133),$AG$9:$AH$163,2,0),"") -> Change leg split leap - split leap | AO133: =IF(ISNUMBER(SEARCH($B$12,AP133)),MAX($AO$8:AO132)+1,0) -> 125 | AP133: Change leg split leap - split leap | AS133: =IFERROR(VLOOKUP(ROWS($AP$9:AP133),$AO$9:$AP$163,2,0),"") -> Change leg split leap - split leap | AW133: =IF(ISNUMBER(SEARCH($B$13,AX133)),MAX($AW$8:AW132)+1,0) -> 125 | AX133: Change leg split leap - split leap | BA133: =IFERROR(VLOOKUP(ROWS($AX$9:AX133),$AW$9:$AX$163,2,0),"") -> Change leg split leap - split leap | BE133: =IF(ISNUMBER(SEARCH($B$14,BF133)),MAX($BE$8:BE132)+1,0) -> 125 | BF133: Change leg split leap - split leap | BI133: =IFERROR(VLOOKUP(ROWS($BF$9:BF133),$BE$9:$BF$163,2,0),"") -> Change leg split leap - split leap | BM133: =IF(ISNUMBER(SEARCH($B$15,BN133)),MAX($BM$8:BM132)+1,0) -> 125 | BN133: Change leg split leap - split leap | BQ133: =IFERROR(VLOOKUP(ROWS($BN$9:BN133),$BM$9:$BN$163,2,0),"") -> Change leg split leap - split leap | BU133: =IF(ISNUMBER(SEARCH($B$16,BV133)),MAX($BU$8:BU132)+1,0) -> 125 | BV133: Change leg split leap - split leap | BY133: =IFERROR(VLOOKUP(ROWS($BV$9:BV133),$BU$9:$BV$163,2,0),"") -> Change leg split leap - split leap | CC133: =IF(ISNUMBER(SEARCH($B$17,CD133)),MAX($CC$8:CC132)+1,0) -> 125 | CD133: Change leg split leap - split leap | CG133: =IFERROR(VLOOKUP(ROWS($CD$9:CD133),$CC$9:$CD$163,2,0),"") -> Change leg split leap - split leap | CK133: =IF(ISNUMBER(SEARCH($B$18,CL133)),MAX($CK$8:CK132)+1,0) -> 125 | CL133: Change leg split leap - split leap | CO133: =IFERROR(VLOOKUP(ROWS($CL$9:CL133),$CK$9:$CL$163,2,0),"") -> Change leg split leap - split leap
Q134: =IF(ISNUMBER(SEARCH($B$9,R134)),MAX($Q$8:Q133)+1,0) -> 126 | R134: Split leap - W jump | U134: =IFERROR(VLOOKUP(ROWS($R$9:R134),$Q$9:$R$163,2,0),"") -> Split leap - W jump | Y134: =IF(ISNUMBER(SEARCH($B$10,Z134)),MAX($Y$8:Y133)+1,0) -> 126 | Z134: Split leap - W jump | AC134: =IFERROR(VLOOKUP(ROWS($Z$9:Z134),$Y$9:$Z$163,2,0),"") -> Split leap - W jump | AG134: =IF(ISNUMBER(SEARCH($B$11,AH134)),MAX($AG$8:AG133)+1,0) -> 126 | AH134: Split leap - W jump | AK134: =IFERROR(VLOOKUP(ROWS($AH$9:AH134),$AG$9:$AH$163,2,0),"") -> Split leap - W jump | AO134: =IF(ISNUMBER(SEARCH($B$12,AP134)),MAX($AO$8:AO133)+1,0) -> 126 | AP134: Split leap - W jump | AS134: =IFERROR(VLOOKUP(ROWS($AP$9:AP134),$AO$9:$AP$163,2,0),"") -> Split leap - W jump | AW134: =IF(ISNUMBER(SEARCH($B$13,AX134)),MAX($AW$8:AW133)+1,0) -> 126 | AX134: Split leap - W jump | BA134: =IFERROR(VLOOKUP(ROWS($AX$9:AX134),$AW$9:$AX$163,2,0),"") -> Split leap - W jump | BE134: =IF(ISNUMBER(SEARCH($B$14,BF134)),MAX($BE$8:BE133)+1,0) -> 126 | BF134: Split leap - W jump | BI134: =IFERROR(VLOOKUP(ROWS($BF$9:BF134),$BE$9:$BF$163,2,0),"") -> Split leap - W jump | BM134: =IF(ISNUMBER(SEARCH($B$15,BN134)),MAX($BM$8:BM133)+1,0) -> 126 | BN134: Split leap - W jump | BQ134: =IFERROR(VLOOKUP(ROWS($BN$9:BN134),$BM$9:$BN$163,2,0),"") -> Split leap - W jump | BU134: =IF(ISNUMBER(SEARCH($B$16,BV134)),MAX($BU$8:BU133)+1,0) -> 126 | BV134: Split leap - W jump | BY134: =IFERROR(VLOOKUP(ROWS($BV$9:BV134),$BU$9:$BV$163,2,0),"") -> Split leap - W jump | CC134: =IF(ISNUMBER(SEARCH($B$17,CD134)),MAX($CC$8:CC133)+1,0) -> 126 | CD134: Split leap - W jump | CG134: =IFERROR(VLOOKUP(ROWS($CD$9:CD134),$CC$9:$CD$163,2,0),"") -> Split leap - W jump | CK134: =IF(ISNUMBER(SEARCH($B$18,CL134)),MAX($CK$8:CK133)+1,0) -> 126 | CL134: Split leap - W jump | CO134: =IFERROR(VLOOKUP(ROWS($CL$9:CL134),$CK$9:$CL$163,2,0),"") -> Split leap - W jump
Q135: =IF(ISNUMBER(SEARCH($B$9,R135)),MAX($Q$8:Q134)+1,0) -> 127 | R135: Full turn jump - straddle jump | U135: =IFERROR(VLOOKUP(ROWS($R$9:R135),$Q$9:$R$163,2,0),"") -> Full turn jump - straddle jump | Y135: =IF(ISNUMBER(SEARCH($B$10,Z135)),MAX($Y$8:Y134)+1,0) -> 127 | Z135: Full turn jump - straddle jump | AC135: =IFERROR(VLOOKUP(ROWS($Z$9:Z135),$Y$9:$Z$163,2,0),"") -> Full turn jump - straddle jump | AG135: =IF(ISNUMBER(SEARCH($B$11,AH135)),MAX($AG$8:AG134)+1,0) -> 127 | AH135: Full turn jump - straddle jump | AK135: =IFERROR(VLOOKUP(ROWS($AH$9:AH135),$AG$9:$AH$163,2,0),"") -> Full turn jump - straddle jump | AO135: =IF(ISNUMBER(SEARCH($B$12,AP135)),MAX($AO$8:AO134)+1,0) -> 127 | AP135: Full turn jump - straddle jump | AS135: =IFERROR(VLOOKUP(ROWS($AP$9:AP135),$AO$9:$AP$163,2,0),"") -> Full turn jump - straddle jump | AW135: =IF(ISNUMBER(SEARCH($B$13,AX135)),MAX($AW$8:AW134)+1,0) -> 127 | AX135: Full turn jump - straddle jump | BA135: =IFERROR(VLOOKUP(ROWS($AX$9:AX135),$AW$9:$AX$163,2,0),"") -> Full turn jump - straddle jump | BE135: =IF(ISNUMBER(SEARCH($B$14,BF135)),MAX($BE$8:BE134)+1,0) -> 127 | BF135: Full turn jump - straddle jump | BI135: =IFERROR(VLOOKUP(ROWS($BF$9:BF135),$BE$9:$BF$163,2,0),"") -> Full turn jump - straddle jump | BM135: =IF(ISNUMBER(SEARCH($B$15,BN135)),MAX($BM$8:BM134)+1,0) -> 127 | BN135: Full turn jump - straddle jump | BQ135: =IFERROR(VLOOKUP(ROWS($BN$9:BN135),$BM$9:$BN$163,2,0),"") -> Full turn jump - straddle jump | BU135: =IF(ISNUMBER(SEARCH($B$16,BV135)),MAX($BU$8:BU134)+1,0) -> 127 | BV135: Full turn jump - straddle jump | BY135: =IFERROR(VLOOKUP(ROWS($BV$9:BV135),$BU$9:$BV$163,2,0),"") -> Full turn jump - straddle jump | CC135: =IF(ISNUMBER(SEARCH($B$17,CD135)),MAX($CC$8:CC134)+1,0) -> 127 | CD135: Full turn jump - straddle jump | CG135: =IFERROR(VLOOKUP(ROWS($CD$9:CD135),$CC$9:$CD$163,2,0),"") -> Full turn jump - straddle jump | CK135: =IF(ISNUMBER(SEARCH($B$18,CL135)),MAX($CK$8:CK134)+1,0) -> 127 | CL135: Full turn jump - straddle jump | CO135: =IFERROR(VLOOKUP(ROWS($CL$9:CL135),$CK$9:$CL$163,2,0),"") -> Full turn jump - straddle jump
Q136: =IF(ISNUMBER(SEARCH($B$9,R136)),MAX($Q$8:Q135)+1,0) -> 128 | R136: Jump 1/2 Turn to Prone | U136: =IFERROR(VLOOKUP(ROWS($R$9:R136),$Q$9:$R$163,2,0),"") -> Jump 1/2 Turn to Prone | Y136: =IF(ISNUMBER(SEARCH($B$10,Z136)),MAX($Y$8:Y135)+1,0) -> 128 | Z136: Jump 1/2 Turn to Prone | AC136: =IFERROR(VLOOKUP(ROWS($Z$9:Z136),$Y$9:$Z$163,2,0),"") -> Jump 1/2 Turn to Prone | AG136: =IF(ISNUMBER(SEARCH($B$11,AH136)),MAX($AG$8:AG135)+1,0) -> 128 | AH136: Jump 1/2 Turn to Prone | AK136: =IFERROR(VLOOKUP(ROWS($AH$9:AH136),$AG$9:$AH$163,2,0),"") -> Jump 1/2 Turn to Prone | AO136: =IF(ISNUMBER(SEARCH($B$12,AP136)),MAX($AO$8:AO135)+1,0) -> 128 | AP136: Jump 1/2 Turn to Prone | AS136: =IFERROR(VLOOKUP(ROWS($AP$9:AP136),$AO$9:$AP$163,2,0),"") -> Jump 1/2 Turn to Prone | AW136: =IF(ISNUMBER(SEARCH($B$13,AX136)),MAX($AW$8:AW135)+1,0) -> 128 | AX136: Jump 1/2 Turn to Prone | BA136: =IFERROR(VLOOKUP(ROWS($AX$9:AX136),$AW$9:$AX$163,2,0),"") -> Jump 1/2 Turn to Prone | BE136: =IF(ISNUMBER(SEARCH($B$14,BF136)),MAX($BE$8:BE135)+1,0) -> 128 | BF136: Jump 1/2 Turn to Prone | BI136: =IFERROR(VLOOKUP(ROWS($BF$9:BF136),$BE$9:$BF$163,2,0),"") -> Jump 1/2 Turn to Prone | BM136: =IF(ISNUMBER(SEARCH($B$15,BN136)),MAX($BM$8:BM135)+1,0) -> 128 | BN136: Jump 1/2 Turn to Prone | BQ136: =IFERROR(VLOOKUP(ROWS($BN$9:BN136),$BM$9:$BN$163,2,0),"") -> Jump 1/2 Turn to Prone | BU136: =IF(ISNUMBER(SEARCH($B$16,BV136)),MAX($BU$8:BU135)+1,0) -> 128 | BV136: Jump 1/2 Turn to Prone | BY136: =IFERROR(VLOOKUP(ROWS($BV$9:BV136),$BU$9:$BV$163,2,0),"") -> Jump 1/2 Turn to Prone | CC136: =IF(ISNUMBER(SEARCH($B$17,CD136)),MAX($CC$8:CC135)+1,0) -> 128 | CD136: Jump 1/2 Turn to Prone | CG136: =IFERROR(VLOOKUP(ROWS($CD$9:CD136),$CC$9:$CD$163,2,0),"") -> Jump 1/2 Turn to Prone | CK136: =IF(ISNUMBER(SEARCH($B$18,CL136)),MAX($CK$8:CK135)+1,0) -> 128 | CL136: Jump 1/2 Turn to Prone | CO136: =IFERROR(VLOOKUP(ROWS($CL$9:CL136),$CK$9:$CL$163,2,0),"") -> Jump 1/2 Turn to Prone
Q137: =IF(ISNUMBER(SEARCH($B$9,R137)),MAX($Q$8:Q136)+1,0) -> 129 | R137: Straddle jump Shushunova | U137: =IFERROR(VLOOKUP(ROWS($R$9:R137),$Q$9:$R$163,2,0),"") -> Straddle jump Shushunova | Y137: =IF(ISNUMBER(SEARCH($B$10,Z137)),MAX($Y$8:Y136)+1,0) -> 129 | Z137: Straddle jump Shushunova | AC137: =IFERROR(VLOOKUP(ROWS($Z$9:Z137),$Y$9:$Z$163,2,0),"") -> Straddle jump Shushunova | AG137: =IF(ISNUMBER(SEARCH($B$11,AH137)),MAX($AG$8:AG136)+1,0) -> 129 | AH137: Straddle jump Shushunova | AK137: =IFERROR(VLOOKUP(ROWS($AH$9:AH137),$AG$9:$AH$163,2,0),"") -> Straddle jump Shushunova | AO137: =IF(ISNUMBER(SEARCH($B$12,AP137)),MAX($AO$8:AO136)+1,0) -> 129 | AP137: Straddle jump Shushunova | AS137: =IFERROR(VLOOKUP(ROWS($AP$9:AP137),$AO$9:$AP$163,2,0),"") -> Straddle jump Shushunova | AW137: =IF(ISNUMBER(SEARCH($B$13,AX137)),MAX($AW$8:AW136)+1,0) -> 129 | AX137: Straddle jump Shushunova | BA137: =IFERROR(VLOOKUP(ROWS($AX$9:AX137),$AW$9:$AX$163,2,0),"") -> Straddle jump Shushunova | BE137: =IF(ISNUMBER(SEARCH($B$14,BF137)),MAX($BE$8:BE136)+1,0) -> 129 | BF137: Straddle jump Shushunova | BI137: =IFERROR(VLOOKUP(ROWS($BF$9:BF137),$BE$9:$BF$163,2,0),"") -> Straddle jump Shushunova | BM137: =IF(ISNUMBER(SEARCH($B$15,BN137)),MAX($BM$8:BM136)+1,0) -> 129 | BN137: Straddle jump Shushunova | BQ137: =IFERROR(VLOOKUP(ROWS($BN$9:BN137),$BM$9:$BN$163,2,0),"") -> Straddle jump Shushunova | BU137: =IF(ISNUMBER(SEARCH($B$16,BV137)),MAX($BU$8:BU136)+1,0) -> 129 | BV137: Straddle jump Shushunova | BY137: =IFERROR(VLOOKUP(ROWS($BV$9:BV137),$BU$9:$BV$163,2,0),"") -> Straddle jump Shushunova | CC137: =IF(ISNUMBER(SEARCH($B$17,CD137)),MAX($CC$8:CC136)+1,0) -> 129 | CD137: Straddle jump Shushunova | CG137: =IFERROR(VLOOKUP(ROWS($CD$9:CD137),$CC$9:$CD$163,2,0),"") -> Straddle jump Shushunova | CK137: =IF(ISNUMBER(SEARCH($B$18,CL137)),MAX($CK$8:CK136)+1,0) -> 129 | CL137: Straddle jump Shushunova | CO137: =IFERROR(VLOOKUP(ROWS($CL$9:CL137),$CK$9:$CL$163,2,0),"") -> Straddle jump Shushunova
Q138: =IF(ISNUMBER(SEARCH($B$9,R138)),MAX($Q$8:Q137)+1,0) -> 130 | R138: Straddle jump - pike jump | U138: =IFERROR(VLOOKUP(ROWS($R$9:R138),$Q$9:$R$163,2,0),"") -> Straddle jump - pike jump | Y138: =IF(ISNUMBER(SEARCH($B$10,Z138)),MAX($Y$8:Y137)+1,0) -> 130 | Z138: Straddle jump - pike jump | AC138: =IFERROR(VLOOKUP(ROWS($Z$9:Z138),$Y$9:$Z$163,2,0),"") -> Straddle jump - pike jump | AG138: =IF(ISNUMBER(SEARCH($B$11,AH138)),MAX($AG$8:AG137)+1,0) -> 130 | AH138: Straddle jump - pike jump | AK138: =IFERROR(VLOOKUP(ROWS($AH$9:AH138),$AG$9:$AH$163,2,0),"") -> Straddle jump - pike jump | AO138: =IF(ISNUMBER(SEARCH($B$12,AP138)),MAX($AO$8:AO137)+1,0) -> 130 | AP138: Straddle jump - pike jump | AS138: =IFERROR(VLOOKUP(ROWS($AP$9:AP138),$AO$9:$AP$163,2,0),"") -> Straddle jump - pike jump | AW138: =IF(ISNUMBER(SEARCH($B$13,AX138)),MAX($AW$8:AW137)+1,0) -> 130 | AX138: Straddle jump - pike jump | BA138: =IFERROR(VLOOKUP(ROWS($AX$9:AX138),$AW$9:$AX$163,2,0),"") -> Straddle jump - pike jump | BE138: =IF(ISNUMBER(SEARCH($B$14,BF138)),MAX($BE$8:BE137)+1,0) -> 130 | BF138: Straddle jump - pike jump | BI138: =IFERROR(VLOOKUP(ROWS($BF$9:BF138),$BE$9:$BF$163,2,0),"") -> Straddle jump - pike jump | BM138: =IF(ISNUMBER(SEARCH($B$15,BN138)),MAX($BM$8:BM137)+1,0) -> 130 | BN138: Straddle jump - pike jump | BQ138: =IFERROR(VLOOKUP(ROWS($BN$9:BN138),$BM$9:$BN$163,2,0),"") -> Straddle jump - pike jump | BU138: =IF(ISNUMBER(SEARCH($B$16,BV138)),MAX($BU$8:BU137)+1,0) -> 130 | BV138: Straddle jump - pike jump | BY138: =IFERROR(VLOOKUP(ROWS($BV$9:BV138),$BU$9:$BV$163,2,0),"") -> Straddle jump - pike jump | CC138: =IF(ISNUMBER(SEARCH($B$17,CD138)),MAX($CC$8:CC137)+1,0) -> 130 | CD138: Straddle jump - pike jump | CG138: =IFERROR(VLOOKUP(ROWS($CD$9:CD138),$CC$9:$CD$163,2,0),"") -> Straddle jump - pike jump | CK138: =IF(ISNUMBER(SEARCH($B$18,CL138)),MAX($CK$8:CK137)+1,0) -> 130 | CL138: Straddle jump - pike jump | CO138: =IFERROR(VLOOKUP(ROWS($CL$9:CL138),$CK$9:$CL$163,2,0),"") -> Straddle jump - pike jump
Q139: =IF(ISNUMBER(SEARCH($B$9,R139)),MAX($Q$8:Q138)+1,0) -> 131 | R139: Double spin | U139: =IFERROR(VLOOKUP(ROWS($R$9:R139),$Q$9:$R$163,2,0),"") -> Double spin | Y139: =IF(ISNUMBER(SEARCH($B$10,Z139)),MAX($Y$8:Y138)+1,0) -> 131 | Z139: Double spin | AC139: =IFERROR(VLOOKUP(ROWS($Z$9:Z139),$Y$9:$Z$163,2,0),"") -> Double spin | AG139: =IF(ISNUMBER(SEARCH($B$11,AH139)),MAX($AG$8:AG138)+1,0) -> 131 | AH139: Double spin | AK139: =IFERROR(VLOOKUP(ROWS($AH$9:AH139),$AG$9:$AH$163,2,0),"") -> Double spin | AO139: =IF(ISNUMBER(SEARCH($B$12,AP139)),MAX($AO$8:AO138)+1,0) -> 131 | AP139: Double spin | AS139: =IFERROR(VLOOKUP(ROWS($AP$9:AP139),$AO$9:$AP$163,2,0),"") -> Double spin | AW139: =IF(ISNUMBER(SEARCH($B$13,AX139)),MAX($AW$8:AW138)+1,0) -> 131 | AX139: Double spin | BA139: =IFERROR(VLOOKUP(ROWS($AX$9:AX139),$AW$9:$AX$163,2,0),"") -> Double spin | BE139: =IF(ISNUMBER(SEARCH($B$14,BF139)),MAX($BE$8:BE138)+1,0) -> 131 | BF139: Double spin | BI139: =IFERROR(VLOOKUP(ROWS($BF$9:BF139),$BE$9:$BF$163,2,0),"") -> Double spin | BM139: =IF(ISNUMBER(SEARCH($B$15,BN139)),MAX($BM$8:BM138)+1,0) -> 131 | BN139: Double spin | BQ139: =IFERROR(VLOOKUP(ROWS($BN$9:BN139),$BM$9:$BN$163,2,0),"") -> Double spin | BU139: =IF(ISNUMBER(SEARCH($B$16,BV139)),MAX($BU$8:BU138)+1,0) -> 131 | BV139: Double spin | BY139: =IFERROR(VLOOKUP(ROWS($BV$9:BV139),$BU$9:$BV$163,2,0),"") -> Double spin | CC139: =IF(ISNUMBER(SEARCH($B$17,CD139)),MAX($CC$8:CC138)+1,0) -> 131 | CD139: Double spin | CG139: =IFERROR(VLOOKUP(ROWS($CD$9:CD139),$CC$9:$CD$163,2,0),"") -> Double spin | CK139: =IF(ISNUMBER(SEARCH($B$18,CL139)),MAX($CK$8:CK138)+1,0) -> 131 | CL139: Double spin | CO139: =IFERROR(VLOOKUP(ROWS($CL$9:CL139),$CK$9:$CL$163,2,0),"") -> Double spin
Q140: =IF(ISNUMBER(SEARCH($B$9,R140)),MAX($Q$8:Q139)+1,0) -> 132 | R140: Full spin 1 leg extended, min 45 deg | U140: =IFERROR(VLOOKUP(ROWS($R$9:R140),$Q$9:$R$163,2,0),"") -> Full spin 1 leg extended, min 45 deg | Y140: =IF(ISNUMBER(SEARCH($B$10,Z140)),MAX($Y$8:Y139)+1,0) -> 132 | Z140: Full spin 1 leg extended, min 45 deg | AC140: =IFERROR(VLOOKUP(ROWS($Z$9:Z140),$Y$9:$Z$163,2,0),"") -> Full spin 1 leg extended, min 45 deg | AG140: =IF(ISNUMBER(SEARCH($B$11,AH140)),MAX($AG$8:AG139)+1,0) -> 132 | AH140: Full spin 1 leg extended, min 45 deg | AK140: =IFERROR(VLOOKUP(ROWS($AH$9:AH140),$AG$9:$AH$163,2,0),"") -> Full spin 1 leg extended, min 45 deg | AO140: =IF(ISNUMBER(SEARCH($B$12,AP140)),MAX($AO$8:AO139)+1,0) -> 132 | AP140: Full spin 1 leg extended, min 45 deg | AS140: =IFERROR(VLOOKUP(ROWS($AP$9:AP140),$AO$9:$AP$163,2,0),"") -> Full spin 1 leg extended, min 45 deg | AW140: =IF(ISNUMBER(SEARCH($B$13,AX140)),MAX($AW$8:AW139)+1,0) -> 132 | AX140: Full spin 1 leg extended, min 45 deg | BA140: =IFERROR(VLOOKUP(ROWS($AX$9:AX140),$AW$9:$AX$163,2,0),"") -> Full spin 1 leg extended, min 45 deg | BE140: =IF(ISNUMBER(SEARCH($B$14,BF140)),MAX($BE$8:BE139)+1,0) -> 132 | BF140: Full spin 1 leg extended, min 45 deg | BI140: =IFERROR(VLOOKUP(ROWS($BF$9:BF140),$BE$9:$BF$163,2,0),"") -> Full spin 1 leg extended, min 45 deg | BM140: =IF(ISNUMBER(SEARCH($B$15,BN140)),MAX($BM$8:BM139)+1,0) -> 132 | BN140: Full spin 1 leg extended, min 45 deg | BQ140: =IFERROR(VLOOKUP(ROWS($BN$9:BN140),$BM$9:$BN$163,2,0),"") -> Full spin 1 leg extended, min 45 deg | BU140: =IF(ISNUMBER(SEARCH($B$16,BV140)),MAX($BU$8:BU139)+1,0) -> 132 | BV140: Full spin 1 leg extended, min 45 deg | BY140: =IFERROR(VLOOKUP(ROWS($BV$9:BV140),$BU$9:$BV$163,2,0),"") -> Full spin 1 leg extended, min 45 deg | CC140: =IF(ISNUMBER(SEARCH($B$17,CD140)),MAX($CC$8:CC139)+1,0) -> 132 | CD140: Full spin 1 leg extended, min 45 deg | CG140: =IFERROR(VLOOKUP(ROWS($CD$9:CD140),$CC$9:$CD$163,2,0),"") -> Full spin 1 leg extended, min 45 deg | CK140: =IF(ISNUMBER(SEARCH($B$18,CL140)),MAX($CK$8:CK139)+1,0) -> 132 | CL140: Full spin 1 leg extended, min 45 deg | CO140: =IFERROR(VLOOKUP(ROWS($CL$9:CL140),$CK$9:$CL$163,2,0),"") -> Full spin 1 leg extended, min 45 deg
Q141: =IF(ISNUMBER(SEARCH($B$9,R141)),MAX($Q$8:Q140)+1,0) -> 133 | R141: From Splits position lift to H/stand | U141: =IFERROR(VLOOKUP(ROWS($R$9:R141),$Q$9:$R$163,2,0),"") -> From Splits position lift to H/stand | Y141: =IF(ISNUMBER(SEARCH($B$10,Z141)),MAX($Y$8:Y140)+1,0) -> 133 | Z141: From Splits position lift to H/stand | AC141: =IFERROR(VLOOKUP(ROWS($Z$9:Z141),$Y$9:$Z$163,2,0),"") -> From Splits position lift to H/stand | AG141: =IF(ISNUMBER(SEARCH($B$11,AH141)),MAX($AG$8:AG140)+1,0) -> 133 | AH141: From Splits position lift to H/stand | AK141: =IFERROR(VLOOKUP(ROWS($AH$9:AH141),$AG$9:$AH$163,2,0),"") -> From Splits position lift to H/stand | AO141: =IF(ISNUMBER(SEARCH($B$12,AP141)),MAX($AO$8:AO140)+1,0) -> 133 | AP141: From Splits position lift to H/stand | AS141: =IFERROR(VLOOKUP(ROWS($AP$9:AP141),$AO$9:$AP$163,2,0),"") -> From Splits position lift to H/stand | AW141: =IF(ISNUMBER(SEARCH($B$13,AX141)),MAX($AW$8:AW140)+1,0) -> 133 | AX141: From Splits position lift to H/stand | BA141: =IFERROR(VLOOKUP(ROWS($AX$9:AX141),$AW$9:$AX$163,2,0),"") -> From Splits position lift to H/stand | BE141: =IF(ISNUMBER(SEARCH($B$14,BF141)),MAX($BE$8:BE140)+1,0) -> 133 | BF141: From Splits position lift to H/stand | BI141: =IFERROR(VLOOKUP(ROWS($BF$9:BF141),$BE$9:$BF$163,2,0),"") -> From Splits position lift to H/stand | BM141: =IF(ISNUMBER(SEARCH($B$15,BN141)),MAX($BM$8:BM140)+1,0) -> 133 | BN141: From Splits position lift to H/stand | BQ141: =IFERROR(VLOOKUP(ROWS($BN$9:BN141),$BM$9:$BN$163,2,0),"") -> From Splits position lift to H/stand | BU141: =IF(ISNUMBER(SEARCH($B$16,BV141)),MAX($BU$8:BU140)+1,0) -> 133 | BV141: From Splits position lift to H/stand | BY141: =IFERROR(VLOOKUP(ROWS($BV$9:BV141),$BU$9:$BV$163,2,0),"") -> From Splits position lift to H/stand | CC141: =IF(ISNUMBER(SEARCH($B$17,CD141)),MAX($CC$8:CC140)+1,0) -> 133 | CD141: From Splits position lift to H/stand | CG141: =IFERROR(VLOOKUP(ROWS($CD$9:CD141),$CC$9:$CD$163,2,0),"") -> From Splits position lift to H/stand | CK141: =IF(ISNUMBER(SEARCH($B$18,CL141)),MAX($CK$8:CK140)+1,0) -> 133 | CL141: From Splits position lift to H/stand | CO141: =IFERROR(VLOOKUP(ROWS($CL$9:CL141),$CK$9:$CL$163,2,0),"") -> From Splits position lift to H/stand
Q142: =IF(ISNUMBER(SEARCH($B$9,R142)),MAX($Q$8:Q141)+1,0) -> 134 | R142: Full V ‘Russian’ lever | U142: =IFERROR(VLOOKUP(ROWS($R$9:R142),$Q$9:$R$163,2,0),"") -> Full V ‘Russian’ lever | Y142: =IF(ISNUMBER(SEARCH($B$10,Z142)),MAX($Y$8:Y141)+1,0) -> 134 | Z142: Full V ‘Russian’ lever | AC142: =IFERROR(VLOOKUP(ROWS($Z$9:Z142),$Y$9:$Z$163,2,0),"") -> Full V ‘Russian’ lever | AG142: =IF(ISNUMBER(SEARCH($B$11,AH142)),MAX($AG$8:AG141)+1,0) -> 134 | AH142: Full V ‘Russian’ lever | AK142: =IFERROR(VLOOKUP(ROWS($AH$9:AH142),$AG$9:$AH$163,2,0),"") -> Full V ‘Russian’ lever | AO142: =IF(ISNUMBER(SEARCH($B$12,AP142)),MAX($AO$8:AO141)+1,0) -> 134 | AP142: Full V ‘Russian’ lever | AS142: =IFERROR(VLOOKUP(ROWS($AP$9:AP142),$AO$9:$AP$163,2,0),"") -> Full V ‘Russian’ lever | AW142: =IF(ISNUMBER(SEARCH($B$13,AX142)),MAX($AW$8:AW141)+1,0) -> 134 | AX142: Full V ‘Russian’ lever | BA142: =IFERROR(VLOOKUP(ROWS($AX$9:AX142),$AW$9:$AX$163,2,0),"") -> Full V ‘Russian’ lever | BE142: =IF(ISNUMBER(SEARCH($B$14,BF142)),MAX($BE$8:BE141)+1,0) -> 134 | BF142: Full V ‘Russian’ lever | BI142: =IFERROR(VLOOKUP(ROWS($BF$9:BF142),$BE$9:$BF$163,2,0),"") -> Full V ‘Russian’ lever | BM142: =IF(ISNUMBER(SEARCH($B$15,BN142)),MAX($BM$8:BM141)+1,0) -> 134 | BN142: Full V ‘Russian’ lever | BQ142: =IFERROR(VLOOKUP(ROWS($BN$9:BN142),$BM$9:$BN$163,2,0),"") -> Full V ‘Russian’ lever | BU142: =IF(ISNUMBER(SEARCH($B$16,BV142)),MAX($BU$8:BU141)+1,0) -> 134 | BV142: Full V ‘Russian’ lever | BY142: =IFERROR(VLOOKUP(ROWS($BV$9:BV142),$BU$9:$BV$163,2,0),"") -> Full V ‘Russian’ lever | CC142: =IF(ISNUMBER(SEARCH($B$17,CD142)),MAX($CC$8:CC141)+1,0) -> 134 | CD142: Full V ‘Russian’ lever | CG142: =IFERROR(VLOOKUP(ROWS($CD$9:CD142),$CC$9:$CD$163,2,0),"") -> Full V ‘Russian’ lever | CK142: =IF(ISNUMBER(SEARCH($B$18,CL142)),MAX($CK$8:CK141)+1,0) -> 134 | CL142: Full V ‘Russian’ lever | CO142: =IFERROR(VLOOKUP(ROWS($CL$9:CL142),$CK$9:$CL$163,2,0),"") -> Full V ‘Russian’ lever
Q143: =IF(ISNUMBER(SEARCH($B$9,R143)),MAX($Q$8:Q142)+1,0) -> 135 | R143: Tucked top planchě (held) | U143: =IFERROR(VLOOKUP(ROWS($R$9:R143),$Q$9:$R$163,2,0),"") -> Tucked top planchě (held) | Y143: =IF(ISNUMBER(SEARCH($B$10,Z143)),MAX($Y$8:Y142)+1,0) -> 135 | Z143: Tucked top planchě (held) | AC143: =IFERROR(VLOOKUP(ROWS($Z$9:Z143),$Y$9:$Z$163,2,0),"") -> Tucked top planchě (held) | AG143: =IF(ISNUMBER(SEARCH($B$11,AH143)),MAX($AG$8:AG142)+1,0) -> 135 | AH143: Tucked top planchě (held) | AK143: =IFERROR(VLOOKUP(ROWS($AH$9:AH143),$AG$9:$AH$163,2,0),"") -> Tucked top planchě (held) | AO143: =IF(ISNUMBER(SEARCH($B$12,AP143)),MAX($AO$8:AO142)+1,0) -> 135 | AP143: Tucked top planchě (held) | AS143: =IFERROR(VLOOKUP(ROWS($AP$9:AP143),$AO$9:$AP$163,2,0),"") -> Tucked top planchě (held) | AW143: =IF(ISNUMBER(SEARCH($B$13,AX143)),MAX($AW$8:AW142)+1,0) -> 135 | AX143: Tucked top planchě (held) | BA143: =IFERROR(VLOOKUP(ROWS($AX$9:AX143),$AW$9:$AX$163,2,0),"") -> Tucked top planchě (held) | BE143: =IF(ISNUMBER(SEARCH($B$14,BF143)),MAX($BE$8:BE142)+1,0) -> 135 | BF143: Tucked top planchě (held) | BI143: =IFERROR(VLOOKUP(ROWS($BF$9:BF143),$BE$9:$BF$163,2,0),"") -> Tucked top planchě (held) | BM143: =IF(ISNUMBER(SEARCH($B$15,BN143)),MAX($BM$8:BM142)+1,0) -> 135 | BN143: Tucked top planchě (held) | BQ143: =IFERROR(VLOOKUP(ROWS($BN$9:BN143),$BM$9:$BN$163,2,0),"") -> Tucked top planchě (held) | BU143: =IF(ISNUMBER(SEARCH($B$16,BV143)),MAX($BU$8:BU142)+1,0) -> 135 | BV143: Tucked top planchě (held) | BY143: =IFERROR(VLOOKUP(ROWS($BV$9:BV143),$BU$9:$BV$163,2,0),"") -> Tucked top planchě (held) | CC143: =IF(ISNUMBER(SEARCH($B$17,CD143)),MAX($CC$8:CC142)+1,0) -> 135 | CD143: Tucked top planchě (held) | CG143: =IFERROR(VLOOKUP(ROWS($CD$9:CD143),$CC$9:$CD$163,2,0),"") -> Tucked top planchě (held) | CK143: =IF(ISNUMBER(SEARCH($B$18,CL143)),MAX($CK$8:CK142)+1,0) -> 135 | CL143: Tucked top planchě (held) | CO143: =IFERROR(VLOOKUP(ROWS($CL$9:CL143),$CK$9:$CL$163,2,0),"") -> Tucked top planchě (held)
Q144: =IF(ISNUMBER(SEARCH($B$9,R144)),MAX($Q$8:Q143)+1,0) -> 136 | R144: Straddle lever to handstand | U144: =IFERROR(VLOOKUP(ROWS($R$9:R144),$Q$9:$R$163,2,0),"") -> Straddle lever to handstand | Y144: =IF(ISNUMBER(SEARCH($B$10,Z144)),MAX($Y$8:Y143)+1,0) -> 136 | Z144: Straddle lever to handstand | AC144: =IFERROR(VLOOKUP(ROWS($Z$9:Z144),$Y$9:$Z$163,2,0),"") -> Straddle lever to handstand | AG144: =IF(ISNUMBER(SEARCH($B$11,AH144)),MAX($AG$8:AG143)+1,0) -> 136 | AH144: Straddle lever to handstand | AK144: =IFERROR(VLOOKUP(ROWS($AH$9:AH144),$AG$9:$AH$163,2,0),"") -> Straddle lever to handstand | AO144: =IF(ISNUMBER(SEARCH($B$12,AP144)),MAX($AO$8:AO143)+1,0) -> 136 | AP144: Straddle lever to handstand | AS144: =IFERROR(VLOOKUP(ROWS($AP$9:AP144),$AO$9:$AP$163,2,0),"") -> Straddle lever to handstand | AW144: =IF(ISNUMBER(SEARCH($B$13,AX144)),MAX($AW$8:AW143)+1,0) -> 136 | AX144: Straddle lever to handstand | BA144: =IFERROR(VLOOKUP(ROWS($AX$9:AX144),$AW$9:$AX$163,2,0),"") -> Straddle lever to handstand | BE144: =IF(ISNUMBER(SEARCH($B$14,BF144)),MAX($BE$8:BE143)+1,0) -> 136 | BF144: Straddle lever to handstand | BI144: =IFERROR(VLOOKUP(ROWS($BF$9:BF144),$BE$9:$BF$163,2,0),"") -> Straddle lever to handstand | BM144: =IF(ISNUMBER(SEARCH($B$15,BN144)),MAX($BM$8:BM143)+1,0) -> 136 | BN144: Straddle lever to handstand | BQ144: =IFERROR(VLOOKUP(ROWS($BN$9:BN144),$BM$9:$BN$163,2,0),"") -> Straddle lever to handstand | BU144: =IF(ISNUMBER(SEARCH($B$16,BV144)),MAX($BU$8:BU143)+1,0) -> 136 | BV144: Straddle lever to handstand | BY144: =IFERROR(VLOOKUP(ROWS($BV$9:BV144),$BU$9:$BV$163,2,0),"") -> Straddle lever to handstand | CC144: =IF(ISNUMBER(SEARCH($B$17,CD144)),MAX($CC$8:CC143)+1,0) -> 136 | CD144: Straddle lever to handstand | CG144: =IFERROR(VLOOKUP(ROWS($CD$9:CD144),$CC$9:$CD$163,2,0),"") -> Straddle lever to handstand | CK144: =IF(ISNUMBER(SEARCH($B$18,CL144)),MAX($CK$8:CK143)+1,0) -> 136 | CL144: Straddle lever to handstand | CO144: =IFERROR(VLOOKUP(ROWS($CL$9:CL144),$CK$9:$CL$163,2,0),"") -> Straddle lever to handstand
Q145: =IF(ISNUMBER(SEARCH($B$9,R145)),MAX($Q$8:Q144)+1,0) -> 137 | R145: Straddle lever to h/stand full turn | U145: =IFERROR(VLOOKUP(ROWS($R$9:R145),$Q$9:$R$163,2,0),"") -> Straddle lever to h/stand full turn | Y145: =IF(ISNUMBER(SEARCH($B$10,Z145)),MAX($Y$8:Y144)+1,0) -> 137 | Z145: Straddle lever to h/stand full turn | AC145: =IFERROR(VLOOKUP(ROWS($Z$9:Z145),$Y$9:$Z$163,2,0),"") -> Straddle lever to h/stand full turn | AG145: =IF(ISNUMBER(SEARCH($B$11,AH145)),MAX($AG$8:AG144)+1,0) -> 137 | AH145: Straddle lever to h/stand full turn | AK145: =IFERROR(VLOOKUP(ROWS($AH$9:AH145),$AG$9:$AH$163,2,0),"") -> Straddle lever to h/stand full turn | AO145: =IF(ISNUMBER(SEARCH($B$12,AP145)),MAX($AO$8:AO144)+1,0) -> 137 | AP145: Straddle lever to h/stand full turn | AS145: =IFERROR(VLOOKUP(ROWS($AP$9:AP145),$AO$9:$AP$163,2,0),"") -> Straddle lever to h/stand full turn | AW145: =IF(ISNUMBER(SEARCH($B$13,AX145)),MAX($AW$8:AW144)+1,0) -> 137 | AX145: Straddle lever to h/stand full turn | BA145: =IFERROR(VLOOKUP(ROWS($AX$9:AX145),$AW$9:$AX$163,2,0),"") -> Straddle lever to h/stand full turn | BE145: =IF(ISNUMBER(SEARCH($B$14,BF145)),MAX($BE$8:BE144)+1,0) -> 137 | BF145: Straddle lever to h/stand full turn | BI145: =IFERROR(VLOOKUP(ROWS($BF$9:BF145),$BE$9:$BF$163,2,0),"") -> Straddle lever to h/stand full turn | BM145: =IF(ISNUMBER(SEARCH($B$15,BN145)),MAX($BM$8:BM144)+1,0) -> 137 | BN145: Straddle lever to h/stand full turn | BQ145: =IFERROR(VLOOKUP(ROWS($BN$9:BN145),$BM$9:$BN$163,2,0),"") -> Straddle lever to h/stand full turn | BU145: =IF(ISNUMBER(SEARCH($B$16,BV145)),MAX($BU$8:BU144)+1,0) -> 137 | BV145: Straddle lever to h/stand full turn | BY145: =IFERROR(VLOOKUP(ROWS($BV$9:BV145),$BU$9:$BV$163,2,0),"") -> Straddle lever to h/stand full turn | CC145: =IF(ISNUMBER(SEARCH($B$17,CD145)),MAX($CC$8:CC144)+1,0) -> 137 | CD145: Straddle lever to h/stand full turn | CG145: =IFERROR(VLOOKUP(ROWS($CD$9:CD145),$CC$9:$CD$163,2,0),"") -> Straddle lever to h/stand full turn | CK145: =IF(ISNUMBER(SEARCH($B$18,CL145)),MAX($CK$8:CK144)+1,0) -> 137 | CL145: Straddle lever to h/stand full turn | CO145: =IFERROR(VLOOKUP(ROWS($CL$9:CL145),$CK$9:$CL$163,2,0),"") -> Straddle lever to h/stand full turn
Q146: =IF(ISNUMBER(SEARCH($B$9,R146)),MAX($Q$8:Q145)+1,0) -> 138 | R146: Chest Roll to Handstand | U146: =IFERROR(VLOOKUP(ROWS($R$9:R146),$Q$9:$R$163,2,0),"") -> Chest Roll to Handstand | Y146: =IF(ISNUMBER(SEARCH($B$10,Z146)),MAX($Y$8:Y145)+1,0) -> 138 | Z146: Chest Roll to Handstand | AC146: =IFERROR(VLOOKUP(ROWS($Z$9:Z146),$Y$9:$Z$163,2,0),"") -> Chest Roll to Handstand | AG146: =IF(ISNUMBER(SEARCH($B$11,AH146)),MAX($AG$8:AG145)+1,0) -> 138 | AH146: Chest Roll to Handstand | AK146: =IFERROR(VLOOKUP(ROWS($AH$9:AH146),$AG$9:$AH$163,2,0),"") -> Chest Roll to Handstand | AO146: =IF(ISNUMBER(SEARCH($B$12,AP146)),MAX($AO$8:AO145)+1,0) -> 138 | AP146: Chest Roll to Handstand | AS146: =IFERROR(VLOOKUP(ROWS($AP$9:AP146),$AO$9:$AP$163,2,0),"") -> Chest Roll to Handstand | AW146: =IF(ISNUMBER(SEARCH($B$13,AX146)),MAX($AW$8:AW145)+1,0) -> 138 | AX146: Chest Roll to Handstand | BA146: =IFERROR(VLOOKUP(ROWS($AX$9:AX146),$AW$9:$AX$163,2,0),"") -> Chest Roll to Handstand | BE146: =IF(ISNUMBER(SEARCH($B$14,BF146)),MAX($BE$8:BE145)+1,0) -> 138 | BF146: Chest Roll to Handstand | BI146: =IFERROR(VLOOKUP(ROWS($BF$9:BF146),$BE$9:$BF$163,2,0),"") -> Chest Roll to Handstand | BM146: =IF(ISNUMBER(SEARCH($B$15,BN146)),MAX($BM$8:BM145)+1,0) -> 138 | BN146: Chest Roll to Handstand | BQ146: =IFERROR(VLOOKUP(ROWS($BN$9:BN146),$BM$9:$BN$163,2,0),"") -> Chest Roll to Handstand | BU146: =IF(ISNUMBER(SEARCH($B$16,BV146)),MAX($BU$8:BU145)+1,0) -> 138 | BV146: Chest Roll to Handstand | BY146: =IFERROR(VLOOKUP(ROWS($BV$9:BV146),$BU$9:$BV$163,2,0),"") -> Chest Roll to Handstand | CC146: =IF(ISNUMBER(SEARCH($B$17,CD146)),MAX($CC$8:CC145)+1,0) -> 138 | CD146: Chest Roll to Handstand | CG146: =IFERROR(VLOOKUP(ROWS($CD$9:CD146),$CC$9:$CD$163,2,0),"") -> Chest Roll to Handstand | CK146: =IF(ISNUMBER(SEARCH($B$18,CL146)),MAX($CK$8:CK145)+1,0) -> 138 | CL146: Chest Roll to Handstand | CO146: =IFERROR(VLOOKUP(ROWS($CL$9:CL146),$CK$9:$CL$163,2,0),"") -> Chest Roll to Handstand
Q147: =IF(ISNUMBER(SEARCH($B$9,R147)),MAX($Q$8:Q146)+1,0) -> 139 | R147: B Roll to h/stand, 1/2 or full turn | U147: =IFERROR(VLOOKUP(ROWS($R$9:R147),$Q$9:$R$163,2,0),"") -> B Roll to h/stand, 1/2 or full turn | Y147: =IF(ISNUMBER(SEARCH($B$10,Z147)),MAX($Y$8:Y146)+1,0) -> 139 | Z147: B Roll to h/stand, 1/2 or full turn | AC147: =IFERROR(VLOOKUP(ROWS($Z$9:Z147),$Y$9:$Z$163,2,0),"") -> B Roll to h/stand, 1/2 or full turn | AG147: =IF(ISNUMBER(SEARCH($B$11,AH147)),MAX($AG$8:AG146)+1,0) -> 139 | AH147: B Roll to h/stand, 1/2 or full turn | AK147: =IFERROR(VLOOKUP(ROWS($AH$9:AH147),$AG$9:$AH$163,2,0),"") -> B Roll to h/stand, 1/2 or full turn | AO147: =IF(ISNUMBER(SEARCH($B$12,AP147)),MAX($AO$8:AO146)+1,0) -> 139 | AP147: B Roll to h/stand, 1/2 or full turn | AS147: =IFERROR(VLOOKUP(ROWS($AP$9:AP147),$AO$9:$AP$163,2,0),"") -> B Roll to h/stand, 1/2 or full turn | AW147: =IF(ISNUMBER(SEARCH($B$13,AX147)),MAX($AW$8:AW146)+1,0) -> 139 | AX147: B Roll to h/stand, 1/2 or full turn | BA147: =IFERROR(VLOOKUP(ROWS($AX$9:AX147),$AW$9:$AX$163,2,0),"") -> B Roll to h/stand, 1/2 or full turn | BE147: =IF(ISNUMBER(SEARCH($B$14,BF147)),MAX($BE$8:BE146)+1,0) -> 139 | BF147: B Roll to h/stand, 1/2 or full turn | BI147: =IFERROR(VLOOKUP(ROWS($BF$9:BF147),$BE$9:$BF$163,2,0),"") -> B Roll to h/stand, 1/2 or full turn | BM147: =IF(ISNUMBER(SEARCH($B$15,BN147)),MAX($BM$8:BM146)+1,0) -> 139 | BN147: B Roll to h/stand, 1/2 or full turn | BQ147: =IFERROR(VLOOKUP(ROWS($BN$9:BN147),$BM$9:$BN$163,2,0),"") -> B Roll to h/stand, 1/2 or full turn | BU147: =IF(ISNUMBER(SEARCH($B$16,BV147)),MAX($BU$8:BU146)+1,0) -> 139 | BV147: B Roll to h/stand, 1/2 or full turn | BY147: =IFERROR(VLOOKUP(ROWS($BV$9:BV147),$BU$9:$BV$163,2,0),"") -> B Roll to h/stand, 1/2 or full turn | CC147: =IF(ISNUMBER(SEARCH($B$17,CD147)),MAX($CC$8:CC146)+1,0) -> 139 | CD147: B Roll to h/stand, 1/2 or full turn | CG147: =IFERROR(VLOOKUP(ROWS($CD$9:CD147),$CC$9:$CD$163,2,0),"") -> B Roll to h/stand, 1/2 or full turn | CK147: =IF(ISNUMBER(SEARCH($B$18,CL147)),MAX($CK$8:CK146)+1,0) -> 139 | CL147: B Roll to h/stand, 1/2 or full turn | CO147: =IFERROR(VLOOKUP(ROWS($CL$9:CL147),$CK$9:$CL$163,2,0),"") -> B Roll to h/stand, 1/2 or full turn
Q148: =IF(ISNUMBER(SEARCH($B$9,R148)),MAX($Q$8:Q147)+1,0) -> 140 | R148: Handstand double pirouette | U148: =IFERROR(VLOOKUP(ROWS($R$9:R148),$Q$9:$R$163,2,0),"") -> Handstand double pirouette | Y148: =IF(ISNUMBER(SEARCH($B$10,Z148)),MAX($Y$8:Y147)+1,0) -> 140 | Z148: Handstand double pirouette | AC148: =IFERROR(VLOOKUP(ROWS($Z$9:Z148),$Y$9:$Z$163,2,0),"") -> Handstand double pirouette | AG148: =IF(ISNUMBER(SEARCH($B$11,AH148)),MAX($AG$8:AG147)+1,0) -> 140 | AH148: Handstand double pirouette | AK148: =IFERROR(VLOOKUP(ROWS($AH$9:AH148),$AG$9:$AH$163,2,0),"") -> Handstand double pirouette | AO148: =IF(ISNUMBER(SEARCH($B$12,AP148)),MAX($AO$8:AO147)+1,0) -> 140 | AP148: Handstand double pirouette | AS148: =IFERROR(VLOOKUP(ROWS($AP$9:AP148),$AO$9:$AP$163,2,0),"") -> Handstand double pirouette | AW148: =IF(ISNUMBER(SEARCH($B$13,AX148)),MAX($AW$8:AW147)+1,0) -> 140 | AX148: Handstand double pirouette | BA148: =IFERROR(VLOOKUP(ROWS($AX$9:AX148),$AW$9:$AX$163,2,0),"") -> Handstand double pirouette | BE148: =IF(ISNUMBER(SEARCH($B$14,BF148)),MAX($BE$8:BE147)+1,0) -> 140 | BF148: Handstand double pirouette | BI148: =IFERROR(VLOOKUP(ROWS($BF$9:BF148),$BE$9:$BF$163,2,0),"") -> Handstand double pirouette | BM148: =IF(ISNUMBER(SEARCH($B$15,BN148)),MAX($BM$8:BM147)+1,0) -> 140 | BN148: Handstand double pirouette | BQ148: =IFERROR(VLOOKUP(ROWS($BN$9:BN148),$BM$9:$BN$163,2,0),"") -> Handstand double pirouette | BU148: =IF(ISNUMBER(SEARCH($B$16,BV148)),MAX($BU$8:BU147)+1,0) -> 140 | BV148: Handstand double pirouette | BY148: =IFERROR(VLOOKUP(ROWS($BV$9:BV148),$BU$9:$BV$163,2,0),"") -> Handstand double pirouette | CC148: =IF(ISNUMBER(SEARCH($B$17,CD148)),MAX($CC$8:CC147)+1,0) -> 140 | CD148: Handstand double pirouette | CG148: =IFERROR(VLOOKUP(ROWS($CD$9:CD148),$CC$9:$CD$163,2,0),"") -> Handstand double pirouette | CK148: =IF(ISNUMBER(SEARCH($B$18,CL148)),MAX($CK$8:CK147)+1,0) -> 140 | CL148: Handstand double pirouette | CO148: =IFERROR(VLOOKUP(ROWS($CL$9:CL148),$CK$9:$CL$163,2,0),"") -> Handstand double pirouette
Q149: =IF(ISNUMBER(SEARCH($B$9,R149)),MAX($Q$8:Q148)+1,0) -> 141 | R149: Double Leg Circle | U149: =IFERROR(VLOOKUP(ROWS($R$9:R149),$Q$9:$R$163,2,0),"") -> Double Leg Circle | Y149: =IF(ISNUMBER(SEARCH($B$10,Z149)),MAX($Y$8:Y148)+1,0) -> 141 | Z149: Double Leg Circle | AC149: =IFERROR(VLOOKUP(ROWS($Z$9:Z149),$Y$9:$Z$163,2,0),"") -> Double Leg Circle | AG149: =IF(ISNUMBER(SEARCH($B$11,AH149)),MAX($AG$8:AG148)+1,0) -> 141 | AH149: Double Leg Circle | AK149: =IFERROR(VLOOKUP(ROWS($AH$9:AH149),$AG$9:$AH$163,2,0),"") -> Double Leg Circle | AO149: =IF(ISNUMBER(SEARCH($B$12,AP149)),MAX($AO$8:AO148)+1,0) -> 141 | AP149: Double Leg Circle | AS149: =IFERROR(VLOOKUP(ROWS($AP$9:AP149),$AO$9:$AP$163,2,0),"") -> Double Leg Circle | AW149: =IF(ISNUMBER(SEARCH($B$13,AX149)),MAX($AW$8:AW148)+1,0) -> 141 | AX149: Double Leg Circle | BA149: =IFERROR(VLOOKUP(ROWS($AX$9:AX149),$AW$9:$AX$163,2,0),"") -> Double Leg Circle | BE149: =IF(ISNUMBER(SEARCH($B$14,BF149)),MAX($BE$8:BE148)+1,0) -> 141 | BF149: Double Leg Circle | BI149: =IFERROR(VLOOKUP(ROWS($BF$9:BF149),$BE$9:$BF$163,2,0),"") -> Double Leg Circle | BM149: =IF(ISNUMBER(SEARCH($B$15,BN149)),MAX($BM$8:BM148)+1,0) -> 141 | BN149: Double Leg Circle | BQ149: =IFERROR(VLOOKUP(ROWS($BN$9:BN149),$BM$9:$BN$163,2,0),"") -> Double Leg Circle | BU149: =IF(ISNUMBER(SEARCH($B$16,BV149)),MAX($BU$8:BU148)+1,0) -> 141 | BV149: Double Leg Circle | BY149: =IFERROR(VLOOKUP(ROWS($BV$9:BV149),$BU$9:$BV$163,2,0),"") -> Double Leg Circle | CC149: =IF(ISNUMBER(SEARCH($B$17,CD149)),MAX($CC$8:CC148)+1,0) -> 141 | CD149: Double Leg Circle | CG149: =IFERROR(VLOOKUP(ROWS($CD$9:CD149),$CC$9:$CD$163,2,0),"") -> Double Leg Circle | CK149: =IF(ISNUMBER(SEARCH($B$18,CL149)),MAX($CK$8:CK148)+1,0) -> 141 | CL149: Double Leg Circle | CO149: =IFERROR(VLOOKUP(ROWS($CL$9:CL149),$CK$9:$CL$163,2,0),"") -> Double Leg Circle
Q150: =IF(ISNUMBER(SEARCH($B$9,R150)),MAX($Q$8:Q149)+1,0) -> 142 | R150: Valdez | U150: =IFERROR(VLOOKUP(ROWS($R$9:R150),$Q$9:$R$163,2,0),"") -> Valdez | Y150: =IF(ISNUMBER(SEARCH($B$10,Z150)),MAX($Y$8:Y149)+1,0) -> 142 | Z150: Valdez | AC150: =IFERROR(VLOOKUP(ROWS($Z$9:Z150),$Y$9:$Z$163,2,0),"") -> Valdez | AG150: =IF(ISNUMBER(SEARCH($B$11,AH150)),MAX($AG$8:AG149)+1,0) -> 142 | AH150: Valdez | AK150: =IFERROR(VLOOKUP(ROWS($AH$9:AH150),$AG$9:$AH$163,2,0),"") -> Valdez | AO150: =IF(ISNUMBER(SEARCH($B$12,AP150)),MAX($AO$8:AO149)+1,0) -> 142 | AP150: Valdez | AS150: =IFERROR(VLOOKUP(ROWS($AP$9:AP150),$AO$9:$AP$163,2,0),"") -> Valdez | AW150: =IF(ISNUMBER(SEARCH($B$13,AX150)),MAX($AW$8:AW149)+1,0) -> 142 | AX150: Valdez | BA150: =IFERROR(VLOOKUP(ROWS($AX$9:AX150),$AW$9:$AX$163,2,0),"") -> Valdez | BE150: =IF(ISNUMBER(SEARCH($B$14,BF150)),MAX($BE$8:BE149)+1,0) -> 142 | BF150: Valdez | BI150: =IFERROR(VLOOKUP(ROWS($BF$9:BF150),$BE$9:$BF$163,2,0),"") -> Valdez | BM150: =IF(ISNUMBER(SEARCH($B$15,BN150)),MAX($BM$8:BM149)+1,0) -> 142 | BN150: Valdez | BQ150: =IFERROR(VLOOKUP(ROWS($BN$9:BN150),$BM$9:$BN$163,2,0),"") -> Valdez | BU150: =IF(ISNUMBER(SEARCH($B$16,BV150)),MAX($BU$8:BU149)+1,0) -> 142 | BV150: Valdez | BY150: =IFERROR(VLOOKUP(ROWS($BV$9:BV150),$BU$9:$BV$163,2,0),"") -> Valdez | CC150: =IF(ISNUMBER(SEARCH($B$17,CD150)),MAX($CC$8:CC149)+1,0) -> 142 | CD150: Valdez | CG150: =IFERROR(VLOOKUP(ROWS($CD$9:CD150),$CC$9:$CD$163,2,0),"") -> Valdez | CK150: =IF(ISNUMBER(SEARCH($B$18,CL150)),MAX($CK$8:CK149)+1,0) -> 142 | CL150: Valdez | CO150: =IFERROR(VLOOKUP(ROWS($CL$9:CL150),$CK$9:$CL$163,2,0),"") -> Valdez
Q151: =IF(ISNUMBER(SEARCH($B$9,R151)),MAX($Q$8:Q150)+1,0) -> 143 | R151: Flyspring Front Salto | U151: =IFERROR(VLOOKUP(ROWS($R$9:R151),$Q$9:$R$163,2,0),"") -> Flyspring Front Salto | Y151: =IF(ISNUMBER(SEARCH($B$10,Z151)),MAX($Y$8:Y150)+1,0) -> 143 | Z151: Flyspring Front Salto | AC151: =IFERROR(VLOOKUP(ROWS($Z$9:Z151),$Y$9:$Z$163,2,0),"") -> Flyspring Front Salto | AG151: =IF(ISNUMBER(SEARCH($B$11,AH151)),MAX($AG$8:AG150)+1,0) -> 143 | AH151: Flyspring Front Salto | AK151: =IFERROR(VLOOKUP(ROWS($AH$9:AH151),$AG$9:$AH$163,2,0),"") -> Flyspring Front Salto | AO151: =IF(ISNUMBER(SEARCH($B$12,AP151)),MAX($AO$8:AO150)+1,0) -> 143 | AP151: Flyspring Front Salto | AS151: =IFERROR(VLOOKUP(ROWS($AP$9:AP151),$AO$9:$AP$163,2,0),"") -> Flyspring Front Salto | AW151: =IF(ISNUMBER(SEARCH($B$13,AX151)),MAX($AW$8:AW150)+1,0) -> 143 | AX151: Flyspring Front Salto | BA151: =IFERROR(VLOOKUP(ROWS($AX$9:AX151),$AW$9:$AX$163,2,0),"") -> Flyspring Front Salto | BE151: =IF(ISNUMBER(SEARCH($B$14,BF151)),MAX($BE$8:BE150)+1,0) -> 143 | BF151: Flyspring Front Salto | BI151: =IFERROR(VLOOKUP(ROWS($BF$9:BF151),$BE$9:$BF$163,2,0),"") -> Flyspring Front Salto | BM151: =IF(ISNUMBER(SEARCH($B$15,BN151)),MAX($BM$8:BM150)+1,0) -> 143 | BN151: Flyspring Front Salto | BQ151: =IFERROR(VLOOKUP(ROWS($BN$9:BN151),$BM$9:$BN$163,2,0),"") -> Flyspring Front Salto | BU151: =IF(ISNUMBER(SEARCH($B$16,BV151)),MAX($BU$8:BU150)+1,0) -> 143 | BV151: Flyspring Front Salto | BY151: =IFERROR(VLOOKUP(ROWS($BV$9:BV151),$BU$9:$BV$163,2,0),"") -> Flyspring Front Salto | CC151: =IF(ISNUMBER(SEARCH($B$17,CD151)),MAX($CC$8:CC150)+1,0) -> 143 | CD151: Flyspring Front Salto | CG151: =IFERROR(VLOOKUP(ROWS($CD$9:CD151),$CC$9:$CD$163,2,0),"") -> Flyspring Front Salto | CK151: =IF(ISNUMBER(SEARCH($B$18,CL151)),MAX($CK$8:CK150)+1,0) -> 143 | CL151: Flyspring Front Salto | CO151: =IFERROR(VLOOKUP(ROWS($CL$9:CL151),$CK$9:$CL$163,2,0),"") -> Flyspring Front Salto
Q152: =IF(ISNUMBER(SEARCH($B$9,R152)),MAX($Q$8:Q151)+1,0) -> 144 | R152: Free Forward Walkover | U152: =IFERROR(VLOOKUP(ROWS($R$9:R152),$Q$9:$R$163,2,0),"") -> Free Forward Walkover | Y152: =IF(ISNUMBER(SEARCH($B$10,Z152)),MAX($Y$8:Y151)+1,0) -> 144 | Z152: Free Forward Walkover | AC152: =IFERROR(VLOOKUP(ROWS($Z$9:Z152),$Y$9:$Z$163,2,0),"") -> Free Forward Walkover | AG152: =IF(ISNUMBER(SEARCH($B$11,AH152)),MAX($AG$8:AG151)+1,0) -> 144 | AH152: Free Forward Walkover | AK152: =IFERROR(VLOOKUP(ROWS($AH$9:AH152),$AG$9:$AH$163,2,0),"") -> Free Forward Walkover | AO152: =IF(ISNUMBER(SEARCH($B$12,AP152)),MAX($AO$8:AO151)+1,0) -> 144 | AP152: Free Forward Walkover | AS152: =IFERROR(VLOOKUP(ROWS($AP$9:AP152),$AO$9:$AP$163,2,0),"") -> Free Forward Walkover | AW152: =IF(ISNUMBER(SEARCH($B$13,AX152)),MAX($AW$8:AW151)+1,0) -> 144 | AX152: Free Forward Walkover | BA152: =IFERROR(VLOOKUP(ROWS($AX$9:AX152),$AW$9:$AX$163,2,0),"") -> Free Forward Walkover | BE152: =IF(ISNUMBER(SEARCH($B$14,BF152)),MAX($BE$8:BE151)+1,0) -> 144 | BF152: Free Forward Walkover | BI152: =IFERROR(VLOOKUP(ROWS($BF$9:BF152),$BE$9:$BF$163,2,0),"") -> Free Forward Walkover | BM152: =IF(ISNUMBER(SEARCH($B$15,BN152)),MAX($BM$8:BM151)+1,0) -> 144 | BN152: Free Forward Walkover | BQ152: =IFERROR(VLOOKUP(ROWS($BN$9:BN152),$BM$9:$BN$163,2,0),"") -> Free Forward Walkover | BU152: =IF(ISNUMBER(SEARCH($B$16,BV152)),MAX($BU$8:BU151)+1,0) -> 144 | BV152: Free Forward Walkover | BY152: =IFERROR(VLOOKUP(ROWS($BV$9:BV152),$BU$9:$BV$163,2,0),"") -> Free Forward Walkover | CC152: =IF(ISNUMBER(SEARCH($B$17,CD152)),MAX($CC$8:CC151)+1,0) -> 144 | CD152: Free Forward Walkover | CG152: =IFERROR(VLOOKUP(ROWS($CD$9:CD152),$CC$9:$CD$163,2,0),"") -> Free Forward Walkover | CK152: =IF(ISNUMBER(SEARCH($B$18,CL152)),MAX($CK$8:CK151)+1,0) -> 144 | CL152: Free Forward Walkover | CO152: =IFERROR(VLOOKUP(ROWS($CL$9:CL152),$CK$9:$CL$163,2,0),"") -> Free Forward Walkover
Q153: =IF(ISNUMBER(SEARCH($B$9,R153)),MAX($Q$8:Q152)+1,0) -> 145 | R153: Dive Forward Roll (with flight) | U153: =IFERROR(VLOOKUP(ROWS($R$9:R153),$Q$9:$R$163,2,0),"") -> Dive Forward Roll (with flight) | Y153: =IF(ISNUMBER(SEARCH($B$10,Z153)),MAX($Y$8:Y152)+1,0) -> 145 | Z153: Dive Forward Roll (with flight) | AC153: =IFERROR(VLOOKUP(ROWS($Z$9:Z153),$Y$9:$Z$163,2,0),"") -> Dive Forward Roll (with flight) | AG153: =IF(ISNUMBER(SEARCH($B$11,AH153)),MAX($AG$8:AG152)+1,0) -> 145 | AH153: Dive Forward Roll (with flight) | AK153: =IFERROR(VLOOKUP(ROWS($AH$9:AH153),$AG$9:$AH$163,2,0),"") -> Dive Forward Roll (with flight) | AO153: =IF(ISNUMBER(SEARCH($B$12,AP153)),MAX($AO$8:AO152)+1,0) -> 145 | AP153: Dive Forward Roll (with flight) | AS153: =IFERROR(VLOOKUP(ROWS($AP$9:AP153),$AO$9:$AP$163,2,0),"") -> Dive Forward Roll (with flight) | AW153: =IF(ISNUMBER(SEARCH($B$13,AX153)),MAX($AW$8:AW152)+1,0) -> 145 | AX153: Dive Forward Roll (with flight) | BA153: =IFERROR(VLOOKUP(ROWS($AX$9:AX153),$AW$9:$AX$163,2,0),"") -> Dive Forward Roll (with flight) | BE153: =IF(ISNUMBER(SEARCH($B$14,BF153)),MAX($BE$8:BE152)+1,0) -> 145 | BF153: Dive Forward Roll (with flight) | BI153: =IFERROR(VLOOKUP(ROWS($BF$9:BF153),$BE$9:$BF$163,2,0),"") -> Dive Forward Roll (with flight) | BM153: =IF(ISNUMBER(SEARCH($B$15,BN153)),MAX($BM$8:BM152)+1,0) -> 145 | BN153: Dive Forward Roll (with flight) | BQ153: =IFERROR(VLOOKUP(ROWS($BN$9:BN153),$BM$9:$BN$163,2,0),"") -> Dive Forward Roll (with flight) | BU153: =IF(ISNUMBER(SEARCH($B$16,BV153)),MAX($BU$8:BU152)+1,0) -> 145 | BV153: Dive Forward Roll (with flight) | BY153: =IFERROR(VLOOKUP(ROWS($BV$9:BV153),$BU$9:$BV$163,2,0),"") -> Dive Forward Roll (with flight) | CC153: =IF(ISNUMBER(SEARCH($B$17,CD153)),MAX($CC$8:CC152)+1,0) -> 145 | CD153: Dive Forward Roll (with flight) | CG153: =IFERROR(VLOOKUP(ROWS($CD$9:CD153),$CC$9:$CD$163,2,0),"") -> Dive Forward Roll (with flight) | CK153: =IF(ISNUMBER(SEARCH($B$18,CL153)),MAX($CK$8:CK152)+1,0) -> 145 | CL153: Dive Forward Roll (with flight) | CO153: =IFERROR(VLOOKUP(ROWS($CL$9:CL153),$CK$9:$CL$163,2,0),"") -> Dive Forward Roll (with flight)
Q154: =IF(ISNUMBER(SEARCH($B$9,R154)),MAX($Q$8:Q153)+1,0) -> 146 | R154: Pike Front Salto | U154: =IFERROR(VLOOKUP(ROWS($R$9:R154),$Q$9:$R$163,2,0),"") -> Pike Front Salto | Y154: =IF(ISNUMBER(SEARCH($B$10,Z154)),MAX($Y$8:Y153)+1,0) -> 146 | Z154: Pike Front Salto | AC154: =IFERROR(VLOOKUP(ROWS($Z$9:Z154),$Y$9:$Z$163,2,0),"") -> Pike Front Salto | AG154: =IF(ISNUMBER(SEARCH($B$11,AH154)),MAX($AG$8:AG153)+1,0) -> 146 | AH154: Pike Front Salto | AK154: =IFERROR(VLOOKUP(ROWS($AH$9:AH154),$AG$9:$AH$163,2,0),"") -> Pike Front Salto | AO154: =IF(ISNUMBER(SEARCH($B$12,AP154)),MAX($AO$8:AO153)+1,0) -> 146 | AP154: Pike Front Salto | AS154: =IFERROR(VLOOKUP(ROWS($AP$9:AP154),$AO$9:$AP$163,2,0),"") -> Pike Front Salto | AW154: =IF(ISNUMBER(SEARCH($B$13,AX154)),MAX($AW$8:AW153)+1,0) -> 146 | AX154: Pike Front Salto | BA154: =IFERROR(VLOOKUP(ROWS($AX$9:AX154),$AW$9:$AX$163,2,0),"") -> Pike Front Salto | BE154: =IF(ISNUMBER(SEARCH($B$14,BF154)),MAX($BE$8:BE153)+1,0) -> 146 | BF154: Pike Front Salto | BI154: =IFERROR(VLOOKUP(ROWS($BF$9:BF154),$BE$9:$BF$163,2,0),"") -> Pike Front Salto | BM154: =IF(ISNUMBER(SEARCH($B$15,BN154)),MAX($BM$8:BM153)+1,0) -> 146 | BN154: Pike Front Salto | BQ154: =IFERROR(VLOOKUP(ROWS($BN$9:BN154),$BM$9:$BN$163,2,0),"") -> Pike Front Salto | BU154: =IF(ISNUMBER(SEARCH($B$16,BV154)),MAX($BU$8:BU153)+1,0) -> 146 | BV154: Pike Front Salto | BY154: =IFERROR(VLOOKUP(ROWS($BV$9:BV154),$BU$9:$BV$163,2,0),"") -> Pike Front Salto | CC154: =IF(ISNUMBER(SEARCH($B$17,CD154)),MAX($CC$8:CC153)+1,0) -> 146 | CD154: Pike Front Salto | CG154: =IFERROR(VLOOKUP(ROWS($CD$9:CD154),$CC$9:$CD$163,2,0),"") -> Pike Front Salto | CK154: =IF(ISNUMBER(SEARCH($B$18,CL154)),MAX($CK$8:CK153)+1,0) -> 146 | CL154: Pike Front Salto | CO154: =IFERROR(VLOOKUP(ROWS($CL$9:CL154),$CK$9:$CL$163,2,0),"") -> Pike Front Salto
Q155: =IF(ISNUMBER(SEARCH($B$9,R155)),MAX($Q$8:Q154)+1,0) -> 147 | R155: Straight Front Salto | U155: =IFERROR(VLOOKUP(ROWS($R$9:R155),$Q$9:$R$163,2,0),"") -> Straight Front Salto | Y155: =IF(ISNUMBER(SEARCH($B$10,Z155)),MAX($Y$8:Y154)+1,0) -> 147 | Z155: Straight Front Salto | AC155: =IFERROR(VLOOKUP(ROWS($Z$9:Z155),$Y$9:$Z$163,2,0),"") -> Straight Front Salto | AG155: =IF(ISNUMBER(SEARCH($B$11,AH155)),MAX($AG$8:AG154)+1,0) -> 147 | AH155: Straight Front Salto | AK155: =IFERROR(VLOOKUP(ROWS($AH$9:AH155),$AG$9:$AH$163,2,0),"") -> Straight Front Salto | AO155: =IF(ISNUMBER(SEARCH($B$12,AP155)),MAX($AO$8:AO154)+1,0) -> 147 | AP155: Straight Front Salto | AS155: =IFERROR(VLOOKUP(ROWS($AP$9:AP155),$AO$9:$AP$163,2,0),"") -> Straight Front Salto | AW155: =IF(ISNUMBER(SEARCH($B$13,AX155)),MAX($AW$8:AW154)+1,0) -> 147 | AX155: Straight Front Salto | BA155: =IFERROR(VLOOKUP(ROWS($AX$9:AX155),$AW$9:$AX$163,2,0),"") -> Straight Front Salto | BE155: =IF(ISNUMBER(SEARCH($B$14,BF155)),MAX($BE$8:BE154)+1,0) -> 147 | BF155: Straight Front Salto | BI155: =IFERROR(VLOOKUP(ROWS($BF$9:BF155),$BE$9:$BF$163,2,0),"") -> Straight Front Salto | BM155: =IF(ISNUMBER(SEARCH($B$15,BN155)),MAX($BM$8:BM154)+1,0) -> 147 | BN155: Straight Front Salto | BQ155: =IFERROR(VLOOKUP(ROWS($BN$9:BN155),$BM$9:$BN$163,2,0),"") -> Straight Front Salto | BU155: =IF(ISNUMBER(SEARCH($B$16,BV155)),MAX($BU$8:BU154)+1,0) -> 147 | BV155: Straight Front Salto | BY155: =IFERROR(VLOOKUP(ROWS($BV$9:BV155),$BU$9:$BV$163,2,0),"") -> Straight Front Salto | CC155: =IF(ISNUMBER(SEARCH($B$17,CD155)),MAX($CC$8:CC154)+1,0) -> 147 | CD155: Straight Front Salto | CG155: =IFERROR(VLOOKUP(ROWS($CD$9:CD155),$CC$9:$CD$163,2,0),"") -> Straight Front Salto | CK155: =IF(ISNUMBER(SEARCH($B$18,CL155)),MAX($CK$8:CK154)+1,0) -> 147 | CL155: Straight Front Salto | CO155: =IFERROR(VLOOKUP(ROWS($CL$9:CL155),$CK$9:$CL$163,2,0),"") -> Straight Front Salto
